Workbook

Sheet Supply plan
AV1: 1-2023 | AW1: 2-2023 | AX1: 3-2023 | AY1: 4-2023 | AZ1: 5-2023 | BA1: 6-2023 | BB1: 7-2023 | BC1: 8-2023 | BD1: 9-2023 | BE1: 10-2023 | BF1: 11-2023 | BG1: 12-2023 | BH1: 13-2023 | BI1: 14-2023 | BJ1: 15-2023 | BK1: 16-2023 | BL1: 17-2023 | BM1: 18-2023 | BN1: 19-2023 | BO1: 20-2023 | BP1: 21-2023 | BQ1: 22-2023 | BR1: 23-2023 | BS1: 24-2023 | BT1: 25-2023 | BU1: 26-2023 | BV1: 27-2023 | BW1: 28-2023 | BX1: 29-2023 | BY1: 30-2023 | BZ1: 31-2023
I2: 2022-04-04 | J2: 2022-04-11 | K2: 2022-04-18 | L2: 2022-04-25 | M2: 2022-05-02 | N2: 2022-05-09 | O2: 2022-05-16 | P2: 2022-05-23 | Q2: 2022-05-30 | R2: 2022-06-06 | S2: 2022-06-13 | T2: 2022-06-20 | U2: 2022-06-27 | V2: 2022-07-04 | W2: 2022-07-11 | X2: 2022-07-18 | Y2: 2022-07-25 | Z2: 2022-08-01 | AA2: 2022-08-08 | AB2: 2022-08-15 | AC2: 2022-08-22 | AD2: 2022-08-29 | AE2: 2022-09-05 | AF2: 2022-09-12 | AG2: 2022-09-19 | AH2: 2022-09-26 | AI2: 2022-10-03 | AJ2: 2022-10-10 | AK2: 2022-10-17 | AL2: 2022-10-24 | AM2: 2022-10-31 | AN2: 2022-11-07 | AO2: 2022-11-14 | AP2: 2022-11-21 | AQ2: 2022-11-28 | AR2: 2022-12-05 | AS2: 2022-12-12 | AT2: 2022-12-19 | AU2: 2022-12-26 | AV2: 2023-01-02 | AW2: 2023-01-09 | AX2: 2023-01-16 | AY2: 2023-01-23 | AZ2: 2023-01-30 | BA2: 2023-02-06 | BB2: 2023-02-13 | BC2: 2023-02-20 | BD2: 2023-02-27 | BE2: 2023-03-06 | BF2: 2023-03-13 | BG2: 2023-03-20 | BH2: 2023-03-27 | BI2: 2023-04-03
I3: 2022-04-04 | J3: =I3+7 -> 2022-04-11 | K3: =J3+7 -> 2022-04-18 | L3: 2022-04-25 | M3: 2022-05-02 | N3: 2022-05-09 | O3: 2022-05-16 | P3: 2022-05-23 | Q3: 2022-05-30 | R3: 2022-06-06 | S3: 2022-06-13 | T3: 2022-06-20 | U3: 2022-06-27 | V3: 2022-07-04 | W3: =V3+7 -> 2022-07-11 | X3: =W3+7 -> 2022-07-18 | Y3: =X3+7 -> 2022-07-25 | Z3: 2022-08-01 | AA3: 2022-08-08 | AB3: 2022-08-15 | AC3: 2022-08-22 | AD3: 2022-08-29 | AE3: 2022-09-05 | AF3: 2022-09-12 | AG3: 2022-09-19 | AH3: 2022-09-26 | AI3: 2022-10-03 | AJ3: 2022-10-10 | AK3: 2022-10-17 | AL3: 2022-10-24 | AM3: 2022-10-31 | AN3: 2022-11-07 | AO3: 2022-11-14 | AP3: 2022-11-21 | AQ3: 2022-11-28 | AR3: 2022-12-05 | AS3: 2022-12-12 | AT3: 2022-12-19 | AU3: 2022-12-26 | AV3: 2023-01-02 | AW3: 2023-01-09 | AX3: 2023-01-16 | AY3: 2023-01-23 | AZ3: 2023-01-30 | BA3: 2023-02-06 | BB3: 2023-02-13 | BC3: 2023-02-20 | BD3: 2023-02-27 | BE3: 2023-03-06 | BF3: 2023-03-13 | BG3: 2023-03-20 | BH3: 2023-03-27 | BI3: 2023-04-03 | BJ3: 2023-04-10 | BK3: 2023-04-17 | BL3: 2023-04-24 | BM3: 2023-05-01 | BN3: 2023-05-08 | BO3: 2023-05-15 | BP3: 2023-05-22 | BQ3: 2023-05-29 | BR3: 2023-06-05 | BS3: 2023-06-12 | BT3: 2023-06-19 | BU3: 2023-06-26 | BV3: 2023-07-03 | BW3: =BV3+7 -> 2023-07-10 | BX3: 2023-07-17 | BY3: 2023-07-24 | BZ3: 2023-07-31
A4: P/N | B4: Description | E4: LT (weeks) | F4: Exp date (months) | I4: S14 | J4: S15 | K4: S16 | L4: S17 | M4: S18 | N4: S19 | O4: S20 | P4: S21 | Q4: S22 | R4: S23 | S4: S24 | T4: S25 | U4: S26 | V4: S27 | W4: S28 | X4: S29 | Y4: S30 | Z4: S31 | AA4: S32 | AB4: S33 | AC4: S34 | AD4: S35 | AE4: S36 | AF4: S37 | AG4: S38 | AH4: S39 | AI4: S40 | AJ4: S41 | AK4: S42 | AL4: S43 | AM4: S44 | AN4: S45 | AO4: S46 | AP4: S47 | AQ4: S48 | AR4: S49 | AS4: S50 | AT4: S51 | AU4: S52 | AV4: S01 | AW4: S02 | AX4: S03 | AY4: S04 | AZ4: S05 | BA4: S06 | BB4: S07 | BC4: S08 | BD4: S09 | BE4: S10 | BF4: S11 | BG4: S12 | BH4: S13 | BI4: S14 | BJ4: S15 | BK4: S16 | BL4: S17 | BM4: S18 | BN4: S19 | BO4: S20 | BP4: S21 | BQ4: S22 | BR4: S23 | BS4: S24 | BT4: S25 | BU4: S26 | BV4: S27 | BW4: S28 | BX4: S29 | BY4: S30 | BZ4: S31
A5: CHP001035 | B5: A | C5: 1.5063 | E5: 16 | F5: 6 | G5: Need SR | H5: =SUM(I7:BZ8) -> 430000 | I5: =$C$5*'[1]Production plan'!C12/34.5 -> 0 | J5: =$C$5*'[1]Production plan'!D12/34.5 -> 0 | K5: =$C$5*'[1]Production plan'!E12/34.5 -> 6040.393983 | L5: =$C$5*'[1]Production plan'!F12/34.5 -> 0 | M5: =$C$5*'[1]Production plan'!G12/34.5 -> 0 | N5: =$C$5*'[1]Production plan'!H12/34.5 -> 6264.112278 | O5: =$C$5*'[1]Production plan'!I12/34.5 -> 0 | P5: =$C$5*'[1]Production plan'!J12/34.5 -> 3579.49273 | Q5: =$C$5*'[1]Production plan'!K12/34.5 -> 0 | R5: =$C$5*'[1]Production plan'!L12/34.5 -> 3579.49273 | S5: =$C$5*'[1]Production plan'!M12/34.5 -> 10738.47819 | T5: =$C$5*'[1]Production plan'!N12/34.5 -> 8053.858643 | U5: =$C$5*'[1]Production plan'!O12/34.5 -> 8053.858643 | V5: =$C$5*'[1]Production plan'!P12/34.5 -> 13423.09774 | W5: =$C$5*'[1]Production plan'!Q12/34.5 -> 0 | X5: =$C$5*'[1]Production plan'!R12/34.5 -> 8053.858643 | Y5: =$C$5*'[1]Production plan'!S12/34.5 -> 0 | Z5: =$C$5*'[1]Production plan'!T12/34.5 -> 0 | AA5: =$C$5*'[1]Production plan'!U12/34.5 -> 0 | AB5: =$C$5*'[1]Production plan'!V12/34.5 -> 0 | AC5: =$C$5*'[1]Production plan'!W12/34.5 -> 2684.619548 | AD5: =$C$5*'[1]Production plan'!X12/34.5 -> 16107.71729 | AE5: =$C$5*'[1]Production plan'!Y12/34.5 -> 0 | AF5: =$C$5*'[1]Production plan'!Z12/34.5 -> 0 | AG5: =$C$5*'[1]Production plan'!AA12/34.5 -> 0 | AH5: =$C$5*'[1]Production plan'!AB12/34.5 -> 8053.858643 | AI5: =$C$5*'[1]Production plan'!AC12/34.5 -> 0 | AJ5: =$C$5*'[1]Production plan'!AD12/34.5 -> 0 | AK5: =$C$5*'[1]Production plan'!AE12/34.5 -> 0 | AL5: =$C$5*'[1]Production plan'!AF12/34.5 -> 0 | AM5: =$C$5*'[1]Production plan'!AG12/34.5 -> 0 | AN5: =$C$5*'[1]Production plan'!AH12/34.5 -> 0 | AO5: =$C$5*'[1]Production plan'!AI12/34.5 -> 0 | AP5: =$C$5*'[1]Production plan'!AJ12/34.5 -> 0 | AQ5: =$C$5*'[1]Production plan'!AK12/34.5 -> 0 | AR5: =$C$5*'[1]Production plan'!AL12/34.5 -> 0 | AS5: =$C$5*'[1]Production plan'!AM12/34.5 -> 0 | AT5: =$C$5*'[1]Production plan'!AN12/34.5 -> 21476.95638 | AU5: =$C$5*'[1]Production plan'!AO12/34.5 -> 0 | AV5: =$C$5*'[1]Production plan'!AP12/34.5 -> 25056.44911 | AW5: =$C$5*'[1]Production plan'!AQ12/34.5 -> 0 | AX5: =$C$5*'[1]Production plan'!AR12/34.5 -> 25056.44911 | AY5: =$C$5*'[1]Production plan'!AS12/34.5 -> 0 | AZ5: =$C$5*'[1]Production plan'!AT12/34.5 -> 25056.44911 | BA5: =$C$5*'[1]Production plan'!AU12/34.5 -> 0 | BB5: =$C$5*'[1]Production plan'!AV12/34.5 -> 0 | BC5: =$C$5*'[1]Production plan'!AW12/34.5 -> 0 | BD5: =$C$5*'[1]Production plan'!AX12/34.5 -> 0 | BE5: =$C$5*'[1]Production plan'!AY12/34.5 -> 0 | BF5: =$C$5*'[1]Production plan'!AZ12/34.5 -> 0 | BG5: =$C$5*'[1]Production plan'!BA12/34.5 -> 0 | BH5: =$C$5*'[1]Production plan'!BB12/34.5 -> 0 | BI5: =$C$5*'[1]Production plan'!BC12/34.5 -> 0 | BJ5: =$C$5*'[1]Production plan'!BD12/34.5 -> 35794.9273 | BK5: =$C$5*'[1]Production plan'!BE12/34.5 -> 0 | BL5: =$C$5*'[1]Production plan'!BF12/34.5 -> 0 | BM5: =$C$5*'[1]Production plan'!BG12/34.5 -> 28635.94184 | BN5: =$C$5*'[1]Production plan'!BH12/34.5 -> 0 | BO5: =$C$5*'[1]Production plan'!BI12/34.5 -> 32215.43457 | BP5: =$C$5*'[1]Production plan'!BJ12/34.5 -> 0 | BQ5: =$C$5*'[1]Production plan'!BK12/34.5 -> 0 | BR5: =$C$5*'[1]Production plan'!BL12/34.5 -> 0 | BS5: =$C$5*'[1]Production plan'!BM12/34.5 -> 0 | BT5: =$C$5*'[1]Production plan'!BN12/34.5 -> 0 | BU5: =$C$5*'[1]Production plan'!BO12/34.5 -> 0 | BV5: =$C$5*'[1]Production plan'!BP12/34.5 -> 32215.43457 | BW5: =$C$5*'[1]Production plan'!BQ12/34.5 -> 0 | BX5: =$C$5*'[1]Production plan'!BR12/34.5 -> 32215.43457 | BY5: =$C$5*'[1]Production plan'!BS12/34.5 -> 0 | BZ5: =$C$5*'[1]Production plan'!BT12/34.5 -> 0
D6: 0.674394 | G6: Need HR | I6: =$D$6*'[1]Production plan'!C15/17 -> 0 | J6: =$D$6*'[1]Production plan'!D15/17 -> 0 | K6: =$D$6*'[1]Production plan'!E15/17 -> 0 | L6: =$D$6*'[1]Production plan'!F15/17 -> 0 | M6: =$D$6*'[1]Production plan'!G15/17 -> 0 | N6: =$D$6*'[1]Production plan'!H15/17 -> 0 | O6: =$D$6*'[1]Production plan'!I15/17 -> 0 | P6: =$D$6*'[1]Production plan'!J15/17 -> 0 | Q6: =$D$6*'[1]Production plan'!K15/17 -> 0 | R6: =$D$6*'[1]Production plan'!L15/17 -> 0 | S6: =$D$6*'[1]Production plan'!M15/17 -> 0 | T6: =$D$6*'[1]Production plan'!N15/17 -> 0 | U6: =$D$6*'[1]Production plan'!O15/17 -> 0 | V6: =$D$6*'[1]Production plan'!P15/17 -> 0 | W6: =$D$6*'[1]Production plan'!Q15/17 -> 0 | X6: =$D$6*'[1]Production plan'!R15/17 -> 7317.730283 | Y6: =$D$6*'[1]Production plan'!S15/17 -> 0 | Z6: =$D$6*'[1]Production plan'!T15/17 -> 0 | AA6: =$D$6*'[1]Production plan'!U15/17 -> 0 | AB6: =$D$6*'[1]Production plan'!V15/17 -> 0 | AC6: =$D$6*'[1]Production plan'!W15/17 -> 0 | AD6: =$D$6*'[1]Production plan'!X15/17 -> 0 | AE6: =$D$6*'[1]Production plan'!Y15/17 -> 0 | AF6: =$D$6*'[1]Production plan'!Z15/17 -> 0 | AG6: =$D$6*'[1]Production plan'!AA15/17 -> 0 | AH6: =$D$6*'[1]Production plan'!AB15/17 -> 5955.295722 | AI6: =$D$6*'[1]Production plan'!AC15/17 -> 0 | AJ6: =$D$6*'[1]Production plan'!AD15/17 -> 5955.295722 | AK6: =$D$6*'[1]Production plan'!AE15/17 -> 0 | AL6: =$D$6*'[1]Production plan'!AF15/17 -> 5955.295722 | AM6: =$D$6*'[1]Production plan'!AG15/17 -> 0 | AN6: =$D$6*'[1]Production plan'!AH15/17 -> 0 | AO6: =$D$6*'[1]Production plan'!AI15/17 -> 0 | AP6: =$D$6*'[1]Production plan'!AJ15/17 -> 11910.59144 | AQ6: =$D$6*'[1]Production plan'!AK15/17 -> 0 | AR6: =$D$6*'[1]Production plan'!AL15/17 -> 15880.78859 | AS6: =$D$6*'[1]Production plan'!AM15/17 -> 0 | AT6: =$D$6*'[1]Production plan'!AN15/17 -> 0 | AU6: =$D$6*'[1]Production plan'!AO15/17 -> 0 | AV6: =$D$6*'[1]Production plan'!AP15/17 -> 0 | AW6: =$D$6*'[1]Production plan'!AQ15/17 -> 0 | AX6: =$D$6*'[1]Production plan'!AR15/17 -> 0 | AY6: =$D$6*'[1]Production plan'!AS15/17 -> 0 | AZ6: =$D$6*'[1]Production plan'!AT15/17 -> 0 | BA6: =$D$6*'[1]Production plan'!AU15/17 -> 0 | BB6: =$D$6*'[1]Production plan'!AV15/17 -> 0 | BC6: =$D$6*'[1]Production plan'!AW15/17 -> 18527.58669 | BD6: =$D$6*'[1]Production plan'!AX15/17 -> 0 | BE6: =$D$6*'[1]Production plan'!AY15/17 -> 0 | BF6: =$D$6*'[1]Production plan'!AZ15/17 -> 26467.98099 | BG6: =$D$6*'[1]Production plan'!BA15/17 -> 0 | BH6: =$D$6*'[1]Production plan'!BB15/17 -> 23821.18289 | BI6: =$D$6*'[1]Production plan'!BC15/17 -> 0 | BJ6: =$D$6*'[1]Production plan'!BD15/17 -> 0 | BK6: =$D$6*'[1]Production plan'!BE15/17 -> 0 | BL6: =$D$6*'[1]Production plan'!BF15/17 -> 0 | BM6: =$D$6*'[1]Production plan'!BG15/17 -> 0 | BN6: =$D$6*'[1]Production plan'!BH15/17 -> 0 | BO6: =$D$6*'[1]Production plan'!BI15/17 -> 0 | BP6: =$D$6*'[1]Production plan'!BJ15/17 -> 0 | BQ6: =$D$6*'[1]Production plan'!BK15/17 -> 10587.1924 | BR6: =$D$6*'[1]Production plan'!BL15/17 -> 10587.1924 | BS6: =$D$6*'[1]Production plan'!BM15/17 -> 7940.394296 | BT6: =$D$6*'[1]Production plan'!BN15/17 -> 7940.394296 | BU6: =$D$6*'[1]Production plan'!BO15/17 -> 0 | BV6: =$D$6*'[1]Production plan'!BP15/17 -> 0 | BW6: =$D$6*'[1]Production plan'!BQ15/17 -> 0 | BX6: =$D$6*'[1]Production plan'!BR15/17 -> 0 | BY6: =$D$6*'[1]Production plan'!BS15/17 -> 0 | BZ6: =$D$6*'[1]Production plan'!BT15/17 -> 0
G7: Supply SR | P7: 10000 | T7: 10000 | AD7: 25000 | AK7: 10000 | AO7: 20000 | AR7: 10000 | AT7: 20000 | AV7: 10000 | BF7: 10000 | BG7: 10000 | BH7: 10000 | BI7: 10000 | BJ7: 20000 | BK7: 10000 | BL7: 10000 | BM7: 10000 | BN7: 10000 | BS7: 10000 | BT7: 10000 | BU7: 10000 | BV7: 20000 | BW7: 10000
G8: Supply HR | U8: 10000 | Y8: 15000 | AA8: 20000 | AW8: 10000 | AX8: 10000 | AZ8: 10000 | BB8: 20000 | BE8: 20000 | BO8: 20000 | BQ8: 10000 | BR8: 10000
G9: % | I9: =I10/AVERAGE(J5:P5) -> 9.695291474 | J9: =J10/AVERAGE(K5:Q6) -> 19.39058295 | K9: 16.64552316 | L9: 9.247512865 | M9: 6.935634648 | N9: 3.991653877 | O9: 5.608468353 | P9: 8.116236153 | Q9: 6.009538145 | R9: 5.49549525 | S9: 3.461630006 | T9: 11.7779412 | U9: 16.01844064 | V9: 15.13732028 | W9: 8.000327964 | X9: 13.09682783 | Y9: 24.2715956 | Z9: 24.2715956 | AA9: 22.44166265 | AB9: 22.44166265 | AC9: 19.36493915 | AD9: 41.22464083 | AE9: 31.75290724 | AF9: 31.75290724 | AG9: 31.75290724 | AH9: 52.63375258 | AI9: 26.31687629 | AJ9: 30.42250172 | AK9: 20.25458709 | AL9: 21.59485575 | AM9: 12.18126867 | AN9: 12.18126867 | AO9: 11.84195604 | AP9: 11.43013337 | AQ9: 8.155908504 | AR9: 8.815097138 | AS9: 6.529701583 | AT9: 8.120253197 | AU9: 8.120253197 | AV9: 5.821693218 | AW9: 7.861305848 | AX9: 7.544357741 | AY9: 4.693848557 | AZ9: 2.622997696 | BA9: 1.715036955 | BB9: 5.783813781 | BC9: 1.61048406 | BD9: 1.61048406 | BE9: 4.863117574 | BF9: 2.131228889 | BG9: 3.717594268 | BH9: 1.392590893 | BI9: 2.8411719 | BJ9: 0.7483321823 | BK9: 2.358524654 | BL9: 3.706502498 | BM9: 1.04743695 | BN9: 3.068496157 | BO9: 0.5996845052 | BP9: 0.5996845052 | BQ9: 0.3665592763 | BR9: 0.3125215429 | BS9: 0.7452350625 | BT9: 1.10108822 | BU9: 2.469624596 | BV9: =BV10/AVERAGE(BW5:CC6) -> 0.9179628077 | BW9: 2.550933401
G10: Inventory SR | I10: 22000 | J10: =I10+J7-J5+J8-J6 -> 22000 | K10: 15959.60602 | L10: 15959.60602 | M10: 15959.60602 | N10: 9695.493739 | O10: 19000 | P10: 25420.50727 | Q10: 25420.50727 | R10: 21841.01454 | S10: =R10+S7-S5+S8-S6 -> 11102.53635 | T10: 31000 | U10: 32946.14136 | V10: 19523.04362 | W10: 19523.04362 | X10: 17580 | Y10: 32580 | Z10: 32580 | AA10: 52580 | AB10: 52580 | AC10: 49895.38045 | AD10: =AC10+AD7-AD5+AD8-AD6 -> 58787.66317 | AE10: 58787.66317 | AF10: 58787.66317 | AG10: =AF10+AG7-AG5+AG8-AG6 -> 58787.66317 | AH10: 44778.5088 | AI10: 44778.5088 | AJ10: 38823.21308 | AK10: 48823.21308 | AL10: 42867.91735 | AM10: 42867.91735 | AN10: 42867.91735 | AO10: 62867.91735 | AP10: 50957.32591 | AQ10: 50957.32591 | AR10: =AQ10+AR7-AR5+AR8-AR6 -> 45076.53732 | AS10: 45076.53732 | AT10: =AS10+AT7-AT5+AT8-AT6 -> 43599.58093 | AU10: 43599.58093 | AV10: 28543.13182 | AW10: 38543.13182 | AX10: 23486.68271 | AY10: 23486.68271 | AZ10: 8430.233595 | BA10: 8430.233595 | BB10: 28430.2336 | BC10: 9902.646904 | BD10: 9902.646904 | BE10: 29902.6469 | BF10: 13434.66592 | BG10: 23434.66592 | BH10: 9613.483026 | BI10: 19613.48303 | BJ10: 3818.555722 | BK10: 13818.55572 | BL10: 23818.55572 | BM10: 5182.613878 | BN10: 15182.61388 | BO10: 2967.179304 | BP10: 2967.179304 | BQ10: 2379.986909 | BR10: 1792.794514 | BS10: 3852.400217 | BT10: 5912.005921 | BU10: 15912.00592 | BV10: =BU10+BV7-BV5+BV8-BV6 -> 3696.571347 | BW10: 13696.57135 | BX10: -18518.86323 | BY10: -18518.86323 | BZ10: -18518.86323
A12: CHP001036 | B12: B | C12: 0.02153 | E12: 16 | F12: =12*5 -> 60 | G12: Need SR | H12: =SUM(I14:BZ15) -> 7900 | I12: =$C$12*'[1]Production plan'!C12/34.5 -> 0 | J12: =$C$12*'[1]Production plan'!D12/34.5 -> 0 | K12: =$C$12*'[1]Production plan'!E12/34.5 -> 86.33717217 | L12: =$C$12*'[1]Production plan'!F12/34.5 -> 0 | M12: =$C$12*'[1]Production plan'!G12/34.5 -> 0 | N12: =$C$12*'[1]Production plan'!H12/34.5 -> 89.53484522 | O12: =$C$12*'[1]Production plan'!I12/34.5 -> 0 | P12: =$C$12*'[1]Production plan'!J12/34.5 -> 51.1627687 | Q12: =$C$12*'[1]Production plan'!K12/34.5 -> 0 | R12: =$C$12*'[1]Production plan'!L12/34.5 -> 51.1627687 | S12: =$C$12*'[1]Production plan'!M12/34.5 -> 153.4883061 | T12: =$C$12*'[1]Production plan'!N12/34.5 -> 115.1162296 | U12: =$C$12*'[1]Production plan'!O12/34.5 -> 115.1162296 | V12: =$C$12*'[1]Production plan'!P12/34.5 -> 191.8603826 | W12: =$C$12*'[1]Production plan'!Q12/34.5 -> 0 | X12: =$C$12*'[1]Production plan'!R12/34.5 -> 115.1162296 | Y12: =$C$12*'[1]Production plan'!S12/34.5 -> 0 | Z12: =$C$12*'[1]Production plan'!T12/34.5 -> 0 | AA12: =$C$12*'[1]Production plan'!U12/34.5 -> 0 | AB12: =$C$12*'[1]Production plan'!V12/34.5 -> 0 | AC12: =$C$12*'[1]Production plan'!W12/34.5 -> 38.37207652 | AD12: =$C$12*'[1]Production plan'!X12/34.5 -> 230.2324591 | AE12: =$C$12*'[1]Production plan'!Y12/34.5 -> 0 | AF12: =$C$12*'[1]Production plan'!Z12/34.5 -> 0 | AG12: =$C$12*'[1]Production plan'!AA12/34.5 -> 0 | AH12: =$C$12*'[1]Production plan'!AB12/34.5 -> 115.1162296 | AI12: =$C$12*'[1]Production plan'!AC12/34.5 -> 0 | AJ12: =$C$12*'[1]Production plan'!AD12/34.5 -> 0 | AK12: =$C$12*'[1]Production plan'!AE12/34.5 -> 0 | AL12: =$C$12*'[1]Production plan'!AF12/34.5 -> 0 | AM12: =$C$12*'[1]Production plan'!AG12/34.5 -> 0 | AN12: =$C$12*'[1]Production plan'!AH12/34.5 -> 0 | AO12: =$C$12*'[1]Production plan'!AI12/34.5 -> 0 | AP12: =$C$12*'[1]Production plan'!AJ12/34.5 -> 0 | AQ12: =$C$12*'[1]Production plan'!AK12/34.5 -> 0 | AR12: =$C$12*'[1]Production plan'!AL12/34.5 -> 0 | AS12: =$C$12*'[1]Production plan'!AM12/34.5 -> 0 | AT12: =$C$12*'[1]Production plan'!AN12/34.5 -> 306.9766122 | AU12: =$C$12*'[1]Production plan'!AO12/34.5 -> 0 | AV12: =$C$12*'[1]Production plan'!AP12/34.5 -> 358.1393809 | AW12: =$C$12*'[1]Production plan'!AQ12/34.5 -> 0 | AX12: =$C$12*'[1]Production plan'!AR12/34.5 -> 358.1393809 | AY12: =$C$12*'[1]Production plan'!AS12/34.5 -> 0 | AZ12: =$C$12*'[1]Production plan'!AT12/34.5 -> 358.1393809 | BA12: =$C$12*'[1]Production plan'!AU12/34.5 -> 0 | BB12: =$C$12*'[1]Production plan'!AV12/34.5 -> 0 | BC12: =$C$12*'[1]Production plan'!AW12/34.5 -> 0 | BD12: =$C$12*'[1]Production plan'!AX12/34.5 -> 0 | BE12: =$C$12*'[1]Production plan'!AY12/34.5 -> 0 | BF12: =$C$12*'[1]Production plan'!AZ12/34.5 -> 0 | BG12: =$C$12*'[1]Production plan'!BA12/34.5 -> 0 | BH12: =$C$12*'[1]Production plan'!BB12/34.5 -> 0 | BI12: =$C$12*'[1]Production plan'!BC12/34.5 -> 0 | BJ12: =$C$12*'[1]Production plan'!BD12/34.5 -> 511.627687 | BK12: =$C$12*'[1]Production plan'!BE12/34.5 -> 0 | BL12: =$C$12*'[1]Production plan'!BF12/34.5 -> 0 | BM12: =$C$12*'[1]Production plan'!BG12/34.5 -> 409.3021496 | BN12: =$C$12*'[1]Production plan'!BH12/34.5 -> 0 | BO12: =$C$12*'[1]Production plan'!BI12/34.5 -> 460.4649183 | BP12: =$C$12*'[1]Production plan'!BJ12/34.5 -> 0 | BQ12: =$C$12*'[1]Production plan'!BK12/34.5 -> 0 | BR12: =$C$12*'[1]Production plan'!BL12/34.5 -> 0 | BS12: =$C$12*'[1]Production plan'!BM12/34.5 -> 0 | BT12: =$C$12*'[1]Production plan'!BN12/34.5 -> 0 | BU12: =$C$12*'[1]Production plan'!BO12/34.5 -> 0 | BV12: =$C$12*'[1]Production plan'!BP12/34.5 -> 460.4649183 | BW12: =$C$12*'[1]Production plan'!BQ12/34.5 -> 0 | BX12: =$C$12*'[1]Production plan'!BR12/34.5 -> 460.4649183 | BY12: =$C$12*'[1]Production plan'!BS12/34.5 -> 0 | BZ12: =$C$12*'[1]Production plan'!BT12/34.5 -> 0
D13: 0.012616 | G13: Need HR | I13: =$D$13*'[1]Production plan'!C15/17 -> 0 | J13: =$D$13*'[1]Production plan'!D15/17 -> 0 | K13: =$D$13*'[1]Production plan'!E15/17 -> 0 | L13: =$D$13*'[1]Production plan'!F15/17 -> 0 | M13: =$D$13*'[1]Production plan'!G15/17 -> 0 | N13: =$D$13*'[1]Production plan'!H15/17 -> 0 | O13: =$D$13*'[1]Production plan'!I15/17 -> 0 | P13: =$D$13*'[1]Production plan'!J15/17 -> 0 | Q13: =$D$13*'[1]Production plan'!K15/17 -> 0 | R13: =$D$13*'[1]Production plan'!L15/17 -> 0 | S13: =$D$13*'[1]Production plan'!M15/17 -> 0 | T13: =$D$13*'[1]Production plan'!N15/17 -> 0 | U13: =$D$13*'[1]Production plan'!O15/17 -> 0 | V13: =$D$13*'[1]Production plan'!P15/17 -> 0 | W13: =$D$13*'[1]Production plan'!Q15/17 -> 0 | X13: =$D$13*'[1]Production plan'!R15/17 -> 136.8939896 | Y13: =$D$13*'[1]Production plan'!S15/17 -> 0 | Z13: =$D$13*'[1]Production plan'!T15/17 -> 0 | AA13: =$D$13*'[1]Production plan'!U15/17 -> 0 | AB13: =$D$13*'[1]Production plan'!V15/17 -> 0 | AC13: =$D$13*'[1]Production plan'!W15/17 -> 0 | AD13: =$D$13*'[1]Production plan'!X15/17 -> 0 | AE13: =$D$13*'[1]Production plan'!Y15/17 -> 0 | AF13: =$D$13*'[1]Production plan'!Z15/17 -> 0 | AG13: =$D$13*'[1]Production plan'!AA15/17 -> 0 | AH13: =$D$13*'[1]Production plan'!AB15/17 -> 111.4067012 | AI13: =$D$13*'[1]Production plan'!AC15/17 -> 0 | AJ13: =$D$13*'[1]Production plan'!AD15/17 -> 111.4067012 | AK13: =$D$13*'[1]Production plan'!AE15/17 -> 0 | AL13: =$D$13*'[1]Production plan'!AF15/17 -> 111.4067012 | AM13: =$D$13*'[1]Production plan'!AG15/17 -> 0 | AN13: =$D$13*'[1]Production plan'!AH15/17 -> 0 | AO13: =$D$13*'[1]Production plan'!AI15/17 -> 0 | AP13: =$D$13*'[1]Production plan'!AJ15/17 -> 222.8134024 | AQ13: =$D$13*'[1]Production plan'!AK15/17 -> 0 | AR13: =$D$13*'[1]Production plan'!AL15/17 -> 297.0845365 | AS13: =$D$13*'[1]Production plan'!AM15/17 -> 0 | AT13: =$D$13*'[1]Production plan'!AN15/17 -> 0 | AU13: =$D$13*'[1]Production plan'!AO15/17 -> 0 | AV13: =$D$13*'[1]Production plan'!AP15/17 -> 0 | AW13: =$D$13*'[1]Production plan'!AQ15/17 -> 0 | AX13: =$D$13*'[1]Production plan'!AR15/17 -> 0 | AY13: =$D$13*'[1]Production plan'!AS15/17 -> 0 | AZ13: =$D$13*'[1]Production plan'!AT15/17 -> 0 | BA13: =$D$13*'[1]Production plan'!AU15/17 -> 0 | BB13: =$D$13*'[1]Production plan'!AV15/17 -> 0 | BC13: =$D$13*'[1]Production plan'!AW15/17 -> 346.5986259 | BD13: =$D$13*'[1]Production plan'!AX15/17 -> 0 | BE13: =$D$13*'[1]Production plan'!AY15/17 -> 0 | BF13: =$D$13*'[1]Production plan'!AZ15/17 -> 495.1408941 | BG13: =$D$13*'[1]Production plan'!BA15/17 -> 0 | BH13: =$D$13*'[1]Production plan'!BB15/17 -> 445.6268047 | BI13: =$D$13*'[1]Production plan'!BC15/17 -> 0 | BJ13: =$D$13*'[1]Production plan'!BD15/17 -> 0 | BK13: =$D$13*'[1]Production plan'!BE15/17 -> 0 | BL13: =$D$13*'[1]Production plan'!BF15/17 -> 0 | BM13: =$D$13*'[1]Production plan'!BG15/17 -> 0 | BN13: =$D$13*'[1]Production plan'!BH15/17 -> 0 | BO13: =$D$13*'[1]Production plan'!BI15/17 -> 0 | BP13: =$D$13*'[1]Production plan'!BJ15/17 -> 0 | BQ13: =$D$13*'[1]Production plan'!BK15/17 -> 198.0563576 | BR13: =$D$13*'[1]Production plan'!BL15/17 -> 198.0563576 | BS13: =$D$13*'[1]Production plan'!BM15/17 -> 148.5422682 | BT13: =$D$13*'[1]Production plan'!BN15/17 -> 148.5422682 | BU13: =$D$13*'[1]Production plan'!BO15/17 -> 0 | BV13: =$D$13*'[1]Production plan'!BP15/17 -> 0 | BW13: =$D$13*'[1]Production plan'!BQ15/17 -> 0 | BX13: =$D$13*'[1]Production plan'!BR15/17 -> 0 | BY13: =$D$13*'[1]Production plan'!BS15/17 -> 0 | BZ13: =$D$13*'[1]Production plan'!BT15/17 -> 0
G14: Supply SR | L14: 320 | R14: 320 | U14: 220 | Z14: 320 | AD14: 320 | AH14: 320 | AM14: 320 | AV14: 320 | AX14: 320 | BG14: 320 | BI14: 320 | BJ14: 320 | BK14: 320 | BM14: 320 | BT14: 320 | BU14: 320 | BV14: 320
G15: Supply HR | W15: 640 | AZ15: 320 | BB15: 320 | BD15: 320 | BO15: 320 | BP15: 320 | BR15: 320
G16: % | I16: =I17/AVERAGE(J12:P12) -> 8.633038284 | J16: =J17/AVERAGE(K12:Q13) -> 17.26607657 | K16: 14.13152394 | L16: 20.82324278 | M16: 15.61743209 | N16: 12.21651461 | O16: 7.847687766 | P16: 7.345458196 | Q16: 5.238918431 | R16: 10.11059662 | S16: 9.225008091 | T16: 15.05223295 | U16: 22.26408495 | V16: 24.78225269 | W16: 31.03317238 | X16: 39.61213825 | Y16: 39.61213825 | Z16: 56.2909333 | AA16: 30.53759088 | AB16: 30.53759088 | AC16: 25.66660317 | AD16: 46.87229235 | AE16: 35.25095866 | AF16: 35.25095866 | AG16: 35.25095866 | AH16: 76.96222619 | AI16: 38.4811131 | AJ16: 46.64148413 | AK16: 24.69255042 | AL16: 26.98381123 | AM16: 22.3840821 | AN16: 22.3840821 | AO16: 15.61908037 | AP16: 15.99400513 | AQ16: 11.6556654 | AR16: 10.97502831 | AS16: 8.129650598 | AT16: 6.452407911 | AU16: 6.452407911 | AV16: 6.020104356 | AW16: 6.020104356 | AX16: 8.321789662 | AY16: 4.887727799 | AZ16: 6.332992571 | BA16: 4.140802835 | BB16: 7.620775795 | BC16: 3.413911538 | BD16: 6.498471048 | BE16: 6.498471048 | BF16: 1.834081934 | BG16: 5.112394639 | BH16: 0.5411932965 | BI16: 3.784292334 | BJ16: 2.383178626 | BK16: 5.549353151 | BL16: 4.9665614 | BM16: 5.005437484 | BN16: 5.005437484 | BO16: 3.30085801 | BP16: 7.184143876 | BQ16: 3.894781445 | BR16: 5.929730519 | BS16: 4.808825982 | BT16: 7.020835921 | BU16: 9.32544557 | BV16: =BV17/AVERAGE(BW12:CC13) -> 12.48031126 | BW16: 9.360233446
G17: Inventory | I17: 280 | J17: =I17+J14-J12+J15-J13 -> 280 | K17: 193.6628278 | L17: 513.6628278 | M17: 513.6628278 | N17: 424.1279826 | O17: 380 | P17: 328.8372313 | Q17: 328.8372313 | R17: 597.6744626 | S17: 444.1861565 | T17: 601 | U17: 705.8837704 | V17: 514.0233878 | W17: 1154.023388 | X17: 760 | Y17: 760 | Z17: 1080 | AA17: 1080 | AB17: 1080 | AC17: 1041.627923 | AD17: 1131.395464 | AE17: 1131.395464 | AF17: 1131.395464 | AG17: 1131.395464 | AH17: 1224.872534 | AI17: 1224.872534 | AJ17: 1113.465832 | AK17: 1113.465832 | AL17: 1002.059131 | AM17: 1322.059131 | AN17: 1322.059131 | AO17: 1322.059131 | AP17: 1099.245729 | AQ17: 1099.245729 | AR17: 802.1611924 | AS17: 802.1611924 | AT17: 495.1845803 | AU17: 495.1845803 | AV17: 457.0451994 | AW17: 457.0451994 | AX17: 418.9058185 | AY17: 418.9058185 | AZ17: 380.7664376 | BA17: 380.7664376 | BB17: 700.7664376 | BC17: 354.1678118 | BD17: 674.1678118 | BE17: 674.1678118 | BF17: 179.0269176 | BG17: 499.0269176 | BH17: 53.40011294 | BI17: 373.4001129 | BJ17: 181.772426 | BK17: 501.772426 | BL17: 501.772426 | BM17: 412.4702764 | BN17: 412.4702764 | BO17: 272.0053582 | BP17: 592.0053582 | BQ17: 393.9490005 | BR17: 515.8926429 | BS17: 367.3503746 | BT17: 538.8081064 | BU17: 858.8081064 | BV17: =BU17+BV14-BV12+BV15-BV13 -> 718.3431881 | BW17: 718.3431881 | BX17: 257.8782699 | BY17: 257.8782699 | BZ17: 257.8782699
A20: CHP001043 | B20: C | C20: 0.145 | E20: 12 | F20: 6 | G20: Need SR | H20: =SUM(I22:BZ23) -> 48600 | I20: =$C$20*'[1]Production plan'!C12/34.5+$D$22*'[1]Production plan'!C15/17 -> 0 | J20: =$C$20*'[1]Production plan'!D12/34.5 -> 0 | K20: =$C$20*'[1]Production plan'!E12/34.5 -> 581.4626087 | L20: =$C$20*'[1]Production plan'!F12/34.5 -> 0 | M20: =$C$20*'[1]Production plan'!G12/34.5 -> 0 | N20: =$C$20*'[1]Production plan'!H12/34.5 -> 602.9982609 | O20: =$C$20*'[1]Production plan'!I12/34.5 -> 0 | P20: =$C$20*'[1]Production plan'!J12/34.5 -> 344.5704348 | Q20: =$C$20*'[1]Production plan'!K12/34.5 -> 0 | R20: =$C$20*'[1]Production plan'!L12/34.5 -> 344.5704348 | S20: =$C$20*'[1]Production plan'!M12/34.5 -> 1033.711304 | T20: =$C$20*'[1]Production plan'!N12/34.5 -> 775.2834783 | U20: =$C$20*'[1]Production plan'!O12/34.5 -> 775.2834783 | V20: =$C$20*'[1]Production plan'!P12/34.5 -> 1292.13913 | W20: =$C$20*'[1]Production plan'!Q12/34.5 -> 0 | X20: =$C$20*'[1]Production plan'!R12/34.5 -> 775.2834783 | Y20: =$C$20*'[1]Production plan'!S12/34.5 -> 0 | Z20: =$C$20*'[1]Production plan'!T12/34.5 -> 0 | AA20: =$C$20*'[1]Production plan'!U12/34.5 -> 0 | AB20: =$C$20*'[1]Production plan'!V12/34.5 -> 0 | AC20: =$C$20*'[1]Production plan'!W12/34.5 -> 258.4278261 | AD20: =$C$20*'[1]Production plan'!X12/34.5 -> 1550.566957 | AE20: =$C$20*'[1]Production plan'!Y12/34.5 -> 0 | AF20: =$C$20*'[1]Production plan'!Z12/34.5 -> 0 | AG20: =$C$20*'[1]Production plan'!AA12/34.5 -> 0 | AH20: =$C$20*'[1]Production plan'!AB12/34.5 -> 775.2834783 | AI20: =$C$20*'[1]Production plan'!AC12/34.5 -> 0 | AJ20: =$C$20*'[1]Production plan'!AD12/34.5 -> 0 | AK20: =$C$20*'[1]Production plan'!AE12/34.5 -> 0 | AL20: =$C$20*'[1]Production plan'!AF12/34.5 -> 0 | AM20: =$C$20*'[1]Production plan'!AG12/34.5 -> 0 | AN20: =$C$20*'[1]Production plan'!AH12/34.5 -> 0 | AO20: =$C$20*'[1]Production plan'!AI12/34.5 -> 0 | AP20: =$C$20*'[1]Production plan'!AJ12/34.5 -> 0 | AQ20: =$C$20*'[1]Production plan'!AK12/34.5 -> 0 | AR20: =$C$20*'[1]Production plan'!AL12/34.5 -> 0 | AS20: =$C$20*'[1]Production plan'!AM12/34.5 -> 0 | AT20: =$C$20*'[1]Production plan'!AN12/34.5 -> 2067.422609 | AU20: =$C$20*'[1]Production plan'!AO12/34.5 -> 0 | AV20: =$C$20*'[1]Production plan'!AP12/34.5 -> 2411.993043 | AW20: =$C$20*'[1]Production plan'!AQ12/34.5 -> 0 | AX20: =$C$20*'[1]Production plan'!AR12/34.5 -> 2411.993043 | AY20: =$C$20*'[1]Production plan'!AS12/34.5 -> 0 | AZ20: =$C$20*'[1]Production plan'!AT12/34.5 -> 2411.993043 | BA20: =$C$20*'[1]Production plan'!AU12/34.5 -> 0 | BB20: =$C$20*'[1]Production plan'!AV12/34.5 -> 0 | BC20: =$C$20*'[1]Production plan'!AW12/34.5 -> 0 | BD20: =$C$20*'[1]Production plan'!AX12/34.5 -> 0 | BE20: =$C$20*'[1]Production plan'!AY12/34.5 -> 0 | BF20: =$C$20*'[1]Production plan'!AZ12/34.5 -> 0 | BG20: =$C$20*'[1]Production plan'!BA12/34.5 -> 0 | BH20: =$C$20*'[1]Production plan'!BB12/34.5 -> 0 | BI20: =$C$20*'[1]Production plan'!BC12/34.5 -> 0 | BJ20: =$C$20*'[1]Production plan'!BD12/34.5 -> 3445.704348 | BK20: =$C$20*'[1]Production plan'!BE12/34.5 -> 0 | BL20: =$C$20*'[1]Production plan'!BF12/34.5 -> 0 | BM20: =$C$20*'[1]Production plan'!BG12/34.5 -> 2756.563478 | BN20: =$C$20*'[1]Production plan'!BH12/34.5 -> 0 | BO20: =$C$20*'[1]Production plan'!BI12/34.5 -> 3101.133913 | BP20: =$C$20*'[1]Production plan'!BJ12/34.5 -> 0 | BQ20: =$C$20*'[1]Production plan'!BK12/34.5 -> 0 | BR20: =$C$20*'[1]Production plan'!BL12/34.5 -> 0 | BS20: =$C$20*'[1]Production plan'!BM12/34.5 -> 0 | BT20: =$C$20*'[1]Production plan'!BN12/34.5 -> 0 | BU20: =$C$20*'[1]Production plan'!BO12/34.5 -> 0 | BV20: =$C$20*'[1]Production plan'!BP12/34.5 -> 3101.133913 | BW20: =$C$20*'[1]Production plan'!BQ12/34.5 -> 0 | BX20: =$C$20*'[1]Production plan'!BR12/34.5 -> 3101.133913 | BY20: =$C$20*'[1]Production plan'!BS12/34.5 -> 0 | BZ20: =$C$20*'[1]Production plan'!BT12/34.5 -> 0
G21: Need HR | J21: =$D$22*'[1]Production plan'!D15/17 -> 0 | K21: =$D$22*'[1]Production plan'!E15/17 -> 0 | L21: =$D$22*'[1]Production plan'!F15/17 -> 0 | M21: =$D$22*'[1]Production plan'!G15/17 -> 0 | N21: =$D$22*'[1]Production plan'!H15/17 -> 0 | O21: =$D$22*'[1]Production plan'!I15/17 -> 0 | P21: =$D$22*'[1]Production plan'!J15/17 -> 0 | Q21: =$D$22*'[1]Production plan'!K15/17 -> 0 | R21: =$D$22*'[1]Production plan'!L15/17 -> 0 | S21: =$D$22*'[1]Production plan'!M15/17 -> 0 | T21: =$D$22*'[1]Production plan'!N15/17 -> 0 | U21: =$D$22*'[1]Production plan'!O15/17 -> 0 | V21: =$D$22*'[1]Production plan'!P15/17 -> 0 | W21: =$D$22*'[1]Production plan'!Q15/17 -> 0 | X21: =$D$22*'[1]Production plan'!R15/17 -> 786.6847059 | Y21: =$D$22*'[1]Production plan'!S15/17 -> 0 | Z21: =$D$22*'[1]Production plan'!T15/17 -> 0 | AA21: =$D$22*'[1]Production plan'!U15/17 -> 0 | AB21: =$D$22*'[1]Production plan'!V15/17 -> 0 | AC21: =$D$22*'[1]Production plan'!W15/17 -> 0 | AD21: =$D$22*'[1]Production plan'!X15/17 -> 0 | AE21: =$D$22*'[1]Production plan'!Y15/17 -> 0 | AF21: =$D$22*'[1]Production plan'!Z15/17 -> 0 | AG21: =$D$22*'[1]Production plan'!AA15/17 -> 0 | AH21: =$D$22*'[1]Production plan'!AB15/17 -> 640.2176471 | AI21: =$D$22*'[1]Production plan'!AC15/17 -> 0 | AJ21: =$D$22*'[1]Production plan'!AD15/17 -> 640.2176471 | AK21: =$D$22*'[1]Production plan'!AE15/17 -> 0 | AL21: =$D$22*'[1]Production plan'!AF15/17 -> 640.2176471 | AM21: =$D$22*'[1]Production plan'!AG15/17 -> 0 | AN21: =$D$22*'[1]Production plan'!AH15/17 -> 0 | AO21: =$D$22*'[1]Production plan'!AI15/17 -> 0 | AP21: =$D$22*'[1]Production plan'!AJ15/17 -> 1280.435294 | AQ21: =$D$22*'[1]Production plan'!AK15/17 -> 0 | AR21: =$D$22*'[1]Production plan'!AL15/17 -> 1707.247059 | AS21: =$D$22*'[1]Production plan'!AM15/17 -> 0 | AT21: =$D$22*'[1]Production plan'!AN15/17 -> 0 | AU21: =$D$22*'[1]Production plan'!AO15/17 -> 0 | AV21: =$D$22*'[1]Production plan'!AP15/17 -> 0 | AW21: =$D$22*'[1]Production plan'!AQ15/17 -> 0 | AX21: =$D$22*'[1]Production plan'!AR15/17 -> 0 | AY21: =$D$22*'[1]Production plan'!AS15/17 -> 0 | AZ21: =$D$22*'[1]Production plan'!AT15/17 -> 0 | BA21: =$D$22*'[1]Production plan'!AU15/17 -> 0 | BB21: =$D$22*'[1]Production plan'!AV15/17 -> 0 | BC21: =$D$22*'[1]Production plan'!AW15/17 -> 1991.788235 | BD21: =$D$22*'[1]Production plan'!AX15/17 -> 0 | BE21: =$D$22*'[1]Production plan'!AY15/17 -> 0 | BF21: =$D$22*'[1]Production plan'!AZ15/17 -> 2845.411765 | BG21: =$D$22*'[1]Production plan'!BA15/17 -> 0 | BH21: =$D$22*'[1]Production plan'!BB15/17 -> 2560.870588 | BI21: =$D$22*'[1]Production plan'!BC15/17 -> 0 | BJ21: =$D$22*'[1]Production plan'!BD15/17 -> 0 | BK21: =$D$22*'[1]Production plan'!BE15/17 -> 0 | BL21: =$D$22*'[1]Production plan'!BF15/17 -> 0 | BM21: =$D$22*'[1]Production plan'!BG15/17 -> 0 | BN21: =$D$22*'[1]Production plan'!BH15/17 -> 0 | BO21: =$D$22*'[1]Production plan'!BI15/17 -> 0 | BP21: =$D$22*'[1]Production plan'!BJ15/17 -> 0 | BQ21: =$D$22*'[1]Production plan'!BK15/17 -> 1138.164706 | BR21: =$D$22*'[1]Production plan'!BL15/17 -> 1138.164706 | BS21: =$D$22*'[1]Production plan'!BM15/17 -> 853.6235294 | BT21: =$D$22*'[1]Production plan'!BN15/17 -> 853.6235294 | BU21: =$D$22*'[1]Production plan'!BO15/17 -> 0 | BV21: =$D$22*'[1]Production plan'!BP15/17 -> 0 | BW21: =$D$22*'[1]Production plan'!BQ15/17 -> 0 | BX21: =$D$22*'[1]Production plan'!BR15/17 -> 0 | BY21: =$D$22*'[1]Production plan'!BS15/17 -> 0 | BZ21: =$D$22*'[1]Production plan'!BT15/17 -> 0
D22: =C20/2 -> 0.0725 | G22: Supply SR | O22: 1800 | U22: 1800 | AG22: 1800 | AR22: 3600 | AU22: 3600 | AW22: 1800 | BF22: 3600 | BI22: 1800 | BL22: 1800 | BM22: 3600 | BT22: 3600 | BV22: 1800
G23: Supply HR | U23: 1800 | Y23: 3600 | AZ23: 3600 | BB23: 3600 | BO23: 1800 | BQ23: 3600
G24: % | I24: =I25/AVERAGE(J20:P20) -> 16.48102294 | J24: =J25/AVERAGE(K20:Q21) -> 32.96204588 | K24: 32.70508762 | L24: 18.16949312 | M24: 13.62711984 | N24: 10.33095564 | O24: 12.92668814 | P24: 10.87897002 | Q24: 7.940575705 | R24: 7.556656905 | S24: 6.044500459 | T24: 5.550793825 | U24: 20.91443128 | V24: 22.85331502 | W24: 12.3413054 | X24: 10.90911322 | Y24: 38.76989009 | Z24: 38.76989009 | AA24: 21.75054052 | AB24: 21.75054052 | AC24: 18.44461153 | AD24: 21.79704858 | AE24: 16.62079329 | AF24: 16.62079329 | AG24: 25.96819474 | AH24: 39.19884622 | AI24: 19.59942311 | AJ24: 21.46589748 | AK24: 11.36429867 | AL24: 10.79950552 | AM24: 6.38275413 | AN24: 6.38275413 | AO24: 4.32102164 | AP24: 2.3177921 | AQ24: 1.667632519 | AR24: 5.925920365 | AS24: 4.38957064 | AT24: 1.643733681 | AU24: 8.608927898 | AV24: 4.185308763 | AW24: 7.88261428 | AX24: 4.532063726 | AY24: 2.75316401 | AZ24: 7.564358468 | BA24: 4.945926691 | BB24: 11.75851376 | BC24: 6.677063747 | BD24: 6.677063747 | BE24: 6.677063747 | BF24: 7.950292634 | BG24: 7.950292634 | BH24: 3.634942088 | BI24: 6.343628729 | BJ24: 1.540548617 | BK24: 1.324985267 | BL24: 4.002989029 | BM24: 6.744887849 | BN24: 6.744887849 | BO24: 4.173734789 | BP24: 4.173734789 | BQ24: 7.077549075 | BR24: 6.081421065 | BS24: 5.123429373 | BT24: 10.30954212 | BU24: 8.591285098 | BV24: =BV25/AVERAGE(BW20:CC21) -> 10.38951897 | BW24: 7.792139227
G25: Inventory SR | I25: 3600 | J25: =I25+J22-J20+J23-J21 -> 3600 | K25: 3018.537391 | L25: 3018.537391 | M25: 3018.537391 | N25: 2415.53913 | O25: 4215.53913 | P25: 3280 | Q25: 3280 | R25: 2935.429565 | S25: 1901.718261 | T25: 1439 | U25: 4263.716522 | V25: 2971.577391 | W25: 2971.577391 | X25: 1409.609207 | Y25: 5009.609207 | Z25: 5009.609207 | AA25: 5009.609207 | AB25: 5009.609207 | AC25: 4751.181381 | AD25: 3200.614425 | AE25: 3200.614425 | AF25: 3200.614425 | AG25: 5000.614425 | AH25: 3585.113299 | AI25: 3585.113299 | AJ25: 2944.895652 | AK25: 2944.895652 | AL25: 2304.678005 | AM25: 2304.678005 | AN25: 2304.678005 | AO25: 2304.678005 | AP25: 1024.242711 | AQ25: 1024.242711 | AR25: 2916.995652 | AS25: 2916.995652 | AT25: 849.5730435 | AU25: 4449.573043 | AV25: 2037.58 | AW25: 3837.58 | AX25: 1425.586957 | AY25: 1425.586957 | AZ25: 2613.593913 | BA25: 2613.593913 | BB25: 6213.593913 | BC25: 4221.805678 | BD25: 4221.805678 | BE25: 4221.805678 | BF25: 4976.393913 | BG25: 4976.393913 | BH25: 2415.523325 | BI25: 4215.523325 | BJ25: 769.818977 | BK25: 769.818977 | BL25: 2569.818977 | BM25: 3413.255499 | BN25: 3413.255499 | BO25: 2112.121586 | BP25: 2112.121586 | BQ25: 4573.95688 | BR25: 3435.792174 | BS25: 2582.168645 | BT25: 5328.545115 | BU25: 5328.545115 | BV25: =BU25+BV22-BV20+BV23-BV21 -> 4027.411202 | BW25: 4027.411202 | BX25: 926.277289 | BY25: 926.277289 | BZ25: 926.277289
A28: COP001009 | B28: D | C28: 0.57489 | E28: 16 | F28: 12 | G28: Need SR | H28: =SUM(I30:BZ31) -> 224000 | I28: =$C$28*'[1]Production plan'!C12/34.5+$D$30*'[1]Production plan'!C15/17+IF(OR('[1]Production plan'!C15>0,'[1]Production plan'!C12>0),1500,0) -> 0 | J28: =$C$28*'[1]Production plan'!D12/34.5+$D$30*'[1]Production plan'!D15/17+IF(OR('[1]Production plan'!D15>0,'[1]Production plan'!D12>0),1500,0) -> 0 | K28: =$C$28*'[1]Production plan'!E12/34.5+IF(OR('[1]Production plan'!E12>0),1500,0) -> 3805.35889 | L28: =$C$28*'[1]Production plan'!F12/34.5+IF(OR('[1]Production plan'!F12>0),1500,0) -> 0 | M28: =$C$28*'[1]Production plan'!G12/34.5+IF(OR('[1]Production plan'!G12>0),1500,0) -> 0 | N28: =$C$28*'[1]Production plan'!H12/34.5+IF(OR('[1]Production plan'!H12>0),1500,0) -> 3890.742553 | O28: =$C$28*'[1]Production plan'!I12/34.5+IF(OR('[1]Production plan'!I12>0),1500,0) -> 0 | P28: =$C$28*'[1]Production plan'!J12/34.5+IF(OR('[1]Production plan'!J12>0),1500,0) -> 2866.138602 | Q28: =$C$28*'[1]Production plan'!K12/34.5+IF(OR('[1]Production plan'!K12>0),1500,0) -> 0 | R28: =$C$28*'[1]Production plan'!L12/34.5+IF(OR('[1]Production plan'!L12>0),1500,0) -> 2866.138602 | S28: =$C$28*'[1]Production plan'!M12/34.5+IF(OR('[1]Production plan'!M12>0),1500,0) -> 5598.415805 | T28: =$C$28*'[1]Production plan'!N12/34.5+IF(OR('[1]Production plan'!N12>0),1500,0) -> 4573.811854 | U28: =$C$28*'[1]Production plan'!O12/34.5+IF(OR('[1]Production plan'!O12>0),1500,0) -> 4573.811854 | V28: =$C$28*'[1]Production plan'!P12/34.5+IF(OR('[1]Production plan'!P12>0),1500,0) -> 6623.019757 | W28: =$C$28*'[1]Production plan'!Q12/34.5+IF(OR('[1]Production plan'!Q12>0),1500,0) -> 0 | X28: =$C$28*'[1]Production plan'!R12/34.5+IF(OR('[1]Production plan'!R12>0),1500,0) -> 4573.811854 | Y28: =$C$28*'[1]Production plan'!S12/34.5+IF(OR('[1]Production plan'!S12>0),1500,0) -> 0 | Z28: =$C$28*'[1]Production plan'!T12/34.5+IF(OR('[1]Production plan'!T12>0),1500,0) -> 0 | AA28: =$C$28*'[1]Production plan'!U12/34.5+IF(OR('[1]Production plan'!U12>0),1500,0) -> 0 | AB28: =$C$28*'[1]Production plan'!V12/34.5+IF(OR('[1]Production plan'!V12>0),1500,0) -> 0 | AC28: =$C$28*'[1]Production plan'!W12/34.5+IF(OR('[1]Production plan'!W12>0),1500,0) -> 2524.603951 | AD28: =$C$28*'[1]Production plan'!X12/34.5+IF(OR('[1]Production plan'!X12>0),1500,0) -> 7647.623708 | AE28: =$C$28*'[1]Production plan'!Y12/34.5+IF(OR('[1]Production plan'!Y12>0),1500,0) -> 0 | AF28: =$C$28*'[1]Production plan'!Z12/34.5+IF(OR('[1]Production plan'!Z12>0),1500,0) -> 0 | AG28: =$C$28*'[1]Production plan'!AA12/34.5+IF(OR('[1]Production plan'!AA12>0),1500,0) -> 0 | AH28: =$C$28*'[1]Production plan'!AB12/34.5+IF(OR('[1]Production plan'!AB12>0),1500,0) -> 4573.811854 | AI28: =$C$28*'[1]Production plan'!AC12/34.5+IF(OR('[1]Production plan'!AC12>0),1500,0) -> 0 | AJ28: =$C$28*'[1]Production plan'!AD12/34.5+IF(OR('[1]Production plan'!AD12>0),1500,0) -> 0 | AK28: =$C$28*'[1]Production plan'!AE12/34.5+IF(OR('[1]Production plan'!AE12>0),1500,0) -> 0 | AL28: =$C$28*'[1]Production plan'!AF12/34.5+IF(OR('[1]Production plan'!AF12>0),1500,0) -> 0 | AM28: =$C$28*'[1]Production plan'!AG12/34.5+IF(OR('[1]Production plan'!AG12>0),1500,0) -> 0 | AN28: =$C$28*'[1]Production plan'!AH12/34.5+IF(OR('[1]Production plan'!AH12>0),1500,0) -> 0 | AO28: =$C$28*'[1]Production plan'!AI12/34.5+IF(OR('[1]Production plan'!AI12>0),1500,0) -> 0 | AP28: =$C$28*'[1]Production plan'!AJ12/34.5+IF(OR('[1]Production plan'!AJ12>0),1500,0) -> 0 | AQ28: =$C$28*'[1]Production plan'!AK12/34.5+IF(OR('[1]Production plan'!AK12>0),1500,0) -> 0 | AR28: =$C$28*'[1]Production plan'!AL12/34.5+IF(OR('[1]Production plan'!AL12>0),1500,0) -> 0 | AS28: =$C$28*'[1]Production plan'!AM12/34.5+IF(OR('[1]Production plan'!AM12>0),1500,0) -> 0 | AT28: =$C$28*'[1]Production plan'!AN12/34.5+IF(OR('[1]Production plan'!AN12>0),1500,0) -> 9696.83161 | AU28: =$C$28*'[1]Production plan'!AO12/34.5+IF(OR('[1]Production plan'!AO12>0),1500,0) -> 0 | AV28: =$C$28*'[1]Production plan'!AP12/34.5+IF(OR('[1]Production plan'!AP12>0),1500,0) -> 11062.97021 | AW28: =$C$28*'[1]Production plan'!AQ12/34.5+IF(OR('[1]Production plan'!AQ12>0),1500,0) -> 0 | AX28: =$C$28*'[1]Production plan'!AR12/34.5+IF(OR('[1]Production plan'!AR12>0),1500,0) -> 11062.97021 | AY28: =$C$28*'[1]Production plan'!AS12/34.5+IF(OR('[1]Production plan'!AS12>0),1500,0) -> 0 | AZ28: =$C$28*'[1]Production plan'!AT12/34.5+IF(OR('[1]Production plan'!AT12>0),1500,0) -> 11062.97021 | BA28: =$C$28*'[1]Production plan'!AU12/34.5+IF(OR('[1]Production plan'!AU12>0),1500,0) -> 0 | BB28: =$C$28*'[1]Production plan'!AV12/34.5+IF(OR('[1]Production plan'!AV12>0),1500,0) -> 0 | BC28: =$C$28*'[1]Production plan'!AW12/34.5+IF(OR('[1]Production plan'!AW12>0),1500,0) -> 0 | BD28: =$C$28*'[1]Production plan'!AX12/34.5+IF(OR('[1]Production plan'!AX12>0),1500,0) -> 0 | BE28: =$C$28*'[1]Production plan'!AY12/34.5+IF(OR('[1]Production plan'!AY12>0),1500,0) -> 0 | BF28: =$C$28*'[1]Production plan'!AZ12/34.5+IF(OR('[1]Production plan'!AZ12>0),1500,0) -> 0 | BG28: =$C$28*'[1]Production plan'!BA12/34.5+IF(OR('[1]Production plan'!BA12>0),1500,0) -> 0 | BH28: =$C$28*'[1]Production plan'!BB12/34.5+IF(OR('[1]Production plan'!BB12>0),1500,0) -> 0 | BI28: =$C$28*'[1]Production plan'!BC12/34.5+IF(OR('[1]Production plan'!BC12>0),1500,0) -> 0 | BJ28: =$C$28*'[1]Production plan'!BD12/34.5+IF(OR('[1]Production plan'!BD12>0),1500,0) -> 15161.38602 | BK28: =$C$28*'[1]Production plan'!BE12/34.5+IF(OR('[1]Production plan'!BE12>0),1500,0) -> 0 | BL28: =$C$28*'[1]Production plan'!BF12/34.5+IF(OR('[1]Production plan'!BF12>0),1500,0) -> 0 | BM28: =$C$28*'[1]Production plan'!BG12/34.5+IF(OR('[1]Production plan'!BG12>0),1500,0) -> 12429.10881 | BN28: =$C$28*'[1]Production plan'!BH12/34.5+IF(OR('[1]Production plan'!BH12>0),1500,0) -> 0 | BO28: =$C$28*'[1]Production plan'!BI12/34.5+IF(OR('[1]Production plan'!BI12>0),1500,0) -> 13795.24742 | BP28: =$C$28*'[1]Production plan'!BJ12/34.5+IF(OR('[1]Production plan'!BJ12>0),1500,0) -> 0 | BQ28: =$C$28*'[1]Production plan'!BK12/34.5+IF(OR('[1]Production plan'!BK12>0),1500,0) -> 0 | BR28: =$C$28*'[1]Production plan'!BL12/34.5+IF(OR('[1]Production plan'!BL12>0),1500,0) -> 0 | BS28: =$C$28*'[1]Production plan'!BM12/34.5+IF(OR('[1]Production plan'!BM12>0),1500,0) -> 0 | BT28: =$C$28*'[1]Production plan'!BN12/34.5+IF(OR('[1]Production plan'!BN12>0),1500,0) -> 0 | BU28: =$C$28*'[1]Production plan'!BO12/34.5+IF(OR('[1]Production plan'!BO12>0),1500,0) -> 0 | BV28: =$C$28*'[1]Production plan'!BP12/34.5+IF(OR('[1]Production plan'!BP12>0),1500,0) -> 13795.24742 | BW28: =$C$28*'[1]Production plan'!BQ12/34.5+IF(OR('[1]Production plan'!BQ12>0),1500,0) -> 0 | BX28: =$C$28*'[1]Production plan'!BR12/34.5+IF(OR('[1]Production plan'!BR12>0),1500,0) -> 13795.24742 | BY28: =$C$28*'[1]Production plan'!BS12/34.5+IF(OR('[1]Production plan'!BS12>0),1500,0) -> 0 | BZ28: =$C$28*'[1]Production plan'!BT12/34.5+IF(OR('[1]Production plan'!BT12>0),1500,0) -> 0
G29: Need HR | K29: =$D$30*'[1]Production plan'!E15/17+IF(OR('[1]Production plan'!E15>0),1500,0) -> 0 | L29: =$D$30*'[1]Production plan'!F15/17+IF(OR('[1]Production plan'!F15>0),1500,0) -> 0 | M29: =$D$30*'[1]Production plan'!G15/17+IF(OR('[1]Production plan'!G15>0),1500,0) -> 0 | N29: =$D$30*'[1]Production plan'!H15/17+IF(OR('[1]Production plan'!H15>0),1500,0) -> 0 | O29: =$D$30*'[1]Production plan'!I15/17+IF(OR('[1]Production plan'!I15>0),1500,0) -> 0 | P29: =$D$30*'[1]Production plan'!J15/17+IF(OR('[1]Production plan'!J15>0),1500,0) -> 0 | Q29: =$D$30*'[1]Production plan'!K15/17+IF(OR('[1]Production plan'!K15>0),1500,0) -> 0 | R29: =$D$30*'[1]Production plan'!L15/17+IF(OR('[1]Production plan'!L15>0),1500,0) -> 0 | S29: =$D$30*'[1]Production plan'!M15/17+IF(OR('[1]Production plan'!M15>0),1500,0) -> 0 | T29: =$D$30*'[1]Production plan'!N15/17+IF(OR('[1]Production plan'!N15>0),1500,0) -> 0 | U29: =$D$30*'[1]Production plan'!O15/17+IF(OR('[1]Production plan'!O15>0),1500,0) -> 0 | V29: =$D$30*'[1]Production plan'!P15/17+IF(OR('[1]Production plan'!P15>0),1500,0) -> 0 | W29: =$D$30*'[1]Production plan'!Q15/17+IF(OR('[1]Production plan'!Q15>0),1500,0) -> 0 | X29: =$D$30*'[1]Production plan'!R15/17+IF(OR('[1]Production plan'!R15>0),1500,0) -> 4619.014969 | Y29: =$D$30*'[1]Production plan'!S15/17+IF(OR('[1]Production plan'!S15>0),1500,0) -> 0 | Z29: =$D$30*'[1]Production plan'!T15/17+IF(OR('[1]Production plan'!T15>0),1500,0) -> 0 | AA29: =$D$30*'[1]Production plan'!U15/17+IF(OR('[1]Production plan'!U15>0),1500,0) -> 0 | AB29: =$D$30*'[1]Production plan'!V15/17+IF(OR('[1]Production plan'!V15>0),1500,0) -> 0 | AC29: =$D$30*'[1]Production plan'!W15/17+IF(OR('[1]Production plan'!W15>0),1500,0) -> 0 | AD29: =$D$30*'[1]Production plan'!X15/17+IF(OR('[1]Production plan'!X15>0),1500,0) -> 0 | AE29: =$D$30*'[1]Production plan'!Y15/17+IF(OR('[1]Production plan'!Y15>0),1500,0) -> 0 | AF29: =$D$30*'[1]Production plan'!Z15/17+IF(OR('[1]Production plan'!Z15>0),1500,0) -> 0 | AG29: =$D$30*'[1]Production plan'!AA15/17+IF(OR('[1]Production plan'!AA15>0),1500,0) -> 0 | AH29: =$D$30*'[1]Production plan'!AB15/17+IF(OR('[1]Production plan'!AB15>0),1500,0) -> 4038.308435 | AI29: =$D$30*'[1]Production plan'!AC15/17+IF(OR('[1]Production plan'!AC15>0),1500,0) -> 0 | AJ29: =$D$30*'[1]Production plan'!AD15/17+IF(OR('[1]Production plan'!AD15>0),1500,0) -> 4038.308435 | AK29: =$D$30*'[1]Production plan'!AE15/17+IF(OR('[1]Production plan'!AE15>0),1500,0) -> 0 | AL29: =$D$30*'[1]Production plan'!AF15/17+IF(OR('[1]Production plan'!AF15>0),1500,0) -> 4038.308435 | AM29: =$D$30*'[1]Production plan'!AG15/17+IF(OR('[1]Production plan'!AG15>0),1500,0) -> 0 | AN29: =$D$30*'[1]Production plan'!AH15/17+IF(OR('[1]Production plan'!AH15>0),1500,0) -> 0 | AO29: =$D$30*'[1]Production plan'!AI15/17+IF(OR('[1]Production plan'!AI15>0),1500,0) -> 0 | AP29: =$D$30*'[1]Production plan'!AJ15/17+IF(OR('[1]Production plan'!AJ15>0),1500,0) -> 6576.616871 | AQ29: =$D$30*'[1]Production plan'!AK15/17+IF(OR('[1]Production plan'!AK15>0),1500,0) -> 0 | AR29: =$D$30*'[1]Production plan'!AL15/17+IF(OR('[1]Production plan'!AL15>0),1500,0) -> 8268.822494 | AS29: =$D$30*'[1]Production plan'!AM15/17+IF(OR('[1]Production plan'!AM15>0),1500,0) -> 0 | AT29: =$D$30*'[1]Production plan'!AN15/17+IF(OR('[1]Production plan'!AN15>0),1500,0) -> 0 | AU29: =$D$30*'[1]Production plan'!AO15/17+IF(OR('[1]Production plan'!AO15>0),1500,0) -> 0 | AV29: =$D$30*'[1]Production plan'!AP15/17+IF(OR('[1]Production plan'!AP15>0),1500,0) -> 0 | AW29: =$D$30*'[1]Production plan'!AQ15/17+IF(OR('[1]Production plan'!AQ15>0),1500,0) -> 0 | AX29: =$D$30*'[1]Production plan'!AR15/17+IF(OR('[1]Production plan'!AR15>0),1500,0) -> 0 | AY29: =$D$30*'[1]Production plan'!AS15/17+IF(OR('[1]Production plan'!AS15>0),1500,0) -> 0 | AZ29: =$D$30*'[1]Production plan'!AT15/17+IF(OR('[1]Production plan'!AT15>0),1500,0) -> 0 | BA29: =$D$30*'[1]Production plan'!AU15/17+IF(OR('[1]Production plan'!AU15>0),1500,0) -> 0 | BB29: =$D$30*'[1]Production plan'!AV15/17+IF(OR('[1]Production plan'!AV15>0),1500,0) -> 0 | BC29: =$D$30*'[1]Production plan'!AW15/17+IF(OR('[1]Production plan'!AW15>0),1500,0) -> 9396.959576 | BD29: =$D$30*'[1]Production plan'!AX15/17+IF(OR('[1]Production plan'!AX15>0),1500,0) -> 0 | BE29: =$D$30*'[1]Production plan'!AY15/17+IF(OR('[1]Production plan'!AY15>0),1500,0) -> 0 | BF29: =$D$30*'[1]Production plan'!AZ15/17+IF(OR('[1]Production plan'!AZ15>0),1500,0) -> 12781.37082 | BG29: =$D$30*'[1]Production plan'!BA15/17+IF(OR('[1]Production plan'!BA15>0),1500,0) -> 0 | BH29: =$D$30*'[1]Production plan'!BB15/17+IF(OR('[1]Production plan'!BB15>0),1500,0) -> 11653.23374 | BI29: =$D$30*'[1]Production plan'!BC15/17+IF(OR('[1]Production plan'!BC15>0),1500,0) -> 0 | BJ29: =$D$30*'[1]Production plan'!BD15/17+IF(OR('[1]Production plan'!BD15>0),1500,0) -> 0 | BK29: =$D$30*'[1]Production plan'!BE15/17+IF(OR('[1]Production plan'!BE15>0),1500,0) -> 0 | BL29: =$D$30*'[1]Production plan'!BF15/17+IF(OR('[1]Production plan'!BF15>0),1500,0) -> 0 | BM29: =$D$30*'[1]Production plan'!BG15/17+IF(OR('[1]Production plan'!BG15>0),1500,0) -> 0 | BN29: =$D$30*'[1]Production plan'!BH15/17+IF(OR('[1]Production plan'!BH15>0),1500,0) -> 0 | BO29: =$D$30*'[1]Production plan'!BI15/17+IF(OR('[1]Production plan'!BI15>0),1500,0) -> 0 | BP29: =$D$30*'[1]Production plan'!BJ15/17+IF(OR('[1]Production plan'!BJ15>0),1500,0) -> 0 | BQ29: =$D$30*'[1]Production plan'!BK15/17+IF(OR('[1]Production plan'!BK15>0),1500,0) -> 6012.548329 | BR29: =$D$30*'[1]Production plan'!BL15/17+IF(OR('[1]Production plan'!BL15>0),1500,0) -> 6012.548329 | BS29: =$D$30*'[1]Production plan'!BM15/17+IF(OR('[1]Production plan'!BM15>0),1500,0) -> 4884.411247 | BT29: =$D$30*'[1]Production plan'!BN15/17+IF(OR('[1]Production plan'!BN15>0),1500,0) -> 4884.411247 | BU29: =$D$30*'[1]Production plan'!BO15/17+IF(OR('[1]Production plan'!BO15>0),1500,0) -> 0 | BV29: =$D$30*'[1]Production plan'!BP15/17+IF(OR('[1]Production plan'!BP15>0),1500,0) -> 0 | BW29: =$D$30*'[1]Production plan'!BQ15/17+IF(OR('[1]Production plan'!BQ15>0),1500,0) -> 0 | BX29: =$D$30*'[1]Production plan'!BR15/17+IF(OR('[1]Production plan'!BR15>0),1500,0) -> 0 | BY29: =$D$30*'[1]Production plan'!BS15/17+IF(OR('[1]Production plan'!BS15>0),1500,0) -> 0 | BZ29: =$D$30*'[1]Production plan'!BT15/17+IF(OR('[1]Production plan'!BT15>0),1500,0) -> 0
D30: =C28/2 -> 0.287445 | G30: Supply SR | J30: 5000 | M30: 4000 | R30: 5000 | T30: 5000 | U30: 5000 | W30: 2000 | AR30: 5000 | AS30: 5000 | AT30: 10000 | AU30: 5000 | AV30: 5000 | AW30: 5000 | AX30: 6000 | AY30: 5000 | AZ30: 5000 | BA30: 23000 | BD30: 23000 | BH30: 23000 | BN30: 23000 | BS30: 23000
G31: Supply HR | W31: 3000 | X31: 5000 | AD31: 4000 | AG31: 5000 | AJ31: 5000 | AL31: 5000 | AP31: 5000
G32: % | I32: =I33/AVERAGE(J28:P28) -> 8.615596655 | J32: =J33/AVERAGE(K28:Q29) -> 23.85857535 | K32: 20.65099943 | L32: 13.05560009 | M32: 12.86798645 | N32: 9.778859394 | O32: 7.389103485 | P32: 3.87040372 | Q32: 2.806028799 | R32: 4.046676282 | S32: 1.81450086 | T32: 6.213934403 | U32: 8.388209469 | V32: 3.40896893 | W32: 5.677461819 | X32: 12.93718588 | Y32: 12.93718588 | Z32: 12.93718588 | AA32: 7.005832748 | AB32: 7.005832748 | AC32: 4.742107402 | AD32: 3.5721171 | AE32: 2.707743093 | AF32: 2.707743093 | AG32: 6.902188684 | AH32: -0.666228368 | AI32: -0.3672139114 | AJ32: 0.7614571366 | AK32: 0.4280300031 | AL32: 1.451387999 | AM32: 0.8779339352 | AN32: 0.8779339352 | AO32: 0.6051494616 | AP32: -0.0181249944 | AQ32: -0.01312354022 | AR32: -1.454607993 | AS32: 0.5528723577 | AT32: 0.8422903418 | AU32: 2.951428565 | AV32: 0.4147180593 | AW32: 2.635325935 | AX32: 0.5958736451 | AY32: 2.472572716 | AZ32: -0.1212918186 | BA32: 9.438226049 | BB32: 9.438226049 | BC32: 4.741705237 | BD32: 12.87384173 | BE32: 12.87384173 | BF32: 8.429711865 | BG32: 8.429711865 | BH32: 11.83180548 | BI32: 11.83180548 | BJ32: 8.60531281 | BK32: 7.252617405 | BL32: 6.431342364 | BM32: 2.90541011 | BN32: 11.95310723 | BO32: 6.526358522 | BP32: 6.526358522 | BQ32: 3.414471148 | BR32: 1.710853192 | BS32: 9.777843517 | BT32: 7.740330054 | BU32: 6.450275045 | BV32: =BV33/AVERAGE(BW28:CC29) -> 2.320440072 | BW32: 1.740330054
G33: Inventory SR | I33: 13000 | J33: =I33+J30-J28+J31-J29 -> 18000 | K33: 14194.64111 | L33: 14194.64111 | M33: 18194.64111 | N33: 14303.89856 | O33: 14303.89856 | P33: 6700 | Q33: 6700 | R33: 8833.861398 | S33: 3235.445593 | T33: 9050 | U33: 9476.188146 | V33: 2853.16839 | W33: 7853.16839 | X33: 9400 | Y33: 9400 | Z33: 9400 | AA33: 9400 | AB33: 9400 | AC33: 6875.396049 | AD33: 3227.772341 | AE33: 3227.772341 | AF33: 3227.772341 | AG33: 8227.772341 | AH33: -384.3479483 | AI33: -384.3479483 | AJ33: 577.3436164 | AK33: 577.3436164 | AL33: 1539.035181 | AM33: 1539.035181 | AN33: 1539.035181 | AO33: 1539.035181 | AP33: -37.58168951 | AQ33: -37.58168951 | AR33: -3306.404184 | AS33: 1693.595816 | AT33: 1996.764206 | AU33: 6996.764206 | AV33: 933.7939938 | AW33: 5933.793994 | AX33: 870.8237816 | AY33: 5870.823782 | AZ33: -192.1464306 | BA33: 22807.85357 | BB33: 22807.85357 | BC33: 13410.89399 | BD33: 36410.89399 | BE33: 36410.89399 | BF33: 23629.52317 | BG33: 23629.52317 | BH33: =BG33+BH30-BH28+BH31-BH29 -> 34976.28943 | BI33: 34976.28943 | BJ33: 19814.90341 | BK33: 19814.90341 | BL33: 19814.90341 | BM33: 7385.794597 | BN33: 30385.7946 | BO33: 16590.54718 | BP33: 16590.54718 | BQ33: 10577.99885 | BR33: 4565.450522 | BS33: 22681.03928 | BT33: 17796.62803 | BU33: 17796.62803 | BV33: =BU33+BV30-BV28+BV31-BV29 -> 4001.380613 | BW33: 4001.380613 | BX33: -9793.866803 | BY33: -9793.866803 | BZ33: -9793.866803
A36: CHP000010 | B36: E | C36: 0.000589 | E36: 16 | F36: 6 | G36: Need SR | H36: =SUM(I38:BZ39) -> 200 | I36: =$C$36*'[1]Production plan'!C12/34.5+$D$38*'[1]Production plan'!C15/17 -> 0 | J36: =$C$36*'[1]Production plan'!D12/34.5+$D$38*'[1]Production plan'!D15/17 -> 0 | K36: =$C$36*'[1]Production plan'!E12/34.5 -> 2.361941217 | L36: =$C$36*'[1]Production plan'!F12/34.5 -> 0 | M36: =$C$36*'[1]Production plan'!G12/34.5 -> 0 | N36: =$C$36*'[1]Production plan'!H12/34.5 -> 2.449420522 | O36: =$C$36*'[1]Production plan'!I12/34.5 -> 0 | P36: =$C$36*'[1]Production plan'!J12/34.5 -> 1.39966887 | Q36: =$C$36*'[1]Production plan'!K12/34.5 -> 0 | R36: =$C$36*'[1]Production plan'!L12/34.5 -> 1.39966887 | S36: =$C$36*'[1]Production plan'!M12/34.5 -> 4.199006609 | T36: =$C$36*'[1]Production plan'!N12/34.5 -> 3.149254957 | U36: =$C$36*'[1]Production plan'!O12/34.5 -> 3.149254957 | V36: =$C$36*'[1]Production plan'!P12/34.5 -> 5.248758261 | W36: =$C$36*'[1]Production plan'!Q12/34.5 -> 0 | X36: =$C$36*'[1]Production plan'!R12/34.5 -> 3.149254957 | Y36: =$C$36*'[1]Production plan'!S12/34.5 -> 0 | Z36: =$C$36*'[1]Production plan'!T12/34.5 -> 0 | AA36: =$C$36*'[1]Production plan'!U12/34.5 -> 0 | AB36: =$C$36*'[1]Production plan'!V12/34.5 -> 0 | AC36: =$C$36*'[1]Production plan'!W12/34.5 -> 1.049751652 | AD36: =$C$36*'[1]Production plan'!X12/34.5 -> 6.298509913 | AE36: =$C$36*'[1]Production plan'!Y12/34.5 -> 0 | AF36: =$C$36*'[1]Production plan'!Z12/34.5 -> 0 | AG36: =$C$36*'[1]Production plan'!AA12/34.5 -> 0 | AH36: =$C$36*'[1]Production plan'!AB12/34.5 -> 3.149254957 | AI36: =$C$36*'[1]Production plan'!AC12/34.5 -> 0 | AJ36: =$C$36*'[1]Production plan'!AD12/34.5 -> 0 | AK36: =$C$36*'[1]Production plan'!AE12/34.5 -> 0 | AL36: =$C$36*'[1]Production plan'!AF12/34.5 -> 0 | AM36: =$C$36*'[1]Production plan'!AG12/34.5 -> 0 | AN36: =$C$36*'[1]Production plan'!AH12/34.5 -> 0 | AO36: =$C$36*'[1]Production plan'!AI12/34.5 -> 0 | AP36: =$C$36*'[1]Production plan'!AJ12/34.5 -> 0 | AQ36: =$C$36*'[1]Production plan'!AK12/34.5 -> 0 | AR36: =$C$36*'[1]Production plan'!AL12/34.5 -> 0 | AS36: =$C$36*'[1]Production plan'!AM12/34.5 -> 0 | AT36: =$C$36*'[1]Production plan'!AN12/34.5 -> 8.398013217 | AU36: =$C$36*'[1]Production plan'!AO12/34.5 -> 0 | AV36: =$C$36*'[1]Production plan'!AP12/34.5 -> 9.797682087 | AW36: =$C$36*'[1]Production plan'!AQ12/34.5 -> 0 | AX36: =$C$36*'[1]Production plan'!AR12/34.5 -> 9.797682087 | AY36: =$C$36*'[1]Production plan'!AS12/34.5 -> 0 | AZ36: =$C$36*'[1]Production plan'!AT12/34.5 -> 9.797682087 | BA36: =$C$36*'[1]Production plan'!AU12/34.5 -> 0 | BB36: =$C$36*'[1]Production plan'!AV12/34.5 -> 0 | BC36: =$C$36*'[1]Production plan'!AW12/34.5 -> 0 | BD36: =$C$36*'[1]Production plan'!AX12/34.5 -> 0 | BE36: =$C$36*'[1]Production plan'!AY12/34.5 -> 0 | BF36: =$C$36*'[1]Production plan'!AZ12/34.5 -> 0 | BG36: =$C$36*'[1]Production plan'!BA12/34.5 -> 0 | BH36: =$C$36*'[1]Production plan'!BB12/34.5 -> 0 | BI36: =$C$36*'[1]Production plan'!BC12/34.5 -> 0 | BJ36: =$C$36*'[1]Production plan'!BD12/34.5 -> 13.9966887 | BK36: =$C$36*'[1]Production plan'!BE12/34.5 -> 0 | BL36: =$C$36*'[1]Production plan'!BF12/34.5 -> 0 | BM36: =$C$36*'[1]Production plan'!BG12/34.5 -> 11.19735096 | BN36: =$C$36*'[1]Production plan'!BH12/34.5 -> 0 | BO36: =$C$36*'[1]Production plan'!BI12/34.5 -> 12.59701983 | BP36: =$C$36*'[1]Production plan'!BJ12/34.5 -> 0 | BQ36: =$C$36*'[1]Production plan'!BK12/34.5 -> 0 | BR36: =$C$36*'[1]Production plan'!BL12/34.5 -> 0 | BS36: =$C$36*'[1]Production plan'!BM12/34.5 -> 0 | BT36: =$C$36*'[1]Production plan'!BN12/34.5 -> 0 | BU36: =$C$36*'[1]Production plan'!BO12/34.5 -> 0 | BV36: =$C$36*'[1]Production plan'!BP12/34.5 -> 12.59701983 | BW36: =$C$36*'[1]Production plan'!BQ12/34.5 -> 0 | BX36: =$C$36*'[1]Production plan'!BR12/34.5 -> 12.59701983 | BY36: =$C$36*'[1]Production plan'!BS12/34.5 -> 0 | BZ36: =$C$36*'[1]Production plan'!BT12/34.5 -> 0
G37: Need HR | I37: =+$D$38*'[1]Production plan'!C15/17 -> 0 | J37: =+$D$38*'[1]Production plan'!D15/17 -> 0 | K37: =+$D$38*'[1]Production plan'!E15/17 -> 0 | L37: =+$D$38*'[1]Production plan'!F15/17 -> 0 | M37: =+$D$38*'[1]Production plan'!G15/17 -> 0 | N37: =+$D$38*'[1]Production plan'!H15/17 -> 0 | O37: =+$D$38*'[1]Production plan'!I15/17 -> 0 | P37: =+$D$38*'[1]Production plan'!J15/17 -> 0 | Q37: =+$D$38*'[1]Production plan'!K15/17 -> 0 | R37: =+$D$38*'[1]Production plan'!L15/17 -> 0 | S37: =+$D$38*'[1]Production plan'!M15/17 -> 0 | T37: =+$D$38*'[1]Production plan'!N15/17 -> 0 | U37: =+$D$38*'[1]Production plan'!O15/17 -> 0 | V37: =+$D$38*'[1]Production plan'!P15/17 -> 0 | W37: =+$D$38*'[1]Production plan'!Q15/17 -> 0 | X37: =+$D$38*'[1]Production plan'!R15/17 -> 3.038230588 | Y37: =+$D$38*'[1]Production plan'!S15/17 -> 0 | Z37: =+$D$38*'[1]Production plan'!T15/17 -> 0 | AA37: =+$D$38*'[1]Production plan'!U15/17 -> 0 | AB37: =+$D$38*'[1]Production plan'!V15/17 -> 0 | AC37: =+$D$38*'[1]Production plan'!W15/17 -> 0 | AD37: =+$D$38*'[1]Production plan'!X15/17 -> 0 | AE37: =+$D$38*'[1]Production plan'!Y15/17 -> 0 | AF37: =+$D$38*'[1]Production plan'!Z15/17 -> 0 | AG37: =+$D$38*'[1]Production plan'!AA15/17 -> 0 | AH37: =+$D$38*'[1]Production plan'!AB15/17 -> 2.472564706 | AI37: =+$D$38*'[1]Production plan'!AC15/17 -> 0 | AJ37: =+$D$38*'[1]Production plan'!AD15/17 -> 2.472564706 | AK37: =+$D$38*'[1]Production plan'!AE15/17 -> 0 | AL37: =+$D$38*'[1]Production plan'!AF15/17 -> 2.472564706 | AM37: =+$D$38*'[1]Production plan'!AG15/17 -> 0 | AN37: =+$D$38*'[1]Production plan'!AH15/17 -> 0 | AO37: =+$D$38*'[1]Production plan'!AI15/17 -> 0 | AP37: =+$D$38*'[1]Production plan'!AJ15/17 -> 4.945129412 | AQ37: =+$D$38*'[1]Production plan'!AK15/17 -> 0 | AR37: =+$D$38*'[1]Production plan'!AL15/17 -> 6.593505882 | AS37: =+$D$38*'[1]Production plan'!AM15/17 -> 0 | AT37: =+$D$38*'[1]Production plan'!AN15/17 -> 0 | AU37: =+$D$38*'[1]Production plan'!AO15/17 -> 0 | AV37: =+$D$38*'[1]Production plan'!AP15/17 -> 0 | AW37: =+$D$38*'[1]Production plan'!AQ15/17 -> 0 | AX37: =+$D$38*'[1]Production plan'!AR15/17 -> 0 | AY37: =+$D$38*'[1]Production plan'!AS15/17 -> 0 | AZ37: =+$D$38*'[1]Production plan'!AT15/17 -> 0 | BA37: =+$D$38*'[1]Production plan'!AU15/17 -> 0 | BB37: =+$D$38*'[1]Production plan'!AV15/17 -> 0 | BC37: =+$D$38*'[1]Production plan'!AW15/17 -> 7.692423529 | BD37: =+$D$38*'[1]Production plan'!AX15/17 -> 0 | BE37: =+$D$38*'[1]Production plan'!AY15/17 -> 0 | BF37: =+$D$38*'[1]Production plan'!AZ15/17 -> 10.98917647 | BG37: =+$D$38*'[1]Production plan'!BA15/17 -> 0 | BH37: =+$D$38*'[1]Production plan'!BB15/17 -> 9.890258824 | BI37: =+$D$38*'[1]Production plan'!BC15/17 -> 0 | BJ37: =+$D$38*'[1]Production plan'!BD15/17 -> 0 | BK37: =+$D$38*'[1]Production plan'!BE15/17 -> 0 | BL37: =+$D$38*'[1]Production plan'!BF15/17 -> 0 | BM37: =+$D$38*'[1]Production plan'!BG15/17 -> 0 | BN37: =+$D$38*'[1]Production plan'!BH15/17 -> 0 | BO37: =+$D$38*'[1]Production plan'!BI15/17 -> 0 | BP37: =+$D$38*'[1]Production plan'!BJ15/17 -> 0 | BQ37: =+$D$38*'[1]Production plan'!BK15/17 -> 4.395670588 | BR37: =+$D$38*'[1]Production plan'!BL15/17 -> 4.395670588 | BS37: =+$D$38*'[1]Production plan'!BM15/17 -> 3.296752941 | BT37: =+$D$38*'[1]Production plan'!BN15/17 -> 3.296752941 | BU37: =+$D$38*'[1]Production plan'!BO15/17 -> 0 | BV37: =+$D$38*'[1]Production plan'!BP15/17 -> 0 | BW37: =+$D$38*'[1]Production plan'!BQ15/17 -> 0 | BX37: =+$D$38*'[1]Production plan'!BR15/17 -> 0 | BY37: =+$D$38*'[1]Production plan'!BS15/17 -> 0 | BZ37: =+$D$38*'[1]Production plan'!BT15/17 -> 0
D38: 0.00028 | G38: Supply SR | O38: 40 | AV38: 40 | BE38: 40 | BP38: 40
G39: Supply HR | Z39: 40
G40: % | I40: =I41/AVERAGE(J36:P36) -> 22.5405426 | J40: =J41/AVERAGE(K36:Q37) -> 45.08108519 | K40: 47.04595081 | L40: 26.13663934 | M40: 19.6024795 | N40: 15.99182269 | O40: 41.66165635 | P40: 32.66078621 | Q40: 23.9999014 | R40: 24.63802958 | S40: 27.15676524 | T40: 29.99753255 | U40: 34.40285213 | V40: 44.20979721 | W40: 23.63791125 | X40: 7.620850116 | Y40: 7.620850116 | Z40: 83.82935127 | AA40: 47.49391998 | AB40: 47.49391998 | AC40: 41.77780126 | AD40: 63.39263306 | AE40: 48.5593651 | AF40: 48.5593651 | AG40: 48.5593651 | AH40: 87.84782493 | AI40: 43.92391246 | AJ40: 53.89854995 | AK40: 28.53452645 | AL40: 31.64906783 | AM40: 18.3173742 | AN40: 18.3173742 | AO40: 12.28166378 | AP40: 11.93887762 | AQ40: 8.556863506 | AR40: 7.274797681 | AS40: 5.388739023 | AT40: 2.928378744 | AU40: 2.928378744 | AV40: 18.64960356 | AW40: 18.64960356 | AX40: 21.25423835 | AY40: 13.05295802 | AZ40: 12.55627592 | BA40: 8.209872717 | BB40: 8.209872717 | BC40: 3.637944253 | BD40: 3.637944253 | BE40: 19.69477443 | BF40: 15.19280554 | BG40: 15.19280554 | BH40: 10.44070492 | BI40: 10.44070492 | BJ40: 7.045454682 | BK40: 6.095053538 | BL40: 5.53506175 | BM40: 1.495566602 | BN40: 1.495566602 | BO40: -4.80702494 | BP40: 15.20593568 | BQ40: 10.05856081 | BR40: 9.513527592 | BS40: 8.994384748 | BT40: 7.148037918 | BU40: 5.956698265 | BV40: =BV41/AVERAGE(BW36:CC37) -> 1.530717223 | BW40: 1.148037918
G41: Inventory SR | I41: 20 | J41: =I41+J38-J36+J39-J37 -> 20 | K41: 17.63805878 | L41: 17.63805878 | M41: 17.63805878 | N41: 15.18863826 | O41: 55.18863826 | P41: 40 | Q41: 40 | R41: 38.60033113 | S41: 34.40132452 | T41: 31.25206957 | U41: 28.10281461 | V41: 22.85405635 | W41: 22.85405635 | X41: 4 | Y41: 4 | Z41: 44 | AA41: 44 | AB41: 44 | AC41: 42.95024835 | AD41: 36.65173843 | AE41: 36.65173843 | AF41: 36.65173843 | AG41: 36.65173843 | AH41: 31.02991877 | AI41: 31.02991877 | AJ41: 28.55735407 | AK41: 28.55735407 | AL41: 26.08478936 | AM41: 26.08478936 | AN41: 26.08478936 | AO41: 26.08478936 | AP41: 21.13965995 | AQ41: 21.13965995 | AR41: 14.54615407 | AS41: 14.54615407 | AT41: 6.148140849 | AU41: 6.148140849 | AV41: 36.35045876 | AW41: 36.35045876 | AX41: 26.55277668 | AY41: 26.55277668 | AZ41: 16.75509459 | BA41: 16.75509459 | BB41: 16.75509459 | BC41: 9.062671059 | BD41: 9.062671059 | BE41: 49.06267106 | BF41: 38.07349459 | BG41: 38.07349459 | BH41: 28.18323576 | BI41: 28.18323576 | BJ41: 14.18654707 | BK41: 14.18654707 | BL41: 14.18654707 | BM41: 2.989196113 | BN41: 2.989196113 | BO41: -9.607823714 | BP41: 30.39217629 | BQ41: 25.9965057 | BR41: 21.60083511 | BS41: 18.30408217 | BT41: 15.00732923 | BU41: 15.00732923 | BV41: =BU41+BV38-BV36+BV39-BV37 -> 2.410309402 | BW41: 2.410309402 | BX41: -10.18671042 | BY41: -10.18671042 | BZ41: -10.18671042
A44: CHP000012 | B44: F | C44: 0.003935 | E44: 4 | F44: 12 | G44: Need SR | H44: =SUM(I46:BZ47) -> 1485 | I44: =$C$44*'[1]Production plan'!C12/34.5+$D$46*'[1]Production plan'!C15/17 -> 0 | J44: =$C$44*'[1]Production plan'!D12/34.5 -> 0 | K44: =$C$44*'[1]Production plan'!E12/34.5 -> 15.77969217 | L44: =$C$44*'[1]Production plan'!F12/34.5 -> 0 | M44: =$C$44*'[1]Production plan'!G12/34.5 -> 0 | N44: =$C$44*'[1]Production plan'!H12/34.5 -> 16.36412522 | O44: =$C$44*'[1]Production plan'!I12/34.5 -> 0 | P44: =$C$44*'[1]Production plan'!J12/34.5 -> 9.350928696 | Q44: =$C$44*'[1]Production plan'!K12/34.5 -> 0 | R44: =$C$44*'[1]Production plan'!L12/34.5 -> 9.350928696 | S44: =$C$44*'[1]Production plan'!M12/34.5 -> 28.05278609 | T44: =$C$44*'[1]Production plan'!N12/34.5 -> 21.03958957 | U44: =$C$44*'[1]Production plan'!O12/34.5 -> 21.03958957 | V44: =$C$44*'[1]Production plan'!P12/34.5 -> 35.06598261 | W44: =$C$44*'[1]Production plan'!Q12/34.5 -> 0 | X44: =$C$44*'[1]Production plan'!R12/34.5+45 -> 66.03958957 | Y44: =$C$44*'[1]Production plan'!S12/34.5 -> 0 | Z44: =$C$44*'[1]Production plan'!T12/34.5 -> 0 | AA44: =$C$44*'[1]Production plan'!U12/34.5 -> 0 | AB44: =$C$44*'[1]Production plan'!V12/34.5 -> 0 | AC44: =$C$44*'[1]Production plan'!W12/34.5 -> 7.013196522 | AD44: =$C$44*'[1]Production plan'!X12/34.5 -> 42.07917913 | AE44: =$C$44*'[1]Production plan'!Y12/34.5 -> 0 | AF44: =$C$44*'[1]Production plan'!Z12/34.5 -> 0 | AG44: =$C$44*'[1]Production plan'!AA12/34.5 -> 0 | AH44: =$C$44*'[1]Production plan'!AB12/34.5 -> 21.03958957 | AI44: =$C$44*'[1]Production plan'!AC12/34.5 -> 0 | AJ44: =$C$44*'[1]Production plan'!AD12/34.5 -> 0 | AK44: =$C$44*'[1]Production plan'!AE12/34.5 -> 0 | AL44: =$C$44*'[1]Production plan'!AF12/34.5 -> 0 | AM44: =$C$44*'[1]Production plan'!AG12/34.5 -> 0 | AN44: =$C$44*'[1]Production plan'!AH12/34.5 -> 0 | AO44: =$C$44*'[1]Production plan'!AI12/34.5 -> 0 | AP44: =$C$44*'[1]Production plan'!AJ12/34.5 -> 0 | AQ44: =$C$44*'[1]Production plan'!AK12/34.5 -> 0 | AR44: =$C$44*'[1]Production plan'!AL12/34.5 -> 0 | AS44: =$C$44*'[1]Production plan'!AM12/34.5 -> 0 | AT44: =$C$44*'[1]Production plan'!AN12/34.5 -> 56.10557217 | AU44: =$C$44*'[1]Production plan'!AO12/34.5 -> 0 | AV44: =$C$44*'[1]Production plan'!AP12/34.5 -> 65.45650087 | AW44: =$C$44*'[1]Production plan'!AQ12/34.5 -> 0 | AX44: =$C$44*'[1]Production plan'!AR12/34.5 -> 65.45650087 | AY44: =$C$44*'[1]Production plan'!AS12/34.5 -> 0 | AZ44: =$C$44*'[1]Production plan'!AT12/34.5 -> 65.45650087 | BA44: =$C$44*'[1]Production plan'!AU12/34.5 -> 0 | BB44: =$C$44*'[1]Production plan'!AV12/34.5 -> 0 | BC44: =$C$44*'[1]Production plan'!AW12/34.5 -> 0 | BD44: =$C$44*'[1]Production plan'!AX12/34.5 -> 0 | BE44: =$C$44*'[1]Production plan'!AY12/34.5 -> 0 | BF44: =$C$44*'[1]Production plan'!AZ12/34.5 -> 0 | BG44: =$C$44*'[1]Production plan'!BA12/34.5 -> 0 | BH44: =$C$44*'[1]Production plan'!BB12/34.5 -> 0 | BI44: =$C$44*'[1]Production plan'!BC12/34.5 -> 0 | BJ44: =$C$44*'[1]Production plan'!BD12/34.5 -> 93.50928696 | BK44: =$C$44*'[1]Production plan'!BE12/34.5 -> 0 | BL44: =$C$44*'[1]Production plan'!BF12/34.5 -> 0 | BM44: =$C$44*'[1]Production plan'!BG12/34.5 -> 74.80742957 | BN44: =$C$44*'[1]Production plan'!BH12/34.5 -> 0 | BO44: =$C$44*'[1]Production plan'!BI12/34.5 -> 84.15835826 | BP44: =$C$44*'[1]Production plan'!BJ12/34.5 -> 0 | BQ44: =$C$44*'[1]Production plan'!BK12/34.5 -> 0 | BR44: =$C$44*'[1]Production plan'!BL12/34.5 -> 0 | BS44: =$C$44*'[1]Production plan'!BM12/34.5 -> 0 | BT44: =$C$44*'[1]Production plan'!BN12/34.5 -> 0 | BU44: =$C$44*'[1]Production plan'!BO12/34.5 -> 0 | BV44: =$C$44*'[1]Production plan'!BP12/34.5 -> 84.15835826 | BW44: =$C$44*'[1]Production plan'!BQ12/34.5 -> 0 | BX44: =$C$44*'[1]Production plan'!BR12/34.5 -> 84.15835826 | BY44: =$C$44*'[1]Production plan'!BS12/34.5 -> 0 | BZ44: =$C$44*'[1]Production plan'!BT12/34.5 -> 0
G45: Need HR | J45: =+$D$46*'[1]Production plan'!D15/17 -> 0 | K45: =+$D$46*'[1]Production plan'!E15/17 -> 0 | L45: =+$D$46*'[1]Production plan'!F15/17 -> 0 | M45: =+$D$46*'[1]Production plan'!G15/17 -> 0 | N45: =+$D$46*'[1]Production plan'!H15/17 -> 0 | O45: =+$D$46*'[1]Production plan'!I15/17 -> 0 | P45: =+$D$46*'[1]Production plan'!J15/17 -> 0 | Q45: =+$D$46*'[1]Production plan'!K15/17 -> 0 | R45: =+$D$46*'[1]Production plan'!L15/17 -> 0 | S45: =+$D$46*'[1]Production plan'!M15/17 -> 0 | T45: =+$D$46*'[1]Production plan'!N15/17 -> 0 | U45: =+$D$46*'[1]Production plan'!O15/17 -> 0 | V45: =+$D$46*'[1]Production plan'!P15/17 -> 0 | W45: =+$D$46*'[1]Production plan'!Q15/17 -> 0 | X45: =+$D$46*'[1]Production plan'!R15/17 -> 20.28018918 | Y45: =+$D$46*'[1]Production plan'!S15/17 -> 0 | Z45: =+$D$46*'[1]Production plan'!T15/17 -> 0 | AA45: =+$D$46*'[1]Production plan'!U15/17 -> 0 | AB45: =+$D$46*'[1]Production plan'!V15/17 -> 0 | AC45: =+$D$46*'[1]Production plan'!W15/17 -> 0 | AD45: =+$D$46*'[1]Production plan'!X15/17 -> 0 | AE45: =+$D$46*'[1]Production plan'!Y15/17 -> 0 | AF45: =+$D$46*'[1]Production plan'!Z15/17 -> 0 | AG45: =+$D$46*'[1]Production plan'!AA15/17 -> 0 | AH45: =+$D$46*'[1]Production plan'!AB15/17 -> 16.50436941 | AI45: =+$D$46*'[1]Production plan'!AC15/17 -> 0 | AJ45: =+$D$46*'[1]Production plan'!AD15/17 -> 16.50436941 | AK45: =+$D$46*'[1]Production plan'!AE15/17 -> 0 | AL45: =+$D$46*'[1]Production plan'!AF15/17 -> 16.50436941 | AM45: =+$D$46*'[1]Production plan'!AG15/17 -> 0 | AN45: =+$D$46*'[1]Production plan'!AH15/17 -> 0 | AO45: =+$D$46*'[1]Production plan'!AI15/17 -> 0 | AP45: =+$D$46*'[1]Production plan'!AJ15/17 -> 33.00873882 | AQ45: =+$D$46*'[1]Production plan'!AK15/17 -> 0 | AR45: =+$D$46*'[1]Production plan'!AL15/17 -> 44.01165176 | AS45: =+$D$46*'[1]Production plan'!AM15/17 -> 0 | AT45: =+$D$46*'[1]Production plan'!AN15/17 -> 0 | AU45: =+$D$46*'[1]Production plan'!AO15/17 -> 0 | AV45: =+$D$46*'[1]Production plan'!AP15/17 -> 0 | AW45: =+$D$46*'[1]Production plan'!AQ15/17 -> 0 | AX45: =+$D$46*'[1]Production plan'!AR15/17 -> 0 | AY45: =+$D$46*'[1]Production plan'!AS15/17 -> 0 | AZ45: =+$D$46*'[1]Production plan'!AT15/17 -> 0 | BA45: =+$D$46*'[1]Production plan'!AU15/17 -> 0 | BB45: =+$D$46*'[1]Production plan'!AV15/17 -> 0 | BC45: =+$D$46*'[1]Production plan'!AW15/17 -> 51.34692706 | BD45: =+$D$46*'[1]Production plan'!AX15/17 -> 0 | BE45: =+$D$46*'[1]Production plan'!AY15/17 -> 0 | BF45: =+$D$46*'[1]Production plan'!AZ15/17 -> 73.35275294 | BG45: =+$D$46*'[1]Production plan'!BA15/17 -> 0 | BH45: =+$D$46*'[1]Production plan'!BB15/17 -> 66.01747765 | BI45: =+$D$46*'[1]Production plan'!BC15/17 -> 0 | BJ45: =+$D$46*'[1]Production plan'!BD15/17 -> 0 | BK45: =+$D$46*'[1]Production plan'!BE15/17 -> 0 | BL45: =+$D$46*'[1]Production plan'!BF15/17 -> 0 | BM45: =+$D$46*'[1]Production plan'!BG15/17 -> 0 | BN45: =+$D$46*'[1]Production plan'!BH15/17 -> 0 | BO45: =+$D$46*'[1]Production plan'!BI15/17 -> 0 | BP45: =+$D$46*'[1]Production plan'!BJ15/17 -> 0 | BQ45: =+$D$46*'[1]Production plan'!BK15/17 -> 29.34110118 | BR45: =+$D$46*'[1]Production plan'!BL15/17 -> 29.34110118 | BS45: =+$D$46*'[1]Production plan'!BM15/17 -> 22.00582588 | BT45: =+$D$46*'[1]Production plan'!BN15/17 -> 22.00582588 | BU45: =+$D$46*'[1]Production plan'!BO15/17 -> 0 | BV45: =+$D$46*'[1]Production plan'!BP15/17 -> 0 | BW45: =+$D$46*'[1]Production plan'!BQ15/17 -> 0 | BX45: =+$D$46*'[1]Production plan'!BR15/17 -> 0 | BY45: =+$D$46*'[1]Production plan'!BS15/17 -> 0 | BZ45: =+$D$46*'[1]Production plan'!BT15/17 -> 0
D46: 0.001869 | G46: Supply SR | P46: 45 | Q46: 120 | U46: 120 | X46: 120 | Y46: 120 | AG46: 120 | AX46: 120 | BC46: 120 | BH46: 120 | BK46: 120 | BO46: 120 | BT46: 120
G47: Supply HR | AT47: 120
G48: % | I48: =I49/AVERAGE(J44:P44) -> 17.71308586 | J48: =J49/AVERAGE(K44:Q45) -> 35.42617171 | K48: 35.62096986 | L48: 19.7894277 | M48: 14.84207077 | N48: 11.48196179 | O48: 1.694917919 | P48: 6.190257118 | Q48: 11.89377703 | R48: 11.79093986 | S48: 11.41183538 | T48: 14.74456609 | U48: 28.713794 | V48: 2.250008632 | W48: 1.550820906 | X48: 12.83294996 | Y48: 47.05414984 | Z48: 47.05414984 | AA48: 26.66317787 | AB48: 26.66317787 | AC48: 23.0091813 | AD48: 30.02325491 | AE48: 22.99992476 | AF48: 22.99992476 | AG48: 46.81191285 | AH48: 84.13200304 | AI48: 42.06600152 | AJ48: 51.42133536 | AK48: 27.2230599 | AL48: 30.05657273 | AM48: 17.38931252 | AN48: 17.38931252 | AO48: 11.65746929 | AP48: 11.19046292 | AQ48: 8.019931689 | AR48: 6.612623963 | AS48: 4.898239973 | AT48: 10.85303708 | AU48: 10.85303708 | AV48: 6.665285611 | AW48: 6.665285611 | AX48: 16.93805998 | AY48: 10.4042028 | AZ48: 8.516721586 | BA48: 5.568625653 | BB48: 5.568625653 | BC48: 8.687648871 | BD48: 8.687648871 | BE48: 8.687648871 | BF48: 4.25135111 | BG48: 4.25135111 | BH48: 6.939268167 | BI48: 6.939268167 | BJ48: 2.351811101 | BK48: 9.753649598 | BL48: 8.858036425 | BM48: 5.756197395 | BN48: 5.756197395 | BO48: 8.441651198 | BP48: 8.441651198 | BQ48: 4.827112786 | BR48: 3.559535523 | BS48: 2.352368781 | BT48: 9.266343402 | BU48: 7.721952835 | BV48: =BV49/AVERAGE(BW44:CC45) -> 4.355124536 | BW48: 3.266343402
G49: Inventory SR | I49: 105 | J49: =I49+J46-J44+J47-J45 -> 105 | K49: 89.22030783 | L49: 89.22030783 | M49: 89.22030783 | N49: 72.85618261 | O49: 15 | P49: 50.6490713 | Q49: 170.6490713 | R49: 161.2981426 | S49: 133.2453565 | T49: 150 | U49: 248.9604104 | V49: 15 | W49: 15 | X49: 45 | Y49: 165 | Z49: 165 | AA49: 165 | AB49: 165 | AC49: 157.9868035 | AD49: 115.9076243 | AE49: 115.9076243 | AF49: 115.9076243 | AG49: 235.9076243 | AH49: 198.3636654 | AI49: 198.3636654 | AJ49: 181.859296 | AK49: 181.859296 | AL49: 165.3549265 | AM49: 165.3549265 | AN49: 165.3549265 | AO49: 165.3549265 | AP49: 132.3461877 | AQ49: 132.3461877 | AR49: 88.33453596 | AS49: 88.33453596 | AT49: 152.2289638 | AU49: 152.2289638 | AV49: 86.77246292 | AW49: 86.77246292 | AX49: 141.315962 | AY49: 141.315962 | AZ49: 75.85946118 | BA49: 75.85946118 | BB49: 75.85946118 | BC49: 144.5125341 | BD49: 144.5125341 | BE49: 144.5125341 | BF49: 71.15978118 | BG49: 71.15978118 | BH49: 125.1423035 | BI49: 125.1423035 | BJ49: 31.63301657 | BK49: 151.6330166 | BL49: 151.6330166 | BM49: 76.82558701 | BN49: 76.82558701 | BO49: 112.6672287 | BP49: 112.6672287 | BQ49: 83.32612757 | BR49: 53.98502639 | BS49: 31.97920051 | BT49: 129.9733746 | BU49: 129.9733746 | BV49: =BU49+BV46-BV44+BV47-BV45 -> 45.81501637 | BW49: 45.81501637 | BX49: -38.34334189 | BY49: -38.34334189 | BZ49: -38.34334189
C51: =0.09336*1.2 -> 0.112032
A52: CHP001039 | B52: G | C52: =5.5176/43.59*2 -> 0.2531589814 | E52: 4 | F52: 12 | G52: Need | H52: =SUM(I54:BZ54) -> 43263 | I52: =$C$52*'[1]Production plan'!C39/34.5 -> 0 | J52: =$C$52*'[1]Production plan'!D39/34.5 -> 0 | K52: =$C$52*'[1]Production plan'!E39/34.5 -> 1001.629013 | L52: =$C$52*'[1]Production plan'!F39/34.5 -> 0 | M52: =$C$52*'[1]Production plan'!G39/34.5 -> 0 | N52: =$C$52*'[1]Production plan'!H39/34.5 -> 1008.966955 | O52: =$C$52*'[1]Production plan'!I39/34.5 -> 0 | P52: =$C$52*'[1]Production plan'!J39/34.5 -> 576.028407 | Q52: =$C$52*'[1]Production plan'!K39/34.5 -> 0 | R52: =$C$52*'[1]Production plan'!L39/34.5 -> 0 | S52: =$C$52*'[1]Production plan'!M39/34.5 -> 1731.754192 | T52: =$C$52*'[1]Production plan'!N39/34.5 -> 865.8770959 | U52: =$C$52*'[1]Production plan'!O39/34.5 -> 0 | V52: =$C$52*'[1]Production plan'!P39/34.5 -> 1937.216553 | W52: =$C$52*'[1]Production plan'!Q39/34.5 -> 0 | X52: =$C$52*'[1]Production plan'!R39/34.5+$C$52*'[1]Production plan'!R42/17 -> 2728.419304 | Y52: =$C$52*'[1]Production plan'!S39/34.5 -> 0 | Z52: =$C$52*'[1]Production plan'!T39/34.5 -> 0 | AA52: =$C$52*'[1]Production plan'!U39/34.5 -> 0 | AB52: =$C$52*'[1]Production plan'!V39/34.5 -> 0 | AC52: =$C$52*'[1]Production plan'!W39/34.5 -> 0 | AD52: =$C$52*'[1]Production plan'!X39/34.5 -> 1757.436987 | AE52: =$C$52*'[1]Production plan'!Y39/34.5 -> 0 | AF52: =$C$52*'[1]Production plan'!Z39/34.5 -> 0 | AG52: =$C$52*'[1]Production plan'!AA39/34.5+$C$52*'[1]Production plan'!AA42/17 -> 0 | AH52: =$C$52*'[1]Production plan'!AB39/34.5 -> 1298.815644 | AI52: =$C$52*'[1]Production plan'!AC39/34.5 -> 0 | AJ52: =$C$52*'[1]Production plan'!AD39/34.5 -> 0 | AK52: =$C$52*'[1]Production plan'!AE39/34.5 -> 0 | AL52: =$C$52*'[1]Production plan'!AF39/34.5 -> 0 | AM52: =$C$52*'[1]Production plan'!AG39/34.5 -> 0 | AN52: =$C$52*'[1]Production plan'!AH39/34.5 -> 0 | AO52: =$C$52*'[1]Production plan'!AI39/34.5 -> 0 | AP52: =$C$52*'[1]Production plan'!AJ39/34.5 -> 0 | AQ52: =$C$52*'[1]Production plan'!AK39/34.5 -> 0 | AR52: =$C$52*'[1]Production plan'!AL39/34.5 -> 0 | AS52: =$C$52*'[1]Production plan'!AM39/34.5 -> 0 | AT52: =$C$52*'[1]Production plan'!AN39/34.5 -> 3463.508383 | AU52: =$C$52*'[1]Production plan'!AO39/34.5 -> 0 | AV52: =$C$52*'[1]Production plan'!AP39/34.5 -> 4043.205761 | AW52: =$C$52*'[1]Production plan'!AQ39/34.5 -> 0 | AX52: =$C$52*'[1]Production plan'!AR39/34.5 -> 4043.205761 | AY52: =$C$52*'[1]Production plan'!AS39/34.5 -> 0 | AZ52: =$C$52*'[1]Production plan'!AT39/34.5 -> 4043.205761 | BA52: =$C$52*'[1]Production plan'!AU39/34.5 -> 0 | BB52: =$C$52*'[1]Production plan'!AV39/34.5 -> 0 | BC52: =$C$52*'[1]Production plan'!AW39/34.5 -> 0 | BD52: =$C$52*'[1]Production plan'!AX39/34.5 -> 0 | BE52: =$C$52*'[1]Production plan'!AY39/34.5 -> 0 | BF52: =$C$52*'[1]Production plan'!AZ39/34.5 -> 0 | BG52: =$C$52*'[1]Production plan'!BA39/34.5 -> 0 | BH52: =$C$52*'[1]Production plan'!BB39/34.5 -> 0 | BI52: =$C$52*'[1]Production plan'!BC39/34.5 -> 0 | BJ52: =$C$52*'[1]Production plan'!BD39/34.5 -> 5774.959953 | BK52: =$C$52*'[1]Production plan'!BE39/34.5 -> 0 | BL52: =$C$52*'[1]Production plan'!BF39/34.5 -> 0 | BM52: =$C$52*'[1]Production plan'!BG39/34.5 -> 4619.234168 | BN52: =$C$52*'[1]Production plan'!BH39/34.5 -> 0 | BO52: =$C$52*'[1]Production plan'!BI39/34.5 -> 5195.262575 | BP52: =$C$52*'[1]Production plan'!BJ39/34.5 -> 0 | BQ52: =$C$52*'[1]Production plan'!BK39/34.5 -> 0 | BR52: =$C$52*'[1]Production plan'!BL39/34.5 -> 0 | BS52: =$C$52*'[1]Production plan'!BM39/34.5 -> 0 | BT52: =$C$52*'[1]Production plan'!BN39/34.5 -> 0 | BU52: =$C$52*'[1]Production plan'!BO39/34.5 -> 0 | BV52: =$C$52*'[1]Production plan'!BP39/34.5 -> 5195.262575 | BW52: =$C$52*'[1]Production plan'!BQ39/34.5 -> 0 | BX52: =$C$52*'[1]Production plan'!BR39/34.5 -> 5195.262575 | BY52: =$C$52*'[1]Production plan'!BS39/34.5 -> 0 | BZ52: =$C$52*'[1]Production plan'!BT39/34.5 -> 0
G54: Supply | P54: 2263 | AA54: 2000 | AI54: 2000 | AQ54: 2000 | AT54: 3000 | AV54: 4000 | AX54: 4000 | AZ54: 4000 | BI54: 3000 | BK54: 4000 | BM54: 5000 | BT54: 4000 | BV54: 4000
G56: % | I56: =I57/AVERAGE(J52:P52) -> 9.353356038 | J56: 9.353356038 | K56: 10.84054631 | L56: 5.180438061 | M56: 4.107996497 | N56: 3.188573418 | O56: 3.79113073 | P56: =P57/AVERAGE(Q52:W52) -> 6.876702867 | Q56: =Q57/AVERAGE(R52:X52) -> 4.293494998 | R56: 4.293494998 | S56: 5.48963733 | T56: 5.209335035 | U56: 5.209335035 | V56: 3.937937413 | W56: 2.395160201 | X56: 6.237492486 | Y56: 6.237492486 | Z56: 6.237492486 | AA56: 8.167518532 | AB56: 8.167518532 | AC56: 8.167518532 | AD56: 9.747296433 | AE56: 9.747296433 | AF56: 9.747296433 | AG56: 9.747296433 | AM56: 5.072380269 | AN56: 5.072380269 | AO56: 2.340335764 | AP56: 2.340335764 | AQ56: 2.733199177 | AR56: 2.733199177 | AS56: 2.024496708 | AT56: 2.335083807 | AU56: 2.335083807 | AV56: 3.465224654 | AW56: 3.465224654 | AX56: 6.855647197 | AY56: 6.855647197 | BC56: 4.747453167 | BD56: 4.747453167 | BE56: 4.747453167 | BF56: 2.637660178 | BG56: 2.637660178 | BH56: 1.758647043 | BI56: 3.105711306 | BJ56: 0.8142681641 | BK56: 3.667190808 | BL56: 3.667190808 | BM56: 7.440816034 | BN56: 7.440816034 | BO56: 0.4408160335 | BP56: 0.4408160335 | BQ56: 0.2204080168 | BR56: 0.2204080168 | BS56: 0.2204080168 | BT56: 2.49871779 | BU56: 2.082264825 | BV56: 2.411352562 | BW56: 1.808514422
G57: Inventory | I57: =30000/43.59+2768 -> 3456.231246 | J57: =I57+J54-J52 -> 3456.231246 | K57: 2454.602232 | L57: 2454.602232 | M57: 2454.602232 | N57: 1445.635277 | O57: 2768 | P57: 4454.971593 | Q57: 4454.971593 | R57: 4454.971593 | S57: 4338 | T57: 3472.122904 | U57: 3472.122904 | V57: 1534.906351 | W57: 1534.906351 | X57: 1566 | Y57: 1566 | Z57: 1566 | AA57: 3566 | AB57: 3566 | AC57: 3566 | AD57: 1808.563013 | AE57: 1808.563013 | AF57: 1808.563013 | AG57: 1808.563013 | AH57: 509.7473693 | AI57: 2509.747369 | AJ57: 2509.747369 | AK57: 2509.747369 | AL57: 2509.747369 | AM57: 2509.747369 | AN57: 2509.747369 | AO57: 2509.747369 | AP57: 2509.747369 | AQ57: 4509.747369 | AR57: 4509.747369 | AS57: 4509.747369 | AT57: 4046.238986 | AU57: 4046.238986 | AV57: 4003.033225 | AW57: 4003.033225 | AX57: 3959.827463 | AY57: 3959.827463 | AZ57: 3916.621702 | BA57: 3916.621702 | BB57: 3916.621702 | BC57: 3916.621702 | BD57: 3916.621702 | BE57: 3916.621702 | BF57: 3916.621702 | BG57: 3916.621702 | BH57: 3916.621702 | BI57: 6916.621702 | BJ57: 1141.661749 | BK57: 5141.661749 | BL57: 5141.661749 | BM57: 5522.427581 | BN57: 5522.427581 | BO57: 327.1650059 | BP57: 327.1650059 | BQ57: 327.1650059 | BR57: 327.1650059 | BS57: 327.1650059 | BT57: 4327.165006 | BU57: 4327.165006 | BV57: =BU57+BV54-BV52 -> 3131.902431 | BW57: 3131.902431 | BX57: -2063.360144 | BY57: -2063.360144 | BZ57: -2063.360144
W58: 1.5 | X58: 1.1
A60: CHP001052 | B60: H | D60: =0.053586*2 -> 0.107172 | E60: 4 | F60: 12 | G60: Need | H60: =SUM(I62:BZ62) -> 22153 | I60: =$D$60*'[1]Production plan'!C42/17 -> 0 | J60: =$D$60*'[1]Production plan'!D42/17 -> 0 | K60: =$D$60*'[1]Production plan'!E42/17 -> 0 | L60: =$D$60*'[1]Production plan'!F42/17 -> 0 | M60: =$D$60*'[1]Production plan'!G42/17 -> 0 | N60: =$D$60*'[1]Production plan'!H42/17 -> 0 | O60: =$D$60*'[1]Production plan'!I42/17 -> 0 | P60: =$D$60*'[1]Production plan'!J42/17 -> 0 | Q60: =$D$60*'[1]Production plan'!K42/17 -> 0 | R60: =$D$60*'[1]Production plan'!L42/17 -> 0 | S60: =$D$60*'[1]Production plan'!M42/17 -> 0 | T60: =$D$60*'[1]Production plan'!N42/17 -> 0 | U60: =$D$60*'[1]Production plan'!O42/17 -> 0 | V60: =$D$60*'[1]Production plan'!P42/17 -> 0 | W60: =$D$60*'[1]Production plan'!Q42/17 -> 0 | X60: =$D$60*'[1]Production plan'!R42/17-$D$60*'[1]Production plan'!R42/17 -> 0 | Y60: =$D$60*'[1]Production plan'!S42/17 -> 0 | Z60: =$D$60*'[1]Production plan'!T42/17 -> 0 | AA60: =$D$60*'[1]Production plan'!U42/17 -> 0 | AB60: =$D$60*'[1]Production plan'!V42/17 -> 0 | AC60: =$D$60*'[1]Production plan'!W42/17 -> 0 | AD60: =$D$60*'[1]Production plan'!X42/17 -> 0 | AE60: =$D$60*'[1]Production plan'!Y42/17 -> 0 | AF60: =$D$60*'[1]Production plan'!Z42/17 -> 0 | AG60: =$D$60*'[1]Production plan'!AA42/17-$D$60*'[1]Production plan'!AA42/17 -> 0 | AH60: =$D$60*'[1]Production plan'!AB42/17 -> 907.8098824 | AI60: =$D$60*'[1]Production plan'!AC42/17 -> 0 | AJ60: =$D$60*'[1]Production plan'!AD42/17 -> 907.8098824 | AK60: =$D$60*'[1]Production plan'!AE42/17 -> 0 | AL60: =$D$60*'[1]Production plan'!AF42/17 -> 907.8098824 | AM60: =$D$60*'[1]Production plan'!AG42/17 -> 0 | AN60: =$D$60*'[1]Production plan'!AH42/17 -> 0 | AO60: =$D$60*'[1]Production plan'!AI42/17 -> 0 | AP60: =$D$60*'[1]Production plan'!AJ42/17 -> 1818.771882 | AQ60: =$D$60*'[1]Production plan'!AK42/17 -> 0 | AR60: =$D$60*'[1]Production plan'!AL42/17 -> 2420.826353 | AS60: =$D$60*'[1]Production plan'!AM42/17 -> 0 | AT60: =$D$60*'[1]Production plan'!AN42/17 -> 0 | AU60: =$D$60*'[1]Production plan'!AO42/17 -> 0 | AV60: =$D$60*'[1]Production plan'!AP42/17 -> 0 | AW60: =$D$60*'[1]Production plan'!AQ42/17 -> 0 | AX60: =$D$60*'[1]Production plan'!AR42/17 -> 0 | AY60: =$D$60*'[1]Production plan'!AS42/17 -> 0 | AZ60: =$D$60*'[1]Production plan'!AT42/17 -> 0 | BA60: =$D$60*'[1]Production plan'!AU42/17 -> 0 | BB60: =$D$60*'[1]Production plan'!AV42/17 -> 0 | BC60: =$D$60*'[1]Production plan'!AW42/17 -> 2827.449529 | BD60: =$D$60*'[1]Production plan'!AX42/17 -> 0 | BE60: =$D$60*'[1]Production plan'!AY42/17 -> 0 | BF60: =$D$60*'[1]Production plan'!AZ42/17 -> 4037.862706 | BG60: =$D$60*'[1]Production plan'!BA42/17 -> 0 | BH60: =$D$60*'[1]Production plan'!BB42/17 -> 3631.239529 | BI60: =$D$60*'[1]Production plan'!BC42/17 -> 0 | BJ60: =$D$60*'[1]Production plan'!BD42/17 -> 0 | BK60: =$D$60*'[1]Production plan'!BE42/17 -> 0 | BL60: =$D$60*'[1]Production plan'!BF42/17 -> 0 | BM60: =$D$60*'[1]Production plan'!BG42/17 -> 0 | BN60: =$D$60*'[1]Production plan'!BH42/17 -> 0 | BO60: =$D$60*'[1]Production plan'!BI42/17 -> 0 | BP60: =$D$60*'[1]Production plan'!BJ42/17 -> 0 | BQ60: =$D$60*'[1]Production plan'!BK42/17 -> 1613.884235 | BR60: =$D$60*'[1]Production plan'!BL42/17 -> 1613.884235 | BS60: =$D$60*'[1]Production plan'!BM42/17 -> 1210.413176 | BT60: =$D$60*'[1]Production plan'!BN42/17 -> 1210.413176 | BU60: =$D$60*'[1]Production plan'!BO42/17 -> 0 | BV60: =$D$60*'[1]Production plan'!BP42/17 -> 0 | BW60: =$D$60*'[1]Production plan'!BQ42/17 -> 0 | BX60: =$D$60*'[1]Production plan'!BR42/17 -> 0 | BY60: =$D$60*'[1]Production plan'!BS42/17 -> 0 | BZ60: =$D$60*'[1]Production plan'!BT42/17 -> 0
G62: Supply | Z62: 1153 | AH62: 2000 | AQ62: 2000 | AZ62: 3000 | BC62: 3000 | BF62: 4000 | BO62: 3000 | BR62: 4000
G64: % HR | I64: =I65/AVERAGE(J60:P60) ->  | P64: =P65/AVERAGE(Q60:W60) ->  | Q64: =Q65/AVERAGE(R60:X60) ->  | AA64: 23.96537031 | AB64: 23.96537031 | AC64: 11.98268515 | AD64: 11.98268515 | AE64: 7.988456769 | AF64: 7.988456769 | AG64: 7.988456769 | AH64: 16.19355076 | AI64: 8.089753026 | AJ64: 8.452584091 | AK64: 4.477333275 | AL64: 3.937163746 | AM64: 3.937163746 | AN64: 3.937163746 | AO64: 3.937163746 | AP64: 1.636048488 | AQ64: 7.419197694 | AV64: 0.3589117376 | AW64: 0.3589117376 | AX64: 0.3589117376 | AY64: 0.1478162666 | AZ64: 3.206672045 | BA64: 2.097336851 | BB64: 2.097336851 | BC64: 3.028080394 | BD64: 3.028080394 | BE64: 3.028080394 | BF64: 6.322254148 | BG64: 6.322254148 | BJ64: -1.524928167 | BK64: -0.7624640837 | BL64: -0.5545193336 | BM64: -0.4356937621 | BN64: -0.4356937621 | BO64: 3.282045013 | BP64: 3.282045013 | BQ64: 1.794863018 | BR64: 9.891070108 | BS64: 12.78214022
G65: Inventory | I65: 1955 | J65: =I65+J62-J60 -> 1955 | K65: 1955 | L65: 1955 | M65: 1955 | N65: 1955 | O65: 1955 | P65: 1955 | Q65: 1955 | R65: 1955 | S65: 1955 | T65: 1955 | U65: 1955 | V65: 1955 | W65: 1955 | X65: 1955 | Y65: 1955 | Z65: 3108 | AA65: 3108 | AB65: 3108 | AC65: 3108 | AD65: 3108 | AE65: 3108 | AF65: 3108 | AG65: 3108 | AH65: 4200.190118 | AI65: 4200.190118 | AJ65: 3292.380235 | AK65: 3292.380235 | AL65: 2384.570353 | AM65: 2384.570353 | AN65: 2384.570353 | AO65: 2384.570353 | AP65: 565.7984706 | AQ65: 2565.798471 | AR65: 144.9721176 | AS65: 144.9721176 | AT65: 144.9721176 | AU65: 144.9721176 | AV65: 144.9721176 | AW65: 144.9721176 | AX65: 144.9721176 | AY65: 144.9721176 | AZ65: 3144.972118 | BA65: 3144.972118 | BB65: 3144.972118 | BC65: 3317.522588 | BD65: 3317.522588 | BE65: 3317.522588 | BF65: 3279.659882 | BG65: 3279.659882 | BH65: -351.5796471 | BI65: -351.5796471 | BJ65: -351.5796471 | BK65: -351.5796471 | BL65: -351.5796471 | BM65: -351.5796471 | BN65: -351.5796471 | BO65: 2648.420353 | BP65: 2648.420353 | BQ65: 1034.536118 | BR65: 3420.651882 | BS65: 2210.238706 | BT65: 999.8255294 | BU65: 999.8255294 | BV65: =BU65+BV62-BV60 -> 999.8255294 | BW65: 999.8255294 | BX65: 999.8255294 | BY65: 999.8255294 | BZ65: 999.8255294
AT67: =65000*20.5 -> 1332500
A68: CHP001031 | B68: I | C68: 0.27 | E68: 12 | F68: 12 | G68: Need | H68: =SUM(I70:BZ70) -> 53900 | I68: =$C$68*'[1]Production plan'!C27/35.5 -> 0 | J68: =$C$68*'[1]Production plan'!D27/35.5 -> 543.2247887 | K68: =$C$68*'[1]Production plan'!E27/35.5 -> 0 | L68: =$C$68*'[1]Production plan'!F27/35.5 -> 543.2247887 | M68: =$C$68*'[1]Production plan'!G27/35.5 -> 543.2247887 | N68: =$C$68*'[1]Production plan'!H27/35.5 -> 0 | O68: =$C$68*'[1]Production plan'!I27/35.5 -> 905.3746479 | P68: =$C$68*'[1]Production plan'!J27/35.5 -> 0 | Q68: =$C$68*'[1]Production plan'!K27/35.5 -> 869.159662 | R68: =$C$68*'[1]Production plan'!L27/35.5 -> 1376.169465 | S68: =$C$68*'[1]Production plan'!M27/35.5 -> 0 | T68: =$C$68*'[1]Production plan'!N27/35.5 -> 543.2247887 | U68: =$C$68*'[1]Production plan'!O27/35.5 -> 1086.449577 | V68: =$C$68*'[1]Production plan'!P27/35.5 -> 271.6123944 | W68: =$C$68*'[1]Production plan'!Q27/35.5 -> 1086.449577 | X68: =$C$68*'[1]Production plan'!R27/35.5 -> 0 | Y68: =$C$68*'[1]Production plan'!S27/35.5 -> 1358.061972 | Z68: =$C$68*'[1]Production plan'!T27/35.5 -> 0 | AA68: =$C$68*'[1]Production plan'!U27/35.5 -> 0 | AB68: =$C$68*'[1]Production plan'!V27/35.5 -> 814.8371831 | AC68: =$C$68*'[1]Production plan'!W27/35.5 -> 1086.449577 | AD68: =$C$68*'[1]Production plan'!X27/35.5+$D$89*'[1]Production plan'!X30/17*($C$68/($C$82+$C$75+$C$68)) -> 0 | AE68: =$C$68*'[1]Production plan'!Y27/35.5 -> 1086.449577 | AF68: =$C$68*'[1]Production plan'!Z27/35.5+$D$89*'[1]Production plan'!Z30/17*($C$68/($C$82+$C$75+$C$68)) -> 1356.996862 | AG68: =$C$68*'[1]Production plan'!AA27/35.5+$D$89*'[1]Production plan'!AA30/17*($C$68/($C$82+$C$75+$C$68)) -> 1623.283708 | AH68: =$C$68*'[1]Production plan'!AB27/35.5 -> 0 | AI68: =$C$68*'[1]Production plan'!AC27/35.5 -> 0 | AJ68: =$C$68*'[1]Production plan'!AD27/35.5 -> 0 | AK68: =$C$68*'[1]Production plan'!AE27/35.5 -> 0 | AL68: =$C$68*'[1]Production plan'!AF27/35.5 -> 0 | AM68: =$C$68*'[1]Production plan'!AG27/35.5 -> 0 | AN68: =$C$68*'[1]Production plan'!AH27/35.5 -> 0 | AO68: =$C$68*'[1]Production plan'!AI27/35.5 -> 0 | AP68: =$C$68*'[1]Production plan'!AJ27/35.5 -> 0 | AQ68: =$C$68*'[1]Production plan'!AK27/35.5 -> 0 | AR68: =$C$68*'[1]Production plan'!AL27/35.5 -> 0 | AS68: =$C$68*'[1]Production plan'!AM27/35.5 -> 3621.498592 | AT68: =$C$68*'[1]Production plan'!AN27/35.5 -> 0 | AU68: =$C$68*'[1]Production plan'!AO27/35.5 -> 0 | AV68: =$C$68*'[1]Production plan'!AP27/35.5 -> 0 | AW68: =$C$68*'[1]Production plan'!AQ27/35.5 -> 3621.498592 | AX68: =$C$68*'[1]Production plan'!AR27/35.5 -> 0 | AY68: =$C$68*'[1]Production plan'!AS27/35.5 -> 3621.498592 | AZ68: =$C$68*'[1]Production plan'!AT27/35.5 -> 0 | BA68: =$C$68*'[1]Production plan'!AU27/35.5 -> 3621.498592 | BB68: =$C$68*'[1]Production plan'!AV27/35.5 -> 3259.348732 | BC68: =$C$68*'[1]Production plan'!AW27/35.5 -> 0 | BD68: =$C$68*'[1]Production plan'!AX27/35.5 -> 0 | BE68: =$C$68*'[1]Production plan'!AY27/35.5 -> 0 | BF68: =$C$68*'[1]Production plan'!AZ27/35.5 -> 0 | BG68: =$C$68*'[1]Production plan'!BA27/35.5 -> 0 | BH68: =$C$68*'[1]Production plan'!BB27/35.5 -> 0 | BI68: =$C$68*'[1]Production plan'!BC27/35.5 -> 0 | BJ68: =$C$68*'[1]Production plan'!BD27/35.5 -> 0 | BK68: =$C$68*'[1]Production plan'!BE27/35.5 -> 4345.79831 | BL68: =$C$68*'[1]Production plan'!BF27/35.5 -> 4345.79831 | BM68: =$C$68*'[1]Production plan'!BG27/35.5 -> 0 | BN68: =$C$68*'[1]Production plan'!BH27/35.5 -> 3621.498592 | BO68: =$C$68*'[1]Production plan'!BI27/35.5 -> 0 | BP68: =$C$68*'[1]Production plan'!BJ27/35.5 -> 3621.498592 | BQ68: =$C$68*'[1]Production plan'!BK27/35.5 -> 0 | BR68: =$C$68*'[1]Production plan'!BL27/35.5 -> 0 | BS68: =$C$68*'[1]Production plan'!BM27/35.5 -> 0 | BT68: =$C$68*'[1]Production plan'!BN27/35.5 -> 0 | BU68: =$C$68*'[1]Production plan'!BO27/35.5 -> 4345.79831 | BV68: =$C$68*'[1]Production plan'!BP27/35.5 -> 0 | BW68: =$C$68*'[1]Production plan'!BQ27/35.5 -> 3621.498592 | BX68: =$C$68*'[1]Production plan'!BR27/35.5 -> 0 | BY68: =$C$68*'[1]Production plan'!BS27/35.5 -> 4345.79831 | BZ68: =$C$68*'[1]Production plan'!BT27/35.5 -> 0
G70: Supply | U70: 3000 | Y70: 6000 | AC70: 3000 | AE70: 3000 | AI70: 16200 | AO70: 4700 | BJ70: 6000 | BP70: 6000 | BV70: 6000
G72: % | I72: =I73/AVERAGE(J68:P68) -> 19.05288605 | J72: 15.55319017 | K72: 10.5017267 | L72: 11.01668651 | M72: 9.987274741 | N72: 7.717439573 | O72: 8.901475565 | P72: =P73/AVERAGE(Q68:W68) -> 7.053418355 | Q72: =Q73/AVERAGE(R68:X68) -> 7.064057695 | R72: 4.876824602 | S72: 4.876824602 | T72: 5.636708898 | U72: 9.863844916 | V72: 7.576873994 | W72: 7.769165325 | X72: 5.650515337 | Y72: 13.13074096 | Z72: 9.559216583 | AA72: 9.559216583 | AB72: 9.963888056 | AC72: 15.91956105 | AD72: 15.91956105 | AE72: 26.21746845 | AF72: 42.28246329 | AL72: 47.1278515 | AM72: 47.1278515 | AN72: 47.1278515 | AO72: 56.21248847 | AP72: 28.10624424 | AQ72: 28.10624424 | AR72: 18.73749616 | AS72: 24.60624424 | AT72: 16.40416282 | AU72: 12.61858679 | AV72: 12.61858679 | AW72: 14.55603051 | AX72: 14.55603051 | AY72: 18.53288867 | AZ72: 18.53288867 | BA72: 31.34720942 | BD72: 18.26040706 | BE72: 9.130203531 | BF72: 9.130203531 | BG72: 6.444849551 | BH72: 6.444849551 | BI72: 4.980111017 | BJ72: 7.615885767 | BK72: 7.84684293 | BL72: 8.354948688 | BM72: 8.354948688 | BN72: 4.413589716 | BO72: 4.413589716 | BP72: 6.503321035 | BQ72: 6.503321035 | BR72: 4.208031258 | BS72: 4.208031258 | BT72: 3.606883935 | BU72: 1.917956583 | BV72: 4.546679267 | BW72: 3.751683992 | BX72: 2.501122661
G73: Inventory | I73: 6900 | J73: =I73+J70-J68 -> 6356.775211 | K73: 6356.775211 | L73: 5813.550423 | M73: 5270.325634 | N73: 5270.325634 | O73: 5273 | P73: 5273 | Q73: 4403.840338 | R73: 3027.670873 | S73: 3027.670873 | T73: 3062 | U73: 4975.550423 | V73: 4703.938028 | W73: 3617.488451 | X73: 3508 | Y73: 8149.938028 | Z73: 8149.938028 | AA73: 8149.938028 | AB73: 7335.100845 | AC73: 9248.651268 | AD73: =AC73+AD70-AD68 -> 9248.651268 | AE73: =AD73+AE70-AE68 -> 11162.20169 | AF73: 9805.204828 | AG73: 8181.92112 | AH73: 8181.92112 | AI73: 24381.92112 | AJ73: 24381.92112 | AK73: 24381.92112 | AL73: 24381.92112 | AM73: 24381.92112 | AN73: 24381.92112 | AO73: 29081.92112 | AP73: 29081.92112 | AQ73: 29081.92112 | AR73: 29081.92112 | AS73: 25460.42253 | AT73: 25460.42253 | AU73: 25460.42253 | AV73: 25460.42253 | AW73: 21838.92394 | AX73: 21838.92394 | AY73: 18217.42535 | AZ73: 18217.42535 | BA73: 14595.92675 | BB73: 11336.57802 | BC73: 11336.57802 | BD73: 11336.57802 | BE73: 11336.57802 | BF73: 11336.57802 | BG73: 11336.57802 | BH73: 11336.57802 | BI73: 11336.57802 | BJ73: 17336.57802 | BK73: 12990.77971 | BL73: 8644.981401 | BM73: 8644.981401 | BN73: 5023.48281 | BO73: 5023.48281 | BP73: 7401.984218 | BQ73: 7401.984218 | BR73: 7401.984218 | BS73: 7401.984218 | BT73: 7401.984218 | BU73: 3056.185908 | BV73: =BU73+BV70-BV68 -> 9056.185908 | BW73: 5434.687317 | BX73: 5434.687317 | BY73: 1088.889007 | BZ73: 1088.889007
A75: CHP001032 | B75: J | C75: 0.27 | E75: 12 | F75: 12 | G75: Need | H75: =SUM(I77:BZ77) -> 53900 | I75: =$C$75*'[1]Production plan'!C27/35.5 -> 0 | J75: =$C$75*'[1]Production plan'!D27/35.5 -> 543.2247887 | K75: =$C$75*'[1]Production plan'!E27/35.5 -> 0 | L75: =$C$75*'[1]Production plan'!F27/35.5 -> 543.2247887 | M75: =$C$75*'[1]Production plan'!G27/35.5 -> 543.2247887 | N75: =$C$75*'[1]Production plan'!H27/35.5 -> 0 | O75: =$C$75*'[1]Production plan'!I27/35.5 -> 905.3746479 | P75: =$C$75*'[1]Production plan'!J27/35.5 -> 0 | Q75: =$C$75*'[1]Production plan'!K27/35.5 -> 869.159662 | R75: =$C$75*'[1]Production plan'!L27/35.5 -> 1376.169465 | S75: =$C$75*'[1]Production plan'!M27/35.5 -> 0 | T75: =$C$75*'[1]Production plan'!N27/35.5 -> 543.2247887 | U75: =$C$75*'[1]Production plan'!O27/35.5 -> 1086.449577 | V75: =$C$75*'[1]Production plan'!P27/35.5 -> 271.6123944 | W75: =$C$75*'[1]Production plan'!Q27/35.5 -> 1086.449577 | X75: =$C$75*'[1]Production plan'!R27/35.5 -> 0 | Y75: =$C$75*'[1]Production plan'!S27/35.5 -> 1358.061972 | Z75: =$C$75*'[1]Production plan'!T27/35.5 -> 0 | AA75: =$C$75*'[1]Production plan'!U27/35.5 -> 0 | AB75: =$C$75*'[1]Production plan'!V27/35.5 -> 814.8371831 | AC75: =$C$75*'[1]Production plan'!W27/35.5 -> 1086.449577 | AD75: =$C$75*'[1]Production plan'!X27/35.5+$D$89*'[1]Production plan'!X30/17*($C$75/($C$82+$C$75+$C$68)) -> 0 | AE75: =$C$75*'[1]Production plan'!Y27/35.5+$D$89*'[1]Production plan'!Y30/17*($C$75/($C$82+$C$75+$C$68)) -> 1627.544147 | AF75: =$C$75*'[1]Production plan'!Z27/35.5+$D$89*'[1]Production plan'!Z30/17*($C$75/($C$82+$C$75+$C$68)) -> 1356.996862 | AG75: =$C$75*'[1]Production plan'!AA27/35.5+$D$89*'[1]Production plan'!AA30/17*($C$75/($C$82+$C$75+$C$68)) -> 1623.283708 | AH75: =$C$75*'[1]Production plan'!AB27/35.5 -> 0 | AI75: =$C$75*'[1]Production plan'!AC27/35.5 -> 0 | AJ75: =$C$75*'[1]Production plan'!AD27/35.5 -> 0 | AK75: =$C$75*'[1]Production plan'!AE27/35.5 -> 0 | AL75: =$C$75*'[1]Production plan'!AF27/35.5 -> 0 | AM75: =$C$75*'[1]Production plan'!AG27/35.5 -> 0 | AN75: =$C$75*'[1]Production plan'!AH27/35.5 -> 0 | AO75: =$C$75*'[1]Production plan'!AI27/35.5 -> 0 | AP75: =$C$75*'[1]Production plan'!AJ27/35.5 -> 0 | AQ75: =$C$75*'[1]Production plan'!AK27/35.5 -> 0 | AR75: =$C$75*'[1]Production plan'!AL27/35.5 -> 0 | AS75: =$C$75*'[1]Production plan'!AM27/35.5 -> 3621.498592 | AT75: =$C$75*'[1]Production plan'!AN27/35.5 -> 0 | AU75: =$C$75*'[1]Production plan'!AO27/35.5 -> 0 | AV75: =$C$75*'[1]Production plan'!AP27/35.5 -> 0 | AW75: =$C$75*'[1]Production plan'!AQ27/35.5 -> 3621.498592 | AX75: =$C$75*'[1]Production plan'!AR27/35.5 -> 0 | AY75: =$C$75*'[1]Production plan'!AS27/35.5 -> 3621.498592 | AZ75: =$C$75*'[1]Production plan'!AT27/35.5 -> 0 | BA75: =$C$75*'[1]Production plan'!AU27/35.5 -> 3621.498592 | BB75: =$C$75*'[1]Production plan'!AV27/35.5 -> 3259.348732 | BC75: =$C$75*'[1]Production plan'!AW27/35.5 -> 0 | BD75: =$C$75*'[1]Production plan'!AX27/35.5 -> 0 | BE75: =$C$75*'[1]Production plan'!AY27/35.5 -> 0 | BF75: =$C$75*'[1]Production plan'!AZ27/35.5 -> 0 | BG75: =$C$75*'[1]Production plan'!BA27/35.5 -> 0 | BH75: =$C$75*'[1]Production plan'!BB27/35.5 -> 0 | BI75: =$C$75*'[1]Production plan'!BC27/35.5 -> 0 | BJ75: =$C$75*'[1]Production plan'!BD27/35.5 -> 0 | BK75: =$C$75*'[1]Production plan'!BE27/35.5 -> 4345.79831 | BL75: =$C$75*'[1]Production plan'!BF27/35.5 -> 4345.79831 | BM75: =$C$75*'[1]Production plan'!BG27/35.5 -> 0 | BN75: =$C$75*'[1]Production plan'!BH27/35.5 -> 3621.498592 | BO75: =$C$75*'[1]Production plan'!BI27/35.5 -> 0 | BP75: =$C$75*'[1]Production plan'!BJ27/35.5 -> 3621.498592 | BQ75: =$C$75*'[1]Production plan'!BK27/35.5 -> 0 | BR75: =$C$75*'[1]Production plan'!BL27/35.5 -> 0 | BS75: =$C$75*'[1]Production plan'!BM27/35.5 -> 0 | BT75: =$C$75*'[1]Production plan'!BN27/35.5 -> 0 | BU75: =$C$75*'[1]Production plan'!BO27/35.5 -> 4345.79831 | BV75: =$C$75*'[1]Production plan'!BP27/35.5 -> 0 | BW75: =$C$75*'[1]Production plan'!BQ27/35.5 -> 3621.498592 | BX75: =$C$75*'[1]Production plan'!BR27/35.5 -> 0 | BY75: =$C$75*'[1]Production plan'!BS27/35.5 -> 4345.79831 | BZ75: =$C$75*'[1]Production plan'!BT27/35.5 -> 0
G77: Supply | U77: 3000 | Y77: 6000 | AC77: 3000 | AE77: 3000 | AI77: 12900 | AO77: 8000 | BJ77: 6000 | BP77: 6000 | BV77: 6000
G79: % | I79: =I80/AVERAGE(J75:P75) -> 18.2244997 | J79: 14.81917695 | K79: 10.00611093 | L79: 10.44818607 | M79: 9.418774305 | N79: 7.278143781 | O79: 8.91329243 | P79: =P80/AVERAGE(Q75:W75) -> 7.062781891 | Q79: =Q80/AVERAGE(R75:X75) -> 7.075286168 | R79: 4.888099861 | S79: 4.888099861 | T79: 5.6587992 | U79: 9.887634472 | V79: 7.596203009 | W79: 7.794937345 | X79: 5.024869709 | Y79: 11.67654058 | Z79: 8.764570463 | AA79: 8.764570463 | AB79: 9.017076322 | AC79: 14.0501349 | AD79: 14.0501349 | AE79: 24.9465606 | AF79: 39.94912995 | AL79: 39.70339411 | AM79: 39.70339411 | AN79: 39.70339411 | AO79: 55.16660598 | AP79: 27.58330299 | AQ79: 27.58330299 | AR79: 18.38886866 | AS79: 24.08330299 | AT79: 16.05553533 | AU79: 12.35041179 | AV79: 12.35041179 | AW79: 14.19538137 | AX79: 14.19538137 | AY79: 17.9824242 | AZ79: 17.9824242 | BA79: 30.18511775 | BD79: 17.38883832 | BE79: 8.694419158 | BF79: 8.694419158 | BG79: 6.137237053 | BH79: 6.137237053 | BI79: 4.74241045 | BJ79: 7.3781852 | BK79: 7.52000465 | BL79: 7.83200744 | BM79: 7.83200744 | BN79: 3.938188582 | BO79: 3.938188582 | BP79: 6.0279199 | BQ79: 6.0279199 | BR79: 3.900418759 | BS79: 3.900418759 | BT79: 3.343216079 | BU79: 1.578384344 | BV79: 4.275021476 | BW79: =BW80/AVERAGE(BX75:CD75) -> 3.378154529 | BX79: =BX80/AVERAGE(BY75:CE75) -> 2.252103019
G80: Inventory | I80: 6600 | J80: =I80+J77-J75 -> 6056.775211 | K80: =J80+K77-K75 -> 6056.775211 | L80: 5513.550423 | M80: 4970.325634 | N80: 4970.325634 | O80: 5280 | P80: =O80+P77-P75 -> 5280 | Q80: 4410.840338 | R80: 3034.670873 | S80: 3034.670873 | T80: 3074 | U80: =T80+U77-U75 -> 4987.550423 | V80: 4715.938028 | W80: 3629.488451 | X80: 3508 | Y80: =X80+Y77-Y75 -> 8149.938028 | Z80: 8149.938028 | AA80: 8149.938028 | AB80: =AA80+AB77-AB75 -> 7335.100845 | AC80: =AB80+AC77-AC75 -> 9248.651268 | AD80: 9248.651268 | AE80: 10621.10712 | AF80: =AE80+AF77-AF75 -> 9264.110259 | AG80: =AF80+AG77-AG75 -> 7640.82655 | AH80: 7640.82655 | AI80: 20540.82655 | AJ80: 20540.82655 | AK80: 20540.82655 | AL80: 20540.82655 | AM80: 20540.82655 | AN80: 20540.82655 | AO80: 28540.82655 | AP80: 28540.82655 | AQ80: 28540.82655 | AR80: 28540.82655 | AS80: 24919.32796 | AT80: 24919.32796 | AU80: 24919.32796 | AV80: 24919.32796 | AW80: 21297.82937 | AX80: 21297.82937 | AY80: 17676.33078 | AZ80: 17676.33078 | BA80: 14054.83218 | BB80: 10795.48345 | BC80: 10795.48345 | BD80: 10795.48345 | BE80: 10795.48345 | BF80: 10795.48345 | BG80: 10795.48345 | BH80: 10795.48345 | BI80: 10795.48345 | BJ80: 16795.48345 | BK80: 12449.68514 | BL80: 8103.886832 | BM80: 8103.886832 | BN80: 4482.38824 | BO80: 4482.38824 | BP80: 6860.889649 | BQ80: 6860.889649 | BR80: 6860.889649 | BS80: 6860.889649 | BT80: 6860.889649 | BU80: 2515.091339 | BV80: 8515.091339 | BW80: 4893.592748 | BX80: 4893.592748 | BY80: 547.7944376 | BZ80: 547.7944376
A82: CHP001033 | B82: K | C82: 0.36 | E82: 12 | F82: 12 | G82: Need | H82: =SUM(I84:BZ84) -> 71150 | I82: =$C$82*'[1]Production plan'!C27/35.5 -> 0 | J82: =$C$82*'[1]Production plan'!D27/35.5 -> 724.2997183 | K82: =$C$82*'[1]Production plan'!E27/35.5 -> 0 | L82: =$C$82*'[1]Production plan'!F27/35.5 -> 724.2997183 | M82: =$C$82*'[1]Production plan'!G27/35.5 -> 724.2997183 | N82: =$C$82*'[1]Production plan'!H27/35.5 -> 0 | O82: =$C$82*'[1]Production plan'!I27/35.5 -> 1207.166197 | P82: =$C$82*'[1]Production plan'!J27/35.5 -> 0 | Q82: =$C$82*'[1]Production plan'!K27/35.5 -> 1158.879549 | R82: =$C$82*'[1]Production plan'!L27/35.5 -> 1834.89262 | S82: =$C$82*'[1]Production plan'!M27/35.5 -> 0 | T82: =$C$82*'[1]Production plan'!N27/35.5 -> 724.2997183 | U82: =$C$82*'[1]Production plan'!O27/35.5 -> 1448.599437 | V82: =$C$82*'[1]Production plan'!P27/35.5 -> 362.1498592 | W82: =$C$82*'[1]Production plan'!Q27/35.5 -> 1448.599437 | X82: =$C$82*'[1]Production plan'!R27/35.5 -> 0 | Y82: =$C$82*'[1]Production plan'!S27/35.5 -> 1810.749296 | Z82: =$C$82*'[1]Production plan'!T27/35.5 -> 0 | AA82: =$C$82*'[1]Production plan'!U27/35.5 -> 0 | AB82: =$C$82*'[1]Production plan'!V27/35.5 -> 1086.449577 | AC82: =$C$82*'[1]Production plan'!W27/35.5 -> 1448.599437 | AD82: =$C$82*'[1]Production plan'!X27/35.5+$D$89*'[1]Production plan'!X30/17*($C$82/($C$82+$C$75+$C$68)) -> 0 | AE82: =$C$82*'[1]Production plan'!Y27/35.5+$D$89*'[1]Production plan'!Y30/17*($C$82/($C$82+$C$75+$C$68)) -> 2170.058863 | AF82: =$C$82*'[1]Production plan'!Z27/35.5+$D$89*'[1]Production plan'!Z30/17*($C$82/($C$82+$C$75+$C$68)) -> 1809.32915 | AG82: =$C$82*'[1]Production plan'!AA27/35.5+$D$89*'[1]Production plan'!AA30/17*($C$82/($C$82+$C$75+$C$68)) -> 2164.378278 | AH82: =$C$82*'[1]Production plan'!AB27/35.5 -> 0 | AI82: =$C$82*'[1]Production plan'!AC27/35.5 -> 0 | AJ82: =$C$82*'[1]Production plan'!AD27/35.5 -> 0 | AK82: =$C$82*'[1]Production plan'!AE27/35.5 -> 0 | AL82: =$C$82*'[1]Production plan'!AF27/35.5 -> 0 | AM82: =$C$82*'[1]Production plan'!AG27/35.5 -> 0 | AN82: =$C$82*'[1]Production plan'!AH27/35.5 -> 0 | AO82: =$C$82*'[1]Production plan'!AI27/35.5 -> 0 | AP82: =$C$82*'[1]Production plan'!AJ27/35.5 -> 0 | AQ82: =$C$82*'[1]Production plan'!AK27/35.5 -> 0 | AR82: =$C$82*'[1]Production plan'!AL27/35.5 -> 0 | AS82: =$C$82*'[1]Production plan'!AM27/35.5 -> 4828.664789 | AT82: =$C$82*'[1]Production plan'!AN27/35.5 -> 0 | AU82: =$C$82*'[1]Production plan'!AO27/35.5 -> 0 | AV82: =$C$82*'[1]Production plan'!AP27/35.5 -> 0 | AW82: =$C$82*'[1]Production plan'!AQ27/35.5 -> 4828.664789 | AX82: =$C$82*'[1]Production plan'!AR27/35.5 -> 0 | AY82: =$C$82*'[1]Production plan'!AS27/35.5 -> 4828.664789 | AZ82: =$C$82*'[1]Production plan'!AT27/35.5 -> 0 | BA82: =$C$82*'[1]Production plan'!AU27/35.5 -> 4828.664789 | BB82: =$C$82*'[1]Production plan'!AV27/35.5 -> 4345.79831 | BC82: =$C$82*'[1]Production plan'!AW27/35.5 -> 0 | BD82: =$C$82*'[1]Production plan'!AX27/35.5 -> 0 | BE82: =$C$82*'[1]Production plan'!AY27/35.5 -> 0 | BF82: =$C$82*'[1]Production plan'!AZ27/35.5 -> 0 | BG82: =$C$82*'[1]Production plan'!BA27/35.5 -> 0 | BH82: =$C$82*'[1]Production plan'!BB27/35.5 -> 0 | BI82: =$C$82*'[1]Production plan'!BC27/35.5 -> 0 | BJ82: =$C$82*'[1]Production plan'!BD27/35.5 -> 0 | BK82: =$C$82*'[1]Production plan'!BE27/35.5 -> 5794.397746 | BL82: =$C$82*'[1]Production plan'!BF27/35.5 -> 5794.397746 | BM82: =$C$82*'[1]Production plan'!BG27/35.5 -> 0 | BN82: =$C$82*'[1]Production plan'!BH27/35.5 -> 4828.664789 | BO82: =$C$82*'[1]Production plan'!BI27/35.5 -> 0 | BP82: =$C$82*'[1]Production plan'!BJ27/35.5 -> 4828.664789 | BQ82: =$C$82*'[1]Production plan'!BK27/35.5 -> 0 | BR82: =$C$82*'[1]Production plan'!BL27/35.5 -> 0 | BS82: =$C$82*'[1]Production plan'!BM27/35.5 -> 0 | BT82: =$C$82*'[1]Production plan'!BN27/35.5 -> 0 | BU82: =$C$82*'[1]Production plan'!BO27/35.5 -> 5794.397746 | BV82: =$C$82*'[1]Production plan'!BP27/35.5 -> 0 | BW82: =$C$82*'[1]Production plan'!BQ27/35.5 -> 4828.664789 | BX82: =$C$82*'[1]Production plan'!BR27/35.5 -> 0 | BY82: =$C$82*'[1]Production plan'!BS27/35.5 -> 5794.397746 | BZ82: =$C$82*'[1]Production plan'!BT27/35.5 -> 0
G84: Supply | V84: 6450 | Z84: 3600 | AD84: 8700 | AI84: 8700 | AN84: 9600 | AP84: 10100 | BJ84: 6000 | BL84: 6000 | BO84: 6000 | BV84: 6000
G86: % | I86: =I87/AVERAGE(J82:P82) -> 21.68715464 | J86: 17.88735222 | K86: 12.07778483 | L86: 12.82451789 | M86: 11.79510613 | N86: 9.11440019 | O86: 7.875096437 | P86: =P87/AVERAGE(Q82:W82) -> 6.240128319 | Q86: =Q87/AVERAGE(R82:X82) -> 6.088784581 | R86: 3.89748785 | S86: 3.89748785 | T86: 4.418060534 | U86: 2.60406519 | V86: 9.470312072 | W86: 10.29374943 | X86: 6.356646394 | Y86: 4.412316032 | Z86: 6.215566646 | AA86: 6.215566646 | AB86: 6.103316089 | AC86: 5.891892713 | AD86: 15.80437915 | AE86: 20.61248879 | AF86: 31.99195652 | AL86: 23.81446069 | AM86: 23.81446069 | AN86: 37.73135137 | AO86: 37.73135137 | AP86: 26.18654005 | AQ86: 26.18654005 | AR86: 17.45769337 | AS86: 22.68654005 | AT86: 15.12436004 | AU86: 11.63412311 | AV86: 11.63412311 | AW86: 13.23209659 | AX86: 13.23209659 | AY86: 16.51214743 | AZ86: 16.51214743 | BA86: 27.08120012 | BD86: 15.06090009 | BE86: 7.530450046 | BF86: 7.530450046 | BG86: 5.315611797 | BH86: 5.315611797 | BI86: 4.107518207 | BJ86: 6.084349269 | BK86: 5.740980245 | BL86: 9.33459673 | BM86: 9.33459673 | BN86: 5.304178846 | BO86: 9.257840971 | BP86: 6.076022789 | BQ86: 6.076022789 | BR86: 3.931544158 | BS86: 3.931544158 | BT86: 3.369894992 | BU86: 1.612743551 | BV86: 3.549430341 | BW86: 2.380466719 | BX86: 1.586977812
G87: Inventory | I87: 10472 | J87: =I87+J84-J82 -> 9747.700282 | K87: =J87+K84-K82 -> 9747.700282 | L87: 9023.400563 | M87: 8299.100845 | N87: 8299.100845 | O87: 6220 | P87: =O87+P84-P82 -> 6220 | Q87: 5061.120451 | R87: 3226.227831 | S87: 3226.227831 | T87: 3200 | U87: =T87+U84-U82 -> 1751.400563 | V87: 7839.250704 | W87: 6390.651268 | X87: 5917 | Y87: =X87+Y84-Y82 -> 4106.250704 | Z87: 7706.250704 | AA87: 7706.250704 | AB87: 6619.801127 | AC87: 5171.20169 | AD87: 13871.20169 | AE87: 11701.14283 | AF87: 9891.813678 | AG87: 7727.4354 | AH87: 7727.4354 | AI87: 16427.4354 | AJ87: 16427.4354 | AK87: 16427.4354 | AL87: 16427.4354 | AM87: 16427.4354 | AN87: 26027.4354 | AO87: 26027.4354 | AP87: 36127.4354 | AQ87: 36127.4354 | AR87: 36127.4354 | AS87: 31298.77061 | AT87: 31298.77061 | AU87: 31298.77061 | AV87: 31298.77061 | AW87: 26470.10582 | AX87: 26470.10582 | AY87: 21641.44103 | AZ87: 21641.44103 | BA87: 16812.77625 | BB87: 12466.97794 | BC87: 12466.97794 | BD87: 12466.97794 | BE87: 12466.97794 | BF87: 12466.97794 | BG87: 12466.97794 | BH87: 12466.97794 | BI87: 12466.97794 | BJ87: 18466.97794 | BK87: 12672.58019 | BL87: 12878.18244 | BM87: 12878.18244 | BN87: 8049.517654 | BO87: 14049.51765 | BP87: 9220.852865 | BQ87: 9220.852865 | BR87: 9220.852865 | BS87: 9220.852865 | BT87: 9220.852865 | BU87: 3426.455119 | BV87: 9426.455119 | BW87: 4597.79033 | BX87: 4597.79033 | BY87: -1196.607416 | BZ87: -1196.607416
A89: CHP001053 | B89: L | D89: 0.515155 | E89: 12 | F89: 12 | G89: Need | H89: =SUM(I91:BZ91) -> 126300 | I89: =$D$89*'[1]Production plan'!C30/17 -> 0 | J89: =$D$89*'[1]Production plan'!D30/17 -> 0 | K89: =$D$89*'[1]Production plan'!E30/17 -> 0 | L89: =$D$89*'[1]Production plan'!F30/17 -> 0 | M89: =$D$89*'[1]Production plan'!G30/17 -> 0 | N89: =$D$89*'[1]Production plan'!H30/17 -> 0 | O89: =$D$89*'[1]Production plan'!I30/17 -> 0 | P89: =$D$89*'[1]Production plan'!J30/17 -> 0 | Q89: =$D$89*'[1]Production plan'!K30/17 -> 0 | R89: =$D$89*'[1]Production plan'!L30/17 -> 0 | S89: =$D$89*'[1]Production plan'!M30/17 -> 0 | T89: =$D$89*'[1]Production plan'!N30/17-$D$89*'[1]Production plan'!N30/17 -> 0 | U89: =$D$89*'[1]Production plan'!O30/17 -> 0 | V89: =$D$89*'[1]Production plan'!P30/17-$D$89*'[1]Production plan'!P30/17 -> 0 | W89: =$D$89*'[1]Production plan'!Q30/17-$D$89*'[1]Production plan'!Q30/17 -> 0 | X89: =$D$89*'[1]Production plan'!R30/17-$D$89*'[1]Production plan'!R30/17 -> 0 | Y89: =$D$89*'[1]Production plan'!S30/17-$D$89*'[1]Production plan'!S30/17 -> 0 | Z89: =$D$89*'[1]Production plan'!T30/17 -> 0 | AA89: =$D$89*'[1]Production plan'!U30/17 -> 0 | AB89: =$D$89*'[1]Production plan'!V30/17-$D$89*'[1]Production plan'!V30/17 -> 0 | AC89: =$D$89*'[1]Production plan'!W30/17 -> 0 | AD89: =$D$89*'[1]Production plan'!X30/17 -> 0 | AE89: =$D$89*'[1]Production plan'!Y30/17 -> 1803.648565 | AF89: =$D$89*'[1]Production plan'!Z30/17-$D$89*'[1]Production plan'!Z30/17 -> 0 | AG89: =$D$89*'[1]Production plan'!AA30/17-$D$89*'[1]Production plan'!AA30/17 -> 0 | AH89: =$D$89*'[1]Production plan'!AB30/17 -> 0 | AI89: =$D$89*'[1]Production plan'!AC30/17 -> 1803.648565 | AJ89: =$D$89*'[1]Production plan'!AD30/17 -> 0 | AK89: =$D$89*'[1]Production plan'!AE30/17 -> 3607.297129 | AL89: =$D$89*'[1]Production plan'!AF30/17 -> 0 | AM89: =$D$89*'[1]Production plan'!AG30/17 -> 4509.121412 | AN89: =$D$89*'[1]Production plan'!AH30/17 -> 6312.769976 | AO89: =$D$89*'[1]Production plan'!AI30/17 -> 9018.242824 | AP89: =$D$89*'[1]Production plan'!AJ30/17 -> 0 | AQ89: =$D$89*'[1]Production plan'!AK30/17 -> 9018.242824 | AR89: =$D$89*'[1]Production plan'!AL30/17 -> 0 | AS89: =$D$89*'[1]Production plan'!AM30/17 -> 0 | AT89: =$D$89*'[1]Production plan'!AN30/17 -> 0 | AU89: =$D$89*'[1]Production plan'!AO30/17 -> 0 | AV89: =$D$89*'[1]Production plan'!AP30/17 -> 0 | AW89: =$D$89*'[1]Production plan'!AQ30/17 -> 0 | AX89: =$D$89*'[1]Production plan'!AR30/17 -> 0 | AY89: =$D$89*'[1]Production plan'!AS30/17 -> 0 | AZ89: =$D$89*'[1]Production plan'!AT30/17 -> 0 | BA89: =$D$89*'[1]Production plan'!AU30/17 -> 0 | BB89: =$D$89*'[1]Production plan'!AV30/17 -> 0 | BC89: =$D$89*'[1]Production plan'!AW30/17 -> 0 | BD89: =$D$89*'[1]Production plan'!AX30/17 -> 12024.32376 | BE89: =$D$89*'[1]Production plan'!AY30/17 -> 12024.32376 | BF89: =$D$89*'[1]Production plan'!AZ30/17 -> 0 | BG89: =$D$89*'[1]Production plan'!BA30/17 -> 12024.32376 | BH89: =$D$89*'[1]Production plan'!BB30/17 -> 0 | BI89: =$D$89*'[1]Production plan'!BC30/17 -> 14429.18852 | BJ89: =$D$89*'[1]Production plan'!BD30/17 -> 0 | BK89: =$D$89*'[1]Production plan'!BE30/17 -> 0 | BL89: =$D$89*'[1]Production plan'!BF30/17 -> 0 | BM89: =$D$89*'[1]Production plan'!BG30/17 -> 0 | BN89: =$D$89*'[1]Production plan'!BH30/17 -> 0 | BO89: =$D$89*'[1]Production plan'!BI30/17 -> 0 | BP89: =$D$89*'[1]Production plan'!BJ30/17 -> 0 | BQ89: =$D$89*'[1]Production plan'!BK30/17 -> 6012.161882 | BR89: =$D$89*'[1]Production plan'!BL30/17 -> 6012.161882 | BS89: =$D$89*'[1]Production plan'!BM30/17 -> 7214.594259 | BT89: =$D$89*'[1]Production plan'!BN30/17 -> 9619.459012 | BU89: =$D$89*'[1]Production plan'!BO30/17 -> 0 | BV89: =$D$89*'[1]Production plan'!BP30/17 -> 0 | BW89: =$D$89*'[1]Production plan'!BQ30/17 -> 0 | BX89: =$D$89*'[1]Production plan'!BR30/17 -> 0 | BY89: =$D$89*'[1]Production plan'!BS30/17 -> 0 | BZ89: =$D$89*'[1]Production plan'!BT30/17 -> 0
G91: Supply | Y91: 5400 | AD91: 900 | AH91: 14000 | AN91: 16000 | AQ91: 20000 | BC91: 10000 | BE91: 10000 | BG91: 10000 | BP91: 10000 | BR91: 10000 | BS91: 10000 | BT91: 10000
G93: % | I93: =I94/AVERAGE(J89:P89) ->  | P93: =P94/AVERAGE(Q89:W89) ->  | Q93: =Q94/AVERAGE(R89:X89) ->  | X93: 0 | Y93: 20.95751952 | Z93: 20.95751952 | AA93: 20.95751952 | AB93: 10.47875976 | AC93: 10.47875976 | AD93: 6.11260986 | AE93: 5.816813146 | AF93: 3.172807171 | AG93: 1.938937715 | AH93: 5.127482093 | AI93: 4.983442254 | AJ93: 3.599152739 | AK93: 3.174046831 | AL93: 3.174046831 | AM93: 2.465536985 | AN93: 7.088110343 | AO93: 7.176220686 | AP93: 7.176220686 | AW93: 11.77523191 | AX93: 5.887615957 | AY93: 5.887615957 | AZ93: 3.925077305 | BA93: 3.925077305 | BB93: 2.803626646 | BC93: 4.18970598 | BD93: 3.311489098 | BE93: 4.281044688 | BF93: 4.281044688 | BG93: 6.866526261 | BH93: 6.866526261 | BJ93: -0.3203369734 | BK93: -0.1601684867 | BL93: -0.1001053042 | BM93: -0.06673686947 | BN93: -0.06673686947 | BO93: -0.06673686947 | BP93: 2.358901964 | BQ93: 1.137560375 | BR93: 3.202069938 | BS93: 7.63053889
G94: Inventory | I94: =I91-I89 -> 0 | J94: =I94+J91-J89 -> 0 | K94: =J94+K91-K89 -> 0 | L94: 0 | M94: 0 | N94: 0 | O94: 0 | P94: 0 | Q94: 0 | R94: 0 | S94: 0 | T94: 0 | U94: 0 | V94: 0 | W94: 0 | X94: 0 | Y94: 5400 | Z94: 5400 | AA94: 5400 | AB94: 5400 | AC94: 5400 | AD94: 6300 | AE94: 4496.351435 | AF94: 4496.351435 | AG94: 4496.351435 | AH94: 18496.35144 | AI94: 16692.70287 | AJ94: 16692.70287 | AK94: 13085.40574 | AL94: 13085.40574 | AM94: 8576.284329 | AN94: 18263.51435 | AO94: 9245.271529 | AP94: 9245.271529 | AQ94: 20227.02871 | AR94: 20227.02871 | AS94: 20227.02871 | AT94: 20227.02871 | AU94: 20227.02871 | AV94: 20227.02871 | AW94: 20227.02871 | AX94: 20227.02871 | AY94: 20227.02871 | AZ94: 20227.02871 | BA94: 20227.02871 | BB94: 20227.02871 | BC94: 30227.02871 | BD94: 18202.70494 | BE94: 16178.38118 | BF94: 16178.38118 | BG94: 14154.05741 | BH94: 14154.05741 | BI94: -275.1311059 | BJ94: -275.1311059 | BK94: -275.1311059 | BL94: -275.1311059 | BM94: -275.1311059 | BN94: -275.1311059 | BO94: -275.1311059 | BP94: 9724.868894 | BQ94: 3712.707012 | BR94: 7700.545129 | BS94: 10485.95087 | BT94: 10866.49186 | BU94: 10866.49186 | BV94: 10866.49186 | BW94: =BV94+BW91-BW89 -> 10866.49186 | BX94: 10866.49186 | BY94: 10866.49186 | BZ94: 10866.49186
A97: CHP001034 | B97: M | C97: =0.016237*2 -> 0.032474 | E97: 12 | F97: 12 | G97: Need SR | H97: =SUM(I99:BZ100) -> 10400 | I97: =$C$97*'[1]Production plan'!C27/35.5+$D$99*'[1]Production plan'!C30/17 -> 0 | J97: =$C$97*'[1]Production plan'!D27/35.5 -> 65.33585848 | K97: =$C$97*'[1]Production plan'!E27/35.5 -> 0 | L97: =$C$97*'[1]Production plan'!F27/35.5 -> 65.33585848 | M97: =$C$97*'[1]Production plan'!G27/35.5 -> 65.33585848 | N97: =$C$97*'[1]Production plan'!H27/35.5 -> 0 | O97: =$C$97*'[1]Production plan'!I27/35.5 -> 108.8930975 | P97: =$C$97*'[1]Production plan'!J27/35.5 -> 0 | Q97: =$C$97*'[1]Production plan'!K27/35.5 -> 104.5373736 | R97: =$C$97*'[1]Production plan'!L27/35.5 -> 165.5175081 | S97: =$C$97*'[1]Production plan'!M27/35.5 -> 0 | T97: =$C$97*'[1]Production plan'!N27/35.5 -> 65.33585848 | U97: =$C$97*'[1]Production plan'!O27/35.5 -> 130.671717 | V97: =$C$97*'[1]Production plan'!P27/35.5 -> 32.66792924 | W97: =$C$97*'[1]Production plan'!Q27/35.5 -> 130.671717 | X97: =$C$97*'[1]Production plan'!R27/35.5 -> 0 | Y97: =$C$97*'[1]Production plan'!S27/35.5 -> 163.3396462 | Z97: =$C$97*'[1]Production plan'!T27/35.5 -> 0 | AA97: =$C$97*'[1]Production plan'!U27/35.5 -> 0 | AB97: =$C$97*'[1]Production plan'!V27/35.5 -> 98.00378772 | AC97: =$C$97*'[1]Production plan'!W27/35.5 -> 130.671717 | AD97: =$C$97*'[1]Production plan'!X27/35.5 -> 0 | AE97: =$C$97*'[1]Production plan'!Y27/35.5 -> 130.671717 | AF97: =$C$97*'[1]Production plan'!Z27/35.5 -> 130.671717 | AG97: =$C$97*'[1]Production plan'!AA27/35.5 -> 0 | AH97: =$C$97*'[1]Production plan'!AB27/35.5 -> 0 | AI97: =$C$97*'[1]Production plan'!AC27/35.5 -> 0 | AJ97: =$C$97*'[1]Production plan'!AD27/35.5 -> 0 | AK97: =$C$97*'[1]Production plan'!AE27/35.5 -> 0 | AL97: =$C$97*'[1]Production plan'!AF27/35.5 -> 0 | AM97: =$C$97*'[1]Production plan'!AG27/35.5 -> 0 | AN97: =$C$97*'[1]Production plan'!AH27/35.5 -> 0 | AO97: =$C$97*'[1]Production plan'!AI27/35.5 -> 0 | AP97: =$C$97*'[1]Production plan'!AJ27/35.5 -> 0 | AQ97: =$C$97*'[1]Production plan'!AK27/35.5 -> 0 | AR97: =$C$97*'[1]Production plan'!AL27/35.5 -> 0 | AS97: =$C$97*'[1]Production plan'!AM27/35.5 -> 435.5723899 | AT97: =$C$97*'[1]Production plan'!AN27/35.5 -> 0 | AU97: =$C$97*'[1]Production plan'!AO27/35.5 -> 0 | AV97: =$C$97*'[1]Production plan'!AP27/35.5 -> 0 | AW97: =$C$97*'[1]Production plan'!AQ27/35.5 -> 435.5723899 | AX97: =$C$97*'[1]Production plan'!AR27/35.5 -> 0 | AY97: =$C$97*'[1]Production plan'!AS27/35.5 -> 435.5723899 | AZ97: =$C$97*'[1]Production plan'!AT27/35.5 -> 0 | BA97: =$C$97*'[1]Production plan'!AU27/35.5 -> 435.5723899 | BB97: =$C$97*'[1]Production plan'!AV27/35.5 -> 392.0151509 | BC97: =$C$97*'[1]Production plan'!AW27/35.5 -> 0 | BD97: =$C$97*'[1]Production plan'!AX27/35.5 -> 0 | BE97: =$C$97*'[1]Production plan'!AY27/35.5 -> 0 | BF97: =$C$97*'[1]Production plan'!AZ27/35.5 -> 0 | BG97: =$C$97*'[1]Production plan'!BA27/35.5 -> 0 | BH97: =$C$97*'[1]Production plan'!BB27/35.5 -> 0 | BI97: =$C$97*'[1]Production plan'!BC27/35.5 -> 0 | BJ97: =$C$97*'[1]Production plan'!BD27/35.5 -> 0 | BK97: =$C$97*'[1]Production plan'!BE27/35.5 -> 522.6868678 | BL97: =$C$97*'[1]Production plan'!BF27/35.5 -> 522.6868678 | BM97: =$C$97*'[1]Production plan'!BG27/35.5 -> 0 | BN97: =$C$97*'[1]Production plan'!BH27/35.5 -> 435.5723899 | BO97: =$C$97*'[1]Production plan'!BI27/35.5 -> 0 | BP97: =$C$97*'[1]Production plan'!BJ27/35.5 -> 435.5723899 | BQ97: =$C$97*'[1]Production plan'!BK27/35.5 -> 0 | BR97: =$C$97*'[1]Production plan'!BL27/35.5 -> 0 | BS97: =$C$97*'[1]Production plan'!BM27/35.5 -> 0 | BT97: =$C$97*'[1]Production plan'!BN27/35.5 -> 0 | BU97: =$C$97*'[1]Production plan'!BO27/35.5 -> 522.6868678 | BV97: =$C$97*'[1]Production plan'!BP27/35.5 -> 0 | BW97: =$C$97*'[1]Production plan'!BQ27/35.5 -> 435.5723899 | BX97: =$C$97*'[1]Production plan'!BR27/35.5 -> 0 | BY97: =$C$97*'[1]Production plan'!BS27/35.5 -> 522.6868678 | BZ97: =$C$97*'[1]Production plan'!BT27/35.5 -> 0
G98: Need HR | J98: =$D$99*'[1]Production plan'!D30/17 -> 0 | K98: =$D$99*'[1]Production plan'!E30/17 -> 0 | L98: =$D$99*'[1]Production plan'!F30/17 -> 0 | M98: =$D$99*'[1]Production plan'!G30/17 -> 0 | N98: =$D$99*'[1]Production plan'!H30/17 -> 0 | O98: =$D$99*'[1]Production plan'!I30/17 -> 0 | P98: =$D$99*'[1]Production plan'!J30/17 -> 0 | Q98: =$D$99*'[1]Production plan'!K30/17 -> 0 | R98: =$D$99*'[1]Production plan'!L30/17 -> 0 | S98: =$D$99*'[1]Production plan'!M30/17 -> 0 | T98: =$D$99*'[1]Production plan'!N30/17 -> 0 | U98: =$D$99*'[1]Production plan'!O30/17 -> 0 | V98: =$D$99*'[1]Production plan'!P30/17 -> 0 | W98: =$D$99*'[1]Production plan'!Q30/17 -> 0 | X98: =$D$99*'[1]Production plan'!R30/17 -> 0 | Y98: =$D$99*'[1]Production plan'!S30/17 -> 0 | Z98: =$D$99*'[1]Production plan'!T30/17 -> 0 | AA98: =$D$99*'[1]Production plan'!U30/17 -> 0 | AB98: =$D$99*'[1]Production plan'!V30/17 -> 0 | AC98: =$D$99*'[1]Production plan'!W30/17 -> 0 | AD98: =$D$99*'[1]Production plan'!X30/17 -> 0 | AE98: =$D$99*'[1]Production plan'!Y30/17 -> 65.07986824 | AF98: =$D$99*'[1]Production plan'!Z30/17 -> 32.53993412 | AG98: =$D$99*'[1]Production plan'!AA30/17 -> 195.2396047 | AH98: =$D$99*'[1]Production plan'!AB30/17 -> 0 | AI98: =$D$99*'[1]Production plan'!AC30/17 -> 65.07986824 | AJ98: =$D$99*'[1]Production plan'!AD30/17 -> 0 | AK98: =$D$99*'[1]Production plan'!AE30/17 -> 130.1597365 | AL98: =$D$99*'[1]Production plan'!AF30/17 -> 0 | AM98: =$D$99*'[1]Production plan'!AG30/17 -> 162.6996706 | AN98: =$D$99*'[1]Production plan'!AH30/17 -> 227.7795388 | AO98: =$D$99*'[1]Production plan'!AI30/17 -> 325.3993412 | AP98: =$D$99*'[1]Production plan'!AJ30/17 -> 0 | AQ98: =$D$99*'[1]Production plan'!AK30/17 -> 325.3993412 | AR98: =$D$99*'[1]Production plan'!AL30/17 -> 0 | AS98: =$D$99*'[1]Production plan'!AM30/17 -> 0 | AT98: =$D$99*'[1]Production plan'!AN30/17 -> 0 | AU98: =$D$99*'[1]Production plan'!AO30/17 -> 0 | AV98: =$D$99*'[1]Production plan'!AP30/17 -> 0 | AW98: =$D$99*'[1]Production plan'!AQ30/17 -> 0 | AX98: =$D$99*'[1]Production plan'!AR30/17 -> 0 | AY98: =$D$99*'[1]Production plan'!AS30/17 -> 0 | AZ98: =$D$99*'[1]Production plan'!AT30/17 -> 0 | BA98: =$D$99*'[1]Production plan'!AU30/17 -> 0 | BB98: =$D$99*'[1]Production plan'!AV30/17 -> 0 | BC98: =$D$99*'[1]Production plan'!AW30/17 -> 0 | BD98: =$D$99*'[1]Production plan'!AX30/17 -> 433.8657882 | BE98: =$D$99*'[1]Production plan'!AY30/17 -> 433.8657882 | BF98: =$D$99*'[1]Production plan'!AZ30/17 -> 0 | BG98: =$D$99*'[1]Production plan'!BA30/17 -> 433.8657882 | BH98: =$D$99*'[1]Production plan'!BB30/17 -> 0 | BI98: =$D$99*'[1]Production plan'!BC30/17 -> 520.6389459 | BJ98: =$D$99*'[1]Production plan'!BD30/17 -> 0 | BK98: =$D$99*'[1]Production plan'!BE30/17 -> 0 | BL98: =$D$99*'[1]Production plan'!BF30/17 -> 0 | BM98: =$D$99*'[1]Production plan'!BG30/17 -> 0 | BN98: =$D$99*'[1]Production plan'!BH30/17 -> 0 | BO98: =$D$99*'[1]Production plan'!BI30/17 -> 0 | BP98: =$D$99*'[1]Production plan'!BJ30/17 -> 0 | BQ98: =$D$99*'[1]Production plan'!BK30/17 -> 216.9328941 | BR98: =$D$99*'[1]Production plan'!BL30/17 -> 216.9328941 | BS98: =$D$99*'[1]Production plan'!BM30/17 -> 260.3194729 | BT98: =$D$99*'[1]Production plan'!BN30/17 -> 347.0926306 | BU98: =$D$99*'[1]Production plan'!BO30/17 -> 0 | BV98: =$D$99*'[1]Production plan'!BP30/17 -> 0 | BW98: =$D$99*'[1]Production plan'!BQ30/17 -> 0 | BX98: =$D$99*'[1]Production plan'!BR30/17 -> 0 | BY98: =$D$99*'[1]Production plan'!BS30/17 -> 0 | BZ98: =$D$99*'[1]Production plan'!BT30/17 -> 0
D99: =0.009294*2 -> 0.018588 | G99: Supply SR | Q99: 800 | AQ99: 800 | AV99: 800 | AY99: 800 | BI99: 800 | BK99: 800 | BU99: 800
G100: Supply HR | X100: 800 | AG100: 800 | BC100: 800 | BE100: 800 | BN100: 800 | BR100: 800
G101: % | I101: =I102/AVERAGE(J97:P97) -> 18.36663706 | J101: =J102/AVERAGE(K97:Q98) -> 29.8902429 | K101: 20.18230076 | L101: 21.09146264 | M101: 19.03263911 | N101: 14.70703931 | O101: 16.84276761 | P101: 13.34599925 | Q101: 34.55457329 | R101: 30.26521734 | S101: 30.26521734 | T101: 30.61106177 | U101: 28.65806653 | V101: 22.40967905 | W101: 25.2129054 | X101: 35.72845946 | Y101: 31.84481153 | Z101: 23.90313266 | AA101: 23.90313266 | AB101: 23.1229943 | AC101: 25.04799126 | AD101: 20.69777069 | AE101: 23.06569714 | AF101: 18.9564406 | AG101: 32.35844173 | AH101: 20.80185539 | AI101: 21.32507504 | AJ101: 15.40144308 | AK101: 15.57662347 | AL101: 10.98255785 | AM101: 10.60898054 | AN101: 9.897985128 | AO101: 8.143921367 | AP101: 5.179327558 | AQ101: 14.74118133 | AR101: 9.827454221 | AS101: 7.741181331 | AT101: 5.160787554 | AU101: 3.96983658 | AV101: 10.56298835 | AW101: 6.98025735 | AX101: 5.559023633 | AY101: 9.996739031 | AZ101: 7.959695161 | BA101: 6.406217025 | BB101: 2.942229385 | BC101: 9.088523329 | BD101: 5.487703424 | BE101: 7.807071972 | BF101: 7.807071972 | BG101: 4.765760022 | BH101: 4.765760022 | BI101: 7.018001007 | BJ101: 6.304398971 | BK101: 9.483250554 | BL101: 6.397945679 | BM101: 5.236758966 | BN101: 7.560191176 | BO101: 7.560191176 | BP101: 4.510478667 | BQ101: 3.355657387 | BR101: 6.773142856 | BS101: 5.744011698 | BT101: 3.264889195 | BU101: 7.098707478 | BV101: =BV102/AVERAGE(BW97:CC98) -> 5.678965982 | BW101: 2.808578225 | BX101: 1.872385484
G102: Inventory SR | I102: 800 | J102: =I102+J99-J97+J100-J98 -> 734.6641415 | K102: 734.6641415 | L102: 669.328283 | M102: 603.9924246 | N102: 603.9924246 | O102: 600 | P102: 600 | Q102: 1295.462626 | R102: 1129.945118 | S102: 1129.945118 | T102: 1000 | U102: 869.328283 | V102: 836.6603538 | W102: 705.9886368 | X102: 1500 | Y102: 1336.660354 | Z102: 1336.660354 | AA102: 1336.660354 | AB102: 1238.656566 | AC102: 1107.984849 | AD102: 1107.984849 | AE102: 912.2332639 | AF102: 749.0216129 | AG102: 1353.782008 | AH102: 1353.782008 | AI102: 1288.70214 | AJ102: 1288.70214 | AK102: 1158.542403 | AL102: 1158.542403 | AM102: 995.8427329 | AN102: 768.063194 | AO102: 442.6638529 | AP102: 442.6638529 | AQ102: 917.2645117 | AR102: 917.2645117 | AS102: 481.6921218 | AT102: 481.6921218 | AU102: 481.6921218 | AV102: 1281.692122 | AW102: 846.119732 | AX102: 846.119732 | AY102: 1210.547342 | AZ102: 1210.547342 | BA102: 774.9749522 | BB102: 382.9598014 | BC102: 1182.959801 | BD102: 749.0940131 | BE102: 1115.228225 | BF102: 1115.228225 | BG102: 681.3624367 | BH102: 681.3624367 | BI102: 960.7234908 | BJ102: 960.7234908 | BK102: 1238.036623 | BL102: 715.3497551 | BM102: 715.3497551 | BN102: 1079.777365 | BO102: 1079.777365 | BP102: 644.2049754 | BQ102: 427.2720813 | BR102: 1010.339187 | BS102: 750.0197142 | BT102: 402.9270836 | BU102: 680.2402158 | BV102: =BU102+BV99-BV97+BV100-BV98 -> 680.2402158 | BW102: 244.6678259 | BX102: 244.6678259 | BY102: -278.0190419 | BZ102: -278.0190419
A105: CHP000006 | B105: N | C105: =0.011598 -> 0.011598 | E105: 12 | F105: 24 | G105: Need SR | H105: =SUM(I107:BZ108) -> 4000 | I105: =$C$105*'[1]Production plan'!C27/35.5+$D$107*'[1]Production plan'!C30/17 -> 0 | J105: =$C$105*'[1]Production plan'!D27/35.5 -> 23.33452259 | K105: =$C$105*'[1]Production plan'!E27/35.5 -> 0 | L105: =$C$105*'[1]Production plan'!F27/35.5 -> 23.33452259 | M105: =$C$105*'[1]Production plan'!G27/35.5 -> 23.33452259 | N105: =$C$105*'[1]Production plan'!H27/35.5 -> 0 | O105: =$C$105*'[1]Production plan'!I27/35.5 -> 38.89087099 | P105: =$C$105*'[1]Production plan'!J27/35.5 -> 0 | Q105: =$C$105*'[1]Production plan'!K27/35.5 -> 37.33523615 | R105: =$C$105*'[1]Production plan'!L27/35.5 -> 59.1141239 | S105: =$C$105*'[1]Production plan'!M27/35.5 -> 0 | T105: =$C$105*'[1]Production plan'!N27/35.5 -> 23.33452259 | U105: =$C$105*'[1]Production plan'!O27/35.5 -> 46.66904518 | V105: =$C$105*'[1]Production plan'!P27/35.5 -> 11.6672613 | W105: =$C$105*'[1]Production plan'!Q27/35.5 -> 46.66904518 | X105: =$C$105*'[1]Production plan'!R27/35.5 -> 0 | Y105: =$C$105*'[1]Production plan'!S27/35.5 -> 58.33630648 | Z105: =$C$105*'[1]Production plan'!T27/35.5 -> 0 | AA105: =$C$105*'[1]Production plan'!U27/35.5 -> 0 | AB105: =$C$105*'[1]Production plan'!V27/35.5 -> 35.00178389 | AC105: =$C$105*'[1]Production plan'!W27/35.5 -> 46.66904518 | AD105: =$C$105*'[1]Production plan'!X27/35.5 -> 0 | AE105: =$C$105*'[1]Production plan'!Y27/35.5 -> 46.66904518 | AF105: =$C$105*'[1]Production plan'!Z27/35.5 -> 46.66904518 | AG105: =$C$105*'[1]Production plan'!AA27/35.5 -> 0 | AH105: =$C$105*'[1]Production plan'!AB27/35.5 -> 0 | AI105: =$C$105*'[1]Production plan'!AC27/35.5 -> 0 | AJ105: =$C$105*'[1]Production plan'!AD27/35.5 -> 0 | AK105: =$C$105*'[1]Production plan'!AE27/35.5 -> 0 | AL105: =$C$105*'[1]Production plan'!AF27/35.5 -> 0 | AM105: =$C$105*'[1]Production plan'!AG27/35.5 -> 0 | AN105: =$C$105*'[1]Production plan'!AH27/35.5 -> 0 | AO105: =$C$105*'[1]Production plan'!AI27/35.5 -> 0 | AP105: =$C$105*'[1]Production plan'!AJ27/35.5 -> 0 | AQ105: =$C$105*'[1]Production plan'!AK27/35.5 -> 0 | AR105: =$C$105*'[1]Production plan'!AL27/35.5 -> 0 | AS105: =$C$105*'[1]Production plan'!AM27/35.5 -> 155.5634839 | AT105: =$C$105*'[1]Production plan'!AN27/35.5 -> 0 | AU105: =$C$105*'[1]Production plan'!AO27/35.5 -> 0 | AV105: =$C$105*'[1]Production plan'!AP27/35.5 -> 0 | AW105: =$C$105*'[1]Production plan'!AQ27/35.5 -> 155.5634839 | AX105: =$C$105*'[1]Production plan'!AR27/35.5 -> 0 | AY105: =$C$105*'[1]Production plan'!AS27/35.5 -> 155.5634839 | AZ105: =$C$105*'[1]Production plan'!AT27/35.5 -> 0 | BA105: =$C$105*'[1]Production plan'!AU27/35.5 -> 155.5634839 | BB105: =$C$105*'[1]Production plan'!AV27/35.5 -> 140.0071355 | BC105: =$C$105*'[1]Production plan'!AW27/35.5 -> 0 | BD105: =$C$105*'[1]Production plan'!AX27/35.5 -> 0 | BE105: =$C$105*'[1]Production plan'!AY27/35.5 -> 0 | BF105: =$C$105*'[1]Production plan'!AZ27/35.5 -> 0 | BG105: =$C$105*'[1]Production plan'!BA27/35.5 -> 0 | BH105: =$C$105*'[1]Production plan'!BB27/35.5 -> 0 | BI105: =$C$105*'[1]Production plan'!BC27/35.5 -> 0 | BJ105: =$C$105*'[1]Production plan'!BD27/35.5 -> 0 | BK105: =$C$105*'[1]Production plan'!BE27/35.5 -> 186.6761807 | BL105: =$C$105*'[1]Production plan'!BF27/35.5 -> 186.6761807 | BM105: =$C$105*'[1]Production plan'!BG27/35.5 -> 0 | BN105: =$C$105*'[1]Production plan'!BH27/35.5 -> 155.5634839 | BO105: =$C$105*'[1]Production plan'!BI27/35.5 -> 0 | BP105: =$C$105*'[1]Production plan'!BJ27/35.5 -> 155.5634839 | BQ105: =$C$105*'[1]Production plan'!BK27/35.5 -> 0 | BR105: =$C$105*'[1]Production plan'!BL27/35.5 -> 0 | BS105: =$C$105*'[1]Production plan'!BM27/35.5 -> 0 | BT105: =$C$105*'[1]Production plan'!BN27/35.5 -> 0 | BU105: =$C$105*'[1]Production plan'!BO27/35.5 -> 186.6761807 | BV105: =$C$105*'[1]Production plan'!BP27/35.5 -> 0 | BW105: =$C$105*'[1]Production plan'!BQ27/35.5 -> 155.5634839 | BX105: =$C$105*'[1]Production plan'!BR27/35.5 -> 0 | BY105: =$C$105*'[1]Production plan'!BS27/35.5 -> 186.6761807 | BZ105: =$C$105*'[1]Production plan'!BT27/35.5 -> 0
G106: Need HR | J106: =+$D$107*'[1]Production plan'!D30/17 -> 0 | K106: =+$D$107*'[1]Production plan'!E30/17 -> 0 | L106: =+$D$107*'[1]Production plan'!F30/17 -> 0 | M106: =+$D$107*'[1]Production plan'!G30/17 -> 0 | N106: =+$D$107*'[1]Production plan'!H30/17 -> 0 | O106: =+$D$107*'[1]Production plan'!I30/17 -> 0 | P106: =+$D$107*'[1]Production plan'!J30/17 -> 0 | Q106: =+$D$107*'[1]Production plan'!K30/17 -> 0 | R106: =+$D$107*'[1]Production plan'!L30/17 -> 0 | S106: =+$D$107*'[1]Production plan'!M30/17 -> 0 | T106: =+$D$107*'[1]Production plan'!N30/17 -> 0 | U106: =+$D$107*'[1]Production plan'!O30/17 -> 0 | V106: =+$D$107*'[1]Production plan'!P30/17 -> 0 | W106: =+$D$107*'[1]Production plan'!Q30/17 -> 0 | X106: =+$D$107*'[1]Production plan'!R30/17 -> 0 | Y106: =+$D$107*'[1]Production plan'!S30/17 -> 0 | Z106: =+$D$107*'[1]Production plan'!T30/17 -> 0 | AA106: =+$D$107*'[1]Production plan'!U30/17 -> 0 | AB106: =+$D$107*'[1]Production plan'!V30/17 -> 0 | AC106: =+$D$107*'[1]Production plan'!W30/17 -> 0 | AD106: =+$D$107*'[1]Production plan'!X30/17 -> 0 | AE106: =+$D$107*'[1]Production plan'!Y30/17 -> 23.24431059 | AF106: =+$D$107*'[1]Production plan'!Z30/17 -> 11.62215529 | AG106: =+$D$107*'[1]Production plan'!AA30/17 -> 69.73293176 | AH106: =+$D$107*'[1]Production plan'!AB30/17 -> 0 | AI106: =+$D$107*'[1]Production plan'!AC30/17 -> 23.24431059 | AJ106: =+$D$107*'[1]Production plan'!AD30/17 -> 0 | AK106: =+$D$107*'[1]Production plan'!AE30/17 -> 46.48862118 | AL106: =+$D$107*'[1]Production plan'!AF30/17 -> 0 | AM106: =+$D$107*'[1]Production plan'!AG30/17 -> 58.11077647 | AN106: =+$D$107*'[1]Production plan'!AH30/17 -> 81.35508706 | AO106: =+$D$107*'[1]Production plan'!AI30/17 -> 116.2215529 | AP106: =+$D$107*'[1]Production plan'!AJ30/17 -> 0 | AQ106: =+$D$107*'[1]Production plan'!AK30/17 -> 116.2215529 | AR106: =+$D$107*'[1]Production plan'!AL30/17 -> 0 | AS106: =+$D$107*'[1]Production plan'!AM30/17 -> 0 | AT106: =+$D$107*'[1]Production plan'!AN30/17 -> 0 | AU106: =+$D$107*'[1]Production plan'!AO30/17 -> 0 | AV106: =+$D$107*'[1]Production plan'!AP30/17 -> 0 | AW106: =+$D$107*'[1]Production plan'!AQ30/17 -> 0 | AX106: =+$D$107*'[1]Production plan'!AR30/17 -> 0 | AY106: =+$D$107*'[1]Production plan'!AS30/17 -> 0 | AZ106: =+$D$107*'[1]Production plan'!AT30/17 -> 0 | BA106: =+$D$107*'[1]Production plan'!AU30/17 -> 0 | BB106: =+$D$107*'[1]Production plan'!AV30/17 -> 0 | BC106: =+$D$107*'[1]Production plan'!AW30/17 -> 0 | BD106: =+$D$107*'[1]Production plan'!AX30/17 -> 154.9620706 | BE106: =+$D$107*'[1]Production plan'!AY30/17 -> 154.9620706 | BF106: =+$D$107*'[1]Production plan'!AZ30/17 -> 0 | BG106: =+$D$107*'[1]Production plan'!BA30/17 -> 154.9620706 | BH106: =+$D$107*'[1]Production plan'!BB30/17 -> 0 | BI106: =+$D$107*'[1]Production plan'!BC30/17 -> 185.9544847 | BJ106: =+$D$107*'[1]Production plan'!BD30/17 -> 0 | BK106: =+$D$107*'[1]Production plan'!BE30/17 -> 0 | BL106: =+$D$107*'[1]Production plan'!BF30/17 -> 0 | BM106: =+$D$107*'[1]Production plan'!BG30/17 -> 0 | BN106: =+$D$107*'[1]Production plan'!BH30/17 -> 0 | BO106: =+$D$107*'[1]Production plan'!BI30/17 -> 0 | BP106: =+$D$107*'[1]Production plan'!BJ30/17 -> 0 | BQ106: =+$D$107*'[1]Production plan'!BK30/17 -> 77.48103529 | BR106: =+$D$107*'[1]Production plan'!BL30/17 -> 77.48103529 | BS106: =+$D$107*'[1]Production plan'!BM30/17 -> 92.97724235 | BT106: =+$D$107*'[1]Production plan'!BN30/17 -> 123.9696565 | BU106: =+$D$107*'[1]Production plan'!BO30/17 -> 0 | BV106: =+$D$107*'[1]Production plan'!BP30/17 -> 0 | BW106: =+$D$107*'[1]Production plan'!BQ30/17 -> 0 | BX106: =+$D$107*'[1]Production plan'!BR30/17 -> 0 | BY106: =+$D$107*'[1]Production plan'!BS30/17 -> 0 | BZ106: =+$D$107*'[1]Production plan'!BT30/17 -> 0
D107: =0.006639 -> 0.006639 | G107: Supply SR | AG107: 500 | AV107: 500 | BL107: 500 | BV107: 500
G108: Supply HR | T108: 500 | BB108: 500 | BG108: 500 | BQ108: 500
G109: % | I109: =I110/AVERAGE(J105:P105) -> 32.14121896 | J109: =J110/AVERAGE(K105:Q106) -> 54.30089436 | K109: 36.66470645 | L109: 39.99775152 | M109: 37.93892799 | N109: 29.31644435 | O109: 31.43944562 | P109: 24.91222508 | Q109: 27.08561431 | R109: 22.7651377 | S109: 22.7651377 | T109: 72.85342965 | U109: 74.14984731 | V109: 59.37175094 | W109: 74.49566792 | X109: 46.01742278 | Y109: 42.13591649 | Z109: 31.62742726 | AA109: 31.62742726 | AB109: 31.18626254 | AC109: 34.81253951 | AD109: 28.76634672 | AE109: 33.98671575 | AF109: 29.88732026 | AG109: 57.02124266 | AH109: 36.65651314 | AI109: 38.39932184 | AJ109: 27.73284355 | AK109: 29.44944899 | AL109: 20.76414447 | AM109: 21.60160033 | AN109: 23.19546207 | AO109: 27.12765382 | AP109: 17.25264049 | AQ109: 18.46766512 | AR109: 12.31177675 | AS109: 11.46766512 | AT109: 7.645110082 | AU109: 5.880853909 | AV109: 17.41872738 | AW109: 13.84270593 | AX109: 11.02413798 | AY109: 10.25958065 | AZ109: 8.168934873 | BA109: 6.669330339 | BB109: 13.94217311 | BC109: 13.94217311 | BD109: 10.11591245 | BE109: 6.629429851 | BF109: 6.629429851 | BG109: 13.38106547 | BH109: 13.38106547 | BI109: 10.17176649 | BJ109: 9.137435787 | BK109: 6.662268832 | BL109: 15.62503614 | BM109: 12.78912333 | BN109: 9.182321096 | BO109: 9.182321096 | BP109: 6.13269155 | BQ109: 16.17000585 | BR109: 12.34836352 | BS109: 12.11315443 | BT109: 10.0036347 | BU109: 7.428923477 | BV109: =BV110/AVERAGE(BW105:CC106) -> 17.63085477 | BW109: 19.24242531 | BX109: 12.82828354
G110: Inventory SR | I110: 500 | J110: =I110+J107-J105+J108-J106 -> 476.6654774 | K110: 476.6654774 | L110: 453.3309548 | M110: 429.9964322 | N110: 429.9964322 | O110: 400 | P110: 400 | Q110: 362.6647639 | R110: 303.55064 | S110: 303.55064 | T110: 850 | U110: 803.3309548 | V110: 791.6636935 | W110: 744.9946483 | X110: 690 | Y110: 631.6636935 | Z110: 631.6636935 | AA110: 631.6636935 | AB110: 596.6619096 | AC110: 549.9928645 | AD110: 549.9928645 | AE110: 480.0795087 | AF110: 421.7883082 | AG110: 852.0553764 | AH110: 852.0553764 | AI110: 828.8110658 | AJ110: 828.8110658 | AK110: 782.3224447 | AL110: 782.3224447 | AM110: 724.2116682 | AN110: 642.8565811 | AO110: 526.6350282 | AP110: 526.6350282 | AQ110: 410.4134753 | AR110: 410.4134753 | AS110: 254.8499913 | AT110: 254.8499913 | AU110: 254.8499913 | AV110: 754.8499913 | AW110: 599.2865074 | AX110: 599.2865074 | AY110: 443.7230234 | AZ110: 443.7230234 | BA110: 288.1595395 | BB110: 648.1524039 | BC110: 648.1524039 | BD110: 493.1903333 | BE110: 338.2282628 | BF110: 338.2282628 | BG110: 683.2661922 | BH110: 683.2661922 | BI110: 497.3117075 | BJ110: 497.3117075 | BK110: 310.6355267 | BL110: 623.959346 | BM110: 623.959346 | BN110: 468.3958621 | BO110: 468.3958621 | BP110: 312.8323781 | BQ110: 735.3513428 | BR110: 657.8703075 | BS110: 564.8930652 | BT110: 440.9234087 | BU110: 254.247228 | BV110: =BU110+BV107-BV105+BV108-BV106 -> 754.247228 | BW110: 598.683744 | BX110: 598.683744 | BY110: 412.0075633 | BZ110: 412.0075633
C112: =0.16298*1.2 -> 0.195576
A113: CHP001040 | B113: O | C113: =2.8578/13.54*2 -> 0.422127031 | E113: 8 | F113: 5 | G113: Need | H113: =SUM(I115:BZ115) -> 76928 | I113: =$C$113*'[1]Production plan'!C51/35.5 -> 0 | J113: =$C$113*'[1]Production plan'!D51/35.5 -> 416.1815799 | K113: =$C$113*'[1]Production plan'!E51/35.5 -> 0 | L113: =$C$113*'[1]Production plan'!F51/35.5 -> 838.3086109 | M113: =$C$113*'[1]Production plan'!G51/35.5 -> 814.5268063 | N113: =$C$113*'[1]Production plan'!H51/35.5 -> 0 | O113: =$C$113*'[1]Production plan'!I51/35.5 -> 1355.56286 | P113: =$C$113*'[1]Production plan'!J51/35.5 -> 0 | Q113: =$C$113*'[1]Production plan'!K51/35.5 -> 1302.0538 | R113: =$C$113*'[1]Production plan'!L51/35.5 -> 1522.035492 | S113: =$C$113*'[1]Production plan'!M51/35.5 -> 0 | T113: =$C$113*'[1]Production plan'!N51/35.5 -> 0 | U113: =$C$113*'[1]Production plan'!O51/35.5 -> 1545.817297 | V113: =$C$113*'[1]Production plan'!P51/35.5 -> 0 | W113: =$C$113*'[1]Production plan'!Q51/35.5 -> 2033.34429 | X113: =$C$113*'[1]Production plan'!R51/35.5 -> 0 | Y113: =$C$113*'[1]Production plan'!S51/35.5 -> 1260.435642 | Z113: =$C$113*'[1]Production plan'!T51/35.5 -> 0 | AA113: =$C$113*'[1]Production plan'!U51/35.5 -> 0 | AB113: =$C$113*'[1]Production plan'!V51/35.5 -> 1218.817484 | AC113: =$C$113*'[1]Production plan'!W51/35.5 -> 1778.5936 | AD113: =$C$113*'[1]Production plan'!X51/35.5 -> 0 | AE113: =$C$113*'[1]Production plan'!Y51/35.5+$C$113*'[1]Production plan'!Y54/17 -> 3044.420717 | AF113: =$C$113*'[1]Production plan'!Z51/35.5+$C$113*'[1]Production plan'!Z54/17 -> 2336.737165 | AG113: =$C$113*'[1]Production plan'!AA51/35.5 -> 0 | AH113: =$C$113*'[1]Production plan'!AB51/35.5 -> 0 | AI113: =$C$113*'[1]Production plan'!AC51/35.5 -> 0 | AJ113: =$C$113*'[1]Production plan'!AD51/35.5 -> 0 | AK113: =$C$113*'[1]Production plan'!AE51/35.5 -> 0 | AL113: =$C$113*'[1]Production plan'!AF51/35.5 -> 0 | AM113: =$C$113*'[1]Production plan'!AG51/35.5 -> 0 | AN113: =$C$113*'[1]Production plan'!AH51/35.5 -> 0 | AO113: =$C$113*'[1]Production plan'!AI51/35.5 -> 0 | AP113: =$C$113*'[1]Production plan'!AJ51/35.5 -> 0 | AQ113: =$C$113*'[1]Production plan'!AK51/35.5 -> 0 | AR113: =$C$113*'[1]Production plan'!AL51/35.5 -> 0 | AS113: =$C$113*'[1]Production plan'!AM51/35.5 -> 5434.142343 | AT113: =$C$113*'[1]Production plan'!AN51/35.5 -> 0 | AU113: =$C$113*'[1]Production plan'!AO51/35.5 -> 0 | AV113: =$C$113*'[1]Production plan'!AP51/35.5 -> 0 | AW113: =$C$113*'[1]Production plan'!AQ51/35.5 -> 5434.142343 | AX113: =$C$113*'[1]Production plan'!AR51/35.5 -> 0 | AY113: =$C$113*'[1]Production plan'!AS51/35.5 -> 5440.087794 | AZ113: =$C$113*'[1]Production plan'!AT51/35.5 -> 0 | BA113: =$C$113*'[1]Production plan'!AU51/35.5 -> 5434.142343 | BB113: =$C$113*'[1]Production plan'!AV51/35.5 -> 4887.160838 | BC113: =$C$113*'[1]Production plan'!AW51/35.5 -> 0 | BD113: =$C$113*'[1]Production plan'!AX51/35.5 -> 0 | BE113: =$C$113*'[1]Production plan'!AY51/35.5 -> 0 | BF113: =$C$113*'[1]Production plan'!AZ51/35.5 -> 0 | BG113: =$C$113*'[1]Production plan'!BA51/35.5 -> 0 | BH113: =$C$113*'[1]Production plan'!BB51/35.5 -> 0 | BI113: =$C$113*'[1]Production plan'!BC51/35.5 -> 0 | BJ113: =$C$113*'[1]Production plan'!BD51/35.5 -> 0 | BK113: =$C$113*'[1]Production plan'!BE51/35.5 -> 6522.159902 | BL113: =$C$113*'[1]Production plan'!BF51/35.5 -> 6522.159902 | BM113: =$C$113*'[1]Production plan'!BG51/35.5 -> 0 | BN113: =$C$113*'[1]Production plan'!BH51/35.5 -> 5434.142343 | BO113: =$C$113*'[1]Production plan'!BI51/35.5 -> 0 | BP113: =$C$113*'[1]Production plan'!BJ51/35.5 -> 5440.087794 | BQ113: =$C$113*'[1]Production plan'!BK51/35.5 -> 0 | BR113: =$C$113*'[1]Production plan'!BL51/35.5 -> 0 | BS113: =$C$113*'[1]Production plan'!BM51/35.5 -> 0 | BT113: =$C$113*'[1]Production plan'!BN51/35.5 -> 0 | BU113: =$C$113*'[1]Production plan'!BO51/35.5 -> 6522.159902 | BV113: =$C$113*'[1]Production plan'!BP51/35.5 -> 0 | BW113: =$C$113*'[1]Production plan'!BQ51/35.5 -> 5434.142343 | BX113: =$C$113*'[1]Production plan'!BR51/35.5 -> 0 | BY113: =$C$113*'[1]Production plan'!BS51/35.5 -> 6522.159902 | BZ113: =$C$113*'[1]Production plan'!BT51/35.5 -> 0
G115: Supply | P115: 2120 | R115: 2340 | S115: 1550 | V115: 2399 | AC115: 3319 | AE115: 2700 | AF115: 4000 | AQ115: 6000 | AT115: 2500 | AV115: 6000 | AX115: 5000 | AZ115: 5000 | BB115: 6000 | BI115: 6000 | BK115: 7000 | BM115: 5000 | BO115: 4000 | BU115: 6000
G117: % | I117: =I118/AVERAGE(J113:P113) -> 7.562971541 | J117: 5.332788424 | K117: 3.941153524 | L117: 3.427704295 | M117: 2.73153856 | N117: 1.994051514 | O117: 2.157712026 | P117: =P118/AVERAGE(Q113:W113) -> 3.790106066 | Q117: =Q118/AVERAGE(R113:X113) -> 2.970797475 | R117: 4.314486096 | S117: 6.5564082 | T117: 6.5564082 | U117: 4.63361828 | V117: 5.992927855 | W117: 5.511998284 | X117: 3.192159173 | Y117: 1.72904831 | Z117: 1.72904831 | AA117: 1.72904831 | AB117: 0.8317646408 | AC117: 3.110496531 | AD117: 3.110496531 | AE117: 6.131253493 | AL117: 4.779037079 | AM117: 4.779037079 | AN117: 4.779037079 | AO117: 4.779037079 | AP117: 2.38951854 | AQ117: 6.253973807 | AR117: 4.167795887 | AS117: 2.75246808 | AT117: 2.908381655 | AU117: 2.237781453 | AV117: 4.219331026 | AW117: 3.260624334 | AX117: 5.481240525 | AY117: 4.6807423 | AZ117: 8.071786957 | BA117: 9.263530604 | BD117: 8.135684945 | BE117: 4.067842473 | BF117: 4.067842473 | BG117: 2.871572196 | BH117: 2.871572196 | BI117: 3.974414768 | BJ117: 3.974414768 | BK117: 5.656755142 | BL117: 4.851101994 | BM117: 8.069720651 | BN117: 4.155824588 | BO117: 6.496521814 | BP117: 3.314769711 | BQ117: 3.314769711 | BR117: 2.144788253 | BS117: 2.144788253 | BT117: 1.838389931 | BU117: 2.149330865 | BV117: 1.719464692 | BW117: -0.1354761879 | BX117: -0.09031745861
G118: Inventory | I118: 3700 | J118: =I118+J115-J113 -> 3283.81842 | K118: =J118+K115-K113 -> 3283.81842 | L118: 2445.509809 | M118: 1630.983003 | N118: 1630.983003 | O118: 1347 | P118: =O118+P115-P113 -> 3467 | Q118: 2164.9462 | R118: 2982.910708 | S118: 4532.910708 | T118: 4532.910708 | U118: 2987.093411 | V118: 5386.093411 | W118: 3352.749121 | X118: 3330 | Y118: =X118+Y115-Y113 -> 2069.564358 | Z118: 2069.564358 | AA118: 2069.564358 | AB118: 850.7468742 | AC118: 2391.153274 | AD118: 2391.153274 | AE118: 2046.732558 | AF118: 3709.995393 | AG118: 3709.995393 | AH118: 3709.995393 | AI118: 3709.995393 | AJ118: 3709.995393 | AK118: 3709.995393 | AL118: 3709.995393 | AM118: 3709.995393 | AN118: 3709.995393 | AO118: 3709.995393 | AP118: 3709.995393 | AQ118: 9709.995393 | AR118: 9709.995393 | AS118: 4275.85305 | AT118: 6775.85305 | AU118: 6775.85305 | AV118: 12775.85305 | AW118: 7341.710707 | AX118: 12341.71071 | AY118: 6901.622913 | AZ118: 11901.62291 | BA118: 6467.48057 | BB118: 7580.319732 | BC118: 7580.319732 | BD118: 7580.319732 | BE118: 7580.319732 | BF118: 7580.319732 | BG118: 7580.319732 | BH118: 7580.319732 | BI118: 13580.31973 | BJ118: 13580.31973 | BK118: 14058.15983 | BL118: 7535.999928 | BM118: 12535.99993 | BN118: 7101.857585 | BO118: 11101.85759 | BP118: 5661.769791 | BQ118: 5661.769791 | BR118: 5661.769791 | BS118: 5661.769791 | BT118: 5661.769791 | BU118: 5139.609889 | BV118: 5139.609889 | BW118: =BV118+BW115-BW113 -> -294.5324535 | BX118: =BW118+BX115-BX113 -> -294.5324535 | BY118: -6816.692355 | BZ118: -6816.692355
W119: 3.4 | X119: 2.6
A120: CHP001028 | B120: P | D120: =0.09329*2 -> 0.18658 | E120: 8 | F120: 5 | G120: Need | H120: =SUM(I122:BZ122) -> 40972 | I120: =$D$120*'[1]Production plan'!C54/17 -> 0 | J120: =$D$120*'[1]Production plan'!D54/17 -> 0 | K120: =$D$120*'[1]Production plan'!E54/17 -> 0 | L120: =$D$120*'[1]Production plan'!F54/17 -> 0 | M120: =$D$120*'[1]Production plan'!G54/17 -> 0 | N120: =$D$120*'[1]Production plan'!H54/17 -> 0 | O120: =$D$120*'[1]Production plan'!I54/17 -> 0 | P120: =$D$120*'[1]Production plan'!J54/17 -> 0 | Q120: =$D$120*'[1]Production plan'!K54/17 -> 0 | R120: =$D$120*'[1]Production plan'!L54/17 -> 0 | S120: =$D$120*'[1]Production plan'!M54/17 -> 0 | T120: =$D$120*'[1]Production plan'!N54/17 -> 0 | U120: =$D$120*'[1]Production plan'!O54/17 -> 0 | V120: =$D$120*'[1]Production plan'!P54/17 -> 0 | W120: =$D$120*'[1]Production plan'!Q54/17 -> 0 | X120: =$D$120*'[1]Production plan'!R54/17 -> 0 | Y120: =$D$120*'[1]Production plan'!S54/17 -> 0 | Z120: =$D$120*'[1]Production plan'!T54/17 -> 0 | AA120: =$D$120*'[1]Production plan'!U54/17 -> 0 | AB120: =$D$120*'[1]Production plan'!V54/17 -> 0 | AC120: =$D$120*'[1]Production plan'!W54/17 -> 0 | AD120: =$D$120*'[1]Production plan'!X54/17 -> 0 | AE120: =$D$120*'[1]Production plan'!Y54/17-$D$120*'[1]Production plan'!Y54/17 -> 0 | AF120: =$D$120*'[1]Production plan'!Z54/17-$D$120*'[1]Production plan'!Z54/17 -> 0 | AG120: =$D$120*'[1]Production plan'!AA54/17 -> 1882.262941 | AH120: =$D$120*'[1]Production plan'!AB54/17 -> 0 | AI120: =$D$120*'[1]Production plan'!AC54/17 -> 625.5917647 | AJ120: =$D$120*'[1]Production plan'!AD54/17 -> 0 | AK120: =$D$120*'[1]Production plan'!AE54/17 -> 1251.183529 | AL120: =$D$120*'[1]Production plan'!AF54/17 -> 0 | AM120: =$D$120*'[1]Production plan'!AG54/17 -> 1563.979412 | AN120: =$D$120*'[1]Production plan'!AH54/17 -> 2195.058824 | AO120: =$D$120*'[1]Production plan'!AI54/17 -> 3138.934118 | AP120: =$D$120*'[1]Production plan'!AJ54/17 -> 0 | AQ120: =$D$120*'[1]Production plan'!AK54/17 -> 3138.934118 | AR120: =$D$120*'[1]Production plan'!AL54/17 -> 0 | AS120: =$D$120*'[1]Production plan'!AM54/17 -> 0 | AT120: =$D$120*'[1]Production plan'!AN54/17 -> 0 | AU120: =$D$120*'[1]Production plan'!AO54/17 -> 0 | AV120: =$D$120*'[1]Production plan'!AP54/17 -> 0 | AW120: =$D$120*'[1]Production plan'!AQ54/17 -> 0 | AX120: =$D$120*'[1]Production plan'!AR54/17 -> 0 | AY120: =$D$120*'[1]Production plan'!AS54/17 -> 0 | AZ120: =$D$120*'[1]Production plan'!AT54/17 -> 0 | BA120: =$D$120*'[1]Production plan'!AU54/17 -> 0 | BB120: =$D$120*'[1]Production plan'!AV54/17 -> 0 | BC120: =$D$120*'[1]Production plan'!AW54/17 -> 0 | BD120: =$D$120*'[1]Production plan'!AX54/17 -> 4181.587059 | BE120: =$D$120*'[1]Production plan'!AY54/17 -> 4181.587059 | BF120: =$D$120*'[1]Production plan'!AZ54/17 -> 0 | BG120: =$D$120*'[1]Production plan'!BA54/17 -> 4181.587059 | BH120: =$D$120*'[1]Production plan'!BB54/17 -> 0 | BI120: =$D$120*'[1]Production plan'!BC54/17 -> 5015.709412 | BJ120: =$D$120*'[1]Production plan'!BD54/17 -> 0 | BK120: =$D$120*'[1]Production plan'!BE54/17 -> 0 | BL120: =$D$120*'[1]Production plan'!BF54/17 -> 0 | BM120: =$D$120*'[1]Production plan'!BG54/17 -> 0 | BN120: =$D$120*'[1]Production plan'!BH54/17 -> 0 | BO120: =$D$120*'[1]Production plan'!BI54/17 -> 0 | BP120: =$D$120*'[1]Production plan'!BJ54/17 -> 0 | BQ120: =$D$120*'[1]Production plan'!BK54/17 -> 2090.793529 | BR120: =$D$120*'[1]Production plan'!BL54/17 -> 2090.793529 | BS120: =$D$120*'[1]Production plan'!BM54/17 -> 2507.854706 | BT120: =$D$120*'[1]Production plan'!BN54/17 -> 3347.464706 | BU120: =$D$120*'[1]Production plan'!BO54/17 -> 0 | BV120: =$D$120*'[1]Production plan'!BP54/17 -> 0 | BW120: =$D$120*'[1]Production plan'!BQ54/17 -> 0 | BX120: =$D$120*'[1]Production plan'!BR54/17 -> 0 | BY120: =$D$120*'[1]Production plan'!BS54/17 -> 0 | BZ120: =$D$120*'[1]Production plan'!BT54/17 -> 0
G122: Supply | Q122: 1400 | V122: 4072 | AF122: 3000 | AO122: 2500 | BB122: 4000 | BD122: 5000 | BF122: 4000 | BH122: 4000 | BP122: 4000 | BR122: 5000 | BT122: 4000
G124: % | I124: =I125/AVERAGE(J120:P120) ->  | P124: =P125/AVERAGE(Q120:W120) ->  | Q124: =Q125/AVERAGE(R120:X120) ->  | Z124: 20.34997298 | AA124: 20.34997298 | AB124: 15.27361211 | AC124: 15.27361211 | AD124: 10.18984049 | AE124: 10.18984049 | AF124: 11.14104892 | AG124: 8.184827119 | AH124: 5.256921483 | AI124: 5.123109395 | AJ124: 3.698501435 | AK124: 3.286942291 | AL124: 3.286942291 | AM124: 2.601565707 | AN124: 1.063651618 | AO124: 0.7024441418 | AP124: 0.7024441418 | AW124: -4.727299148 | AX124: -2.363649574 | AY124: -2.363649574 | AZ124: -1.575766383 | BA124: -1.575766383 | BB124: 0.4688021894 | BC124: 0.4688021894 | BD124: 1.043530846 | BE124: -1.664601311 | BF124: 1.379771575 | BG124: -3.305801795 | BH124: 2.276658771 | BJ124: -11.33106006 | BK124: -5.665530031 | BL124: -3.54153723 | BM124: -2.360379379 | BN124: -2.360379379 | BO124: -2.360379379 | BP124: 0.4293248078 | BQ124: -1.299561413 | BR124: 1.714335773 | BS124: -2.245579886
G125: Inventory | I125: 0 | J125: =I125+J122-J120 -> 0 | K125: =J125+K122-K120 -> 0 | L125: 0 | M125: 0 | N125: 0 | O125: 0 | P125: 0 | Q125: 1400 | R125: 1400 | S125: 1400 | T125: 1400 | U125: 1400 | V125: 5472 | W125: 5472 | X125: 5472 | Y125: 5472 | Z125: 5472 | AA125: 5472 | AB125: 5472 | AC125: 5472 | AD125: 5472 | AE125: 5472 | AF125: 8472 | AG125: 6589.737059 | AH125: 6589.737059 | AI125: 5964.145294 | AJ125: 5964.145294 | AK125: 4712.961765 | AL125: 4712.961765 | AM125: 3148.982353 | AN125: 953.9235294 | AO125: 314.9894118 | AP125: 314.9894118 | AQ125: -2823.944706 | AR125: -2823.944706 | AS125: -2823.944706 | AT125: -2823.944706 | AU125: -2823.944706 | AV125: -2823.944706 | AW125: -2823.944706 | AX125: -2823.944706 | AY125: -2823.944706 | AZ125: -2823.944706 | BA125: -2823.944706 | BB125: 1176.055294 | BC125: 1176.055294 | BD125: 1994.468235 | BE125: -2187.118824 | BF125: 1812.881176 | BG125: -2368.705882 | BH125: 1631.294118 | BI125: -3384.415294 | BJ125: -3384.415294 | BK125: -3384.415294 | BL125: -3384.415294 | BM125: -3384.415294 | BN125: -3384.415294 | BO125: -3384.415294 | BP125: 615.5847059 | BQ125: -1475.208824 | BR125: 1433.997647 | BS125: -1073.857059 | BT125: -421.3217647 | BU125: -421.3217647 | BV125: -421.3217647 | BW125: =BV125+BW122-BW120 -> -421.3217647 | BX125: -421.3217647 | BY125: -421.3217647 | BZ125: -421.3217647
A128: MEP001014 | B128: Q | C128: =0.061*10+0.102*3 -> 0.916 | D128: =0.0576*3+0.04*2 -> 0.2528 | E128: 4 | F128: 9 | G128: Need SR | H128: =SUM(I130:BZ131) -> 198000 | I128: =$C$128*'[1]Production plan'!C123+$C$130*'[1]Production plan'!C111+$D$128*'[1]Production plan'!C126+$D$130*'[1]Production plan'!C114 -> 0 | J128: =$C$130*'[1]Production plan'!D112+$C$128*'[1]Production plan'!D123 -> 34.64 | K128: =$C$130*'[1]Production plan'!E112+$C$128*'[1]Production plan'!E123 -> 115.12 | L128: =$C$130*'[1]Production plan'!F112+$C$128*'[1]Production plan'!F123 -> 149.6 | M128: =$C$130*'[1]Production plan'!G112+$C$128*'[1]Production plan'!G123 -> 25.176 | N128: =$C$130*'[1]Production plan'!H112+$C$128*'[1]Production plan'!H123 -> 148.868 | O128: =$C$130*'[1]Production plan'!I112+$C$128*'[1]Production plan'!I123 -> 79.824 | P128: =$C$130*'[1]Production plan'!J112+$C$128*'[1]Production plan'!J123 -> 126.484 | Q128: =$C$130*'[1]Production plan'!K112+$C$128*'[1]Production plan'!K123 -> 227.612 | R128: =$C$130*'[1]Production plan'!L112+$C$128*'[1]Production plan'!L123 -> 274.596 | S128: =$C$130*'[1]Production plan'!M112+$C$128*'[1]Production plan'!M123 -> 399.896 | T128: =$C$130*'[1]Production plan'!N112+$C$128*'[1]Production plan'!N123 -> 271.78 | U128: =$C$130*'[1]Production plan'!O112+$C$128*'[1]Production plan'!O123 -> 714.684 | V128: =$C$130*'[1]Production plan'!P112+$C$128*'[1]Production plan'!P123 -> 546.472 | W128: =$C$130*'[1]Production plan'!Q112+$C$128*'[1]Production plan'!Q123 -> 570.148 | X128: =$C$130*'[1]Production plan'!R112+$C$128*'[1]Production plan'!R123 -> 1505.728 | Y128: =$C$130*'[1]Production plan'!S112+$C$128*'[1]Production plan'!S123 -> 1592.176 | Z128: =$C$130*'[1]Production plan'!T112+$C$128*'[1]Production plan'!T123 -> 238.392 | AA128: =$C$130*'[1]Production plan'!U112+$C$128*'[1]Production plan'!U123 -> 0 | AB128: =$C$130*'[1]Production plan'!V112+$C$128*'[1]Production plan'!V123 -> 0 | AC128: =$C$130*'[1]Production plan'!W112+$C$128*'[1]Production plan'!W123 -> 1021.352 | AD128: =$C$130*'[1]Production plan'!X112+$C$128*'[1]Production plan'!X123 -> 2207.052 | AE128: =$C$130*'[1]Production plan'!Y112+$C$128*'[1]Production plan'!Y123 -> 2207.052 | AF128: =$C$130*'[1]Production plan'!Z112+$C$128*'[1]Production plan'!Z123 -> 1248.212 | AG128: =$C$130*'[1]Production plan'!AA112+$C$128*'[1]Production plan'!AA123 -> 0 | AH128: =$C$130*'[1]Production plan'!AB112+$C$128*'[1]Production plan'!AB123 -> 0 | AI128: =$C$130*'[1]Production plan'!AC112+$C$128*'[1]Production plan'!AC123 -> 0 | AJ128: =$C$130*'[1]Production plan'!AD112+$C$128*'[1]Production plan'!AD123 -> 0 | AK128: =$C$130*'[1]Production plan'!AE112+$C$128*'[1]Production plan'!AE123 -> 0 | AL128: =$C$130*'[1]Production plan'!AF112+$C$128*'[1]Production plan'!AF123 -> 0 | AM128: =$C$130*'[1]Production plan'!AG112+$C$128*'[1]Production plan'!AG123 -> 0 | AN128: =$C$130*'[1]Production plan'!AH112+$C$128*'[1]Production plan'!AH123 -> 0 | AO128: =$C$130*'[1]Production plan'!AI112+$C$128*'[1]Production plan'!AI123 -> 0 | AP128: =$C$130*'[1]Production plan'!AJ112+$C$128*'[1]Production plan'!AJ123 -> 0 | AQ128: =$C$130*'[1]Production plan'!AK112+$C$128*'[1]Production plan'!AK123 -> 0 | AR128: =$C$130*'[1]Production plan'!AL112+$C$128*'[1]Production plan'!AL123 -> 0 | AS128: =$C$130*'[1]Production plan'!AM112+$C$128*'[1]Production plan'!AM123 -> 0 | AT128: =$C$130*'[1]Production plan'!AN112+$C$128*'[1]Production plan'!AN123 -> 0 | AU128: =$C$130*'[1]Production plan'!AO112+$C$128*'[1]Production plan'!AO123 -> 0 | AV128: =$C$130*'[1]Production plan'!AP112+$C$128*'[1]Production plan'!AP123 -> 0 | AW128: =$C$130*'[1]Production plan'!AQ112+$C$128*'[1]Production plan'!AQ123 -> 0 | AX128: =$C$130*'[1]Production plan'!AR112+$C$128*'[1]Production plan'!AR123 -> 0 | AY128: =$C$130*'[1]Production plan'!AS112+$C$128*'[1]Production plan'!AS123 -> 0 | AZ128: =$C$130*'[1]Production plan'!AT112+$C$128*'[1]Production plan'!AT123 -> 1604 | BA128: =$C$130*'[1]Production plan'!AU112+$C$128*'[1]Production plan'!AU123 -> 3162.2 | BB128: =$C$130*'[1]Production plan'!AV112+$C$128*'[1]Production plan'!AV123 -> 4468 | BC128: =$C$130*'[1]Production plan'!AW112+$C$128*'[1]Production plan'!AW123 -> 6726.84 | BD128: =$C$130*'[1]Production plan'!AX112+$C$128*'[1]Production plan'!AX123 -> 8527.68 | BE128: =$C$130*'[1]Production plan'!AY112+$C$128*'[1]Production plan'!AY123 -> 9260.48 | BF128: =$C$130*'[1]Production plan'!AZ112+$C$128*'[1]Production plan'!AZ123 -> 9260.48 | BG128: =$C$130*'[1]Production plan'!BA112+$C$128*'[1]Production plan'!BA123 -> 3924.72 | BH128: =$C$130*'[1]Production plan'!BB112+$C$128*'[1]Production plan'!BB123 -> 0 | BI128: =$C$130*'[1]Production plan'!BC112+$C$128*'[1]Production plan'!BC123 -> 0 | BJ128: =$C$130*'[1]Production plan'!BD112+$C$128*'[1]Production plan'!BD123 -> 0 | BK128: =$C$130*'[1]Production plan'!BE112+$C$128*'[1]Production plan'!BE123 -> 0 | BL128: =$C$130*'[1]Production plan'!BF112+$C$128*'[1]Production plan'!BF123 -> 0 | BM128: =$C$130*'[1]Production plan'!BG112+$C$128*'[1]Production plan'!BG123 -> 0 | BN128: =$C$130*'[1]Production plan'!BH112+$C$128*'[1]Production plan'!BH123 -> 4742.8 | BO128: =$C$130*'[1]Production plan'!BI112+$C$128*'[1]Production plan'!BI123 -> 8094.432 | BP128: =$C$130*'[1]Production plan'!BJ112+$C$128*'[1]Production plan'!BJ123 -> 5953.384 | BQ128: =$C$130*'[1]Production plan'!BK112+$C$128*'[1]Production plan'!BK123 -> 8552.432 | BR128: =$C$130*'[1]Production plan'!BL112+$C$128*'[1]Production plan'!BL123 -> 8552.432 | BS128: =$C$130*'[1]Production plan'!BM112+$C$128*'[1]Production plan'!BM123 -> 8552.432 | BT128: =$C$130*'[1]Production plan'!BN112+$C$128*'[1]Production plan'!BN123 -> 7679.88 | BU128: =$C$130*'[1]Production plan'!BO112+$C$128*'[1]Production plan'!BO123 -> 0 | BV128: =$C$130*'[1]Production plan'!BP112+$C$128*'[1]Production plan'!BP123 -> 0 | BW128: =$C$130*'[1]Production plan'!BQ112+$C$128*'[1]Production plan'!BQ123 -> 0 | BX128: =$C$128*'[1]Production plan'!BR123+$D$128*'[1]Production plan'!BR126 -> 2748 | BY128: =$C$128*'[1]Production plan'!BS123+$D$128*'[1]Production plan'!BS126 -> 3389.2 | BZ128: =$C$128*'[1]Production plan'!BT123+$D$128*'[1]Production plan'!BT126 -> 0
G129: Need HR | J129: =$D$128*'[1]Production plan'!D126+$D$130*'[1]Production plan'!D115 -> 0 | K129: =$D$128*'[1]Production plan'!E126+$D$130*'[1]Production plan'!E115 -> 0 | L129: =$D$128*'[1]Production plan'!F126+$D$130*'[1]Production plan'!F115 -> 0 | M129: =$D$128*'[1]Production plan'!G126+$D$130*'[1]Production plan'!G115 -> 0 | N129: =$D$128*'[1]Production plan'!H126+$D$130*'[1]Production plan'!H115 -> 0 | O129: =$D$128*'[1]Production plan'!I126+$D$130*'[1]Production plan'!I115 -> 0 | P129: =$D$128*'[1]Production plan'!J126+$D$130*'[1]Production plan'!J115 -> 0 | Q129: =$D$128*'[1]Production plan'!K126+$D$130*'[1]Production plan'!K115 -> 0 | R129: =$D$128*'[1]Production plan'!L126+$D$130*'[1]Production plan'!L115 -> 0 | S129: =$D$128*'[1]Production plan'!M126+$D$130*'[1]Production plan'!M115 -> 0 | T129: =$D$128*'[1]Production plan'!N126+$D$130*'[1]Production plan'!N115 -> 0 | U129: =$D$128*'[1]Production plan'!O126+$D$130*'[1]Production plan'!O115 -> 0 | V129: =$D$128*'[1]Production plan'!P126+$D$130*'[1]Production plan'!P115 -> 0 | W129: =$D$128*'[1]Production plan'!Q126+$D$130*'[1]Production plan'!Q115 -> 0 | X129: =$D$128*'[1]Production plan'!R126+$D$130*'[1]Production plan'!R115 -> 0 | Y129: =$D$128*'[1]Production plan'!S126+$D$130*'[1]Production plan'!S115 -> 0 | Z129: =$D$128*'[1]Production plan'!T126+$D$130*'[1]Production plan'!T115 -> 0 | AA129: =$D$128*'[1]Production plan'!U126+$D$130*'[1]Production plan'!U115 -> 0 | AB129: =$D$128*'[1]Production plan'!V126+$D$130*'[1]Production plan'!V115 -> 0 | AC129: =$D$128*'[1]Production plan'!W126+$D$130*'[1]Production plan'!W115 -> 0 | AD129: =$D$128*'[1]Production plan'!X126+$D$130*'[1]Production plan'!X115 -> 0 | AE129: =$D$128*'[1]Production plan'!Y126+$D$130*'[1]Production plan'!Y115 -> 0 | AF129: =$D$128*'[1]Production plan'!Z126+$D$130*'[1]Production plan'!Z115 -> 0 | AG129: =$D$128*'[1]Production plan'!AA126+$D$130*'[1]Production plan'!AA115 -> 0 | AH129: =$D$128*'[1]Production plan'!AB126+$D$130*'[1]Production plan'!AB115 -> 0 | AI129: =$D$128*'[1]Production plan'!AC126+$D$130*'[1]Production plan'!AC115 -> 0 | AJ129: =$D$128*'[1]Production plan'!AD126+$D$130*'[1]Production plan'!AD115 -> 16.782 | AK129: =$D$128*'[1]Production plan'!AE126+$D$130*'[1]Production plan'!AE115 -> 49.62 | AL129: =$D$128*'[1]Production plan'!AF126+$D$130*'[1]Production plan'!AF115 -> 83.91 | AM129: =$D$128*'[1]Production plan'!AG126+$D$130*'[1]Production plan'!AG115 -> 178.175 | AN129: =$D$128*'[1]Production plan'!AH126+$D$130*'[1]Production plan'!AH115 -> 341.02 | AO129: =$D$128*'[1]Production plan'!AI126+$D$130*'[1]Production plan'!AI115 -> 526.9584 | AP129: =$D$128*'[1]Production plan'!AJ126+$D$130*'[1]Production plan'!AJ115 -> 690.6248 | AQ129: =$D$128*'[1]Production plan'!AK126+$D$130*'[1]Production plan'!AK115 -> 753.8248 | AR129: =$D$128*'[1]Production plan'!AL126+$D$130*'[1]Production plan'!AL115 -> 817.0248 | AS129: =$D$128*'[1]Production plan'!AM126+$D$130*'[1]Production plan'!AM115 -> 817.0248 | AT129: =$D$128*'[1]Production plan'!AN126+$D$130*'[1]Production plan'!AN115 -> 817.0248 | AU129: =$D$128*'[1]Production plan'!AO126+$D$130*'[1]Production plan'!AO115 -> 0 | AV129: =$D$128*'[1]Production plan'!AP126+$D$130*'[1]Production plan'!AP115 -> 1135.339 | AW129: =$D$128*'[1]Production plan'!AQ126+$D$130*'[1]Production plan'!AQ115 -> 1247.29855 | AX129: =$D$128*'[1]Production plan'!AR126+$D$130*'[1]Production plan'!AR115 -> 0 | AY129: =$D$128*'[1]Production plan'!AS126+$D$130*'[1]Production plan'!AS115 -> 0 | AZ129: =$D$128*'[1]Production plan'!AT126+$D$130*'[1]Production plan'!AT115 -> 0 | BA129: =$D$128*'[1]Production plan'!AU126+$D$130*'[1]Production plan'!AU115 -> 0 | BB129: =$D$128*'[1]Production plan'!AV126+$D$130*'[1]Production plan'!AV115 -> 0 | BC129: =$D$128*'[1]Production plan'!AW126+$D$130*'[1]Production plan'!AW115 -> 0 | BD129: =$D$128*'[1]Production plan'!AX126+$D$130*'[1]Production plan'!AX115 -> 0 | BE129: =$D$128*'[1]Production plan'!AY126+$D$130*'[1]Production plan'!AY115 -> 0 | BF129: =$D$128*'[1]Production plan'!AZ126+$D$130*'[1]Production plan'!AZ115 -> 0 | BG129: =$D$128*'[1]Production plan'!BA126+$D$130*'[1]Production plan'!BA115 -> 0 | BH129: =$D$128*'[1]Production plan'!BB126+$D$130*'[1]Production plan'!BB115 -> 2061.45 | BI129: =$D$128*'[1]Production plan'!BC126+$D$130*'[1]Production plan'!BC115 -> 4010.846 | BJ129: =$D$128*'[1]Production plan'!BD126+$D$130*'[1]Production plan'!BD115 -> 3567.809 | BK129: =$D$128*'[1]Production plan'!BE126+$D$130*'[1]Production plan'!BE115 -> 4010.846 | BL129: =$D$128*'[1]Production plan'!BF126+$D$130*'[1]Production plan'!BF115 -> 4010.846 | BM129: =$D$128*'[1]Production plan'!BG126+$D$130*'[1]Production plan'!BG115 -> 2897.108 | BN129: =$D$128*'[1]Production plan'!BH126+$D$130*'[1]Production plan'!BH115 -> 0 | BO129: =$D$128*'[1]Production plan'!BI126+$D$130*'[1]Production plan'!BI115 -> 0 | BP129: =$D$128*'[1]Production plan'!BJ126+$D$130*'[1]Production plan'!BJ115 -> 0 | BQ129: =$D$128*'[1]Production plan'!BK126+$D$130*'[1]Production plan'!BK115 -> 0 | BR129: =$D$128*'[1]Production plan'!BL126+$D$130*'[1]Production plan'!BL115 -> 0 | BS129: =$D$128*'[1]Production plan'!BM126+$D$130*'[1]Production plan'!BM115 -> 0 | BT129: =$D$128*'[1]Production plan'!BN126+$D$130*'[1]Production plan'!BN115 -> 0 | BU129: =$D$128*'[1]Production plan'!BO126+$D$130*'[1]Production plan'!BO115 -> 4086.686 | BV129: =$D$128*'[1]Production plan'!BP126+$D$130*'[1]Production plan'!BP115 -> 4086.686 | BW129: =$D$128*'[1]Production plan'!BQ126+$D$130*'[1]Production plan'!BQ115 -> 3133.6815 | BX129: =$C$130*'[1]Production plan'!BR112+$D$130*'[1]Production plan'!BR115 -> 5346.432 | BY129: =$C$130*'[1]Production plan'!BS112+$D$130*'[1]Production plan'!BS115 -> 5346.432 | BZ129: =$C$130*'[1]Production plan'!BT112+$D$130*'[1]Production plan'!BT115 -> 0
C130: =0.0455*32 -> 1.456 | D130: =0.0438*7 -> 0.3066 | G130: Supply SR | Q130: 23100 | AY130: 23100 | BB130: 23100 | BK130: 23100 | BO130: 23100 | BW130: 23100
G131: Supply HR | AE131: =66*200 -> 13200 | BE131: 23100 | BS131: 23100
G132: % | I132: =I133/AVERAGE(J128:P128) -> 189.6361989 | J132: =J133/AVERAGE(K128:Q129) -> 294.8501863 | K132: 247.7322896 | L132: 197.7494433 | M132: 165.6262645 | N132: 119.8965208 | O132: 97.61798367 | P132: 82.6171381 | Q132: 132.7231184 | R132: 100.8142857 | S132: 102.7783637 | T132: 107.4474913 | U132: 122.4456244 | V132: 109.0932888 | W132: 80.67503466 | X132: 18.88240391 | Y132: 16.60048252 | Z132: 15.86375146 | AA132: 15.86375146 | AB132: 15.86375146 | AC132: 16.15205795 | AD132: 17.27318604 | AE132: 153.5416368 | AF132: 600.5007687 | AG132: 294.6297738 | AH132: 164.8661934 | AI132: 104.5295535 | AJ132: 75.08070208 | AK132: 57.88733005 | AL132: 47.31363994 | AM132: 40.44458506 | AN132: 42.48374126 | AO132: 35.87976464 | AP132: 30.57473102 | AQ132: 33.15958577 | AR132: 37.05679164 | AS132: 28.60467318 | AT132: 17.62088501 | AU132: 10.84364345 | AV132: 6.396555837 | AW132: 3.781819495 | AX132: 2.744121896 | AY132: 9.672518342 | AZ132: 8.681942332 | BA132: 7.897080775 | BB132: 13.93873264 | BC132: 12.70409601 | BD132: 10.98633938 | BE132: 19.13713412 | BF132: 18.81569411 | BG132: 16.03569082 | BH132: 12.02724695 | BI132: 9.637768014 | BJ132: 7.07673212 | BK132: 12.56948227 | BL132: 10.17773698 | BM132: 8.465841958 | BN132: 7.283742502 | BO132: 12.32481963 | BP132: 11.23632394 | BQ132: 8.643031574 | BR132: 5.908773939 | BS132: 13.00597239 | BT132: 10.91542091 | BU132: 8.94260631 | BV132: =BV133/AVERAGE(BW128:CC129) -> 6.980921711 | BW132: 13.32864327 | BX132: 15.86100996
G133: Inventory | I133: 18414 | J133: =I133+J130-J128+J131-J129 -> 18379.36 | K133: =J133+K130-K128+K131-K129 -> 18264.24 | L133: 18114.64 | M133: 18089.464 | N133: 17940.596 | O133: 17860.772 | P133: 17734.288 | Q133: 40606.676 | R133: 40332.08 | S133: 39932.184 | T133: 39660.404 | U133: 38945.72 | V133: 38399.248 | W133: 37829.1 | X133: 9800 | Y133: =X133+Y130-Y128+Y131-Y129 -> 8207.824 | Z133: =Y133+Z130-Z128+Z131-Z129-396 -> 7573.432 | AA133: 7573.432 | AB133: 7573.432 | AC133: 6552.08 | AD133: 4345.028 | AE133: 15337.976 | AF133: 14089.764 | AG133: 14089.764 | AH133: 14089.764 | AI133: 14089.764 | AJ133: 14072.982 | AK133: 14023.362 | AL133: 13939.452 | AM133: 13761.277 | AN133: 13420.257 | AO133: 12893.2986 | AP133: 12202.6738 | AQ133: 11448.849 | AR133: 10631.8242 | AS133: 9814.7994 | AT133: 8997.7746 | AU133: 8997.7746 | AV133: 7862.4356 | AW133: 6615.13705 | AX133: 6615.13705 | AY133: 29715.13705 | AZ133: 28111.13705 | BA133: 24948.93705 | BB133: 43580.93705 | BC133: 36854.09705 | BD133: 28326.41705 | BE133: 42165.93705 | BF133: 32905.45705 | BG133: 28980.73705 | BH133: 26919.28705 | BI133: 22908.44105 | BJ133: 19340.63205 | BK133: 38429.78605 | BL133: 34418.94005 | BM133: 31521.83205 | BN133: 26779.03205 | BO133: 41784.60005 | BP133: 35831.21605 | BQ133: 27278.78405 | BR133: 18726.35205 | BS133: 33273.92005 | BT133: 25594.04005 | BU133: 21507.35405 | BV133: 17420.66805 | BW133: 37386.98655 | BX133: =BW133+BX130-BX128 -> 34638.98655 | BY133: 31249.78655 | BZ133: 31249.78655
A136: MEP001119 | B136: R | C136: =0.052*4 -> 0.208 | D136: =0.052*2 -> 0.104 | E136: 4 | F136: 9 | G136: Need | H136: =SUM(I138:BZ138) -> 25278 | I136: =$C$136*'[1]Production plan'!C111+$D$136*'[1]Production plan'!C114 -> 0 | J136: =$C$136*'[1]Production plan'!D111+$D$136*'[1]Production plan'!D114 -> 14.56 | K136: =$C$136*'[1]Production plan'!E111+$D$136*'[1]Production plan'!E114 -> 23.92 | L136: =$C$136*'[1]Production plan'!F111+$D$136*'[1]Production plan'!F114 -> 20.8 | M136: =$C$136*'[1]Production plan'!G111+$D$136*'[1]Production plan'!G114 -> 3.12 | N136: =$C$136*'[1]Production plan'!H111+$D$136*'[1]Production plan'!H114 -> 41.6 | O136: =$C$136*'[1]Production plan'!I111+$D$136*'[1]Production plan'!I114 -> 6.24 | P136: =$C$136*'[1]Production plan'!J111+$D$136*'[1]Production plan'!J114 -> 31.2 | Q136: =$C$136*'[1]Production plan'!K111+$D$136*'[1]Production plan'!K114 -> 41.6 | R136: =$C$136*'[1]Production plan'!L111+$D$136*'[1]Production plan'!L114 -> 52 | S136: =$C$136*'[1]Production plan'!M111+$D$136*'[1]Production plan'!M114 -> 83.2 | T136: =$C$136*'[1]Production plan'!N111+$D$136*'[1]Production plan'!N114 -> 31.2 | U136: =$C$136*'[1]Production plan'!O111+$D$136*'[1]Production plan'!O114 -> 119.6 | V136: =$C$136*'[1]Production plan'!P111+$D$136*'[1]Production plan'!P114 -> 52 | W136: =$C$136*'[1]Production plan'!Q111+$D$136*'[1]Production plan'!Q114 -> 104 | X136: =$C$136*'[1]Production plan'!R111+$D$136*'[1]Production plan'!R114 -> 176.8 | Y136: =$C$136*'[1]Production plan'!S111+$D$136*'[1]Production plan'!S114 -> 182 | Z136: =$C$136*'[1]Production plan'!T111+$D$136*'[1]Production plan'!T114 -> 35.36 | AA136: =$C$136*'[1]Production plan'!U111+$D$136*'[1]Production plan'!U114 -> 0 | AB136: =$C$136*'[1]Production plan'!V111+$D$136*'[1]Production plan'!V114 -> 0 | AC136: =$C$136*'[1]Production plan'!W111+$D$136*'[1]Production plan'!W114 -> 118.56 | AD136: =$C$136*'[1]Production plan'!X111+$D$136*'[1]Production plan'!X114 -> 227.76 | AE136: =$C$136*'[1]Production plan'!Y111+$D$136*'[1]Production plan'!Y114 -> 227.76 | AF136: =$C$136*'[1]Production plan'!Z111+$D$136*'[1]Production plan'!Z114 -> 128.96 | AG136: =$C$136*'[1]Production plan'!AA111+$D$136*'[1]Production plan'!AA114 -> 0 | AH136: =$C$136*'[1]Production plan'!AB111+$D$136*'[1]Production plan'!AB114 -> 15.6 | AI136: =$C$136*'[1]Production plan'!AC111+$D$136*'[1]Production plan'!AC114 -> 26 | AJ136: =$C$136*'[1]Production plan'!AD111+$D$136*'[1]Production plan'!AD114 -> 31.2 | AK136: =$C$136*'[1]Production plan'!AE111+$D$136*'[1]Production plan'!AE114 -> 41.6 | AL136: =$C$136*'[1]Production plan'!AF111+$D$136*'[1]Production plan'!AF114 -> 62.4 | AM136: =$C$136*'[1]Production plan'!AG111+$D$136*'[1]Production plan'!AG114 -> 78 | AN136: =$C$136*'[1]Production plan'!AH111+$D$136*'[1]Production plan'!AH114 -> 104 | AO136: =$C$136*'[1]Production plan'!AI111+$D$136*'[1]Production plan'!AI114 -> 149.76 | AP136: =$C$136*'[1]Production plan'!AJ111+$D$136*'[1]Production plan'!AJ114 -> 174.72 | AQ136: =$C$136*'[1]Production plan'!AK111+$D$136*'[1]Production plan'!AK114 -> 174.72 | AR136: =$C$136*'[1]Production plan'!AL111+$D$136*'[1]Production plan'!AL114 -> 174.72 | AS136: =$C$136*'[1]Production plan'!AM111+$D$136*'[1]Production plan'!AM114 -> 174.72 | AT136: =$C$136*'[1]Production plan'!AN111+$D$136*'[1]Production plan'!AN114 -> 174.72 | AU136: =$C$136*'[1]Production plan'!AO111+$D$136*'[1]Production plan'!AO114 -> 0 | AV136: =$C$136*'[1]Production plan'!AP111+$D$136*'[1]Production plan'!AP114 -> 239.2 | AW136: =$C$136*'[1]Production plan'!AQ111+$D$136*'[1]Production plan'!AQ114 -> 265.72 | AX136: =$C$136*'[1]Production plan'!AR111+$D$136*'[1]Production plan'!AR114 -> 0 | AY136: =$C$136*'[1]Production plan'!AS111+$D$136*'[1]Production plan'!AS114 -> 0 | AZ136: =$C$136*'[1]Production plan'!AT111+$D$136*'[1]Production plan'!AT114 -> 208 | BA136: =$C$136*'[1]Production plan'!AU111+$D$136*'[1]Production plan'!AU114 -> 416 | BB136: =$C$136*'[1]Production plan'!AV111+$D$136*'[1]Production plan'!AV114 -> 520 | BC136: =$C$136*'[1]Production plan'!AW111+$D$136*'[1]Production plan'!AW114 -> 707.2 | BD136: =$C$136*'[1]Production plan'!AX111+$D$136*'[1]Production plan'!AX114 -> 894.4 | BE136: =$C$136*'[1]Production plan'!AY111+$D$136*'[1]Production plan'!AY114 -> 894.4 | BF136: =$C$136*'[1]Production plan'!AZ111+$D$136*'[1]Production plan'!AZ114 -> 894.4 | BG136: =$C$136*'[1]Production plan'!BA111+$D$136*'[1]Production plan'!BA114 -> 405.6 | BH136: =$C$136*'[1]Production plan'!BB111+$D$136*'[1]Production plan'!BB114 -> 520 | BI136: =$C$136*'[1]Production plan'!BC111+$D$136*'[1]Production plan'!BC114 -> 894.4 | BJ136: =$C$136*'[1]Production plan'!BD111+$D$136*'[1]Production plan'!BD114 -> 717.6 | BK136: =$C$136*'[1]Production plan'!BE111+$D$136*'[1]Production plan'!BE114 -> 894.4 | BL136: =$C$136*'[1]Production plan'!BF111+$D$136*'[1]Production plan'!BF114 -> 894.4 | BM136: =$C$136*'[1]Production plan'!BG111+$D$136*'[1]Production plan'!BG114 -> 707.2 | BN136: =$C$136*'[1]Production plan'!BH111+$D$136*'[1]Production plan'!BH114 -> 520 | BO136: =$C$136*'[1]Production plan'!BI111+$D$136*'[1]Production plan'!BI114 -> 898.56 | BP136: =$C$136*'[1]Production plan'!BJ111+$D$136*'[1]Production plan'!BJ114 -> 538.72 | BQ136: =$C$136*'[1]Production plan'!BK111+$D$136*'[1]Production plan'!BK114 -> 898.56 | BR136: =$C$136*'[1]Production plan'!BL111+$D$136*'[1]Production plan'!BL114 -> 898.56 | BS136: =$C$136*'[1]Production plan'!BM111+$D$136*'[1]Production plan'!BM114 -> 898.56 | BT136: =$C$136*'[1]Production plan'!BN111+$D$136*'[1]Production plan'!BN114 -> 790.4 | BU136: =$C$136*'[1]Production plan'!BO111+$D$136*'[1]Production plan'!BO114 -> 894.4 | BV136: =$C$136*'[1]Production plan'!BP111+$D$136*'[1]Production plan'!BP114 -> 894.4 | BW136: =$C$136*'[1]Production plan'!BQ111+$D$136*'[1]Production plan'!BQ114 -> 743.6 | BX136: =$C$136*'[1]Production plan'!BR111+$D$136*'[1]Production plan'!BR114 -> 898.56 | BY136: =$C$136*'[1]Production plan'!BS111+$D$136*'[1]Production plan'!BS114 -> 898.56 | BZ136: =$C$136*'[1]Production plan'!BT111+$D$136*'[1]Production plan'!BT114 -> 0
G138: Supply | O138: 1386 | Z138: 2772 | AW138: =66*40 -> 2640 | AZ138: 2640 | BD138: 2640 | BH138: 2640 | BL138: 2640 | BO138: 2640 | BR138: 2640 | BU138: 2640
G140: % | I140: =I141/AVERAGE(J136:P136) -> 0 | J140: -0.6049382716 | K140: -1.37037037 | L140: 12.67006487 | M140: 11.35451505 | N140: 8.130615823 | O140: 30.73592989 | P140: =P141/AVERAGE(Q136:W136) -> 25.65740281 | Q140: =Q141/AVERAGE(R136:X136) -> 19.58099548 | R140: 15.69540598 | S140: 15.93574526 | T140: 16.35200669 | U140: 18.38505162 | V140: 15.81061097 | W140: 12.18496111 | X140: 9.836652178 | Y140: 8.81787649 | Z140: 37.45732817 | AA140: 36.64421685 | AB140: 35.36474001 | AC140: 38.80245862 | AD140: 50.75089149 | AE140: 72.98351648 | AF140: 84.03736264 | AG140: 59.6787068 | AH140: 43.21551444 | AI140: 32.91597058 | AJ140: 26.62139582 | AK140: 22.44524784 | AL140: 19.57533183 | AM140: 17.41158104 | AN140: 18.46966854 | AO140: 16.04313444 | AP140: 13.81438777 | AQ140: 14.97135305 | AR140: 16.60152629 | AS140: 14.60123473 | AT140: 10.39719378 | AU140: 7.118356257 | AV140: 4.75369877 | AW140: 9.7185169 | AX140: 7.330538462 | AY140: 5.884606563 | AZ140: 9.236508876 | BA140: 8.435723739 | BB140: 7.130961155 | BC140: 6.168548881 | BD140: 8.509033098 | BE140: 7.309829911 | BF140: 6.337881437 | BG140: 5.645524476 | BH140: 7.944030283 | BI140: 7.279681602 | BJ140: 6.094943048 | BK140: 4.921277072 | BL140: 7.197091132 | BM140: 6.177647629 | BN140: 5.15441682 | BO140: 7.25492638 | BP140: 6.381378687 | BQ140: 5.336277598 | BR140: 7.361719238 | BS140: 7.425201956 | BT140: 6.43099466 | BU140: 9.295337572 | BV140: =BV141/AVERAGE(BW136:CC136) -> 8.645927139 | BW140: =BW141/AVERAGE(BX136:CD136) -> 7.926215278 | BX140: 8.568287037
G141: Inventory | I141: 0 | J141: =I141+J138-J136 -> -14.56 | K141: =J141+K138-K136 -> -38.48 | L141: =K141+L138-L136+8*66 -> 468.72 | M141: =L141+M138-M136 -> 465.6 | N141: 424 | O141: 1803.76 | P141: 1772.56 | Q141: 1730.96 | R141: 1678.96 | S141: 1595.76 | T141: 1564.56 | U141: 1444.96 | V141: 1392.96 | W141: 1288.96 | X141: 1112.16 | Y141: 930.16 | Z141: =990+2772 -> 3762 | AA141: 3762 | AB141: 3762 | AC141: 3643.44 | AD141: 3415.68 | AE141: 3187.92 | AF141: 3058.96 | AG141: 3058.96 | AH141: 3043.36 | AI141: 3017.36 | AJ141: 2986.16 | AK141: 2944.56 | AL141: 2882.16 | AM141: 2804.16 | AN141: 2700.16 | AO141: 2550.4 | AP141: 2375.68 | AQ141: 2200.96 | AR141: 2026.24 | AS141: 1851.52 | AT141: 1676.8 | AU141: 1676.8 | AV141: 1437.6 | AW141: 3811.88 | AX141: 3811.88 | AY141: 3811.88 | AZ141: 6243.88 | BA141: 5827.88 | BB141: 5307.88 | BC141: 4600.68 | BD141: 6346.28 | BE141: 5451.88 | BF141: 4557.48 | BG141: 4151.88 | BH141: 6271.88 | BI141: 5377.48 | BJ141: 4659.88 | BK141: 3765.48 | BL141: 5511.08 | BM141: 4803.88 | BN141: 4283.88 | BO141: 6025.32 | BP141: 5486.6 | BQ141: 4588.04 | BR141: 6329.48 | BS141: 5430.92 | BT141: 4640.52 | BU141: 6386.12 | BV141: 5491.72 | BW141: 4748.12 | BX141: 3849.56 | BY141: =BX141+BY138-BY136 -> 2951 | BZ141: 2951
A143: CHP001001 | B143: S | C143: =75*1.15 -> 86.25 | E143: 12 | F143: 12 | G143: Need | H143: =SUM(I145:BZ145) -> 6884737 | I143: =$C$143*'[1]Production plan'!C111 -> 0 | J143: =$C$143*'[1]Production plan'!D111 -> 6037.5 | K143: =$C$143*'[1]Production plan'!E111 -> 9918.75 | L143: =$C$143*'[1]Production plan'!F111 -> 8625 | M143: =$C$143*'[1]Production plan'!G111 -> 1293.75 | N143: =$C$143*'[1]Production plan'!H111 -> 17250 | O143: =$C$143*'[1]Production plan'!I111 -> 2587.5 | P143: =$C$143*'[1]Production plan'!J111 -> 12937.5 | Q143: =$C$143*'[1]Production plan'!K111 -> 17250 | R143: =$C$143*'[1]Production plan'!L111 -> 21562.5 | S143: =$C$143*'[1]Production plan'!M111 -> 34500 | T143: =$C$143*'[1]Production plan'!N111 -> 12937.5 | U143: =$C$143*'[1]Production plan'!O111 -> 49593.75 | V143: =$C$143*'[1]Production plan'!P111 -> 21562.5 | W143: =$C$143*'[1]Production plan'!Q111 -> 43125 | X143: =$C$143*'[1]Production plan'!R111 -> 73312.5 | Y143: =$C$143*'[1]Production plan'!S111 -> 75468.75 | Z143: =$C$143*'[1]Production plan'!T111 -> 14662.5 | AA143: =$C$143*'[1]Production plan'!U111 -> 0 | AB143: =$C$143*'[1]Production plan'!V111 -> 0 | AC143: =$C$143*'[1]Production plan'!W111 -> 49162.5 | AD143: =$C$143*'[1]Production plan'!X111 -> 94443.75 | AE143: =$C$143*'[1]Production plan'!Y111 -> 94443.75 | AF143: =$C$143*'[1]Production plan'!Z111 -> 53475 | AG143: =$C$143*'[1]Production plan'!AA111 -> 0 | AH143: =$C$143*'[1]Production plan'!AB111 -> 0 | AI143: =$C$143*'[1]Production plan'!AC111 -> 0 | AJ143: =$C$143*'[1]Production plan'!AD111 -> 0 | AK143: =$C$143*'[1]Production plan'!AE111 -> 0 | AL143: =$C$143*'[1]Production plan'!AF111 -> 0 | AM143: =$C$143*'[1]Production plan'!AG111 -> 0 | AN143: =$C$143*'[1]Production plan'!AH111 -> 0 | AO143: =$C$143*'[1]Production plan'!AI111 -> 0 | AP143: =$C$143*'[1]Production plan'!AJ111 -> 0 | AQ143: =$C$143*'[1]Production plan'!AK111 -> 0 | AR143: =$C$143*'[1]Production plan'!AL111 -> 0 | AS143: =$C$143*'[1]Production plan'!AM111 -> 0 | AT143: =$C$143*'[1]Production plan'!AN111 -> 0 | AU143: =$C$143*'[1]Production plan'!AO111 -> 0 | AV143: =$C$143*'[1]Production plan'!AP111 -> 0 | AW143: =$C$143*'[1]Production plan'!AQ111 -> 0 | AX143: =$C$143*'[1]Production plan'!AR111 -> 0 | AY143: =$C$143*'[1]Production plan'!AS111 -> 0 | AZ143: =$C$143*'[1]Production plan'!AT111 -> 86250 | BA143: =$C$143*'[1]Production plan'!AU111 -> 172500 | BB143: =$C$143*'[1]Production plan'!AV111 -> 215625 | BC143: =$C$143*'[1]Production plan'!AW111 -> 293250 | BD143: =$C$143*'[1]Production plan'!AX111 -> 370875 | BE143: =$C$143*'[1]Production plan'!AY111 -> 370875 | BF143: =$C$143*'[1]Production plan'!AZ111 -> 370875 | BG143: =$C$143*'[1]Production plan'!BA111 -> 168187.5 | BH143: =$C$143*'[1]Production plan'!BB111 -> 0 | BI143: =$C$143*'[1]Production plan'!BC111 -> 0 | BJ143: =$C$143*'[1]Production plan'!BD111 -> 0 | BK143: =$C$143*'[1]Production plan'!BE111 -> 0 | BL143: =$C$143*'[1]Production plan'!BF111 -> 0 | BM143: =$C$143*'[1]Production plan'!BG111 -> 0 | BN143: =$C$143*'[1]Production plan'!BH111 -> 215625 | BO143: =$C$143*'[1]Production plan'!BI111 -> 372600 | BP143: =$C$143*'[1]Production plan'!BJ111 -> 223387.5 | BQ143: =$C$143*'[1]Production plan'!BK111 -> 372600 | BR143: =$C$143*'[1]Production plan'!BL111 -> 372600 | BS143: =$C$143*'[1]Production plan'!BM111 -> 372600 | BT143: =$C$143*'[1]Production plan'!BN111 -> 327750 | BU143: =$C$143*'[1]Production plan'!BO111 -> 0 | BV143: =$C$143*'[1]Production plan'!BP111 -> 0 | BW143: =$C$143*'[1]Production plan'!BQ111 -> 0 | BX143: =$C$143*'[1]Production plan'!BR111 -> 372600 | BY143: =$C$143*'[1]Production plan'!BS111 -> 372600 | BZ143: =$C$143*'[1]Production plan'!BT111 -> 0
G145: Supply | V145: 688000 | Y145: 692737 | AY145: 688000 | BB145: 688000 | BI145: 688000 | BK145: 688000 | BM145: 688000 | BO145: 688000 | BQ145: 688000 | BW145: 688000
G147: % | I147: =I148/AVERAGE(J143:P143) -> 110.9974425 | J147: 92.57809984 | K147: 78.50080515 | L147: 59.02269949 | M147: 53.1726528 | N147: 41.01325406 | O147: 36.33835993 | P147: =P148/AVERAGE(Q143:W143) -> 30.41645629 | Q147: =Q148/AVERAGE(R143:X143) -> 23.30025575 | R147: 18.76896135 | S147: 19.21906851 | T147: 19.78827977 | U147: 22.56834059 | V147: 38.37468534 | W147: 30.9777927 | X147: 27.41943286 | Y147: 43.5008663 | Z147: 35.53726096 | AA147: 35.53726096 | AB147: 35.53726096 | AC147: 41.32595802 | AD147: 63.2425318 | AE147: 162.5741 | AS147: 96.45594203 | AT147: 32.15198068 | AU147: 17.53744401 | AV147: 10.8377463 | AW147: 7.307268336 | AX147: 5.511768116 | AY147: 6.985946018 | AZ147: 6.386532887 | BA147: 6.327403527 | BB147: 9.294865992 | BC147: 9.820289855 | BD147: 10.96979188 | BE147: 13.7010087 | BF147: 28.47759197 | BG147: 16.75252174 | BH147: 6.140953717 | BI147: 10.38458932 | BJ147: 7.117187582 | BK147: 8.507294552 | BL147: 6.864401729 | BM147: 8.001312489 | BN147: 8.107070039 | BO147: 11.23989814 | BP147: 11.89510913 | BQ147: 13.42241707 | BR147: 11.61812113 | BS147: 13.22184165 | BT147: 13.67854267 | BU147: 11.39878556 | BV147: 9.119028449 | BW147: 9.608997585 | BX147: 10.81199678
G148: Inventory | I148: 930000 | J148: =I148+J145-J143 -> 923962.5 | K148: =J148+K145-K143 -> 914043.75 | L148: 905418.75 | M148: 904125 | N148: 886875 | O148: 884287.5 | P148: 871350 | Q148: 854100 | R148: 832537.5 | S148: =R148+S145-S143 -> 798037.5 | T148: =S148+T145-T143 -> 785100 | U148: 735506.25 | V148: 1401943.75 | W148: 1358818.75 | X148: 1285506.25 | Y148: =X148+Y145-Y143 -> 1902774.5 | Z148: 1480000 | AA148: =Z148+AA145-AA143 -> 1480000 | AB148: 1480000 | AC148: 1430837.5 | AD148: 1336393.75 | AE148: 1241950 | AF148: 1188475 | AG148: 1188475 | AH148: 1188475 | AI148: 1188475 | AJ148: 1188475 | AK148: 1188475 | AL148: 1188475 | AM148: 1188475 | AN148: 1188475 | AO148: 1188475 | AP148: 1188475 | AQ148: 1188475 | AR148: 1188475 | AS148: 1188475 | AT148: 1188475 | AU148: 1188475 | AV148: 1188475 | AW148: 1188475 | AX148: 1188475 | AY148: 1876475 | AZ148: 1790225 | BA148: 1617725 | BB148: 2090100 | BC148: 1796850 | BD148: 1425975 | BE148: 1055100 | BF148: 684225 | BG148: 516037.5 | BH148: 516037.5 | BI148: 1204037.5 | BJ148: 1204037.5 | BK148: 1892037.5 | BL148: 1892037.5 | BM148: 2580037.5 | BN148: 2364412.5 | BO148: 2679812.5 | BP148: 2456425 | BQ148: 2771825 | BR148: 2399225 | BS148: 2026625 | BT148: 1698875 | BU148: 1698875 | BV148: 1698875 | BW148: 2386875 | BX148: 2014275 | BY148: 1641675 | BZ148: 1641675
A150: CHP001017 | B150: T | D150: =35.8*1.15 -> 41.17 | E150: 12 | F150: 12 | G150: Need | H150: =SUM(I152:BZ152) -> 3451456 | I150: =$D$150*'[1]Production plan'!C114 -> 0 | J150: =$D$150*'[1]Production plan'!D114 -> 0 | K150: =$D$150*'[1]Production plan'!E114 -> 0 | L150: =$D$150*'[1]Production plan'!F114 -> 0 | M150: =$D$150*'[1]Production plan'!G114 -> 0 | N150: =$D$150*'[1]Production plan'!H114 -> 0 | O150: =$D$150*'[1]Production plan'!I114 -> 0 | P150: =$D$150*'[1]Production plan'!J114 -> 0 | Q150: =$D$150*'[1]Production plan'!K114 -> 0 | R150: =$D$150*'[1]Production plan'!L114 -> 0 | S150: =$D$150*'[1]Production plan'!M114 -> 0 | T150: =$D$150*'[1]Production plan'!N114 -> 0 | U150: =$D$150*'[1]Production plan'!O114 -> 0 | V150: =$D$150*'[1]Production plan'!P114 -> 0 | W150: =$D$150*'[1]Production plan'!Q114 -> 0 | X150: =$D$150*'[1]Production plan'!R114 -> 0 | Y150: =$D$150*'[1]Production plan'!S114 -> 0 | Z150: =$D$150*'[1]Production plan'!T114 -> 0 | AA150: =$D$150*'[1]Production plan'!U114 -> 0 | AB150: =$D$150*'[1]Production plan'!V114 -> 0 | AC150: =$D$150*'[1]Production plan'!W114 -> 0 | AD150: =$D$150*'[1]Production plan'!X114 -> 0 | AE150: =$D$150*'[1]Production plan'!Y114 -> 0 | AF150: =$D$150*'[1]Production plan'!Z114 -> 0 | AG150: =$D$150*'[1]Production plan'!AA114 -> 0 | AH150: =$D$150*'[1]Production plan'!AB114 -> 6175.5 | AI150: =$D$150*'[1]Production plan'!AC114 -> 10292.5 | AJ150: =$D$150*'[1]Production plan'!AD114 -> 12351 | AK150: =$D$150*'[1]Production plan'!AE114 -> 16468 | AL150: =$D$150*'[1]Production plan'!AF114 -> 24702 | AM150: =$D$150*'[1]Production plan'!AG114 -> 30877.5 | AN150: =$D$150*'[1]Production plan'!AH114 -> 41170 | AO150: =$D$150*'[1]Production plan'!AI114 -> 59284.8 | AP150: =$D$150*'[1]Production plan'!AJ114 -> 69165.6 | AQ150: =$D$150*'[1]Production plan'!AK114 -> 69165.6 | AR150: =$D$150*'[1]Production plan'!AL114 -> 69165.6 | AS150: =$D$150*'[1]Production plan'!AM114 -> 69165.6 | AT150: =$D$150*'[1]Production plan'!AN114 -> 69165.6 | AU150: =$D$150*'[1]Production plan'!AO114 -> 0 | AV150: =$D$150*'[1]Production plan'!AP114 -> 94691 | AW150: =$D$150*'[1]Production plan'!AQ114 -> 105189.35 | AX150: =$D$150*'[1]Production plan'!AR114 -> 0 | AY150: =$D$150*'[1]Production plan'!AS114 -> 0 | AZ150: =$D$150*'[1]Production plan'!AT114 -> 0 | BA150: =$D$150*'[1]Production plan'!AU114 -> 0 | BB150: =$D$150*'[1]Production plan'!AV114 -> 0 | BC150: =$D$150*'[1]Production plan'!AW114 -> 0 | BD150: =$D$150*'[1]Production plan'!AX114 -> 0 | BE150: =$D$150*'[1]Production plan'!AY114 -> 0 | BF150: =$D$150*'[1]Production plan'!AZ114 -> 0 | BG150: =$D$150*'[1]Production plan'!BA114 -> 0 | BH150: =$D$150*'[1]Production plan'!BB114 -> 205850 | BI150: =$D$150*'[1]Production plan'!BC114 -> 354062 | BJ150: =$D$150*'[1]Production plan'!BD114 -> 284073 | BK150: =$D$150*'[1]Production plan'!BE114 -> 354062 | BL150: =$D$150*'[1]Production plan'!BF114 -> 354062 | BM150: =$D$150*'[1]Production plan'!BG114 -> 279956 | BN150: =$D$150*'[1]Production plan'!BH114 -> 0 | BO150: =$D$150*'[1]Production plan'!BI114 -> 0 | BP150: =$D$150*'[1]Production plan'!BJ114 -> 0 | BQ150: =$D$150*'[1]Production plan'!BK114 -> 0 | BR150: =$D$150*'[1]Production plan'!BL114 -> 0 | BS150: =$D$150*'[1]Production plan'!BM114 -> 0 | BT150: =$D$150*'[1]Production plan'!BN114 -> 0 | BU150: =$D$150*'[1]Production plan'!BO114 -> 354062 | BV150: =$D$150*'[1]Production plan'!BP114 -> 354062 | BW150: =$D$150*'[1]Production plan'!BQ114 -> 294365.5 | BX150: =$D$150*'[1]Production plan'!BR114 -> 0 | BY150: =$D$150*'[1]Production plan'!BS114 -> 0 | BZ150: =$D$150*'[1]Production plan'!BT114 -> 0
G152: Supply | N152: 54456 | AJ152: =202979/0.107 -> 1897000 | BP152: 500000 | BR152: 500000 | BT152: 500000
G154: % | I154: =I155/AVERAGE(J150:P150) ->  | P154: =P155/AVERAGE(Q150:W150) ->  | Q154: =Q155/AVERAGE(R150:X150) ->  | AA154: 794.5178528 | AB154: 297.9441948 | AC154: 170.2538256 | AD154: 108.3433436 | AE154: 70.10451642 | AF154: 48.64395017 | AG154: 34.54425447 | AH154: 24.92145104 | AI154: 18.86186028 | AJ154: 57.85673681 | AK154: 49.15270248 | AL154: 43.37218596 | AM154: 39.16682314 | AN154: 42.43580924 | AO154: 38.08302457 | AP154: 34.1881955 | AQ154: 38.80428124 | AR154: 45.30838258 | AS154: 55.15659723 | AT154: 71.82046609 | AU154: 71.82046609 | AV154: 130.1715706 | BA154: 62.94067258 | BB154: 23.13995315 | BC154: 15.35138356 | BD154: 10.81454855 | BE154: 8.347569307 | BF154: 7.071985683 | BG154: 7.071985683 | BH154: 7.081097795 | BI154: 7.103668702 | BJ154: 7.133473454 | BK154: 7.208010577 | BL154: 7.471082777 | BN154: 0.3724840565 | BO154: 0.1862420282 | BP154: 3.622863332 | BQ154: 3.622863332 | BR154: 7.11417172 | BS154: 7.11417172 | BT154: 9.090411521 | BU154: 8.981561933 | BV154: 11.01645879
G155: Inventory | I155: 646479 | J155: =I155+J152-J150 -> 646479 | K155: =J155+K152-K150 -> 646479 | L155: 646479 | M155: 646479 | N155: 700935 | O155: 700935 | P155: 700935 | Q155: 700935 | R155: 700935 | S155: 700935 | T155: 700935 | U155: 700935 | V155: 700935 | W155: 700935 | X155: 700935 | Y155: 700935 | Z155: 700935 | AA155: 700935 | AB155: 700935 | AC155: 700935 | AD155: 700935 | AE155: 700935 | AF155: 700935 | AG155: 700935 | AH155: 694759.5 | AI155: =AH155+AI152-AI150 -> 684467 | AJ155: =AI155+AJ152-AJ150 -> 2569116 | AK155: 2552648 | AL155: 2527946 | AM155: 2497068.5 | AN155: 2455898.5 | AO155: 2396613.7 | AP155: 2327448.1 | AQ155: 2258282.5 | AR155: 2189116.9 | AS155: 2119951.3 | AT155: 2050785.7 | AU155: 2050785.7 | AV155: 1956094.7 | AW155: 1850905.35 | AX155: 1850905.35 | AY155: 1850905.35 | AZ155: 1850905.35 | BA155: 1850905.35 | BB155: 1850905.35 | BC155: 1850905.35 | BD155: 1850905.35 | BE155: 1850905.35 | BF155: 1850905.35 | BG155: 1850905.35 | BH155: 1645055.35 | BI155: 1290993.35 | BJ155: 1006920.35 | BK155: 652858.35 | BL155: 298796.35 | BM155: 18840.35 | BN155: 18840.35 | BO155: 18840.35 | BP155: 518840.35 | BQ155: 518840.35 | BR155: 1018840.35 | BS155: 1018840.35 | BT155: 1518840.35 | BU155: 1164778.35 | BV155: 810716.35 | BW155: 516350.85 | BX155: 516350.85 | BY155: 516350.85 | BZ155: 516350.85
A157: MEP001011 | B157: U | C157: =0.076+0.12 -> 0.196 | D157: =0.006*4+0.022*2 -> 0.068 | E157: 4 | F157: 9 | G157: Need | H157: =SUM(I159:BZ159) -> 15180 | I157: =$C$157*'[1]Production plan'!C123+$D$157*'[1]Production plan'!C126 -> 0 | J157: =$C$157*'[1]Production plan'!D123+$D$157*'[1]Production plan'!D126 -> 1.96 | K157: =$C$157*'[1]Production plan'!E123+$D$157*'[1]Production plan'!E126 -> 3.136 | L157: =$C$157*'[1]Production plan'!F123+$D$157*'[1]Production plan'!F126 -> 11.76 | M157: =$C$157*'[1]Production plan'!G123+$D$157*'[1]Production plan'!G126 -> 1.96 | N157: =$C$157*'[1]Production plan'!H123+$D$157*'[1]Production plan'!H126 -> 23.52 | O157: =$C$157*'[1]Production plan'!I123+$D$157*'[1]Production plan'!I126 -> 3.528 | P157: =$C$157*'[1]Production plan'!J123+$D$157*'[1]Production plan'!J126 -> 17.64 | Q157: =$C$157*'[1]Production plan'!K123+$D$157*'[1]Production plan'!K126 -> 27.44 | R157: =$C$157*'[1]Production plan'!L123+$D$157*'[1]Production plan'!L126 -> 34.3 | S157: =$C$157*'[1]Production plan'!M123+$D$157*'[1]Production plan'!M126 -> 54.88 | T157: =$C$157*'[1]Production plan'!N123+$D$157*'[1]Production plan'!N126 -> 19.6 | U157: =$C$157*'[1]Production plan'!O123+$D$157*'[1]Production plan'!O126 -> 88.2 | V157: =$C$157*'[1]Production plan'!P123+$D$157*'[1]Production plan'!P126 -> 39.2 | W157: =$C$157*'[1]Production plan'!Q123+$D$157*'[1]Production plan'!Q126 -> 81.34 | X157: =$C$157*'[1]Production plan'!R123+$D$157*'[1]Production plan'!R126 -> 144.06 | Y157: =$C$157*'[1]Production plan'!S123+$D$157*'[1]Production plan'!S126 -> 149.94 | Z157: =$C$157*'[1]Production plan'!T123+$D$157*'[1]Production plan'!T126 -> 28.812 | AA157: =$C$157*'[1]Production plan'!U123+$D$157*'[1]Production plan'!U126 -> 0 | AB157: =$C$157*'[1]Production plan'!V123+$D$157*'[1]Production plan'!V126 -> 0 | AC157: =$C$157*'[1]Production plan'!W123+$D$157*'[1]Production plan'!W126 -> 94.08 | AD157: =$C$157*'[1]Production plan'!X123+$D$157*'[1]Production plan'!X126 -> 182.28 | AE157: =$C$157*'[1]Production plan'!Y123+$D$157*'[1]Production plan'!Y126 -> 182.28 | AF157: =$C$157*'[1]Production plan'!Z123+$D$157*'[1]Production plan'!Z126 -> 102.9 | AG157: =$C$157*'[1]Production plan'!AA123+$D$157*'[1]Production plan'!AA126 -> 0 | AH157: =$C$157*'[1]Production plan'!AB123+$D$157*'[1]Production plan'!AB126 -> 0 | AI157: =$C$157*'[1]Production plan'!AC123+$D$157*'[1]Production plan'!AC126 -> 0 | AJ157: =$C$157*'[1]Production plan'!AD123+$D$157*'[1]Production plan'!AD126 -> 2.04 | AK157: =$C$157*'[1]Production plan'!AE123+$D$157*'[1]Production plan'!AE126 -> 5.1 | AL157: =$C$157*'[1]Production plan'!AF123+$D$157*'[1]Production plan'!AF126 -> 10.2 | AM157: =$C$157*'[1]Production plan'!AG123+$D$157*'[1]Production plan'!AG126 -> 17 | AN157: =$C$157*'[1]Production plan'!AH123+$D$157*'[1]Production plan'!AH126 -> 34 | AO157: =$C$157*'[1]Production plan'!AI123+$D$157*'[1]Production plan'!AI126 -> 40.8 | AP157: =$C$157*'[1]Production plan'!AJ123+$D$157*'[1]Production plan'!AJ126 -> 68 | AQ157: =$C$157*'[1]Production plan'!AK123+$D$157*'[1]Production plan'!AK126 -> 85 | AR157: =$C$157*'[1]Production plan'!AL123+$D$157*'[1]Production plan'!AL126 -> 102 | AS157: =$C$157*'[1]Production plan'!AM123+$D$157*'[1]Production plan'!AM126 -> 102 | AT157: =$C$157*'[1]Production plan'!AN123+$D$157*'[1]Production plan'!AN126 -> 102 | AU157: =$C$157*'[1]Production plan'!AO123+$D$157*'[1]Production plan'!AO126 -> 0 | AV157: =$C$157*'[1]Production plan'!AP123+$D$157*'[1]Production plan'!AP126 -> 144.16 | AW157: =$C$157*'[1]Production plan'!AQ123+$D$157*'[1]Production plan'!AQ126 -> 156.4 | AX157: =$C$157*'[1]Production plan'!AR123+$D$157*'[1]Production plan'!AR126 -> 0 | AY157: =$C$157*'[1]Production plan'!AS123+$D$157*'[1]Production plan'!AS126 -> 0 | AZ157: =$C$157*'[1]Production plan'!AT123+$D$157*'[1]Production plan'!AT126 -> 78.4 | BA157: =$C$157*'[1]Production plan'!AU123+$D$157*'[1]Production plan'!AU126 -> 147 | BB157: =$C$157*'[1]Production plan'!AV123+$D$157*'[1]Production plan'!AV126 -> 294 | BC157: =$C$157*'[1]Production plan'!AW123+$D$157*'[1]Production plan'!AW126 -> 539 | BD157: =$C$157*'[1]Production plan'!AX123+$D$157*'[1]Production plan'!AX126 -> 686 | BE157: =$C$157*'[1]Production plan'!AY123+$D$157*'[1]Production plan'!AY126 -> 842.8 | BF157: =$C$157*'[1]Production plan'!AZ123+$D$157*'[1]Production plan'!AZ126 -> 842.8 | BG157: =$C$157*'[1]Production plan'!BA123+$D$157*'[1]Production plan'!BA126 -> 323.4 | BH157: =$C$157*'[1]Production plan'!BB123+$D$157*'[1]Production plan'!BB126 -> 204 | BI157: =$C$157*'[1]Production plan'!BC123+$D$157*'[1]Production plan'!BC126 -> 476 | BJ157: =$C$157*'[1]Production plan'!BD123+$D$157*'[1]Production plan'!BD126 -> 476 | BK157: =$C$157*'[1]Production plan'!BE123+$D$157*'[1]Production plan'!BE126 -> 476 | BL157: =$C$157*'[1]Production plan'!BF123+$D$157*'[1]Production plan'!BF126 -> 476 | BM157: =$C$157*'[1]Production plan'!BG123+$D$157*'[1]Production plan'!BG126 -> 302.6 | BN157: =$C$157*'[1]Production plan'!BH123+$D$157*'[1]Production plan'!BH126 -> 352.8 | BO157: =$C$157*'[1]Production plan'!BI123+$D$157*'[1]Production plan'!BI126 -> 588 | BP157: =$C$157*'[1]Production plan'!BJ123+$D$157*'[1]Production plan'!BJ126 -> 588 | BQ157: =$C$157*'[1]Production plan'!BK123+$D$157*'[1]Production plan'!BK126 -> 686 | BR157: =$C$157*'[1]Production plan'!BL123+$D$157*'[1]Production plan'!BL126 -> 686 | BS157: =$C$157*'[1]Production plan'!BM123+$D$157*'[1]Production plan'!BM126 -> 686 | BT157: =$C$157*'[1]Production plan'!BN123+$D$157*'[1]Production plan'!BN126 -> 637 | BU157: =$C$157*'[1]Production plan'!BO123+$D$157*'[1]Production plan'!BO126 -> 496.4 | BV157: =$C$157*'[1]Production plan'!BP123+$D$157*'[1]Production plan'!BP126 -> 496.4 | BW157: =$C$157*'[1]Production plan'!BQ123+$D$157*'[1]Production plan'!BQ126 -> 341.7 | BX157: =$C$157*'[1]Production plan'!BR123+$D$157*'[1]Production plan'!BR126 -> 588 | BY157: =$C$157*'[1]Production plan'!BS123+$D$157*'[1]Production plan'!BS126 -> 725.2 | BZ157: =$C$157*'[1]Production plan'!BT123+$D$157*'[1]Production plan'!BT126 -> 0
G159: Supply | Q159: 1320 | AE159: 660 | AY159: 1320 | BB159: 1320 | BE159: =66*40 -> 2640 | BK159: =66*40 -> 2640 | BO159: =66*40 -> 2640 | BS159: 1320 | BW159: 1320
G161: % | I161: =I162/AVERAGE(J157:P157) -> 152.7777778 | J161: 108.876652 | K161: 80.45350734 | L161: 58.70108043 | M161: 52.90140845 | N161: 38.29848364 | O161: 33.3533101 | P161: =P162/AVERAGE(Q157:W157) -> 26.83636364 | Q161: =Q162/AVERAGE(R157:X157) -> 39.65811344 | R161: 31.29706524 | S161: 32.08031904 | T161: 33.00510957 | U161: 38.17853985 | V161: 33.42244577 | W161: 26.84162811 | X161: 14.49657354 | Y161: 13.87379055 | Z161: 14.22647719 | AA161: 14.22647719 | AB161: 14.22647719 | AC161: 15.61272843 | AD161: 20.71091954 | AE161: 78.16247505 | AF161: 252.7069307 | AG161: 126.9820896 | AH161: 79.51214953 | AI161: 48.98925144 | AJ161: 33.30901961 | AK161: 24.168 | AL161: 19.06545455 | AM161: 15.8066242 | AN161: 16.40571429 | AO161: 13.12085682 | AP161: 10.7553589 | AQ161: 11.28161435 | AR161: 12.14716981 | AS161: 11.25868263 | AT161: 8.937896418 | AU161: 5.733177228 | AV161: 3.039064867 | AW161: 1.488796148 | AX161: 1.003809524 | AY161: 3.451036735 | AZ161: 3.071634286 | BA161: 2.748996785 | BB161: 4.456120593 | BC161: 3.549274474 | BD161: 2.435115628 | BE161: 6.5501973 | BF161: 5.686560351 | BG161: 4.806852428 | BH161: 3.766682341 | BI161: 2.61497699 | BJ161: 1.496297919 | BK161: 5.527873023 | BL161: 4.3727197 | BM161: 3.525038117 | BN161: 2.843672666 | BO161: 6.263963703 | BP161: 5.625376846 | BQ161: 4.544183136 | BR161: 3.289962979 | BS161: 5.328174871 | BT161: 4.222248744 | BU161: 3.176702459 | BV161: 2.103832256 | BW161: 4.223365824 | BX161: 3.47685604
G162: Inventory | I162: 1386 | J162: =I162+J159-J157 -> 1384.04 | K162: =J162+K159-K157 -> 1380.904 | L162: =K162+L159-L157 -> 1369.144 | M162: =L162+M159-M157 -> 1367.184 | N162: 1343.664 | O162: 1340.136 | P162: 1322.496 | Q162: 2615.056 | R162: 2580.756 | S162: 2525.876 | T162: 2506.276 | U162: 2418.076 | V162: 2378.876 | W162: 2297.536 | X162: =66*20 -> 1320 | Y162: =X162+Y159-Y157 -> 1170.06 | Z162: 1141.248 | AA162: 1141.248 | AB162: 1141.248 | AC162: 1047.168 | AD162: 864.888 | AE162: 1342.608 | AF162: 1239.708 | AG162: 1239.708 | AH162: 1239.708 | AI162: 1239.708 | AJ162: 1237.668 | AK162: 1232.568 | AL162: 1222.368 | AM162: 1205.368 | AN162: 1171.368 | AO162: 1130.568 | AP162: 1062.568 | AQ162: 977.568 | AR162: 875.568 | AS162: 773.568 | AT162: 671.568 | AU162: 671.568 | AV162: 527.408 | AW162: 371.008 | AX162: 371.008 | AY162: 1691.008 | AZ162: 1612.608 | BA162: 1465.608 | BB162: 2491.608 | BC162: 1952.608 | BD162: 1266.608 | BE162: 3063.808 | BF162: 2221.008 | BG162: 1897.608 | BH162: 1693.608 | BI162: 1217.608 | BJ162: 741.608 | BK162: 2905.608 | BL162: 2429.608 | BM162: 2127.008 | BN162: 1774.208 | BO162: 3826.208 | BP162: 3238.208 | BQ162: 2552.208 | BR162: 1866.208 | BS162: 2500.208 | BT162: 1863.208 | BU162: 1366.808 | BV162: 870.408 | BW162: 1848.708 | BX162: 1260.708 | BY162: 535.508 | BZ162: 535.508
A164: MEP001013 | B164: V | C164: =0.018*4 -> 0.072 | E164: 4 | F164: 9 | G164: Need | H164: =SUM(I166:BZ166) -> 4620 | I164: =$C$164*'[1]Production plan'!C123 -> 0 | J164: =$C$164*'[1]Production plan'!D123 -> 0.72 | K164: =$C$164*'[1]Production plan'!E123 -> 1.152 | L164: =$C$164*'[1]Production plan'!F123 -> 4.32 | M164: =$C$164*'[1]Production plan'!G123 -> 0.72 | N164: =$C$164*'[1]Production plan'!H123 -> 8.64 | O164: =$C$164*'[1]Production plan'!I123 -> 1.296 | P164: =$C$164*'[1]Production plan'!J123 -> 6.48 | Q164: =$C$164*'[1]Production plan'!K123 -> 10.08 | R164: =$C$164*'[1]Production plan'!L123 -> 12.6 | S164: =$C$164*'[1]Production plan'!M123 -> 20.16 | T164: =$C$164*'[1]Production plan'!N123 -> 7.2 | U164: =$C$164*'[1]Production plan'!O123 -> 32.4 | V164: =$C$164*'[1]Production plan'!P123 -> 14.4 | W164: =$C$164*'[1]Production plan'!Q123 -> 29.88 | X164: =$C$164*'[1]Production plan'!R123 -> 52.92 | Y164: =$C$164*'[1]Production plan'!S123 -> 55.08 | Z164: =$C$164*'[1]Production plan'!T123 -> 10.584 | AA164: =$C$164*'[1]Production plan'!U123 -> 0 | AB164: =$C$164*'[1]Production plan'!V123 -> 0 | AC164: =$C$164*'[1]Production plan'!W123 -> 34.56 | AD164: =$C$164*'[1]Production plan'!X123 -> 66.96 | AE164: =$C$164*'[1]Production plan'!Y123 -> 66.96 | AF164: =$C$164*'[1]Production plan'!Z123 -> 37.8 | AG164: =$C$164*'[1]Production plan'!AA123 -> 0 | AH164: =$C$164*'[1]Production plan'!AB123 -> 0 | AI164: =$C$164*'[1]Production plan'!AC123 -> 0 | AJ164: =$C$164*'[1]Production plan'!AD123 -> 0 | AK164: =$C$164*'[1]Production plan'!AE123 -> 0 | AL164: =$C$164*'[1]Production plan'!AF123 -> 0 | AM164: =$C$164*'[1]Production plan'!AG123 -> 0 | AN164: =$C$164*'[1]Production plan'!AH123 -> 0 | AO164: =$C$164*'[1]Production plan'!AI123 -> 0 | AP164: =$C$164*'[1]Production plan'!AJ123 -> 0 | AQ164: =$C$164*'[1]Production plan'!AK123 -> 0 | AR164: =$C$164*'[1]Production plan'!AL123 -> 0 | AS164: =$C$164*'[1]Production plan'!AM123 -> 0 | AT164: =$C$164*'[1]Production plan'!AN123 -> 0 | AU164: =$C$164*'[1]Production plan'!AO123 -> 0 | AV164: =$C$164*'[1]Production plan'!AP123 -> 0 | AW164: =$C$164*'[1]Production plan'!AQ123 -> 0 | AX164: =$C$164*'[1]Production plan'!AR123 -> 0 | AY164: =$C$164*'[1]Production plan'!AS123 -> 0 | AZ164: =$C$164*'[1]Production plan'!AT123 -> 28.8 | BA164: =$C$164*'[1]Production plan'!AU123 -> 54 | BB164: =$C$164*'[1]Production plan'!AV123 -> 108 | BC164: =$C$164*'[1]Production plan'!AW123 -> 198 | BD164: =$C$164*'[1]Production plan'!AX123 -> 252 | BE164: =$C$164*'[1]Production plan'!AY123 -> 309.6 | BF164: =$C$164*'[1]Production plan'!AZ123 -> 309.6 | BG164: =$C$164*'[1]Production plan'!BA123 -> 118.8 | BH164: =$C$164*'[1]Production plan'!BB123 -> 0 | BI164: =$C$164*'[1]Production plan'!BC123 -> 0 | BJ164: =$C$164*'[1]Production plan'!BD123 -> 0 | BK164: =$C$164*'[1]Production plan'!BE123 -> 0 | BL164: =$C$164*'[1]Production plan'!BF123 -> 0 | BM164: =$C$164*'[1]Production plan'!BG123 -> 0 | BN164: =$C$164*'[1]Production plan'!BH123 -> 129.6 | BO164: =$C$164*'[1]Production plan'!BI123 -> 216 | BP164: =$C$164*'[1]Production plan'!BJ123 -> 216 | BQ164: =$C$164*'[1]Production plan'!BK123 -> 252 | BR164: =$C$164*'[1]Production plan'!BL123 -> 252 | BS164: =$C$164*'[1]Production plan'!BM123 -> 252 | BT164: =$C$164*'[1]Production plan'!BN123 -> 234 | BU164: =$C$164*'[1]Production plan'!BO123 -> 0 | BV164: =$C$164*'[1]Production plan'!BP123 -> 0 | BW164: =$C$164*'[1]Production plan'!BQ123 -> 0 | BX164: =$C$164*'[1]Production plan'!BR123 -> 216 | BY164: =$C$164*'[1]Production plan'!BS123 -> 266.4 | BZ164: =$C$164*'[1]Production plan'!BT123 -> 0
G166: Supply | Q166: 660 | AN166: 660 | AY166: 660 | BE166: 660 | BK166: 660 | BO166: 660 | BW166: 660
G168: % | I168: =I169/AVERAGE(J164:P164) -> 118.8271605 | J168: 84.64757709 | K168: 62.50897227 | L168: 45.49579832 | M168: 40.98374865 | N168: 29.51955307 | O168: 25.68780488 | P168: =P169/AVERAGE(Q164:W164) -> 20.58636364 | Q168: =Q169/AVERAGE(R164:X164) -> 42.21599434 | R168: 33.34250141 | S168: 34.22249881 | T168: 35.22627827 | U168: 40.84158562 | V168: 35.79215841 | W168: 28.81212518 | X168: 19.73144731 | Y168: 19.52578575 | Z168: 20.16847004 | AA168: 20.16847004 | AB168: 20.16847004 | AC168: 22.81872816 | AD168: 32.92966781 | AE168: 78.86222222 | AS168: 254.7358333 | AT168: 88.60376812 | AU168: 38.45069182 | AV168: 18.86932099 | AW168: 11.4488015 | AX168: 7.719267677 | AY168: 9.4892 | AZ168: 8.707253333 | BA168: 8.778388889 | BB168: 8.940060606 | BC168: 9.328072727 | BD168: 10.12302439 | BE168: 23.16431373 | BF168: 65.28949495 | BG168: 53.43203704 | BH168: 20.03701389 | BI168: 12.33047009 | BJ168: 8.511297935 | BK168: 10.83407658 | BL168: 8.761985428 | BM168: 7.440572312 | BN168: 7.480725738 | BO168: 11.39767164 | BP168: 12.35716364 | BQ168: 10.97441509 | BR168: 8.989665428 | BS168: 9.689547739 | BT168: 9.42358209 | BU168: 7.852985075 | BV168: 6.28238806 | BW168: 8.816268657 | BX168: 9.021441441
G169: Inventory | I169: 396 | J169: =I169+J166-J164 -> 395.28 | K169: =J169+K166-K164 -> 394.128 | L169: =K169+L166-L164 -> 389.808 | M169: =L169+M166-M164 -> 389.088 | N169: 380.448 | O169: 379.152 | P169: 372.672 | Q169: 1022.592 | R169: 1009.992 | S169: 989.832 | T169: 982.632 | U169: 950.232 | V169: 935.832 | W169: 905.952 | X169: 660 | Y169: =X169+Y166-Y164 -> 604.92 | Z169: 594.336 | AA169: 594.336 | AB169: 594.336 | AC169: 559.776 | AD169: 492.816 | AE169: 425.856 | AF169: 388.056 | AG169: 388.056 | AH169: 388.056 | AI169: 388.056 | AJ169: 388.056 | AK169: 388.056 | AL169: 388.056 | AM169: 388.056 | AN169: 1048.056 | AO169: 1048.056 | AP169: 1048.056 | AQ169: 1048.056 | AR169: 1048.056 | AS169: 1048.056 | AT169: 1048.056 | AU169: 1048.056 | AV169: 1048.056 | AW169: 1048.056 | AX169: 1048.056 | AY169: 1708.056 | AZ169: 1679.256 | BA169: 1625.256 | BB169: 1517.256 | BC169: 1319.256 | BD169: 1067.256 | BE169: 1417.656 | BF169: 1108.056 | BG169: 989.256 | BH169: 989.256 | BI169: 989.256 | BJ169: 989.256 | BK169: 1649.256 | BL169: 1649.256 | BM169: 1649.256 | BN169: 1519.656 | BO169: 1963.656 | BP169: 1747.656 | BQ169: 1495.656 | BR169: 1243.656 | BS169: 991.656 | BT169: 757.656 | BU169: 757.656 | BV169: 757.656 | BW169: 1417.656 | BX169: 1201.656 | BY169: 935.256 | BZ169: 935.256
A171: MEP000019 | B171: W | C171: 1 | E171: 12 | F171: 6 | G171: Need | H171: =SUM(I173:BZ173) -> 7680 | I171: =$C$171*'[1]Production plan'!C123 -> 0 | J171: =$C$171*'[1]Production plan'!D123 -> 10 | K171: =$C$171*'[1]Production plan'!E123 -> 16 | L171: =$C$171*'[1]Production plan'!F123 -> 60 | M171: =$C$171*'[1]Production plan'!G123 -> 10 | N171: =$C$171*'[1]Production plan'!H123 -> 120 | O171: =$C$171*'[1]Production plan'!I123 -> 18 | P171: =$C$171*'[1]Production plan'!J123 -> 90 | Q171: =$C$171*'[1]Production plan'!K123 -> 140 | R171: =$C$171*'[1]Production plan'!L123 -> 175 | S171: =$C$171*'[1]Production plan'!M123 -> 280 | T171: =$C$171*'[1]Production plan'!N123 -> 100 | U171: =$C$171*'[1]Production plan'!O123 -> 450 | V171: =$C$171*'[1]Production plan'!P123 -> 200 | W171: =$C$171*'[1]Production plan'!Q123 -> 415 | X171: =$C$171*'[1]Production plan'!R123 -> 735 | Y171: =$C$171*'[1]Production plan'!S123 -> 765 | Z171: =$C$171*'[1]Production plan'!T123 -> 147 | AA171: =$C$171*'[1]Production plan'!U123 -> 0 | AB171: =$C$171*'[1]Production plan'!V123 -> 0 | AC171: =$C$171*'[1]Production plan'!W123 -> 480 | AD171: =$C$171*'[1]Production plan'!X123 -> 930 | AE171: =$C$171*'[1]Production plan'!Y123 -> 930 | AF171: =$C$171*'[1]Production plan'!Z123 -> 525
G173: Supply | Q173: 7680
G175: % | I175: =I176/AVERAGE(J171:P171) -> 162.037037 | J175: 115.4845815 | K175: 85.34747145 | L175: 62.30252101 | M175: 56.15167931 | N175: 40.69273743 | O175: 35.44390244 | P175: =P176/AVERAGE(Q171:W171) -> 28.54090909 | Q175: =Q176/AVERAGE(R171:X171) -> 43.7418259 | R175: 34.56264856 | S175: 35.50035562 | T175: 36.55125369 | U175: 42.43015031 | V175: 37.20574351 | W175: 29.98756951 | X175: 26.60731857 | Y175: 26.94953519 | Z175: 23.97696335 | AA175: 19.98080279 | AB175: 15.98464223 | AC175: 13.79748428 | AD175: 13.79931271 | AE175: 17.35047619
G176: Inventory | I176: 7500 | J176: =I176+J173-J171 -> 7490 | K176: =J176+K173-K171 -> 7474 | L176: 7414 | M176: 7404 | N176: 7284 | O176: 7266 | P176: 7176 | Q176: 14716 | R176: 14541 | S176: 14261 | T176: 14161 | U176: 13711 | V176: 13511 | W176: 13096 | X176: 12361 | Y176: 11596 | Z176: 11449 | AA176: 11449 | AB176: 11449 | AC176: 10969 | AD176: 10039 | AE176: 9109 | AF176: 8584
A178: MEP001009 | B178: X | C178: 1 | E178: 12 | F178: 3 | G178: Need | H178: =SUM(I180:BZ180) -> 7680 | I178: =$C$178*'[1]Production plan'!C123 -> 0 | J178: =$C$178*'[1]Production plan'!D123 -> 10 | K178: =$C$178*'[1]Production plan'!E123 -> 16 | L178: =$C$178*'[1]Production plan'!F123 -> 60 | M178: =$C$178*'[1]Production plan'!G123 -> 10 | N178: =$C$178*'[1]Production plan'!H123 -> 120 | O178: =$C$178*'[1]Production plan'!I123 -> 18 | P178: =$C$178*'[1]Production plan'!J123 -> 90 | Q178: =$C$178*'[1]Production plan'!K123 -> 140 | R178: =$C$178*'[1]Production plan'!L123 -> 175 | S178: =$C$178*'[1]Production plan'!M123 -> 280 | T178: =$C$178*'[1]Production plan'!N123 -> 100 | U178: =$C$178*'[1]Production plan'!O123 -> 450 | V178: =$C$178*'[1]Production plan'!P123 -> 200 | W178: =$C$178*'[1]Production plan'!Q123 -> 415 | X178: =$C$178*'[1]Production plan'!R123 -> 735 | Y178: =$C$178*'[1]Production plan'!S123 -> 765 | Z178: =$C$178*'[1]Production plan'!T123 -> 147 | AA178: =$C$178*'[1]Production plan'!U123 -> 0 | AB178: =$C$178*'[1]Production plan'!V123 -> 0 | AC178: =$C$178*'[1]Production plan'!W123 -> 480 | AD178: =$C$178*'[1]Production plan'!X123 -> 930 | AE178: =$C$178*'[1]Production plan'!Y123 -> 930 | AF178: =$C$178*'[1]Production plan'!Z123 -> 525
G180: Supply | Q180: 7680
G182: % | I182: =I183/AVERAGE(J178:P178) -> 162.037037 | J182: 115.4845815 | K182: 85.34747145 | L182: 62.30252101 | M182: 56.15167931 | N182: 40.69273743 | O182: 35.44390244 | P182: =P183/AVERAGE(Q178:W178) -> 28.54090909 | Q182: =Q183/AVERAGE(R178:X178) -> 43.7418259 | R182: 34.56264856 | S182: 35.50035562 | T182: 36.55125369 | U182: 42.43015031 | V182: 37.20574351 | W182: 29.98756951 | X182: 26.60731857 | Y182: 26.94953519 | Z182: 23.97696335 | AA182: 19.98080279 | AB182: 15.98464223 | AC182: 13.79748428 | AD182: 13.79931271 | AE182: 17.35047619
G183: Inventory | I183: 7500 | J183: =I183+J180-J178 -> 7490 | K183: =J183+K180-K178 -> 7474 | L183: 7414 | M183: 7404 | N183: 7284 | O183: 7266 | P183: 7176 | Q183: 14716 | R183: 14541 | S183: 14261 | T183: 14161 | U183: 13711 | V183: 13511 | W183: 13096 | X183: 12361 | Y183: 11596 | Z183: 11449 | AA183: 11449 | AB183: 11449 | AC183: 10969 | AD183: 10039 | AE183: 9109 | AF183: 8584
A185: MEP000022 | B185: Y | C185: 1 | E185: 12 | F185: 6 | G185: Need | H185: =SUM(I187:BZ187) -> 7680 | I185: =$C$185*'[1]Production plan'!C123 -> 0 | J185: =$C$185*'[1]Production plan'!D123 -> 10 | K185: =$C$185*'[1]Production plan'!E123 -> 16 | L185: =$C$185*'[1]Production plan'!F123 -> 60 | M185: =$C$185*'[1]Production plan'!G123 -> 10 | N185: =$C$185*'[1]Production plan'!H123 -> 120 | O185: =$C$185*'[1]Production plan'!I123 -> 18 | P185: =$C$185*'[1]Production plan'!J123 -> 90 | Q185: =$C$185*'[1]Production plan'!K123 -> 140 | R185: =$C$185*'[1]Production plan'!L123 -> 175 | S185: =$C$185*'[1]Production plan'!M123 -> 280 | T185: =$C$185*'[1]Production plan'!N123 -> 100 | U185: =$C$185*'[1]Production plan'!O123 -> 450 | V185: =$C$185*'[1]Production plan'!P123 -> 200 | W185: =$C$185*'[1]Production plan'!Q123 -> 415 | X185: =$C$185*'[1]Production plan'!R123 -> 735 | Y185: =$C$185*'[1]Production plan'!S123 -> 765 | Z185: =$C$185*'[1]Production plan'!T123 -> 147 | AA185: =$C$185*'[1]Production plan'!U123 -> 0 | AB185: =$C$185*'[1]Production plan'!V123 -> 0 | AC185: =$C$185*'[1]Production plan'!W123 -> 480 | AD185: =$C$185*'[1]Production plan'!X123 -> 930 | AE185: =$C$185*'[1]Production plan'!Y123 -> 930 | AF185: =$C$185*'[1]Production plan'!Z123 -> 525
G187: Supply | Q187: 7680
G189: % | I189: =I190/AVERAGE(J185:P185) -> 162.037037 | J189: 115.4845815 | K189: 85.34747145 | L189: 62.30252101 | M189: 56.15167931 | N189: 40.69273743 | O189: 35.44390244 | P189: =P190/AVERAGE(Q185:W185) -> 28.54090909 | Q189: =Q190/AVERAGE(R185:X185) -> 43.7418259 | R189: 34.56264856 | S189: 35.50035562 | T189: 36.55125369 | U189: 42.43015031 | V189: 37.20574351 | W189: 29.98756951 | X189: 26.60731857 | Y189: 26.94953519 | Z189: 23.97696335 | AA189: 19.98080279 | AB189: 15.98464223 | AC189: 13.79748428 | AD189: 13.79931271 | AE189: 17.35047619
G190: Inventory | I190: 7500 | J190: =I190+J187-J185 -> 7490 | K190: =J190+K187-K185 -> 7474 | L190: 7414 | M190: 7404 | N190: 7284 | O190: 7266 | P190: 7176 | Q190: 14716 | R190: 14541 | S190: 14261 | T190: 14161 | U190: 13711 | V190: 13511 | W190: 13096 | X190: 12361 | Y190: 11596 | Z190: 11449 | AA190: 11449 | AB190: 11449 | AC190: 10969 | AD190: 10039 | AE190: 9109 | AF190: 8584
A192: MEP001010 | B192: Z | C192: 1 | E192: 12 | F192: 3 | G192: Need | H192: =SUM(I194:BZ194) -> 7680 | I192: =$C$192*'[1]Production plan'!C123 -> 0 | J192: =$C$192*'[1]Production plan'!D123 -> 10 | K192: =$C$192*'[1]Production plan'!E123 -> 16 | L192: =$C$192*'[1]Production plan'!F123 -> 60 | M192: =$C$192*'[1]Production plan'!G123 -> 10 | N192: =$C$192*'[1]Production plan'!H123 -> 120 | O192: =$C$192*'[1]Production plan'!I123 -> 18 | P192: =$C$192*'[1]Production plan'!J123 -> 90 | Q192: =$C$192*'[1]Production plan'!K123 -> 140 | R192: =$C$192*'[1]Production plan'!L123 -> 175 | S192: =$C$192*'[1]Production plan'!M123 -> 280 | T192: =$C$192*'[1]Production plan'!N123 -> 100 | U192: =$C$192*'[1]Production plan'!O123 -> 450 | V192: =$C$192*'[1]Production plan'!P123 -> 200 | W192: =$C$192*'[1]Production plan'!Q123 -> 415 | X192: =$C$192*'[1]Production plan'!R123 -> 735 | Y192: =$C$192*'[1]Production plan'!S123 -> 765 | Z192: =$C$192*'[1]Production plan'!T123 -> 147 | AA192: =$C$192*'[1]Production plan'!U123 -> 0 | AB192: =$C$192*'[1]Production plan'!V123 -> 0 | AC192: =$C$192*'[1]Production plan'!W123 -> 480 | AD192: =$C$192*'[1]Production plan'!X123 -> 930 | AE192: =$C$192*'[1]Production plan'!Y123 -> 930 | AF192: =$C$192*'[1]Production plan'!Z123 -> 525
G194: Supply | Q194: 7680
G196: % | I196: =I197/AVERAGE(J192:P192) -> 162.037037 | J196: 115.4845815 | K196: 85.34747145 | L196: 62.30252101 | M196: 56.15167931 | N196: 40.69273743 | O196: 35.44390244 | P196: =P197/AVERAGE(Q192:W192) -> 28.54090909 | Q196: =Q197/AVERAGE(R192:X192) -> 43.7418259 | R196: 34.56264856 | S196: 35.50035562 | T196: 36.55125369 | U196: 42.43015031 | V196: 37.20574351 | W196: 29.98756951 | X196: 26.60731857 | Y196: 26.94953519 | Z196: 23.97696335 | AA196: 19.98080279 | AB196: 15.98464223 | AC196: 13.79748428 | AD196: 13.79931271 | AE196: 17.35047619
G197: Inventory | I197: 7500 | J197: =I197+J194-J192 -> 7490 | K197: =J197+K194-K192 -> 7474 | L197: 7414 | M197: 7404 | N197: 7284 | O197: 7266 | P197: 7176 | Q197: 14716 | R197: 14541 | S197: 14261 | T197: 14161 | U197: 13711 | V197: 13511 | W197: 13096 | X197: 12361 | Y197: 11596 | Z197: 11449 | AA197: 11449 | AB197: 11449 | AC197: 10969 | AD197: 10039 | AE197: 9109 | AF197: 8584
A199: MEP001126 | B199: AA | C199: 1 | E199: 12 | F199: 6 | G199: Need | H199: =SUM(I201:BZ201) -> 50000 | AG199: =$C$199*'[1]Production plan'!AA123 -> 0 | AH199: =$C$199*'[1]Production plan'!AB123 -> 0 | AI199: =$C$199*'[1]Production plan'!AC123 -> 0 | AJ199: =$C$199*'[1]Production plan'!AD123 -> 0 | AK199: =$C$199*'[1]Production plan'!AE123 -> 0 | AL199: =$C$199*'[1]Production plan'!AF123 -> 0 | AM199: =$C$199*'[1]Production plan'!AG123 -> 0 | AN199: =$C$199*'[1]Production plan'!AH123 -> 0 | AO199: =$C$199*'[1]Production plan'!AI123 -> 0 | AP199: =$C$199*'[1]Production plan'!AJ123 -> 0 | AQ199: =$C$199*'[1]Production plan'!AK123 -> 0 | AR199: =$C$199*'[1]Production plan'!AL123 -> 0 | AS199: =$C$199*'[1]Production plan'!AM123 -> 0 | AT199: =$C$199*'[1]Production plan'!AN123 -> 0 | AU199: =$C$199*'[1]Production plan'!AO123 -> 0 | AV199: =$C$199*'[1]Production plan'!AP123 -> 0 | AW199: =$C$199*'[1]Production plan'!AQ123 -> 0 | AX199: =$C$199*'[1]Production plan'!AR123 -> 0 | AY199: =$C$199*'[1]Production plan'!AS123 -> 0 | AZ199: =$C$199*'[1]Production plan'!AT123 -> 400 | BA199: =$C$199*'[1]Production plan'!AU123 -> 750 | BB199: =$C$199*'[1]Production plan'!AV123 -> 1500 | BC199: =$C$199*'[1]Production plan'!AW123 -> 2750 | BD199: =$C$199*'[1]Production plan'!AX123 -> 3500 | BE199: =$C$199*'[1]Production plan'!AY123 -> 4300 | BF199: =$C$199*'[1]Production plan'!AZ123 -> 4300 | BG199: =$C$199*'[1]Production plan'!BA123 -> 1650 | BH199: =$C$199*'[1]Production plan'!BB123 -> 0 | BI199: =$C$199*'[1]Production plan'!BC123 -> 0 | BJ199: =$C$199*'[1]Production plan'!BD123 -> 0 | BK199: =$C$199*'[1]Production plan'!BE123 -> 0 | BL199: =$C$199*'[1]Production plan'!BF123 -> 0 | BM199: =$C$199*'[1]Production plan'!BG123 -> 0 | BN199: =$C$199*'[1]Production plan'!BH123 -> 1800 | BO199: =$C$199*'[1]Production plan'!BI123 -> 3000 | BP199: =$C$199*'[1]Production plan'!BJ123 -> 3000 | BQ199: =$C$199*'[1]Production plan'!BK123 -> 3500 | BR199: =$C$199*'[1]Production plan'!BL123 -> 3500 | BS199: =$C$199*'[1]Production plan'!BM123 -> 3500 | BT199: =$C$199*'[1]Production plan'!BN123 -> 3250 | BU199: =$C$199*'[1]Production plan'!BO123 -> 0 | BV199: =$C$199*'[1]Production plan'!BP123 -> 0 | BW199: =$C$199*'[1]Production plan'!BQ123 -> 0 | BX199: =$C$199*'[1]Production plan'!BR123 -> 3000 | BY199: =$C$199*'[1]Production plan'!BS123 -> 3700 | BZ199: =$C$199*'[1]Production plan'!BT123 -> 0
G201: Supply | Y201: 400 | Z201: 3600 | AW201: 5000 | BA201: 6000 | BC201: 4000 | BI201: 5000 | BK201: 5000 | BM201: 5000 | BO201: 6000 | BQ201: 5000 | BW201: 5000
G203: % | I203: =I204/AVERAGE(J199:P199) ->  | P203: =P204/AVERAGE(Q199:W199) ->  | Q203: =Q204/AVERAGE(R199:X199) ->  | AS203: 70 | AT203: 24.34782609 | AU203: 10.56603774 | AV203: 5.185185185 | AW203: 7.078651685 | AX203: 4.772727273 | AY203: 3.6 | AZ203: 3.210666667 | BA203: 5.386111111 | BB203: 5.239393939 | BC203: 6.923636364 | BD203: 6.897560976 | BE203: 6.823529412 | BF203: 6.363636364 | BG203: -0.5833333333 | BH203: -0.21875 | BI203: 4.352564103 | BJ203: 3.004424779 | BK203: 4.658783784 | BL203: 3.767759563 | BM203: 4.823665893 | BN203: 4.625316456 | BO203: 6.707462687 | BP203: 6.643636364 | BQ203: 7.686792453 | BR203: 5.750929368 | BS203: 5.311557789 | BT203: 3.850746269 | BU203: 3.208955224 | BV203: 2.567164179 | BW203: 4.164179104 | BX203: 3.405405405
G204: Inventory | I204: 0 | J204: =I204+J201-J199 -> 0 | K204: =J204+K201-K199 -> 0 | L204: 0 | M204: 0 | N204: 0 | O204: 0 | P204: 0 | Q204: 0 | R204: 0 | S204: 0 | T204: 0 | U204: 0 | V204: 0 | W204: 0 | X204: 0 | Y204: 400 | Z204: 4000 | AA204: 4000 | AB204: 4000 | AC204: 4000 | AD204: 4000 | AE204: 4000 | AF204: 4000 | AG204: 4000 | AH204: 4000 | AI204: 4000 | AJ204: 4000 | AK204: 4000 | AL204: 4000 | AM204: 4000 | AN204: 4000 | AO204: 4000 | AP204: 4000 | AQ204: 4000 | AR204: 4000 | AS204: 4000 | AT204: 4000 | AU204: 4000 | AV204: 4000 | AW204: 9000 | AX204: 9000 | AY204: 9000 | AZ204: 8600 | BA204: 13850 | BB204: 12350 | BC204: 13600 | BD204: 10100 | BE204: 5800 | BF204: 1500 | BG204: -150 | BH204: -150 | BI204: 4850 | BJ204: 4850 | BK204: 9850 | BL204: 9850 | BM204: 14850 | BN204: 13050 | BO204: 16050 | BP204: 13050 | BQ204: 14550 | BR204: 11050 | BS204: 7550 | BT204: 4300 | BU204: 4300 | BV204: 4300 | BW204: =BV204+BW201-BW199 -> 9300 | BX204: 6300 | BY204: 2600 | BZ204: 2600
A206: MEP001125 | B206: AB | C206: 1 | E206: 12 | F206: 3 | G206: Need | H206: =SUM(I208:BZ208) -> 50000 | AG206: =$C$206*'[1]Production plan'!AA123 -> 0 | AH206: =$C$206*'[1]Production plan'!AB123 -> 0 | AI206: =$C$206*'[1]Production plan'!AC123 -> 0 | AJ206: =$C$206*'[1]Production plan'!AD123 -> 0 | AK206: =$C$206*'[1]Production plan'!AE123 -> 0 | AL206: =$C$206*'[1]Production plan'!AF123 -> 0 | AM206: =$C$206*'[1]Production plan'!AG123 -> 0 | AN206: =$C$206*'[1]Production plan'!AH123 -> 0 | AO206: =$C$206*'[1]Production plan'!AI123 -> 0 | AP206: =$C$206*'[1]Production plan'!AJ123 -> 0 | AQ206: =$C$206*'[1]Production plan'!AK123 -> 0 | AR206: =$C$206*'[1]Production plan'!AL123 -> 0 | AS206: =$C$206*'[1]Production plan'!AM123 -> 0 | AT206: =$C$206*'[1]Production plan'!AN123 -> 0 | AU206: =$C$206*'[1]Production plan'!AO123 -> 0 | AV206: =$C$206*'[1]Production plan'!AP123 -> 0 | AW206: =$C$206*'[1]Production plan'!AQ123 -> 0 | AX206: =$C$206*'[1]Production plan'!AR123 -> 0 | AY206: =$C$206*'[1]Production plan'!AS123 -> 0 | AZ206: =$C$206*'[1]Production plan'!AT123 -> 400 | BA206: =$C$206*'[1]Production plan'!AU123 -> 750 | BB206: =$C$206*'[1]Production plan'!AV123 -> 1500 | BC206: =$C$206*'[1]Production plan'!AW123 -> 2750 | BD206: =$C$206*'[1]Production plan'!AX123 -> 3500 | BE206: =$C$206*'[1]Production plan'!AY123 -> 4300 | BF206: =$C$206*'[1]Production plan'!AZ123 -> 4300 | BG206: =$C$206*'[1]Production plan'!BA123 -> 1650 | BH206: =$C$206*'[1]Production plan'!BB123 -> 0 | BI206: =$C$206*'[1]Production plan'!BC123 -> 0 | BJ206: =$C$206*'[1]Production plan'!BD123 -> 0 | BK206: =$C$206*'[1]Production plan'!BE123 -> 0 | BL206: =$C$206*'[1]Production plan'!BF123 -> 0 | BM206: =$C$206*'[1]Production plan'!BG123 -> 0 | BN206: =$C$206*'[1]Production plan'!BH123 -> 1800 | BO206: =$C$206*'[1]Production plan'!BI123 -> 3000 | BP206: =$C$206*'[1]Production plan'!BJ123 -> 3000 | BQ206: =$C$206*'[1]Production plan'!BK123 -> 3500 | BR206: =$C$206*'[1]Production plan'!BL123 -> 3500 | BS206: =$C$206*'[1]Production plan'!BM123 -> 3500 | BT206: =$C$206*'[1]Production plan'!BN123 -> 3250 | BU206: =$C$206*'[1]Production plan'!BO123 -> 0 | BV206: =$C$206*'[1]Production plan'!BP123 -> 0 | BW206: =$C$206*'[1]Production plan'!BQ123 -> 0 | BX206: =$C$206*'[1]Production plan'!BR123 -> 3000 | BY206: =$C$206*'[1]Production plan'!BS123 -> 3700 | BZ206: =$C$206*'[1]Production plan'!BT123 -> 0
G208: Supply | Y208: 400 | Z208: 3600 | AW208: 5000 | BA208: 6000 | BC208: 4000 | BI208: 5000 | BK208: 5000 | BM208: 5000 | BO208: 6000 | BQ208: 5000 | BW208: 5000
G210: % | I210: =I211/AVERAGE(J206:P206) ->  | P210: =P211/AVERAGE(Q206:W206) ->  | Q210: =Q211/AVERAGE(R206:X206) ->  | AS210: 70 | AT210: 24.34782609 | AU210: 10.56603774 | AV210: 5.185185185 | AW210: 7.078651685 | AX210: 4.772727273 | AY210: 3.6 | AZ210: 3.210666667 | BA210: 5.386111111 | BB210: 5.239393939 | BC210: 6.923636364 | BD210: 6.897560976 | BE210: 6.823529412 | BF210: 6.363636364 | BG210: -0.5833333333 | BH210: -0.21875 | BI210: 4.352564103 | BJ210: 3.004424779 | BK210: 4.658783784 | BL210: 3.767759563 | BM210: 4.823665893 | BN210: 4.625316456 | BO210: 6.707462687 | BP210: 6.643636364 | BQ210: 7.686792453 | BR210: 5.750929368 | BS210: 5.311557789 | BT210: 3.850746269 | BU210: 3.208955224 | BV210: 2.567164179 | BW210: 4.164179104 | BX210: 3.405405405
G211: Inventory | I211: 0 | J211: =I211+J208-J206 -> 0 | K211: =J211+K208-K206 -> 0 | L211: 0 | M211: 0 | N211: 0 | O211: 0 | P211: 0 | Q211: 0 | R211: 0 | S211: 0 | T211: 0 | U211: 0 | V211: 0 | W211: 0 | X211: 0 | Y211: 400 | Z211: 4000 | AA211: 4000 | AB211: 4000 | AC211: 4000 | AD211: 4000 | AE211: 4000 | AF211: 4000 | AG211: 4000 | AH211: 4000 | AI211: 4000 | AJ211: 4000 | AK211: 4000 | AL211: 4000 | AM211: 4000 | AN211: 4000 | AO211: 4000 | AP211: 4000 | AQ211: 4000 | AR211: 4000 | AS211: 4000 | AT211: 4000 | AU211: 4000 | AV211: 4000 | AW211: 9000 | AX211: 9000 | AY211: 9000 | AZ211: 8600 | BA211: 13850 | BB211: 12350 | BC211: 13600 | BD211: 10100 | BE211: 5800 | BF211: 1500 | BG211: -150 | BH211: -150 | BI211: 4850 | BJ211: 4850 | BK211: 9850 | BL211: 9850 | BM211: 14850 | BN211: 13050 | BO211: 16050 | BP211: 13050 | BQ211: 14550 | BR211: 11050 | BS211: 7550 | BT211: 4300 | BU211: 4300 | BV211: 4300 | BW211: =BV211+BW208-BW206 -> 9300 | BX211: 6300 | BY211: 2600 | BZ211: 2600
A213: MEP001124 | B213: AC | C213: 1 | E213: 12 | F213: 6 | G213: Need | H213: =SUM(I215:BZ215) -> 50000 | AG213: =$C$213*'[1]Production plan'!AA123 -> 0 | AH213: =$C$213*'[1]Production plan'!AB123 -> 0 | AI213: =$C$213*'[1]Production plan'!AC123 -> 0 | AJ213: =$C$213*'[1]Production plan'!AD123 -> 0 | AK213: =$C$213*'[1]Production plan'!AE123 -> 0 | AL213: =$C$213*'[1]Production plan'!AF123 -> 0 | AM213: =$C$213*'[1]Production plan'!AG123 -> 0 | AN213: =$C$213*'[1]Production plan'!AH123 -> 0 | AO213: =$C$213*'[1]Production plan'!AI123 -> 0 | AP213: =$C$213*'[1]Production plan'!AJ123 -> 0 | AQ213: =$C$213*'[1]Production plan'!AK123 -> 0 | AR213: =$C$213*'[1]Production plan'!AL123 -> 0 | AS213: =$C$213*'[1]Production plan'!AM123 -> 0 | AT213: =$C$213*'[1]Production plan'!AN123 -> 0 | AU213: =$C$213*'[1]Production plan'!AO123 -> 0 | AV213: =$C$213*'[1]Production plan'!AP123 -> 0 | AW213: =$C$213*'[1]Production plan'!AQ123 -> 0 | AX213: =$C$213*'[1]Production plan'!AR123 -> 0 | AY213: =$C$213*'[1]Production plan'!AS123 -> 0 | AZ213: =$C$213*'[1]Production plan'!AT123 -> 400 | BA213: =$C$213*'[1]Production plan'!AU123 -> 750 | BB213: =$C$213*'[1]Production plan'!AV123 -> 1500 | BC213: =$C$213*'[1]Production plan'!AW123 -> 2750 | BD213: =$C$213*'[1]Production plan'!AX123 -> 3500 | BE213: =$C$213*'[1]Production plan'!AY123 -> 4300 | BF213: =$C$213*'[1]Production plan'!AZ123 -> 4300 | BG213: =$C$213*'[1]Production plan'!BA123 -> 1650 | BH213: =$C$213*'[1]Production plan'!BB123 -> 0 | BI213: =$C$213*'[1]Production plan'!BC123 -> 0 | BJ213: =$C$213*'[1]Production plan'!BD123 -> 0 | BK213: =$C$213*'[1]Production plan'!BE123 -> 0 | BL213: =$C$213*'[1]Production plan'!BF123 -> 0 | BM213: =$C$213*'[1]Production plan'!BG123 -> 0 | BN213: =$C$213*'[1]Production plan'!BH123 -> 1800 | BO213: =$C$213*'[1]Production plan'!BI123 -> 3000 | BP213: =$C$213*'[1]Production plan'!BJ123 -> 3000 | BQ213: =$C$213*'[1]Production plan'!BK123 -> 3500 | BR213: =$C$213*'[1]Production plan'!BL123 -> 3500 | BS213: =$C$213*'[1]Production plan'!BM123 -> 3500 | BT213: =$C$213*'[1]Production plan'!BN123 -> 3250 | BU213: =$C$213*'[1]Production plan'!BO123 -> 0 | BV213: =$C$213*'[1]Production plan'!BP123 -> 0 | BW213: =$C$213*'[1]Production plan'!BQ123 -> 0 | BX213: =$C$213*'[1]Production plan'!BR123 -> 3000 | BY213: =$C$213*'[1]Production plan'!BS123 -> 3700 | BZ213: =$C$213*'[1]Production plan'!BT123 -> 0
G215: Supply | Y215: 400 | Z215: 3600 | AW215: 5000 | BA215: 6000 | BC215: 4000 | BI215: 5000 | BK215: 5000 | BM215: 5000 | BO215: 6000 | BQ215: 5000 | BW215: 5000
G217: % | I217: =I218/AVERAGE(J213:P213) ->  | P217: =P218/AVERAGE(Q213:W213) ->  | Q217: =Q218/AVERAGE(R213:X213) ->  | AS217: 70 | AT217: 24.34782609 | AU217: 10.56603774 | AV217: 5.185185185 | AW217: 7.078651685 | AX217: 4.772727273 | AY217: 3.6 | AZ217: 3.210666667 | BA217: 5.386111111 | BB217: 5.239393939 | BC217: 6.923636364 | BD217: 6.897560976 | BE217: 6.823529412 | BF217: 6.363636364 | BG217: -0.5833333333 | BH217: -0.21875 | BI217: 4.352564103 | BJ217: 3.004424779 | BK217: 4.658783784 | BL217: 3.767759563 | BM217: 4.823665893 | BN217: 4.625316456 | BO217: 6.707462687 | BP217: 6.643636364 | BQ217: 7.686792453 | BR217: 5.750929368 | BS217: 5.311557789 | BT217: 3.850746269 | BU217: 3.208955224 | BV217: 2.567164179 | BW217: 4.164179104 | BX217: 3.405405405
G218: Inventory | I218: 0 | J218: =I218+J215-J213 -> 0 | K218: =J218+K215-K213 -> 0 | L218: 0 | M218: 0 | N218: 0 | O218: 0 | P218: 0 | Q218: 0 | R218: 0 | S218: 0 | T218: 0 | U218: 0 | V218: 0 | W218: 0 | X218: 0 | Y218: 400 | Z218: 4000 | AA218: 4000 | AB218: 4000 | AC218: 4000 | AD218: 4000 | AE218: 4000 | AF218: 4000 | AG218: 4000 | AH218: 4000 | AI218: 4000 | AJ218: 4000 | AK218: 4000 | AL218: 4000 | AM218: 4000 | AN218: 4000 | AO218: 4000 | AP218: 4000 | AQ218: 4000 | AR218: 4000 | AS218: 4000 | AT218: 4000 | AU218: 4000 | AV218: 4000 | AW218: 9000 | AX218: 9000 | AY218: 9000 | AZ218: 8600 | BA218: 13850 | BB218: 12350 | BC218: 13600 | BD218: 10100 | BE218: 5800 | BF218: 1500 | BG218: -150 | BH218: -150 | BI218: 4850 | BJ218: 4850 | BK218: 9850 | BL218: 9850 | BM218: 14850 | BN218: 13050 | BO218: 16050 | BP218: 13050 | BQ218: 14550 | BR218: 11050 | BS218: 7550 | BT218: 4300 | BU218: 4300 | BV218: 4300 | BW218: =BV218+BW215-BW213 -> 9300 | BX218: 6300 | BY218: 2600 | BZ218: 2600
A220: MEP001123 | B220: AD | C220: 1 | E220: 12 | F220: 3 | G220: Need | H220: =SUM(I222:BZ222) -> 50000 | AG220: =$C$220*'[1]Production plan'!AA123 -> 0 | AH220: =$C$220*'[1]Production plan'!AB123 -> 0 | AI220: =$C$220*'[1]Production plan'!AC123 -> 0 | AJ220: =$C$220*'[1]Production plan'!AD123 -> 0 | AK220: =$C$220*'[1]Production plan'!AE123 -> 0 | AL220: =$C$220*'[1]Production plan'!AF123 -> 0 | AM220: =$C$220*'[1]Production plan'!AG123 -> 0 | AN220: =$C$220*'[1]Production plan'!AH123 -> 0 | AO220: =$C$220*'[1]Production plan'!AI123 -> 0 | AP220: =$C$220*'[1]Production plan'!AJ123 -> 0 | AQ220: =$C$220*'[1]Production plan'!AK123 -> 0 | AR220: =$C$220*'[1]Production plan'!AL123 -> 0 | AS220: =$C$220*'[1]Production plan'!AM123 -> 0 | AT220: =$C$220*'[1]Production plan'!AN123 -> 0 | AU220: =$C$220*'[1]Production plan'!AO123 -> 0 | AV220: =$C$220*'[1]Production plan'!AP123 -> 0 | AW220: =$C$220*'[1]Production plan'!AQ123 -> 0 | AX220: =$C$220*'[1]Production plan'!AR123 -> 0 | AY220: =$C$220*'[1]Production plan'!AS123 -> 0 | AZ220: =$C$220*'[1]Production plan'!AT123 -> 400 | BA220: =$C$220*'[1]Production plan'!AU123 -> 750 | BB220: =$C$220*'[1]Production plan'!AV123 -> 1500 | BC220: =$C$220*'[1]Production plan'!AW123 -> 2750 | BD220: =$C$220*'[1]Production plan'!AX123 -> 3500 | BE220: =$C$220*'[1]Production plan'!AY123 -> 4300 | BF220: =$C$220*'[1]Production plan'!AZ123 -> 4300 | BG220: =$C$220*'[1]Production plan'!BA123 -> 1650 | BH220: =$C$220*'[1]Production plan'!BB123 -> 0 | BI220: =$C$220*'[1]Production plan'!BC123 -> 0 | BJ220: =$C$220*'[1]Production plan'!BD123 -> 0 | BK220: =$C$220*'[1]Production plan'!BE123 -> 0 | BL220: =$C$220*'[1]Production plan'!BF123 -> 0 | BM220: =$C$220*'[1]Production plan'!BG123 -> 0 | BN220: =$C$220*'[1]Production plan'!BH123 -> 1800 | BO220: =$C$220*'[1]Production plan'!BI123 -> 3000 | BP220: =$C$220*'[1]Production plan'!BJ123 -> 3000 | BQ220: =$C$220*'[1]Production plan'!BK123 -> 3500 | BR220: =$C$220*'[1]Production plan'!BL123 -> 3500 | BS220: =$C$220*'[1]Production plan'!BM123 -> 3500 | BT220: =$C$220*'[1]Production plan'!BN123 -> 3250 | BU220: =$C$220*'[1]Production plan'!BO123 -> 0 | BV220: =$C$220*'[1]Production plan'!BP123 -> 0 | BW220: =$C$220*'[1]Production plan'!BQ123 -> 0 | BX220: =$C$220*'[1]Production plan'!BR123 -> 3000 | BY220: =$C$220*'[1]Production plan'!BS123 -> 3700 | BZ220: =$C$220*'[1]Production plan'!BT123 -> 0
G222: Supply | Y222: 400 | Z222: 3600 | AW222: 5000 | BA222: 6000 | BC222: 4000 | BI222: 5000 | BK222: 5000 | BM222: 5000 | BO222: 6000 | BQ222: 5000 | BW222: 5000
G224: % | I224: =I225/AVERAGE(J220:P220) ->  | P224: =P225/AVERAGE(Q220:W220) ->  | Q224: =Q225/AVERAGE(R220:X220) ->  | AS224: 70 | AT224: 24.34782609 | AU224: 10.56603774 | AV224: 5.185185185 | AW224: 7.078651685 | AX224: 4.772727273 | AY224: 3.6 | AZ224: 3.210666667 | BA224: 5.386111111 | BB224: 5.239393939 | BC224: 6.923636364 | BD224: 6.897560976 | BE224: 6.823529412 | BF224: 6.363636364 | BG224: -0.5833333333 | BH224: -0.21875 | BI224: 4.352564103 | BJ224: 3.004424779 | BK224: 4.658783784 | BL224: 3.767759563 | BM224: 4.823665893 | BN224: 4.625316456 | BO224: 6.707462687 | BP224: 6.643636364 | BQ224: 7.686792453 | BR224: 5.750929368 | BS224: 5.311557789 | BT224: 3.850746269 | BU224: 3.208955224 | BV224: 2.567164179 | BW224: 4.164179104 | BX224: 3.405405405
G225: Inventory | I225: 0 | J225: =I225+J222-J220 -> 0 | K225: =J225+K222-K220 -> 0 | L225: 0 | M225: 0 | N225: 0 | O225: 0 | P225: 0 | Q225: 0 | R225: 0 | S225: 0 | T225: 0 | U225: 0 | V225: 0 | W225: 0 | X225: 0 | Y225: 400 | Z225: 4000 | AA225: 4000 | AB225: 4000 | AC225: 4000 | AD225: 4000 | AE225: 4000 | AF225: 4000 | AG225: 4000 | AH225: 4000 | AI225: 4000 | AJ225: 4000 | AK225: 4000 | AL225: 4000 | AM225: 4000 | AN225: 4000 | AO225: 4000 | AP225: 4000 | AQ225: 4000 | AR225: 4000 | AS225: 4000 | AT225: 4000 | AU225: 4000 | AV225: 4000 | AW225: 9000 | AX225: 9000 | AY225: 9000 | AZ225: 8600 | BA225: 13850 | BB225: 12350 | BC225: 13600 | BD225: 10100 | BE225: 5800 | BF225: 1500 | BG225: -150 | BH225: -150 | BI225: 4850 | BJ225: 4850 | BK225: 9850 | BL225: 9850 | BM225: 14850 | BN225: 13050 | BO225: 16050 | BP225: 13050 | BQ225: 14550 | BR225: 11050 | BS225: 7550 | BT225: 4300 | BU225: 4300 | BV225: 4300 | BW225: =BV225+BW222-BW220 -> 9300 | BX225: 6300 | BY225: 2600 | BZ225: 2600
A227: MEP001021 | B227: AE | D227: 1 | E227: 8 | F227: 3 | G227: Need | H227: =SUM(I229:BZ229) -> 66000 | I227: =$D$227*'[1]Production plan'!C126 -> 0 | J227: =$D$227*'[1]Production plan'!D126 -> 0 | K227: =$D$227*'[1]Production plan'!E126 -> 0 | L227: =$D$227*'[1]Production plan'!F126 -> 0 | M227: =$D$227*'[1]Production plan'!G126 -> 0 | N227: =$D$227*'[1]Production plan'!H126 -> 0 | O227: =$D$227*'[1]Production plan'!I126 -> 0 | P227: =$D$227*'[1]Production plan'!J126 -> 0 | Q227: =$D$227*'[1]Production plan'!K126 -> 0 | R227: =$D$227*'[1]Production plan'!L126 -> 0 | S227: =$D$227*'[1]Production plan'!M126 -> 0 | T227: =$D$227*'[1]Production plan'!N126 -> 0 | U227: =$D$227*'[1]Production plan'!O126 -> 0 | V227: =$D$227*'[1]Production plan'!P126 -> 0 | W227: =$D$227*'[1]Production plan'!Q126 -> 0 | X227: =$D$227*'[1]Production plan'!R126 -> 0 | Y227: =$D$227*'[1]Production plan'!S126 -> 0 | Z227: =$D$227*'[1]Production plan'!T126 -> 0 | AA227: =$D$227*'[1]Production plan'!U126 -> 0 | AB227: =$D$227*'[1]Production plan'!V126 -> 0 | AC227: =$D$227*'[1]Production plan'!W126 -> 0 | AD227: =$D$227*'[1]Production plan'!X126 -> 0 | AE227: =$D$227*'[1]Production plan'!Y126 -> 0 | AF227: =$D$227*'[1]Production plan'!Z126 -> 0 | AG227: =$D$227*'[1]Production plan'!AA126 -> 0 | AH227: =$D$227*'[1]Production plan'!AB126 -> 0 | AI227: =$D$227*'[1]Production plan'!AC126 -> 0 | AJ227: =$D$227*'[1]Production plan'!AD126 -> 30 | AK227: =$D$227*'[1]Production plan'!AE126 -> 75 | AL227: =$D$227*'[1]Production plan'!AF126 -> 150 | AM227: =$D$227*'[1]Production plan'!AG126 -> 250 | AN227: =$D$227*'[1]Production plan'!AH126 -> 500 | AO227: =$D$227*'[1]Production plan'!AI126 -> 600 | AP227: =$D$227*'[1]Production plan'!AJ126 -> 1000 | AQ227: =$D$227*'[1]Production plan'!AK126 -> 1250 | AR227: =$D$227*'[1]Production plan'!AL126 -> 1500 | AS227: =$D$227*'[1]Production plan'!AM126 -> 1500 | AT227: =$D$227*'[1]Production plan'!AN126 -> 1500 | AU227: =$D$227*'[1]Production plan'!AO126 -> 0 | AV227: =$D$227*'[1]Production plan'!AP126 -> 2120 | AW227: =$D$227*'[1]Production plan'!AQ126 -> 2300 | AX227: =$D$227*'[1]Production plan'!AR126 -> 0 | AY227: =$D$227*'[1]Production plan'!AS126 -> 0 | AZ227: =$D$227*'[1]Production plan'!AT126 -> 0 | BA227: =$D$227*'[1]Production plan'!AU126 -> 0 | BB227: =$D$227*'[1]Production plan'!AV126 -> 0 | BC227: =$D$227*'[1]Production plan'!AW126 -> 0 | BD227: =$D$227*'[1]Production plan'!AX126 -> 0 | BE227: =$D$227*'[1]Production plan'!AY126 -> 0 | BF227: =$D$227*'[1]Production plan'!AZ126 -> 0 | BG227: =$D$227*'[1]Production plan'!BA126 -> 0 | BH227: =$D$227*'[1]Production plan'!BB126 -> 3000 | BI227: =$D$227*'[1]Production plan'!BC126 -> 7000 | BJ227: =$D$227*'[1]Production plan'!BD126 -> 7000 | BK227: =$D$227*'[1]Production plan'!BE126 -> 7000 | BL227: =$D$227*'[1]Production plan'!BF126 -> 7000 | BM227: =$D$227*'[1]Production plan'!BG126 -> 4450 | BN227: =$D$227*'[1]Production plan'!BH126 -> 0 | BO227: =$D$227*'[1]Production plan'!BI126 -> 0 | BP227: =$D$227*'[1]Production plan'!BJ126 -> 0 | BQ227: =$D$227*'[1]Production plan'!BK126 -> 0 | BR227: =$D$227*'[1]Production plan'!BL126 -> 0 | BS227: =$D$227*'[1]Production plan'!BM126 -> 0 | BT227: =$D$227*'[1]Production plan'!BN126 -> 0 | BU227: =$D$227*'[1]Production plan'!BO126 -> 7300 | BV227: =$D$227*'[1]Production plan'!BP126 -> 7300 | BW227: =$D$227*'[1]Production plan'!BQ126 -> 5025 | BX227: =$D$227*'[1]Production plan'!BR126 -> 0 | BY227: =$D$227*'[1]Production plan'!BS126 -> 0 | BZ227: =$D$227*'[1]Production plan'!BT126 -> 0
G229: Supply | X229: 9000 | AS229: 7000 | BD229: 15000 | BG229: 15000 | BR229: 10000 | BT229: 10000
G231: % | I231: =I232/AVERAGE(J227:P227) ->  | P231: =P232/AVERAGE(Q227:W227) ->  | Q231: =Q232/AVERAGE(R227:X227) ->  | AC231: 2100 | AD231: 600 | AE231: 247.0588235 | AF231: 124.7524752 | AG231: 62.68656716 | AH231: 39.25233645 | AI231: 24.18426104 | AJ231: 16.41568627 | AK231: 11.86 | AL231: 9.275 | AM231: 7.575159236 | AN231: 7.614285714 | AO231: 5.835963923 | AP231: 4.401671583 | AQ231: 4.037556054 | AR231: 3.438679245 | AS231: 10.81334459 | AT231: 12.10746606 | AU231: 12.10746606 | AV231: 16.81521739 | BA231: 7.525 | BB231: 2.2575 | BC231: 1.327941176 | BD231: 5.315625 | BE231: 4.115322581 | BF231: 3.598730606 | BG231: 6.560648801 | BH231: 6.520030817 | BI231: 6.388015717 | BJ231: 6.155826558 | BK231: 5.639737991 | BL231: 3.5 | BN231: -2.133561644 | BO231: -1.066780822 | BP231: -0.7936305732 | BQ231: -0.7936305732 | BR231: 2.773248408 | BS231: 2.773248408 | BT231: 5.434394904 | BU231: 4.249492901 | BV231: 2.527363184
G232: Inventory | I232: 0 | J232: =I232+J229-J227 -> 0 | K232: =J232+K229-K227 -> 0 | L232: 0 | M232: 0 | N232: 0 | O232: 0 | P232: 0 | Q232: 0 | R232: 0 | S232: 0 | T232: 0 | U232: 0 | V232: 0 | W232: 0 | X232: 9000 | Y232: 9000 | Z232: 9000 | AA232: 9000 | AB232: 9000 | AC232: 9000 | AD232: 9000 | AE232: 9000 | AF232: 9000 | AG232: 9000 | AH232: 9000 | AI232: 9000 | AJ232: 8970 | AK232: 8895 | AL232: 8745 | AM232: 8495 | AN232: 7995 | AO232: 7395 | AP232: 6395 | AQ232: 5145 | AR232: 3645 | AS232: 9145 | AT232: 7645 | AU232: 7645 | AV232: 5525 | AW232: 3225 | AX232: 3225 | AY232: 3225 | AZ232: 3225 | BA232: 3225 | BB232: 3225 | BC232: =BB232+BC229-BC227 -> 3225 | BD232: =BC232+BD229-BD227 -> 18225 | BE232: 18225 | BF232: 18225 | BG232: 33225 | BH232: 30225 | BI232: 23225 | BJ232: 16225 | BK232: 9225 | BL232: 2225 | BM232: -2225 | BN232: -2225 | BO232: -2225 | BP232: -2225 | BQ232: -2225 | BR232: 7775 | BS232: 7775 | BT232: 17775 | BU232: 10475 | BV232: 3175 | BW232: -1850 | BX232: -1850 | BY232: -1850 | BZ232: -1850
A234: MEP001020 | B234: AF | D234: 1 | E234: 8 | F234: 6 | G234: Need | H234: =SUM(I236:BZ236) -> 66000 | I234: =$D$234*'[1]Production plan'!C126 -> 0 | J234: =$D$234*'[1]Production plan'!D126 -> 0 | K234: =$D$234*'[1]Production plan'!E126 -> 0 | L234: =$D$234*'[1]Production plan'!F126 -> 0 | M234: =$D$234*'[1]Production plan'!G126 -> 0 | N234: =$D$234*'[1]Production plan'!H126 -> 0 | O234: =$D$234*'[1]Production plan'!I126 -> 0 | P234: =$D$234*'[1]Production plan'!J126 -> 0 | Q234: =$D$234*'[1]Production plan'!K126 -> 0 | R234: =$D$234*'[1]Production plan'!L126 -> 0 | S234: =$D$234*'[1]Production plan'!M126 -> 0 | T234: =$D$234*'[1]Production plan'!N126 -> 0 | U234: =$D$234*'[1]Production plan'!O126 -> 0 | V234: =$D$234*'[1]Production plan'!P126 -> 0 | W234: =$D$234*'[1]Production plan'!Q126 -> 0 | X234: =$D$234*'[1]Production plan'!R126 -> 0 | Y234: =$D$234*'[1]Production plan'!S126 -> 0 | Z234: =$D$234*'[1]Production plan'!T126 -> 0 | AA234: =$D$234*'[1]Production plan'!U126 -> 0 | AB234: =$D$234*'[1]Production plan'!V126 -> 0 | AC234: =$D$234*'[1]Production plan'!W126 -> 0 | AD234: =$D$234*'[1]Production plan'!X126 -> 0 | AE234: =$D$234*'[1]Production plan'!Y126 -> 0 | AF234: =$D$234*'[1]Production plan'!Z126 -> 0 | AG234: =$D$234*'[1]Production plan'!AA126 -> 0 | AH234: =$D$234*'[1]Production plan'!AB126 -> 0 | AI234: =$D$234*'[1]Production plan'!AC126 -> 0 | AJ234: =$D$234*'[1]Production plan'!AD126 -> 30 | AK234: =$D$234*'[1]Production plan'!AE126 -> 75 | AL234: =$D$234*'[1]Production plan'!AF126 -> 150 | AM234: =$D$234*'[1]Production plan'!AG126 -> 250 | AN234: =$D$234*'[1]Production plan'!AH126 -> 500 | AO234: =$D$234*'[1]Production plan'!AI126 -> 600 | AP234: =$D$234*'[1]Production plan'!AJ126 -> 1000 | AQ234: =$D$234*'[1]Production plan'!AK126 -> 1250 | AR234: =$D$234*'[1]Production plan'!AL126 -> 1500 | AS234: =$D$234*'[1]Production plan'!AM126 -> 1500 | AT234: =$D$234*'[1]Production plan'!AN126 -> 1500 | AU234: =$D$234*'[1]Production plan'!AO126 -> 0 | AV234: =$D$234*'[1]Production plan'!AP126 -> 2120 | AW234: =$D$234*'[1]Production plan'!AQ126 -> 2300 | AX234: =$D$234*'[1]Production plan'!AR126 -> 0 | AY234: =$D$234*'[1]Production plan'!AS126 -> 0 | AZ234: =$D$234*'[1]Production plan'!AT126 -> 0 | BA234: =$D$234*'[1]Production plan'!AU126 -> 0 | BB234: =$D$234*'[1]Production plan'!AV126 -> 0 | BC234: =$D$234*'[1]Production plan'!AW126 -> 0 | BD234: =$D$234*'[1]Production plan'!AX126 -> 0 | BE234: =$D$234*'[1]Production plan'!AY126 -> 0 | BF234: =$D$234*'[1]Production plan'!AZ126 -> 0 | BG234: =$D$234*'[1]Production plan'!BA126 -> 0 | BH234: =$D$234*'[1]Production plan'!BB126 -> 3000 | BI234: =$D$234*'[1]Production plan'!BC126 -> 7000 | BJ234: =$D$234*'[1]Production plan'!BD126 -> 7000 | BK234: =$D$234*'[1]Production plan'!BE126 -> 7000 | BL234: =$D$234*'[1]Production plan'!BF126 -> 7000 | BM234: =$D$234*'[1]Production plan'!BG126 -> 4450 | BN234: =$D$234*'[1]Production plan'!BH126 -> 0 | BO234: =$D$234*'[1]Production plan'!BI126 -> 0 | BP234: =$D$234*'[1]Production plan'!BJ126 -> 0 | BQ234: =$D$234*'[1]Production plan'!BK126 -> 0 | BR234: =$D$234*'[1]Production plan'!BL126 -> 0 | BS234: =$D$234*'[1]Production plan'!BM126 -> 0 | BT234: =$D$234*'[1]Production plan'!BN126 -> 0 | BU234: =$D$234*'[1]Production plan'!BO126 -> 7300 | BV234: =$D$234*'[1]Production plan'!BP126 -> 7300 | BW234: =$D$234*'[1]Production plan'!BQ126 -> 5025 | BX234: =$D$234*'[1]Production plan'!BR126 -> 0 | BY234: =$D$234*'[1]Production plan'!BS126 -> 0 | BZ234: =$D$234*'[1]Production plan'!BT126 -> 0
G236: Supply | X236: 9000 | AS236: 7000 | BD236: 15000 | BG236: 15000 | BR236: 10000 | BT236: 10000
G238: % | I238: =I239/AVERAGE(J234:P234) ->  | P238: =P239/AVERAGE(Q234:W234) ->  | Q238: =Q239/AVERAGE(R234:X234) ->  | AC238: 2100 | AD238: 600 | AE238: 247.0588235 | AF238: 124.7524752 | AG238: 62.68656716 | AH238: 39.25233645 | AI238: 24.18426104 | AJ238: 16.41568627 | AK238: 11.86 | AL238: 9.275 | AM238: 7.575159236 | AN238: 7.614285714 | AO238: 5.835963923 | AP238: 4.401671583 | AQ238: 4.037556054 | AR238: 3.438679245 | AS238: 10.81334459 | AT238: 12.10746606 | AU238: 12.10746606 | AV238: 16.81521739 | BA238: 7.525 | BB238: 2.2575 | BC238: 1.327941176 | BD238: 5.315625 | BE238: 4.115322581 | BF238: 3.598730606 | BG238: 6.560648801 | BH238: 6.520030817 | BI238: 6.388015717 | BJ238: 6.155826558 | BK238: 5.639737991 | BL238: 3.5 | BN238: -2.133561644 | BO238: -1.066780822 | BP238: -0.7936305732 | BQ238: -0.7936305732 | BR238: 2.773248408 | BS238: 2.773248408 | BT238: 5.434394904 | BU238: 4.249492901 | BV238: 2.527363184
G239: Inventory | I239: 0 | J239: =I239+J236-J234 -> 0 | K239: =J239+K236-K234 -> 0 | L239: 0 | M239: 0 | N239: 0 | O239: 0 | P239: 0 | Q239: 0 | R239: 0 | S239: 0 | T239: 0 | U239: 0 | V239: 0 | W239: 0 | X239: 9000 | Y239: 9000 | Z239: 9000 | AA239: 9000 | AB239: 9000 | AC239: 9000 | AD239: 9000 | AE239: 9000 | AF239: 9000 | AG239: 9000 | AH239: 9000 | AI239: 9000 | AJ239: 8970 | AK239: 8895 | AL239: 8745 | AM239: 8495 | AN239: 7995 | AO239: 7395 | AP239: 6395 | AQ239: 5145 | AR239: 3645 | AS239: 9145 | AT239: 7645 | AU239: 7645 | AV239: 5525 | AW239: 3225 | AX239: 3225 | AY239: 3225 | AZ239: 3225 | BA239: =AZ239+BA236-BA234 -> 3225 | BB239: =BA239+BB236-BB234 -> 3225 | BC239: 3225 | BD239: 18225 | BE239: 18225 | BF239: 18225 | BG239: 33225 | BH239: 30225 | BI239: 23225 | BJ239: 16225 | BK239: 9225 | BL239: 2225 | BM239: -2225 | BN239: -2225 | BO239: -2225 | BP239: -2225 | BQ239: -2225 | BR239: 7775 | BS239: 7775 | BT239: 17775 | BU239: 10475 | BV239: 3175 | BW239: -1850 | BX239: -1850 | BY239: -1850 | BZ239: -1850
A241: MEP001090 | B241: AG | C241: 1 | E241: 12 | F241: 3 | G241: Need | H241: =SUM(I243:BZ243) -> 3205 | I241: =$C$241*'[1]Production plan'!C123 -> 0 | J241: =$C$241*'[1]Production plan'!D123 -> 10 | K241: =$C$241*'[1]Production plan'!E123 -> 16 | L241: =$C$241*'[1]Production plan'!F123 -> 60 | M241: =$C$241*'[1]Production plan'!G123 -> 10 | N241: =$C$241*'[1]Production plan'!H123 -> 120 | O241: =$C$241*'[1]Production plan'!I123 -> 18 | P241: =$C$241*'[1]Production plan'!J123 -> 90 | Q241: =$C$241*'[1]Production plan'!K123 -> 140 | R241: =$C$241*'[1]Production plan'!L123 -> 175 | S241: =$C$241*'[1]Production plan'!M123 -> 280 | T241: =$C$241*'[1]Production plan'!N123 -> 100 | U241: =$C$241*'[1]Production plan'!O123 -> 450 | V241: =$C$241*'[1]Production plan'!P123 -> 200 | W241: =$C$241*'[1]Production plan'!Q123 -> 415 | X241: =$C$241*'[1]Production plan'!R123 -> 735 | Y241: =$C$241*'[1]Production plan'!S123 -> 765 | Z241: =$C$241*'[1]Production plan'!T123 -> 147 | AA241: =$C$241*'[1]Production plan'!U123 -> 0 | AB241: =$C$241*'[1]Production plan'!V123 -> 0 | AC241: =$C$241*'[1]Production plan'!W123 -> 480 | AD241: =$C$241*'[1]Production plan'!X123 -> 930 | AE241: =$C$241*'[1]Production plan'!Y123 -> 930 | AF241: =$C$241*'[1]Production plan'!Z123 -> 525 | AG241: =$C$241*'[1]Production plan'!AA123 -> 0 | AH241: =$C$241*'[1]Production plan'!AB123 -> 0
G243: Supply | P243: 3205
G245: % | I245: =I246/AVERAGE(J241:P241) -> 49.69135802 | J245: 35.30837004 | K245: 25.96737357 | L245: 18.60504202 | M245: 16.71505959 | N245: 11.6424581 | O245: 10.07804878 | P245: =P246/AVERAGE(Q241:W241) -> 20.60625 | Q245: =Q246/AVERAGE(R241:X241) -> 14.98386412 | R245: 11.56604414 | S245: 11.41607397 | T245: 11.57890855 | U245: 12.48983201 | V245: 10.56333596 | W245: 7.833496892 | X245: 4.617158672 | Y245: 3.207171315 | Z245: 7.52530541 | AA245: 7.52530541 | AB245: 6.45026178 | AC245: 6.467505241 | AD245: 5.924398625 | AE245: 7
G246: Inventory | I246: 2300 | J246: =I246+J243-J241 -> 2290 | K246: =J246+K243-K241 -> 2274 | L246: 2214 | M246: 2204 | N246: 2084 | O246: 2066 | P246: 5181 | Q246: 5041 | R246: 4866 | S246: 4586 | T246: 4486 | U246: =T246+U243-U241 -> 4036 | V246: =U246+V243-V241 -> 3836 | W246: 3421 | X246: 2145 | Y246: =X246+Y243-Y241 -> 1380 | Z246: =1385+495+800+400 -> 3080 | AA246: =Z246+AA243-AA241 -> 3080 | AB246: 3080 | AC246: =1300+1785 -> 3085 | AD246: =AC246+AD243-AD241 -> 2155 | AE246: 1225 | AF246: 700 | AG246: 700 | AH246: 700
A248: MEP001089 | B248: AH | C248: 1 | E248: 12 | F248: 6 | G248: Need | H248: =SUM(I250:BZ250) -> 4500 | I248: =$C$248*'[1]Production plan'!C123 -> 0 | J248: =$C$248*'[1]Production plan'!D123 -> 10 | K248: =$C$248*'[1]Production plan'!E123 -> 16 | L248: =$C$248*'[1]Production plan'!F123 -> 60 | M248: =$C$248*'[1]Production plan'!G123 -> 10 | N248: =$C$248*'[1]Production plan'!H123 -> 120 | O248: =$C$248*'[1]Production plan'!I123 -> 18 | P248: =$C$248*'[1]Production plan'!J123 -> 90 | Q248: =$C$248*'[1]Production plan'!K123 -> 140 | R248: =$C$248*'[1]Production plan'!L123 -> 175 | S248: =$C$248*'[1]Production plan'!M123 -> 280 | T248: =$C$248*'[1]Production plan'!N123 -> 100 | U248: =$C$248*'[1]Production plan'!O123 -> 450 | V248: =$C$248*'[1]Production plan'!P123 -> 200 | W248: =$C$248*'[1]Production plan'!Q123 -> 415 | X248: =$C$248*'[1]Production plan'!R123 -> 735 | Y248: =$C$248*'[1]Production plan'!S123 -> 765 | Z248: =$C$248*'[1]Production plan'!T123 -> 147 | AA248: =$C$248*'[1]Production plan'!U123 -> 0 | AB248: =$C$248*'[1]Production plan'!V123 -> 0 | AC248: =$C$248*'[1]Production plan'!W123 -> 480 | AD248: =$C$248*'[1]Production plan'!X123 -> 930 | AE248: =$C$248*'[1]Production plan'!Y123 -> 930 | AF248: =$C$248*'[1]Production plan'!Z123 -> 525 | AG248: =$C$248*'[1]Production plan'!AA123 -> 0 | AH248: =$C$248*'[1]Production plan'!AB123 -> 0
G250: Supply | P250: 4500
G252: % | I252: =I253/AVERAGE(J248:P248) -> 97.22222222 | J252: 69.22907489 | K252: 51.08972268 | L252: 37.09243697 | M252: 33.39978332 | N252: 23.93296089 | O252: 20.8097561 | P252: =P253/AVERAGE(Q248:W248) -> 34.50681818 | Q252: =Q253/AVERAGE(R248:X248) -> 25.37239915 | R252: 19.87334465 | S252: 20.11628734 | T252: 20.59992625 | U252: 23.30548187 | V252: 20.18764752 | W252: 15.83644096 | X252: 13.30473555 | Y252: 12.58698539 | Z252: 15.68342059 | AA252: 15.68342059 | AB252: 13.44293194 | AC252: 12.45073375 | AD252: 13.77044674 | AE252: 23.30857143
G253: Inventory | I253: 4500 | J253: =I253+J250-J248 -> 4490 | K253: =J253+K250-K248 -> 4474 | L253: 4414 | M253: 4404 | N253: 4284 | O253: 4266 | P253: 8676 | Q253: 8536 | R253: 8361 | S253: 8081 | T253: 7981 | U253: =T253+U250-U248 -> 7531 | V253: =U253+V250-V248 -> 7331 | W253: 6916 | X253: 6181 | Y253: 5416 | Z253: 6419 | AA253: =Z253+AA250-AA248 -> 6419 | AB253: 6419 | AC253: 5939 | AD253: 5009 | AE253: 4079 | AF253: 3554 | AG253: 3554 | AH253: 3554
A255: MEP001008 | B255: AI | C255: 1 | E255: 12 | F255: 3 | G255: Need | H255: =SUM(I257:BZ257) -> 47400 | AG255: =$C$241*'[1]Production plan'!AA123 -> 0 | AH255: =$C$241*'[1]Production plan'!AB123 -> 0 | AI255: =$C$241*'[1]Production plan'!AC123 -> 0 | AJ255: =$C$241*'[1]Production plan'!AD123 -> 0 | AK255: =$C$241*'[1]Production plan'!AE123 -> 0 | AL255: =$C$241*'[1]Production plan'!AF123 -> 0 | AM255: =$C$241*'[1]Production plan'!AG123 -> 0 | AN255: =$C$241*'[1]Production plan'!AH123 -> 0 | AO255: =$C$241*'[1]Production plan'!AI123 -> 0 | AP255: =$C$241*'[1]Production plan'!AJ123 -> 0 | AQ255: =$C$241*'[1]Production plan'!AK123 -> 0 | AR255: =$C$241*'[1]Production plan'!AL123 -> 0 | AS255: =$C$241*'[1]Production plan'!AM123 -> 0 | AT255: =$C$241*'[1]Production plan'!AN123 -> 0 | AU255: =$C$241*'[1]Production plan'!AO123 -> 0 | AV255: =$C$241*'[1]Production plan'!AP123 -> 0 | AW255: =$C$241*'[1]Production plan'!AQ123 -> 0 | AX255: =$C$241*'[1]Production plan'!AR123 -> 0 | AY255: =$C$241*'[1]Production plan'!AS123 -> 0 | AZ255: =$C$241*'[1]Production plan'!AT123 -> 400 | BA255: =$C$241*'[1]Production plan'!AU123 -> 750 | BB255: =$C$241*'[1]Production plan'!AV123 -> 1500 | BC255: =$C$241*'[1]Production plan'!AW123 -> 2750 | BD255: =$C$241*'[1]Production plan'!AX123 -> 3500 | BE255: =$C$241*'[1]Production plan'!AY123 -> 4300 | BF255: =$C$241*'[1]Production plan'!AZ123 -> 4300 | BG255: =$C$241*'[1]Production plan'!BA123 -> 1650 | BH255: =$C$241*'[1]Production plan'!BB123 -> 0 | BI255: =$C$241*'[1]Production plan'!BC123 -> 0 | BJ255: =$C$241*'[1]Production plan'!BD123 -> 0 | BK255: =$C$241*'[1]Production plan'!BE123 -> 0 | BL255: =$C$241*'[1]Production plan'!BF123 -> 0 | BM255: =$C$241*'[1]Production plan'!BG123 -> 0 | BN255: =$C$241*'[1]Production plan'!BH123 -> 1800 | BO255: =$C$241*'[1]Production plan'!BI123 -> 3000 | BP255: =$C$241*'[1]Production plan'!BJ123 -> 3000 | BQ255: =$C$241*'[1]Production plan'!BK123 -> 3500 | BR255: =$C$241*'[1]Production plan'!BL123 -> 3500 | BS255: =$C$241*'[1]Production plan'!BM123 -> 3500 | BT255: =$C$241*'[1]Production plan'!BN123 -> 3250 | BU255: =$C$241*'[1]Production plan'!BO123 -> 0 | BV255: =$C$241*'[1]Production plan'!BP123 -> 0 | BW255: =$C$241*'[1]Production plan'!BQ123 -> 0 | BX255: =$C$241*'[1]Production plan'!BR123 -> 3000 | BY255: =$C$241*'[1]Production plan'!BS123 -> 3700 | BZ255: =$C$241*'[1]Production plan'!BT123 -> 0
G257: Supply | Z257: 400 | AC257: 4800 | AX257: 12200 | BI257: 10000 | BL257: 5000 | BN257: 5000 | BP257: 5000 | BV257: 5000
G259: % | I259: =I260/AVERAGE(J255:P255) ->  | P259: =P260/AVERAGE(Q255:W255) ->  | Q259: =Q260/AVERAGE(R255:X255) ->  | AS259: 91 | AT259: 31.65217391 | AU259: 13.73584906 | AV259: 6.740740741 | AW259: 4.08988764 | AX259: 9.227272727 | AY259: 6.96 | AZ259: 6.346666667 | BA259: 6.319444444 | BB259: 6.257575758 | BC259: 6.109090909 | BD259: 5.804878049 | BE259: 4.941176471 | BF259: -0.4242424242 | BG259: -6.805555556 | BH259: -2.552083333 | BI259: 7.403846154 | BJ259: 5.110619469 | BK259: 3.902027027 | BL259: 5.068306011 | BM259: 4.303944316 | BN259: 5.830379747 | BO259: 5.620895522 | BP259: 7.865454545 | BQ259: 6.313207547 | BR259: 4.397769517 | BS259: 3.48241206 | BT259: 1.52238806 | BU259: 1.268656716 | BV259: 4 | BW259: 3 | BX259: 2
G260: Inventory | I260: 0 | J260: =I260+J257-J255 -> 0 | K260: =J260+K257-K255 -> 0 | L260: 0 | M260: 0 | N260: 0 | O260: 0 | P260: 0 | Q260: 0 | R260: 0 | S260: 0 | T260: 0 | U260: 0 | V260: 0 | W260: 0 | X260: 0 | Y260: 0 | Z260: 400 | AA260: 400 | AB260: 400 | AC260: 5200 | AD260: 5200 | AE260: 5200 | AF260: 5200 | AG260: 5200 | AH260: 5200 | AI260: 5200 | AJ260: 5200 | AK260: 5200 | AL260: 5200 | AM260: 5200 | AN260: 5200 | AO260: 5200 | AP260: 5200 | AQ260: 5200 | AR260: 5200 | AS260: =AR260+AS257-AS255 -> 5200 | AT260: =AS260+AT257-AT255 -> 5200 | AU260: 5200 | AV260: 5200 | AW260: 5200 | AX260: 17400 | AY260: 17400 | AZ260: 17000 | BA260: 16250 | BB260: 14750 | BC260: 12000 | BD260: 8500 | BE260: 4200 | BF260: -100 | BG260: -1750 | BH260: -1750 | BI260: 8250 | BJ260: 8250 | BK260: 8250 | BL260: 13250 | BM260: 13250 | BN260: 16450 | BO260: 13450 | BP260: 15450 | BQ260: 11950 | BR260: 8450 | BS260: 4950 | BT260: 1700 | BU260: 1700 | BV260: 6700 | BW260: 6700 | BX260: 3700 | BY260: 0 | BZ260: 0
A262: MEP001005 | B262: AJ | C262: 1 | E262: 12 | F262: 6 | G262: Need | H262: =SUM(I264:BZ264) -> 47400 | AG262: =$C$248*'[1]Production plan'!AA123 -> 0 | AH262: =$C$248*'[1]Production plan'!AB123 -> 0 | AI262: =$C$248*'[1]Production plan'!AC123 -> 0 | AJ262: =$C$248*'[1]Production plan'!AD123 -> 0 | AK262: =$C$248*'[1]Production plan'!AE123 -> 0 | AL262: =$C$248*'[1]Production plan'!AF123 -> 0 | AM262: =$C$248*'[1]Production plan'!AG123 -> 0 | AN262: =$C$248*'[1]Production plan'!AH123 -> 0 | AO262: =$C$248*'[1]Production plan'!AI123 -> 0 | AP262: =$C$248*'[1]Production plan'!AJ123 -> 0 | AQ262: =$C$248*'[1]Production plan'!AK123 -> 0 | AR262: =$C$248*'[1]Production plan'!AL123 -> 0 | AS262: =$C$248*'[1]Production plan'!AM123 -> 0 | AT262: =$C$248*'[1]Production plan'!AN123 -> 0 | AU262: =$C$248*'[1]Production plan'!AO123 -> 0 | AV262: =$C$248*'[1]Production plan'!AP123 -> 0 | AW262: =$C$248*'[1]Production plan'!AQ123 -> 0 | AX262: =$C$248*'[1]Production plan'!AR123 -> 0 | AY262: =$C$248*'[1]Production plan'!AS123 -> 0 | AZ262: =$C$248*'[1]Production plan'!AT123 -> 400 | BA262: =$C$248*'[1]Production plan'!AU123 -> 750 | BB262: =$C$248*'[1]Production plan'!AV123 -> 1500 | BC262: =$C$248*'[1]Production plan'!AW123 -> 2750 | BD262: =$C$248*'[1]Production plan'!AX123 -> 3500 | BE262: =$C$248*'[1]Production plan'!AY123 -> 4300 | BF262: =$C$248*'[1]Production plan'!AZ123 -> 4300 | BG262: =$C$248*'[1]Production plan'!BA123 -> 1650 | BH262: =$C$248*'[1]Production plan'!BB123 -> 0 | BI262: =$C$248*'[1]Production plan'!BC123 -> 0 | BJ262: =$C$248*'[1]Production plan'!BD123 -> 0 | BK262: =$C$248*'[1]Production plan'!BE123 -> 0 | BL262: =$C$248*'[1]Production plan'!BF123 -> 0 | BM262: =$C$248*'[1]Production plan'!BG123 -> 0 | BN262: =$C$248*'[1]Production plan'!BH123 -> 1800 | BO262: =$C$248*'[1]Production plan'!BI123 -> 3000 | BP262: =$C$248*'[1]Production plan'!BJ123 -> 3000 | BQ262: =$C$248*'[1]Production plan'!BK123 -> 3500 | BR262: =$C$248*'[1]Production plan'!BL123 -> 3500 | BS262: =$C$248*'[1]Production plan'!BM123 -> 3500 | BT262: =$C$248*'[1]Production plan'!BN123 -> 3250 | BU262: =$C$248*'[1]Production plan'!BO123 -> 0 | BV262: =$C$248*'[1]Production plan'!BP123 -> 0 | BW262: =$C$248*'[1]Production plan'!BQ123 -> 0 | BX262: =$C$248*'[1]Production plan'!BR123 -> 3000 | BY262: =$C$248*'[1]Production plan'!BS123 -> 3700 | BZ262: =$C$248*'[1]Production plan'!BT123 -> 0
G264: Supply | Z264: 5200 | AX264: 12200 | BI264: 10000 | BL264: 5000 | BN264: 5000 | BP264: 5000 | BV264: 5000
G266: % | I266: =I267/AVERAGE(J262:P262) ->  | P266: =P267/AVERAGE(Q262:W262) ->  | Q266: =Q267/AVERAGE(R262:X262) ->  | AS266: 91 | AT266: 31.65217391 | AU266: 13.73584906 | AV266: 6.740740741 | AW266: 4.08988764 | AX266: 9.227272727 | AY266: 6.96 | AZ266: 6.346666667 | BA266: 6.319444444 | BB266: 6.257575758 | BC266: 6.109090909 | BD266: 5.804878049 | BE266: 4.941176471 | BF266: -0.4242424242 | BG266: -6.805555556 | BH266: -2.552083333 | BI266: 7.403846154 | BJ266: 5.110619469 | BK266: 3.902027027 | BL266: 5.068306011 | BM266: 4.303944316 | BN266: 5.830379747 | BO266: 5.620895522 | BP266: 7.865454545 | BQ266: 6.313207547 | BR266: 4.397769517 | BS266: 3.48241206 | BT266: 1.52238806 | BU266: 1.268656716 | BV266: 4 | BW266: 3 | BX266: 2
G267: Inventory | I267: 0 | J267: =I267+J264-J262 -> 0 | K267: =J267+K264-K262 -> 0 | L267: 0 | M267: 0 | N267: 0 | O267: 0 | P267: 0 | Q267: 0 | R267: 0 | S267: 0 | T267: 0 | U267: 0 | V267: 0 | W267: 0 | X267: 0 | Y267: 0 | Z267: 5200 | AA267: 5200 | AB267: 5200 | AC267: 5200 | AD267: 5200 | AE267: 5200 | AF267: 5200 | AG267: 5200 | AH267: 5200 | AI267: 5200 | AJ267: 5200 | AK267: 5200 | AL267: 5200 | AM267: 5200 | AN267: 5200 | AO267: 5200 | AP267: 5200 | AQ267: 5200 | AR267: 5200 | AS267: 5200 | AT267: =AS267+AT264-AT262 -> 5200 | AU267: =AT267+AU264-AU262 -> 5200 | AV267: 5200 | AW267: 5200 | AX267: 17400 | AY267: 17400 | AZ267: 17000 | BA267: 16250 | BB267: 14750 | BC267: 12000 | BD267: 8500 | BE267: 4200 | BF267: -100 | BG267: -1750 | BH267: -1750 | BI267: 8250 | BJ267: 8250 | BK267: 8250 | BL267: 13250 | BM267: 13250 | BN267: 16450 | BO267: 13450 | BP267: 15450 | BQ267: 11950 | BR267: 8450 | BS267: 4950 | BT267: 1700 | BU267: 1700 | BV267: 6700 | BW267: =BV267+BW264-BW262 -> 6700 | BX267: =BW267+BX264-BX262 -> 3700 | BY267: 0 | BZ267: 0
A269: MEP001100 | B269: AK | D269: 1 | E269: 12 | G269: Need | H269: =SUM(I271:BZ271) -> 65500 | I269: =$D$269*'[1]Production plan'!C126 -> 0 | J269: =$D$269*'[1]Production plan'!D126 -> 0 | K269: =$D$269*'[1]Production plan'!E126 -> 0 | L269: =$D$269*'[1]Production plan'!F126 -> 0 | M269: =$D$269*'[1]Production plan'!G126 -> 0 | N269: =$D$269*'[1]Production plan'!H126 -> 0 | O269: =$D$269*'[1]Production plan'!I126 -> 0 | P269: =$D$269*'[1]Production plan'!J126 -> 0 | Q269: =$D$269*'[1]Production plan'!K126 -> 0 | R269: =$D$269*'[1]Production plan'!L126 -> 0 | S269: =$D$269*'[1]Production plan'!M126 -> 0 | T269: =$D$269*'[1]Production plan'!N126 -> 0 | U269: =$D$269*'[1]Production plan'!O126 -> 0 | V269: =$D$269*'[1]Production plan'!P126 -> 0 | W269: =$D$269*'[1]Production plan'!Q126 -> 0 | X269: =$D$269*'[1]Production plan'!R126 -> 0 | Y269: =$D$269*'[1]Production plan'!S126 -> 0 | Z269: =$D$269*'[1]Production plan'!T126 -> 0 | AA269: =$D$269*'[1]Production plan'!U126 -> 0 | AB269: =$D$269*'[1]Production plan'!V126 -> 0 | AC269: =$D$269*'[1]Production plan'!W126 -> 0 | AD269: =$D$269*'[1]Production plan'!X126 -> 0 | AE269: =$D$269*'[1]Production plan'!Y126 -> 0 | AF269: =$D$269*'[1]Production plan'!Z126 -> 0 | AG269: =$D$269*'[1]Production plan'!AA126 -> 0 | AH269: =$D$269*'[1]Production plan'!AB126 -> 0 | AI269: =$D$269*'[1]Production plan'!AC126 -> 0 | AJ269: =$D$269*'[1]Production plan'!AD126 -> 30 | AK269: =$D$269*'[1]Production plan'!AE126 -> 75 | AL269: =$D$269*'[1]Production plan'!AF126 -> 150 | AM269: =$D$269*'[1]Production plan'!AG126 -> 250 | AN269: =$D$269*'[1]Production plan'!AH126 -> 500 | AO269: =$D$269*'[1]Production plan'!AI126 -> 600 | AP269: =$D$269*'[1]Production plan'!AJ126 -> 1000 | AQ269: =$D$269*'[1]Production plan'!AK126 -> 1250 | AR269: =$D$269*'[1]Production plan'!AL126 -> 1500 | AS269: =$D$269*'[1]Production plan'!AM126 -> 1500 | AT269: =$D$269*'[1]Production plan'!AN126 -> 1500 | AU269: =$D$269*'[1]Production plan'!AO126 -> 0 | AV269: =$D$269*'[1]Production plan'!AP126 -> 2120 | AW269: =$D$269*'[1]Production plan'!AQ126 -> 2300 | AX269: =$D$269*'[1]Production plan'!AR126 -> 0 | AY269: =$D$269*'[1]Production plan'!AS126 -> 0 | AZ269: =$D$269*'[1]Production plan'!AT126 -> 0 | BA269: =$D$269*'[1]Production plan'!AU126 -> 0 | BB269: =$D$269*'[1]Production plan'!AV126 -> 0 | BC269: =$D$269*'[1]Production plan'!AW126 -> 0 | BD269: =$D$269*'[1]Production plan'!AX126 -> 0 | BE269: =$D$269*'[1]Production plan'!AY126 -> 0 | BF269: =$D$269*'[1]Production plan'!AZ126 -> 0 | BG269: =$D$269*'[1]Production plan'!BA126 -> 0 | BH269: =$D$269*'[1]Production plan'!BB126 -> 3000 | BI269: =$D$269*'[1]Production plan'!BC126 -> 7000 | BJ269: =$D$269*'[1]Production plan'!BD126 -> 7000 | BK269: =$D$269*'[1]Production plan'!BE126 -> 7000 | BL269: =$D$269*'[1]Production plan'!BF126 -> 7000 | BM269: =$D$269*'[1]Production plan'!BG126 -> 4450 | BN269: =$D$269*'[1]Production plan'!BH126 -> 0 | BO269: =$D$269*'[1]Production plan'!BI126 -> 0 | BP269: =$D$269*'[1]Production plan'!BJ126 -> 0 | BQ269: =$D$269*'[1]Production plan'!BK126 -> 0 | BR269: =$D$269*'[1]Production plan'!BL126 -> 0 | BS269: =$D$269*'[1]Production plan'!BM126 -> 0 | BT269: =$D$269*'[1]Production plan'!BN126 -> 0 | BU269: =$D$269*'[1]Production plan'!BO126 -> 7300 | BV269: =$D$269*'[1]Production plan'!BP126 -> 7300 | BW269: =$D$269*'[1]Production plan'!BQ126 -> 5025 | BX269: =$D$269*'[1]Production plan'!BR126 -> 0 | BY269: =$D$269*'[1]Production plan'!BS126 -> 0 | BZ269: =$D$269*'[1]Production plan'!BT126 -> 0
G271: Supply | V271: 9500 | AK271: 6000 | BE271: 10000 | BG271: 10000 | BH271: 10000 | BL271: 5000 | BQ271: 5000 | BS271: 10000
G273: % | I273: =I274/AVERAGE(J269:P269) ->  | P273: =P274/AVERAGE(Q269:W269) ->  | Q273: =Q274/AVERAGE(R269:X269) ->  | AC273: 2216.666667 | AD273: 633.3333333 | AE273: 260.7843137 | AF273: 131.6831683 | AG273: 66.16915423 | AH273: 41.43302181 | AI273: 25.52783109 | AJ273: 17.33071895 | AK273: 20.52666667 | AL273: 16.16893939 | AM273: 13.37133758 | AN273: 13.8047619 | AO273: 10.96561443 | AP273: 8.875614553 | AQ273: 9.138452915 | AR273: 9.570754717 | AS273: 10.22212838 | AT273: 11.31561086 | AU273: 11.31561086 | AV273: 15.29347826 | BA273: 6.358333333 | BB273: 1.9075 | BC273: 1.122058824 | BD273: 0.7947916667 | BE273: 2.873387097 | BF273: 2.512693935 | BG273: 4.487306065 | BH273: 6.412172573 | BI273: 6.250491159 | BJ273: 5.966124661 | BK273: 5.334061135 | BL273: 10.57865169 | BN273: 2.181506849 | BO273: 1.090753425 | BP273: 0.8114649682 | BQ273: 2.594904459 | BR273: 2.594904459 | BS273: 6.161783439 | BT273: 5.281528662 | BU273: 4.046653144 | BV273: 2.129353234
G274: Inventory | I274: 0 | J274: =I274+J271-J269 -> 0 | K274: =J274+K271-K269 -> 0 | L274: 0 | M274: 0 | N274: 0 | O274: 0 | P274: 0 | Q274: 0 | R274: 0 | S274: 0 | T274: 0 | U274: 0 | V274: 9500 | W274: 9500 | X274: 9500 | Y274: 9500 | Z274: 9500 | AA274: 9500 | AB274: 9500 | AC274: 9500 | AD274: 9500 | AE274: 9500 | AF274: 9500 | AG274: 9500 | AH274: 9500 | AI274: 9500 | AJ274: 9470 | AK274: 15395 | AL274: 15245 | AM274: 14995 | AN274: 14495 | AO274: 13895 | AP274: 12895 | AQ274: 11645 | AR274: 10145 | AS274: 8645 | AT274: 7145 | AU274: 7145 | AV274: 5025 | AW274: 2725 | AX274: 2725 | AY274: 2725 | AZ274: 2725 | BA274: 2725 | BB274: 2725 | BC274: 2725 | BD274: 2725 | BE274: 12725 | BF274: 12725 | BG274: 22725 | BH274: 29725 | BI274: 22725 | BJ274: 15725 | BK274: 8725 | BL274: 6725 | BM274: 2275 | BN274: 2275 | BO274: 2275 | BP274: 2275 | BQ274: 7275 | BR274: 7275 | BS274: 17275 | BT274: 17275 | BU274: 9975 | BV274: 2675 | BW274: =BV274+BW271-BW269 -> -2350 | BX274: -2350 | BY274: -2350 | BZ274: -2350
A276: MEP001101 | B276: AL | D276: 1 | E276: 12 | G276: Need | H276: =SUM(I278:BZ278) -> 65500 | I276: =$D$276*'[1]Production plan'!C126 -> 0 | J276: =$D$276*'[1]Production plan'!D126 -> 0 | K276: =$D$276*'[1]Production plan'!E126 -> 0 | L276: =$D$276*'[1]Production plan'!F126 -> 0 | M276: =$D$276*'[1]Production plan'!G126 -> 0 | N276: =$D$276*'[1]Production plan'!H126 -> 0 | O276: =$D$276*'[1]Production plan'!I126 -> 0 | P276: =$D$276*'[1]Production plan'!J126 -> 0 | Q276: =$D$276*'[1]Production plan'!K126 -> 0 | R276: =$D$276*'[1]Production plan'!L126 -> 0 | S276: =$D$276*'[1]Production plan'!M126 -> 0 | T276: =$D$276*'[1]Production plan'!N126 -> 0 | U276: =$D$276*'[1]Production plan'!O126 -> 0 | V276: =$D$276*'[1]Production plan'!P126 -> 0 | W276: =$D$276*'[1]Production plan'!Q126 -> 0 | X276: =$D$276*'[1]Production plan'!R126 -> 0 | Y276: =$D$276*'[1]Production plan'!S126 -> 0 | Z276: =$D$276*'[1]Production plan'!T126 -> 0 | AA276: =$D$276*'[1]Production plan'!U126 -> 0 | AB276: =$D$276*'[1]Production plan'!V126 -> 0 | AC276: =$D$276*'[1]Production plan'!W126 -> 0 | AD276: =$D$276*'[1]Production plan'!X126 -> 0 | AE276: =$D$276*'[1]Production plan'!Y126 -> 0 | AF276: =$D$276*'[1]Production plan'!Z126 -> 0 | AG276: =$D$276*'[1]Production plan'!AA126 -> 0 | AH276: =$D$276*'[1]Production plan'!AB126 -> 0 | AI276: =$D$276*'[1]Production plan'!AC126 -> 0 | AJ276: =$D$276*'[1]Production plan'!AD126 -> 30 | AK276: =$D$276*'[1]Production plan'!AE126 -> 75 | AL276: =$D$276*'[1]Production plan'!AF126 -> 150 | AM276: =$D$276*'[1]Production plan'!AG126 -> 250 | AN276: =$D$276*'[1]Production plan'!AH126 -> 500 | AO276: =$D$276*'[1]Production plan'!AI126 -> 600 | AP276: =$D$276*'[1]Production plan'!AJ126 -> 1000 | AQ276: =$D$276*'[1]Production plan'!AK126 -> 1250 | AR276: =$D$276*'[1]Production plan'!AL126 -> 1500 | AS276: =$D$276*'[1]Production plan'!AM126 -> 1500 | AT276: =$D$276*'[1]Production plan'!AN126 -> 1500 | AU276: =$D$276*'[1]Production plan'!AO126 -> 0 | AV276: =$D$276*'[1]Production plan'!AP126 -> 2120 | AW276: =$D$276*'[1]Production plan'!AQ126 -> 2300 | AX276: =$D$276*'[1]Production plan'!AR126 -> 0 | AY276: =$D$276*'[1]Production plan'!AS126 -> 0 | AZ276: =$D$276*'[1]Production plan'!AT126 -> 0 | BA276: =$D$276*'[1]Production plan'!AU126 -> 0 | BB276: =$D$276*'[1]Production plan'!AV126 -> 0 | BC276: =$D$276*'[1]Production plan'!AW126 -> 0 | BD276: =$D$276*'[1]Production plan'!AX126 -> 0 | BE276: =$D$276*'[1]Production plan'!AY126 -> 0 | BF276: =$D$276*'[1]Production plan'!AZ126 -> 0 | BG276: =$D$276*'[1]Production plan'!BA126 -> 0 | BH276: =$D$276*'[1]Production plan'!BB126 -> 3000 | BI276: =$D$276*'[1]Production plan'!BC126 -> 7000 | BJ276: =$D$276*'[1]Production plan'!BD126 -> 7000 | BK276: =$D$276*'[1]Production plan'!BE126 -> 7000 | BL276: =$D$276*'[1]Production plan'!BF126 -> 7000 | BM276: =$D$276*'[1]Production plan'!BG126 -> 4450 | BN276: =$D$276*'[1]Production plan'!BH126 -> 0 | BO276: =$D$276*'[1]Production plan'!BI126 -> 0 | BP276: =$D$276*'[1]Production plan'!BJ126 -> 0 | BQ276: =$D$276*'[1]Production plan'!BK126 -> 0 | BR276: =$D$276*'[1]Production plan'!BL126 -> 0 | BS276: =$D$276*'[1]Production plan'!BM126 -> 0 | BT276: =$D$276*'[1]Production plan'!BN126 -> 0 | BU276: =$D$276*'[1]Production plan'!BO126 -> 7300 | BV276: =$D$276*'[1]Production plan'!BP126 -> 7300 | BW276: =$D$276*'[1]Production plan'!BQ126 -> 5025 | BX276: =$D$276*'[1]Production plan'!BR126 -> 0 | BY276: =$D$276*'[1]Production plan'!BS126 -> 0 | BZ276: =$D$276*'[1]Production plan'!BT126 -> 0
G278: Supply | V278: 9500 | AK278: 6000 | BE278: 10000 | BG278: 10000 | BH278: 10000 | BL278: 5000 | BQ278: 5000 | BS278: 10000
G280: % | I280: =I281/AVERAGE(J276:P276) ->  | P280: =P281/AVERAGE(Q276:W276) ->  | Q280: =Q281/AVERAGE(R276:X276) ->  | AC280: 2216.666667 | AD280: 633.3333333 | AE280: 260.7843137 | AF280: 131.6831683 | AG280: 66.16915423 | AH280: 41.43302181 | AI280: 25.52783109 | AJ280: 17.33071895 | AK280: 20.52666667 | AL280: 16.16893939 | AM280: 13.37133758 | AN280: 13.8047619 | AO280: 10.96561443 | AP280: 8.875614553 | AQ280: 9.138452915 | AR280: 9.570754717 | AS280: 10.22212838 | AT280: 11.31561086 | AU280: 11.31561086 | AV280: 15.29347826 | BA280: 6.358333333 | BB280: 1.9075 | BC280: 1.122058824 | BD280: 0.7947916667 | BE280: 2.873387097 | BF280: 2.512693935 | BG280: 4.487306065 | BH280: 6.412172573 | BI280: 6.250491159 | BJ280: 5.966124661 | BK280: 5.334061135 | BL280: 10.57865169 | BN280: 2.181506849 | BO280: 1.090753425 | BP280: 0.8114649682 | BQ280: 2.594904459 | BR280: 2.594904459 | BS280: 6.161783439 | BT280: 5.281528662 | BU280: 4.046653144 | BV280: 2.129353234
G281: Inventory | I281: 0 | J281: =I281+J278-J276 -> 0 | K281: =J281+K278-K276 -> 0 | L281: 0 | M281: 0 | N281: 0 | O281: 0 | P281: 0 | Q281: 0 | R281: 0 | S281: 0 | T281: 0 | U281: 0 | V281: 9500 | W281: 9500 | X281: 9500 | Y281: 9500 | Z281: 9500 | AA281: 9500 | AB281: 9500 | AC281: 9500 | AD281: 9500 | AE281: 9500 | AF281: 9500 | AG281: 9500 | AH281: 9500 | AI281: 9500 | AJ281: 9470 | AK281: 15395 | AL281: 15245 | AM281: 14995 | AN281: 14495 | AO281: 13895 | AP281: 12895 | AQ281: 11645 | AR281: 10145 | AS281: 8645 | AT281: 7145 | AU281: 7145 | AV281: 5025 | AW281: 2725 | AX281: 2725 | AY281: 2725 | AZ281: 2725 | BA281: 2725 | BB281: 2725 | BC281: 2725 | BD281: 2725 | BE281: 12725 | BF281: 12725 | BG281: 22725 | BH281: 29725 | BI281: 22725 | BJ281: 15725 | BK281: 8725 | BL281: 6725 | BM281: 2275 | BN281: 2275 | BO281: 2275 | BP281: 2275 | BQ281: 7275 | BR281: 7275 | BS281: 17275 | BT281: 17275 | BU281: 9975 | BV281: 2675 | BW281: =BV281+BW278-BW276 -> -2350 | BX281: -2350 | BY281: -2350 | BZ281: -2350
A283: MEP001091 | B283: AM | C283: 1 | E283: 8 | F283: 3 | G283: Need | H283: =SUM(I285:BZ285) -> 56100 | I283: =$C$283*'[1]Production plan'!C123 -> 0 | J283: =$C$283*'[1]Production plan'!D123 -> 10 | K283: =$C$283*'[1]Production plan'!E123 -> 16 | L283: =$C$283*'[1]Production plan'!F123 -> 60 | M283: =$C$283*'[1]Production plan'!G123 -> 10 | N283: =$C$283*'[1]Production plan'!H123 -> 120 | O283: =$C$283*'[1]Production plan'!I123 -> 18 | P283: =$C$283*'[1]Production plan'!J123 -> 90 | Q283: =$C$283*'[1]Production plan'!K123 -> 140 | R283: =$C$283*'[1]Production plan'!L123 -> 175 | S283: =$C$283*'[1]Production plan'!M123 -> 280 | T283: =$C$283*'[1]Production plan'!N123 -> 100 | U283: =$C$283*'[1]Production plan'!O123 -> 450 | V283: =$C$283*'[1]Production plan'!P123 -> 200 | W283: =$C$283*'[1]Production plan'!Q123 -> 415 | X283: =$C$283*'[1]Production plan'!R123 -> 735 | Y283: =$C$283*'[1]Production plan'!S123 -> 765 | Z283: =$C$283*'[1]Production plan'!T123 -> 147 | AA283: =$C$283*'[1]Production plan'!U123 -> 0 | AB283: =$C$283*'[1]Production plan'!V123 -> 0 | AC283: =$C$283*'[1]Production plan'!W123 -> 480 | AD283: =$C$283*'[1]Production plan'!X123 -> 930 | AE283: =$C$283*'[1]Production plan'!Y123 -> 930 | AF283: =$C$283*'[1]Production plan'!Z123 -> 525 | AG283: =$C$283*'[1]Production plan'!AA123 -> 0 | AH283: =$C$283*'[1]Production plan'!AB123 -> 0 | AI283: =$C$283*'[1]Production plan'!AC123 -> 0 | AJ283: =$C$283*'[1]Production plan'!AD123 -> 0 | AK283: =$C$283*'[1]Production plan'!AE123 -> 0 | AL283: =$C$283*'[1]Production plan'!AF123 -> 0 | AM283: =$C$283*'[1]Production plan'!AG123 -> 0 | AN283: =$C$283*'[1]Production plan'!AH123 -> 0 | AO283: =$C$283*'[1]Production plan'!AI123 -> 0 | AP283: =$C$283*'[1]Production plan'!AJ123 -> 0 | AQ283: =$C$283*'[1]Production plan'!AK123 -> 0 | AR283: =$C$283*'[1]Production plan'!AL123 -> 0 | AS283: =$C$283*'[1]Production plan'!AM123 -> 0 | AT283: =$C$283*'[1]Production plan'!AN123 -> 0 | AU283: =$C$283*'[1]Production plan'!AO123 -> 0 | AV283: =$C$283*'[1]Production plan'!AP123 -> 0 | AW283: =$C$283*'[1]Production plan'!AQ123 -> 0 | AX283: =$C$283*'[1]Production plan'!AR123 -> 0 | AY283: =$C$283*'[1]Production plan'!AS123 -> 0 | AZ283: =$C$283*'[1]Production plan'!AT123 -> 400 | BA283: =$C$283*'[1]Production plan'!AU123 -> 750 | BB283: =$C$283*'[1]Production plan'!AV123 -> 1500 | BC283: =$C$283*'[1]Production plan'!AW123 -> 2750 | BD283: =$C$283*'[1]Production plan'!AX123 -> 3500 | BE283: =$C$283*'[1]Production plan'!AY123 -> 4300 | BF283: =$C$283*'[1]Production plan'!AZ123 -> 4300 | BG283: =$C$283*'[1]Production plan'!BA123 -> 1650 | BH283: =$C$283*'[1]Production plan'!BB123 -> 0 | BI283: =$C$283*'[1]Production plan'!BC123 -> 0 | BJ283: =$C$283*'[1]Production plan'!BD123 -> 0 | BK283: =$C$283*'[1]Production plan'!BE123 -> 0 | BL283: =$C$283*'[1]Production plan'!BF123 -> 0 | BM283: =$C$283*'[1]Production plan'!BG123 -> 0 | BN283: =$C$283*'[1]Production plan'!BH123 -> 1800 | BO283: =$C$283*'[1]Production plan'!BI123 -> 3000 | BP283: =$C$283*'[1]Production plan'!BJ123 -> 3000 | BQ283: =$C$283*'[1]Production plan'!BK123 -> 3500 | BR283: =$C$283*'[1]Production plan'!BL123 -> 3500 | BS283: =$C$283*'[1]Production plan'!BM123 -> 3500 | BT283: =$C$283*'[1]Production plan'!BN123 -> 3250 | BU283: =$C$283*'[1]Production plan'!BO123 -> 0 | BV283: =$C$283*'[1]Production plan'!BP123 -> 0 | BW283: =$C$283*'[1]Production plan'!BQ123 -> 0 | BX283: =$C$283*'[1]Production plan'!BR123 -> 3000 | BY283: =$C$283*'[1]Production plan'!BS123 -> 3700 | BZ283: =$C$283*'[1]Production plan'!BT123 -> 0
G285: Supply | N285: 2100 | X285: 3000 | Z285: 750 | AC285: 2250 | AN285: 8000 | AZ285: 8000 | BC285: 8000 | BJ285: 8000 | BN285: 8000 | BS285: 8000
G287: % | I287: =I288/AVERAGE(J283:P283) -> 23.61419753 | J287: 16.69823789 | K287: 12.18433931 | L287: 8.462184874 | M287: 7.561213434 | N287: 16.63128492 | O287: 14.43414634 | P287: =P288/AVERAGE(Q283:W283) -> 3.241477273 | Q287: =Q288/AVERAGE(R283:X283) -> 2.006369427 | R287: 1.188455008 | S287: 2.115931721 | T287: 1.935840708 | U287: 0.9283819629 | V287: 0.2753737215 | W287: -0.7212953876 | X287: 4.197416974 | Y287: 2.753984064 | Z287: 4.368586387 | AA287: 4.368586387 | AB287: 4.368586387 | AC287: 10.4427673 | AD287: 12.64329897 | AE287: 22.64 | AS287: 160.5275 | AT287: 55.83565217 | AU287: 24.23056604 | AV287: 11.89092593 | AW287: 7.214719101 | AX287: 4.864469697 | AY287: 3.6692 | AZ287: 6.26192 | BA287: 6.231166667 | BB287: 6.161272727 | BC287: 10.06625455 | BD287: 11.11326829 | BE287: 14.08588235 | BF287: 32.55212121 | BG287: 23.42277778 | BH287: 8.783541667 | BI287: 5.40525641 | BJ287: 8.686814159 | BK287: 6.6325 | BL287: 5.363989071 | BM287: 4.555034803 | BN287: 7.16764557 | BO287: 7.197671642 | BP287: 7.2408 | BQ287: 5.664981132 | BR287: 3.759182156 | BS287: 8.247336683 | BT287: 7.587761194 | BU287: 6.323134328 | BV287: 5.058507463 | BW287: 3.793880597 | BX287: 2.958378378
G288: Inventory | I288: 1093 | J288: =I288+J285-J283 -> 1083 | K288: =J288+K285-K283 -> 1067 | L288: 1007 | M288: 997 | N288: 2977 | O288: 2959 | P288: 815 | Q288: =P288+Q285-Q283 -> 675 | R288: 500 | S288: 850 | T288: =S288+T285-T283 -> 750 | U288: 300 | V288: 100 | W288: -315 | X288: 1950 | Y288: 1185 | Z288: 1788 | AA288: 1788 | AB288: 1788 | AC288: 3558 | AD288: 2628 | AE288: 1698 | AF288: 1173 | AG288: 1173 | AH288: 1173 | AI288: 1173 | AJ288: 1173 | AK288: 1173 | AL288: 1173 | AM288: 1173 | AN288: 9173 | AO288: 9173 | AP288: 9173 | AQ288: 9173 | AR288: 9173 | AS288: 9173 | AT288: 9173 | AU288: 9173 | AV288: 9173 | AW288: 9173 | AX288: 9173 | AY288: 9173 | AZ288: 16773 | BA288: 16023 | BB288: 14523 | BC288: 19773 | BD288: 16273 | BE288: 11973 | BF288: 7673 | BG288: 6023 | BH288: 6023 | BI288: 6023 | BJ288: 14023 | BK288: 14023 | BL288: 14023 | BM288: 14023 | BN288: 20223 | BO288: 17223 | BP288: 14223 | BQ288: 10723 | BR288: 7223 | BS288: 11723 | BT288: 8473 | BU288: 8473 | BV288: 8473 | BW288: 8473 | BX288: 5473 | BY288: 1773 | BZ288: 1773
A290: MEP001092 | B290: AN | C290: 1 | E290: 8 | F290: 6 | G290: Need | H290: =SUM(I292:BZ292) -> 59700 | I290: =$C$290*'[1]Production plan'!C123 -> 0 | J290: =$C$290*'[1]Production plan'!D123 -> 10 | K290: =$C$290*'[1]Production plan'!E123 -> 16 | L290: =$C$290*'[1]Production plan'!F123 -> 60 | M290: =$C$290*'[1]Production plan'!G123 -> 10 | N290: =$C$290*'[1]Production plan'!H123 -> 120 | O290: =$C$290*'[1]Production plan'!I123 -> 18 | P290: =$C$290*'[1]Production plan'!J123 -> 90 | Q290: =$C$290*'[1]Production plan'!K123 -> 140 | R290: =$C$290*'[1]Production plan'!L123 -> 175 | S290: =$C$290*'[1]Production plan'!M123 -> 280 | T290: =$C$290*'[1]Production plan'!N123 -> 100 | U290: =$C$290*'[1]Production plan'!O123 -> 450 | V290: =$C$290*'[1]Production plan'!P123 -> 200 | W290: =$C$290*'[1]Production plan'!Q123 -> 415 | X290: =$C$290*'[1]Production plan'!R123 -> 735 | Y290: =$C$290*'[1]Production plan'!S123 -> 765 | Z290: =$C$290*'[1]Production plan'!T123 -> 147 | AA290: =$C$290*'[1]Production plan'!U123 -> 0 | AB290: =$C$290*'[1]Production plan'!V123 -> 0 | AC290: =$C$290*'[1]Production plan'!W123 -> 480 | AD290: =$C$290*'[1]Production plan'!X123 -> 930 | AE290: =$C$290*'[1]Production plan'!Y123 -> 930 | AF290: =$C$290*'[1]Production plan'!Z123 -> 525 | AG290: =$C$290*'[1]Production plan'!AA123 -> 0 | AH290: =$C$290*'[1]Production plan'!AB123 -> 0 | AI290: =$C$290*'[1]Production plan'!AC123 -> 0 | AJ290: =$C$290*'[1]Production plan'!AD123 -> 0 | AK290: =$C$290*'[1]Production plan'!AE123 -> 0 | AL290: =$C$290*'[1]Production plan'!AF123 -> 0 | AM290: =$C$290*'[1]Production plan'!AG123 -> 0 | AN290: =$C$290*'[1]Production plan'!AH123 -> 0 | AO290: =$C$290*'[1]Production plan'!AI123 -> 0 | AP290: =$C$290*'[1]Production plan'!AJ123 -> 0 | AQ290: =$C$290*'[1]Production plan'!AK123 -> 0 | AR290: =$C$290*'[1]Production plan'!AL123 -> 0 | AS290: =$C$290*'[1]Production plan'!AM123 -> 0 | AT290: =$C$290*'[1]Production plan'!AN123 -> 0 | AU290: =$C$290*'[1]Production plan'!AO123 -> 0 | AV290: =$C$290*'[1]Production plan'!AP123 -> 0 | AW290: =$C$290*'[1]Production plan'!AQ123 -> 0 | AX290: =$C$290*'[1]Production plan'!AR123 -> 0 | AY290: =$C$290*'[1]Production plan'!AS123 -> 0 | AZ290: =$C$290*'[1]Production plan'!AT123 -> 400 | BA290: =$C$290*'[1]Production plan'!AU123 -> 750 | BB290: =$C$290*'[1]Production plan'!AV123 -> 1500 | BC290: =$C$290*'[1]Production plan'!AW123 -> 2750 | BD290: =$C$290*'[1]Production plan'!AX123 -> 3500 | BE290: =$C$290*'[1]Production plan'!AY123 -> 4300 | BF290: =$C$290*'[1]Production plan'!AZ123 -> 4300 | BG290: =$C$290*'[1]Production plan'!BA123 -> 1650 | BH290: =$C$290*'[1]Production plan'!BB123 -> 0 | BI290: =$C$290*'[1]Production plan'!BC123 -> 0 | BJ290: =$C$290*'[1]Production plan'!BD123 -> 0 | BK290: =$C$290*'[1]Production plan'!BE123 -> 0 | BL290: =$C$290*'[1]Production plan'!BF123 -> 0 | BM290: =$C$290*'[1]Production plan'!BG123 -> 0 | BN290: =$C$290*'[1]Production plan'!BH123 -> 1800 | BO290: =$C$290*'[1]Production plan'!BI123 -> 3000 | BP290: =$C$290*'[1]Production plan'!BJ123 -> 3000 | BQ290: =$C$290*'[1]Production plan'!BK123 -> 3500 | BR290: =$C$290*'[1]Production plan'!BL123 -> 3500 | BS290: =$C$290*'[1]Production plan'!BM123 -> 3500 | BT290: =$C$290*'[1]Production plan'!BN123 -> 3250 | BU290: =$C$290*'[1]Production plan'!BO123 -> 0 | BV290: =$C$290*'[1]Production plan'!BP123 -> 0 | BW290: =$C$290*'[1]Production plan'!BQ123 -> 0 | BX290: =$C$290*'[1]Production plan'!BR123 -> 3000 | BY290: =$C$290*'[1]Production plan'!BS123 -> 3700 | BZ290: =$C$290*'[1]Production plan'!BT123 -> 0
G292: Supply | J292: 150 | L292: 3300 | O292: 2250 | X292: 3000 | Z292: 750 | AC292: 2250 | AN292: 8000 | AZ292: 8000 | BC292: 8000 | BJ292: 8000 | BN292: 8000 | BS292: 8000
G294: % | I294: =I295/AVERAGE(J290:P290) -> 3.240740741 | J294: 4.471365639 | K294: 3.128874388 | L294: 29.52941176 | M294: 26.57421452 | N294: 18.90502793 | O294: 27.39512195 | P294: =P295/AVERAGE(Q290:W290) -> 2.0125 | Q294: =Q295/AVERAGE(R290:X290) -> 1.087898089 | R294: 0.4539898132 | S294: 0.9210526316 | T294: 0.6969026549 | U294: -0.5570291777 | V294: -1.046420142 | W294: -1.820412169 | X294: 3.164206642 | Y294: 1.638446215 | Z294: 3.195811518 | AA294: 3.195811518 | AB294: 3.195811518 | AC294: 15.26205451 | AD294: 20.54295533 | AE294: 44.53333333 | AS294: 189.2625 | AT294: 65.83043478 | AU294: 28.56792453 | AV294: 14.01944444 | AW294: 8.506179775 | AX294: 5.735227273 | AY294: 4.326 | AZ294: 6.874933333 | BA294: 6.869722222 | BB294: 6.857878788 | BC294: 10.90218182 | BD294: 12.23463415 | BE294: 16.01764706 | BF294: 39.51818182 | BG294: 29.80833333 | BH294: 11.178125 | BI294: 6.878846154 | BJ294: 9.703982301 | BK294: 7.409121622 | BL294: 5.992076503 | BM294: 5.088399072 | BN294: 7.749620253 | BO294: 7.883880597 | BP294: 8.076727273 | BQ294: 6.53245283 | BR294: 4.613754647 | BS294: 9.402512563 | BT294: 9.058208955 | BU294: 7.548507463 | BV294: 6.03880597 | BW294: 4.529104478 | BX294: 3.845945946
G295: Inventory | I295: 150 | J295: =I295+J292-J290 -> 290 | K295: =J295+K292-K290 -> 274 | L295: 3514 | M295: 3504 | N295: 3384 | O295: 5616 | P295: 506 | Q295: =P295+Q292-Q290 -> 366 | R295: 191 | S295: 370 | T295: =S295+T292-T290 -> 270 | U295: -180 | V295: -380 | W295: -795 | X295: 1470 | Y295: 705 | Z295: 1308 | AA295: 1308 | AB295: 1308 | AC295: =4500+700 -> 5200 | AD295: =AC295+AD292-AD290 -> 4270 | AE295: 3340 | AF295: 2815 | AG295: 2815 | AH295: 2815 | AI295: 2815 | AJ295: 2815 | AK295: 2815 | AL295: 2815 | AM295: 2815 | AN295: 10815 | AO295: 10815 | AP295: 10815 | AQ295: 10815 | AR295: 10815 | AS295: 10815 | AT295: 10815 | AU295: 10815 | AV295: 10815 | AW295: 10815 | AX295: 10815 | AY295: 10815 | AZ295: 18415 | BA295: 17665 | BB295: 16165 | BC295: 21415 | BD295: 17915 | BE295: 13615 | BF295: 9315 | BG295: 7665 | BH295: 7665 | BI295: 7665 | BJ295: 15665 | BK295: 15665 | BL295: 15665 | BM295: 15665 | BN295: 21865 | BO295: 18865 | BP295: 15865 | BQ295: 12365 | BR295: 8865 | BS295: 13365 | BT295: 10115 | BU295: 10115 | BV295: 10115 | BW295: 10115 | BX295: 7115 | BY295: 3415 | BZ295: 3415
A297: MEP001099 | B297: AO | D297: 1 | E297: 8 | G297: Need | H297: =SUM(I299:BZ299) -> 64500 | I297: =$D$297*'[1]Production plan'!C126 -> 0 | J297: =$D$297*'[1]Production plan'!D126 -> 0 | K297: =$D$297*'[1]Production plan'!E126 -> 0 | L297: =$D$297*'[1]Production plan'!F126 -> 0 | M297: =$D$297*'[1]Production plan'!G126 -> 0 | N297: =$D$297*'[1]Production plan'!H126 -> 0 | O297: =$D$297*'[1]Production plan'!I126 -> 0 | P297: =$D$297*'[1]Production plan'!J126 -> 0 | Q297: =$D$297*'[1]Production plan'!K126 -> 0 | R297: =$D$297*'[1]Production plan'!L126 -> 0 | S297: =$D$297*'[1]Production plan'!M126 -> 0 | T297: =$D$297*'[1]Production plan'!N126 -> 0 | U297: =$D$297*'[1]Production plan'!O126 -> 0 | V297: =$D$297*'[1]Production plan'!P126 -> 0 | W297: =$D$297*'[1]Production plan'!Q126 -> 0 | X297: =$D$297*'[1]Production plan'!R126 -> 0 | Y297: =$D$297*'[1]Production plan'!S126 -> 0 | Z297: =$D$297*'[1]Production plan'!T126 -> 0 | AA297: =$D$297*'[1]Production plan'!U126 -> 0 | AB297: =$D$297*'[1]Production plan'!V126 -> 0 | AC297: =$D$297*'[1]Production plan'!W126 -> 0 | AD297: =$D$297*'[1]Production plan'!X126 -> 0 | AE297: =$D$297*'[1]Production plan'!Y126 -> 0 | AF297: =$D$297*'[1]Production plan'!Z126 -> 0 | AG297: =$D$297*'[1]Production plan'!AA126 -> 0 | AH297: =$D$297*'[1]Production plan'!AB126 -> 0 | AI297: =$D$297*'[1]Production plan'!AC126 -> 0 | AJ297: =$D$297*'[1]Production plan'!AD126 -> 30 | AK297: =$D$297*'[1]Production plan'!AE126 -> 75 | AL297: =$D$297*'[1]Production plan'!AF126 -> 150 | AM297: =$D$297*'[1]Production plan'!AG126 -> 250 | AN297: =$D$297*'[1]Production plan'!AH126 -> 500 | AO297: =$D$297*'[1]Production plan'!AI126 -> 600 | AP297: =$D$297*'[1]Production plan'!AJ126 -> 1000 | AQ297: =$D$297*'[1]Production plan'!AK126 -> 1250 | AR297: =$D$297*'[1]Production plan'!AL126 -> 1500 | AS297: =$D$297*'[1]Production plan'!AM126 -> 1500 | AT297: =$D$297*'[1]Production plan'!AN126 -> 1500 | AU297: =$D$297*'[1]Production plan'!AO126 -> 0 | AV297: =$D$297*'[1]Production plan'!AP126 -> 2120 | AW297: =$D$297*'[1]Production plan'!AQ126 -> 2300 | AX297: =$D$297*'[1]Production plan'!AR126 -> 0 | AY297: =$D$297*'[1]Production plan'!AS126 -> 0 | AZ297: =$D$297*'[1]Production plan'!AT126 -> 0 | BA297: =$D$297*'[1]Production plan'!AU126 -> 0 | BB297: =$D$297*'[1]Production plan'!AV126 -> 0 | BC297: =$D$297*'[1]Production plan'!AW126 -> 0 | BD297: =$D$297*'[1]Production plan'!AX126 -> 0 | BE297: =$D$297*'[1]Production plan'!AY126 -> 0 | BF297: =$D$297*'[1]Production plan'!AZ126 -> 0 | BG297: =$D$297*'[1]Production plan'!BA126 -> 0 | BH297: =$D$297*'[1]Production plan'!BB126 -> 3000 | BI297: =$D$297*'[1]Production plan'!BC126 -> 7000 | BJ297: =$D$297*'[1]Production plan'!BD126 -> 7000 | BK297: =$D$297*'[1]Production plan'!BE126 -> 7000 | BL297: =$D$297*'[1]Production plan'!BF126 -> 7000 | BM297: =$D$297*'[1]Production plan'!BG126 -> 4450 | BN297: =$D$297*'[1]Production plan'!BH126 -> 0 | BO297: =$D$297*'[1]Production plan'!BI126 -> 0 | BP297: =$D$297*'[1]Production plan'!BJ126 -> 0 | BQ297: =$D$297*'[1]Production plan'!BK126 -> 0 | BR297: =$D$297*'[1]Production plan'!BL126 -> 0 | BS297: =$D$297*'[1]Production plan'!BM126 -> 0 | BT297: =$D$297*'[1]Production plan'!BN126 -> 0 | BU297: =$D$297*'[1]Production plan'!BO126 -> 7300 | BV297: =$D$297*'[1]Production plan'!BP126 -> 7300 | BW297: =$D$297*'[1]Production plan'!BQ126 -> 5025 | BX297: =$D$297*'[1]Production plan'!BR126 -> 0 | BY297: =$D$297*'[1]Production plan'!BS126 -> 0 | BZ297: =$D$297*'[1]Production plan'!BT126 -> 0
G299: Supply | Z299: 4500 | AP299: 6000 | BB299: 6000 | BE299: 10000 | BG299: 10000 | BH299: 8000 | BQ299: 10000 | BS299: 10000
G301: % | I301: =I302/AVERAGE(J297:P297) ->  | P301: =P302/AVERAGE(Q297:W297) ->  | Q301: =Q302/AVERAGE(R297:X297) ->  | AC301: 1050 | AD301: 300 | AE301: 123.5294118 | AF301: 62.37623762 | AG301: 31.34328358 | AH301: 19.62616822 | AI301: 12.09213052 | AJ301: 8.180392157 | AK301: 5.86 | AL301: 4.502272727 | AM301: 3.562420382 | AN301: 3.328571429 | AO301: 2.284667418 | AP301: 5.434119961 | AQ301: 5.214686099 | AR301: 4.853773585 | AS301: 4.309966216 | AT301: 3.397058824 | AU301: 3.397058824 | AV301: 0.07608695652 | BA301: -5.308333333 | BB301: =BB302/AVERAGE(BC297:BI297) -> 2.6075 | BC301: =BC302/AVERAGE(BD297:BJ297) -> 1.533823529 | BD301: 1.086458333 | BE301: 3.099193548 | BF301: 2.710155148 | BG301: 4.684767278 | BH301: 6.196456086 | BI301: 5.975442043 | BJ301: 5.586720867 | BK301: 4.722707424 | BL301: 1.140449438 | BN301: -3.571917808 | BO301: -1.785958904 | BP301: -1.32866242 | BQ301: 2.238216561 | BR301: 2.238216561 | BS301: 5.805095541 | BT301: 4.975796178 | BU301: 3.640973631 | BV301: 1.333333333
G302: Inventory | I302: 0 | J302: =I302+J299-J297 -> 0 | K302: =J302+K299-K297 -> 0 | L302: 0 | M302: 0 | N302: 0 | O302: 0 | P302: 0 | Q302: 0 | R302: 0 | S302: 0 | T302: 0 | U302: 0 | V302: 0 | W302: 0 | X302: 0 | Y302: 0 | Z302: 4500 | AA302: 4500 | AB302: 4500 | AC302: 4500 | AD302: 4500 | AE302: 4500 | AF302: 4500 | AG302: 4500 | AH302: 4500 | AI302: 4500 | AJ302: =AI302+AJ299-AJ297 -> 4470 | AK302: 4395 | AL302: 4245 | AM302: 3995 | AN302: 3495 | AO302: 2895 | AP302: 7895 | AQ302: 6645 | AR302: 5145 | AS302: 3645 | AT302: 2145 | AU302: 2145 | AV302: 25 | AW302: -2275 | AX302: -2275 | AY302: -2275 | AZ302: -2275 | BA302: -2275 | BB302: 3725 | BC302: 3725 | BD302: 3725 | BE302: 13725 | BF302: 13725 | BG302: 23725 | BH302: 28725 | BI302: 21725 | BJ302: 14725 | BK302: 7725 | BL302: 725 | BM302: -3725 | BN302: -3725 | BO302: -3725 | BP302: -3725 | BQ302: 6275 | BR302: 6275 | BS302: 16275 | BT302: 16275 | BU302: 8975 | BV302: 1675 | BW302: =BV302+BW299-BW297 -> -3350 | BX302: -3350 | BY302: -3350 | BZ302: -3350
A304: MEP001058 | B304: AP | D304: 1 | E304: 8 | G304: Need | H304: =SUM(I306:BZ306) -> 64500 | I304: =$D$304*'[1]Production plan'!C126 -> 0 | J304: =$D$304*'[1]Production plan'!D126 -> 0 | K304: =$D$304*'[1]Production plan'!E126 -> 0 | L304: =$D$304*'[1]Production plan'!F126 -> 0 | M304: =$D$304*'[1]Production plan'!G126 -> 0 | N304: =$D$304*'[1]Production plan'!H126 -> 0 | O304: =$D$304*'[1]Production plan'!I126 -> 0 | P304: =$D$304*'[1]Production plan'!J126 -> 0 | Q304: =$D$304*'[1]Production plan'!K126 -> 0 | R304: =$D$304*'[1]Production plan'!L126 -> 0 | S304: =$D$304*'[1]Production plan'!M126 -> 0 | T304: =$D$304*'[1]Production plan'!N126 -> 0 | U304: =$D$304*'[1]Production plan'!O126 -> 0 | V304: =$D$304*'[1]Production plan'!P126 -> 0 | W304: =$D$304*'[1]Production plan'!Q126 -> 0 | X304: =$D$304*'[1]Production plan'!R126 -> 0 | Y304: =$D$304*'[1]Production plan'!S126 -> 0 | Z304: =$D$304*'[1]Production plan'!T126 -> 0 | AA304: =$D$304*'[1]Production plan'!U126 -> 0 | AB304: =$D$304*'[1]Production plan'!V126 -> 0 | AC304: =$D$304*'[1]Production plan'!W126 -> 0 | AD304: =$D$304*'[1]Production plan'!X126 -> 0 | AE304: =$D$304*'[1]Production plan'!Y126 -> 0 | AF304: =$D$304*'[1]Production plan'!Z126 -> 0 | AG304: =$D$304*'[1]Production plan'!AA126 -> 0 | AH304: =$D$304*'[1]Production plan'!AB126 -> 0 | AI304: =$D$304*'[1]Production plan'!AC126 -> 0 | AJ304: =$D$304*'[1]Production plan'!AD126 -> 30 | AK304: =$D$304*'[1]Production plan'!AE126 -> 75 | AL304: =$D$304*'[1]Production plan'!AF126 -> 150 | AM304: =$D$304*'[1]Production plan'!AG126 -> 250 | AN304: =$D$304*'[1]Production plan'!AH126 -> 500 | AO304: =$D$304*'[1]Production plan'!AI126 -> 600 | AP304: =$D$304*'[1]Production plan'!AJ126 -> 1000 | AQ304: =$D$304*'[1]Production plan'!AK126 -> 1250 | AR304: =$D$304*'[1]Production plan'!AL126 -> 1500 | AS304: =$D$304*'[1]Production plan'!AM126 -> 1500 | AT304: =$D$304*'[1]Production plan'!AN126 -> 1500 | AU304: =$D$304*'[1]Production plan'!AO126 -> 0 | AV304: =$D$304*'[1]Production plan'!AP126 -> 2120 | AW304: =$D$304*'[1]Production plan'!AQ126 -> 2300 | AX304: =$D$304*'[1]Production plan'!AR126 -> 0 | AY304: =$D$304*'[1]Production plan'!AS126 -> 0 | AZ304: =$D$304*'[1]Production plan'!AT126 -> 0 | BA304: =$D$304*'[1]Production plan'!AU126 -> 0 | BB304: =$D$304*'[1]Production plan'!AV126 -> 0 | BC304: =$D$304*'[1]Production plan'!AW126 -> 0 | BD304: =$D$304*'[1]Production plan'!AX126 -> 0 | BE304: =$D$304*'[1]Production plan'!AY126 -> 0 | BF304: =$D$304*'[1]Production plan'!AZ126 -> 0 | BG304: =$D$304*'[1]Production plan'!BA126 -> 0 | BH304: =$D$304*'[1]Production plan'!BB126 -> 3000 | BI304: =$D$304*'[1]Production plan'!BC126 -> 7000 | BJ304: =$D$304*'[1]Production plan'!BD126 -> 7000 | BK304: =$D$304*'[1]Production plan'!BE126 -> 7000 | BL304: =$D$304*'[1]Production plan'!BF126 -> 7000 | BM304: =$D$304*'[1]Production plan'!BG126 -> 4450 | BN304: =$D$304*'[1]Production plan'!BH126 -> 0 | BO304: =$D$304*'[1]Production plan'!BI126 -> 0 | BP304: =$D$304*'[1]Production plan'!BJ126 -> 0 | BQ304: =$D$304*'[1]Production plan'!BK126 -> 0 | BR304: =$D$304*'[1]Production plan'!BL126 -> 0 | BS304: =$D$304*'[1]Production plan'!BM126 -> 0 | BT304: =$D$304*'[1]Production plan'!BN126 -> 0 | BU304: =$D$304*'[1]Production plan'!BO126 -> 7300 | BV304: =$D$304*'[1]Production plan'!BP126 -> 7300 | BW304: =$D$304*'[1]Production plan'!BQ126 -> 5025 | BX304: =$D$304*'[1]Production plan'!BR126 -> 0 | BY304: =$D$304*'[1]Production plan'!BS126 -> 0 | BZ304: =$D$304*'[1]Production plan'!BT126 -> 0
G306: Supply | Z306: 4500 | AP306: 6000 | BB306: 6000 | BE306: 10000 | BG306: 10000 | BH306: 8000 | BQ306: 10000 | BS306: 10000
G308: % | I308: =I309/AVERAGE(J304:P304) ->  | P308: =P309/AVERAGE(Q304:W304) ->  | Q308: =Q309/AVERAGE(R304:X304) ->  | AC308: 1050 | AD308: 300 | AE308: 123.5294118 | AF308: 62.37623762 | AG308: 31.34328358 | AH308: 19.62616822 | AI308: 12.09213052 | AJ308: 8.180392157 | AK308: 5.86 | AL308: 4.502272727 | AM308: 3.562420382 | AN308: 3.328571429 | AO308: 2.284667418 | AP308: 5.434119961 | AQ308: 5.214686099 | AR308: 4.853773585 | AS308: 4.309966216 | AT308: 3.397058824 | AU308: 3.397058824 | AV308: 0.07608695652 | BA308: -5.308333333 | BB308: 2.6075 | BC308: 1.533823529 | BD308: 1.086458333 | BE308: 3.099193548 | BF308: 2.710155148 | BG308: 4.684767278 | BH308: 6.196456086 | BI308: 5.975442043 | BJ308: 5.586720867 | BK308: 4.722707424 | BL308: 1.140449438 | BN308: -3.571917808 | BO308: -1.785958904 | BP308: -1.32866242 | BQ308: 2.238216561 | BR308: 2.238216561 | BS308: 5.805095541 | BT308: 4.975796178 | BU308: 3.640973631 | BV308: 1.333333333
G309: Inventory | I309: 0 | J309: =I309+J306-J304 -> 0 | K309: =J309+K306-K304 -> 0 | L309: 0 | M309: 0 | N309: 0 | O309: 0 | P309: 0 | Q309: 0 | R309: 0 | S309: 0 | T309: 0 | U309: 0 | V309: 0 | W309: 0 | X309: 0 | Y309: 0 | Z309: 4500 | AA309: 4500 | AB309: 4500 | AC309: 4500 | AD309: 4500 | AE309: 4500 | AF309: 4500 | AG309: 4500 | AH309: 4500 | AI309: 4500 | AJ309: =AI309+AJ306-AJ304 -> 4470 | AK309: 4395 | AL309: 4245 | AM309: 3995 | AN309: 3495 | AO309: 2895 | AP309: 7895 | AQ309: 6645 | AR309: 5145 | AS309: 3645 | AT309: 2145 | AU309: 2145 | AV309: 25 | AW309: -2275 | AX309: -2275 | AY309: -2275 | AZ309: -2275 | BA309: -2275 | BB309: 3725 | BC309: 3725 | BD309: 3725 | BE309: 13725 | BF309: 13725 | BG309: 23725 | BH309: 28725 | BI309: 21725 | BJ309: 14725 | BK309: 7725 | BL309: 725 | BM309: -3725 | BN309: -3725 | BO309: -3725 | BP309: -3725 | BQ309: 6275 | BR309: 6275 | BS309: 16275 | BT309: 16275 | BU309: 8975 | BV309: 1675 | BW309: =BV309+BW306-BW304 -> -3350 | BX309: -3350 | BY309: -3350 | BZ309: -3350
A311: MEP000013 | B311: AQ | C311: 1 | E311: 8 | G311: Need | H311: =SUM(I313:BZ313) -> 5000 | I311: =$C$311*'[1]Production plan'!C147 -> 0 | J311: =$C$311*'[1]Production plan'!D147 -> 0 | K311: =$C$311*'[1]Production plan'!E147 -> 0 | L311: =$C$311*'[1]Production plan'!F147 -> 0 | M311: =$C$311*'[1]Production plan'!G147 -> 0 | N311: =$C$311*'[1]Production plan'!H147 -> 0 | O311: =$C$311*'[1]Production plan'!I147 -> 0 | P311: =$C$311*'[1]Production plan'!J147 -> 12 | Q311: =$C$311*'[1]Production plan'!K147 -> 12 | R311: =$C$311*'[1]Production plan'!L147 -> 24 | S311: =$C$311*'[1]Production plan'!M147 -> 216 | T311: =$C$311*'[1]Production plan'!N147 -> 96 | U311: =$C$311*'[1]Production plan'!O147 -> 264 | V311: =$C$311*'[1]Production plan'!P147 -> 175 | W311: =$C$311*'[1]Production plan'!Q147 -> 264 | X311: =$C$311*'[1]Production plan'!R147 -> 552 | Y311: =$C$311*'[1]Production plan'!S147 -> 288 | Z311: =$C$311*'[1]Production plan'!T147 -> 0 | AA311: =$C$311*'[1]Production plan'!U147 -> 0 | AB311: =$C$311*'[1]Production plan'!V147 -> 0 | AC311: =$C$311*'[1]Production plan'!W147 -> 504 | AD311: =$C$311*'[1]Production plan'!X147 -> 504 | AE311: =$C$311*'[1]Production plan'!Y147 -> 504 | AF311: =$C$311*'[1]Production plan'!Z147 -> 472 | AG311: =$C$311*'[1]Production plan'!AA147 -> 340
G313: Supply | L313: 5000
G315: % | I315: =I316/AVERAGE(I311:O311) ->  | J315: 0 | K315: 0 | L315: 729.1666667 | M315: 132.5757576 | N315: 97.22222222 | O315: 56.08974359 | P315: 43.80475594 | Q315: 33.22169363 | R315: 21.84035198 | S315: 17.91698113 | T315: 19.86821232 | U315: 19.90667531 | V315: 23.0578577 | W315: 17.1909204 | X315: 12.86742424 | Y315: 12.09055556 | Z315: 10.96925403 | AA315: 9.364457831 | AB315: 8.026678141 | AC315: 5.604561102 | AD315: 4.617582418 | AE315: 3.640577508 | AF315: 2.770935961 | AG315: 2.308823529 | BU315: =BU316/AVERAGE(BU311:CA311) -> 
G316: Inventory | I316: =I317/AVERAGE(J313:P313) -> 0 | J316: 0 | K316: 0 | L316: 5000 | M316: =L316+M313-M311 -> 5000 | N316: 5000 | O316: 5000 | P316: 5000 | Q316: =P316+Q313-Q311 -> 4988 | R316: 4964 | S316: 4748 | T316: 4652 | U316: 4388 | V316: 4213 | W316: 3949 | X316: 3397 | Y316: 3109 | Z316: 3109 | AA316: 3109 | AB316: 3109 | AC316: 2605 | AD316: 2101 | AE316: 1597 | AF316: 1125 | AG316: 785 | AH316: =AH317/AVERAGE(AI313:AO313) -> 
A318: MEP000012 | B318: AR | C318: 1 | E318: 8 | G318: Need | H318: =SUM(I320:BZ320) -> 5000 | I318: =$C$318*'[1]Production plan'!C147 -> 0 | J318: =$C$318*'[1]Production plan'!D147 -> 0 | K318: =$C$318*'[1]Production plan'!E147 -> 0 | L318: =$C$318*'[1]Production plan'!F147 -> 0 | M318: =$C$318*'[1]Production plan'!G147 -> 0 | N318: =$C$318*'[1]Production plan'!H147 -> 0 | O318: =$C$318*'[1]Production plan'!I147 -> 0 | P318: =$C$318*'[1]Production plan'!J147 -> 12 | Q318: =$C$318*'[1]Production plan'!K147 -> 12 | R318: =$C$318*'[1]Production plan'!L147 -> 24 | S318: =$C$318*'[1]Production plan'!M147 -> 216 | T318: =$C$318*'[1]Production plan'!N147 -> 96 | U318: =$C$318*'[1]Production plan'!O147 -> 264 | V318: =$C$318*'[1]Production plan'!P147 -> 175 | W318: =$C$318*'[1]Production plan'!Q147 -> 264 | X318: =$C$318*'[1]Production plan'!R147 -> 552 | Y318: =$C$318*'[1]Production plan'!S147 -> 288 | Z318: =$C$318*'[1]Production plan'!T147 -> 0 | AA318: =$C$318*'[1]Production plan'!U147 -> 0 | AB318: =$C$318*'[1]Production plan'!V147 -> 0 | AC318: =$C$318*'[1]Production plan'!W147 -> 504 | AD318: =$C$318*'[1]Production plan'!X147 -> 504 | AE318: =$C$318*'[1]Production plan'!Y147 -> 504 | AF318: =$C$318*'[1]Production plan'!Z147 -> 472 | AG318: =$C$318*'[1]Production plan'!AA147 -> 340
... 97 more rows

Sheet DATA
A1: CHP001035 | B1: =INDEX('Supply plan'!B:B,MATCH(DATA!A1,'Supply plan'!A:A,0)) -> A | C1: Si tu changes les descriptions dans feuille Supply elle se reportent ici avec la formule INDEX et la macro utilse les données de DATA
A2: CHP001036 | B2: =INDEX('Supply plan'!B:B,MATCH(DATA!A2,'Supply plan'!A:A,0)) -> B
A3: CHP001043 | B3: =INDEX('Supply plan'!B:B,MATCH(DATA!A3,'Supply plan'!A:A,0)) -> C
A4: COP001009 | B4: =INDEX('Supply plan'!B:B,MATCH(DATA!A4,'Supply plan'!A:A,0)) -> D
A5: CHP000010 | B5: =INDEX('Supply plan'!B:B,MATCH(DATA!A5,'Supply plan'!A:A,0)) -> E
A6: CHP000012 | B6: =INDEX('Supply plan'!B:B,MATCH(DATA!A6,'Supply plan'!A:A,0)) -> F
A7: CHP001039 | B7: =INDEX('Supply plan'!B:B,MATCH(DATA!A7,'Supply plan'!A:A,0)) -> G
A8: CHP001052 | B8: =INDEX('Supply plan'!B:B,MATCH(DATA!A8,'Supply plan'!A:A,0)) -> H
A9: CHP001031 | B9: =INDEX('Supply plan'!B:B,MATCH(DATA!A9,'Supply plan'!A:A,0)) -> I
A10: CHP001032 | B10: =INDEX('Supply plan'!B:B,MATCH(DATA!A10,'Supply plan'!A:A,0)) -> J
A11: CHP001033 | B11: =INDEX('Supply plan'!B:B,MATCH(DATA!A11,'Supply plan'!A:A,0)) -> K
A12: CHP001053 | B12: =INDEX('Supply plan'!B:B,MATCH(DATA!A12,'Supply plan'!A:A,0)) -> L
A13: CHP001034 | B13: =INDEX('Supply plan'!B:B,MATCH(DATA!A13,'Supply plan'!A:A,0)) -> M
A14: CHP000006 | B14: =INDEX('Supply plan'!B:B,MATCH(DATA!A14,'Supply plan'!A:A,0)) -> N
A15: CHP001040 | B15: =INDEX('Supply plan'!B:B,MATCH(DATA!A15,'Supply plan'!A:A,0)) -> O
A16: CHP001028 | B16: =INDEX('Supply plan'!B:B,MATCH(DATA!A16,'Supply plan'!A:A,0)) -> P
A17: MEP001014 | B17: =INDEX('Supply plan'!B:B,MATCH(DATA!A17,'Supply plan'!A:A,0)) -> Q
A18: MEP001119 | B18: =INDEX('Supply plan'!B:B,MATCH(DATA!A18,'Supply plan'!A:A,0)) -> R
A19: CHP001001 | B19: =INDEX('Supply plan'!B:B,MATCH(DATA!A19,'Supply plan'!A:A,0)) -> S
A20: CHP001017 | B20: =INDEX('Supply plan'!B:B,MATCH(DATA!A20,'Supply plan'!A:A,0)) -> T
A21: MEP001011 | B21: =INDEX('Supply plan'!B:B,MATCH(DATA!A21,'Supply plan'!A:A,0)) -> U
A22: MEP001013 | B22: =INDEX('Supply plan'!B:B,MATCH(DATA!A22,'Supply plan'!A:A,0)) -> V
A23: MEP000019 | B23: =INDEX('Supply plan'!B:B,MATCH(DATA!A23,'Supply plan'!A:A,0)) -> W
A24: MEP001009 | B24: =INDEX('Supply plan'!B:B,MATCH(DATA!A24,'Supply plan'!A:A,0)) -> X
A25: MEP000022 | B25: =INDEX('Supply plan'!B:B,MATCH(DATA!A25,'Supply plan'!A:A,0)) -> Y
A26: MEP001010 | B26: =INDEX('Supply plan'!B:B,MATCH(DATA!A26,'Supply plan'!A:A,0)) -> Z
A27: MEP001126 | B27: =INDEX('Supply plan'!B:B,MATCH(DATA!A27,'Supply plan'!A:A,0)) -> AA
A28: MEP001125 | B28: =INDEX('Supply plan'!B:B,MATCH(DATA!A28,'Supply plan'!A:A,0)) -> AB
A29: MEP001124 | B29: =INDEX('Supply plan'!B:B,MATCH(DATA!A29,'Supply plan'!A:A,0)) -> AC
A30: MEP001123 | B30: =INDEX('Supply plan'!B:B,MATCH(DATA!A30,'Supply plan'!A:A,0)) -> AD
A31: MEP001021 | B31: =INDEX('Supply plan'!B:B,MATCH(DATA!A31,'Supply plan'!A:A,0)) -> AE
A32: MEP001020 | B32: =INDEX('Supply plan'!B:B,MATCH(DATA!A32,'Supply plan'!A:A,0)) -> AF
A33: MEP001090 | B33: =INDEX('Supply plan'!B:B,MATCH(DATA!A33,'Supply plan'!A:A,0)) -> AG
A34: MEP001089 | B34: =INDEX('Supply plan'!B:B,MATCH(DATA!A34,'Supply plan'!A:A,0)) -> AH
A35: MEP001008 | B35: =INDEX('Supply plan'!B:B,MATCH(DATA!A35,'Supply plan'!A:A,0)) -> AI
A36: MEP001005 | B36: =INDEX('Supply plan'!B:B,MATCH(DATA!A36,'Supply plan'!A:A,0)) -> AJ
A37: MEP001100 | B37: =INDEX('Supply plan'!B:B,MATCH(DATA!A37,'Supply plan'!A:A,0)) -> AK
A38: MEP001101 | B38: =INDEX('Supply plan'!B:B,MATCH(DATA!A38,'Supply plan'!A:A,0)) -> AL
A39: MEP001091 | B39: =INDEX('Supply plan'!B:B,MATCH(DATA!A39,'Supply plan'!A:A,0)) -> AM
A40: MEP001092 | B40: =INDEX('Supply plan'!B:B,MATCH(DATA!A40,'Supply plan'!A:A,0)) -> AN
A41: MEP001099 | B41: =INDEX('Supply plan'!B:B,MATCH(DATA!A41,'Supply plan'!A:A,0)) -> AO
A42: MEP001058 | B42: =INDEX('Supply plan'!B:B,MATCH(DATA!A42,'Supply plan'!A:A,0)) -> AP
A43: MEP000013 | B43: =INDEX('Supply plan'!B:B,MATCH(DATA!A43,'Supply plan'!A:A,0)) -> AQ
A44: MEP000012 | B44: =INDEX('Supply plan'!B:B,MATCH(DATA!A44,'Supply plan'!A:A,0)) -> AR
A45: MEP001093 | B45: =INDEX('Supply plan'!B:B,MATCH(DATA!A45,'Supply plan'!A:A,0)) -> AS
A46: MEP001094 | B46: =INDEX('Supply plan'!B:B,MATCH(DATA!A46,'Supply plan'!A:A,0)) -> AT
A47: MEP001049 | B47: =INDEX('Supply plan'!B:B,MATCH(DATA!A47,'Supply plan'!A:A,0)) -> AU
A48: MEP001050 | B48: =INDEX('Supply plan'!B:B,MATCH(DATA!A48,'Supply plan'!A:A,0)) -> AV
A49: MEP001015 | B49: =INDEX('Supply plan'!B:B,MATCH(DATA!A49,'Supply plan'!A:A,0)) -> AW
A50: MEP001000 | B50: =INDEX('Supply plan'!B:B,MATCH(DATA!A50,'Supply plan'!A:A,0)) -> AX
A51: MEP001033 | B51: =INDEX('Supply plan'!B:B,MATCH(DATA!A51,'Supply plan'!A:A,0)) -> AY
A52: MEP001034 | B52: =INDEX('Supply plan'!B:B,MATCH(DATA!A52,'Supply plan'!A:A,0)) -> AZ
A53: MEP001121 | B53: =INDEX('Supply plan'!B:B,MATCH(DATA!A53,'Supply plan'!A:A,0)) -> BA
A54: MEP001003 | B54: =INDEX('Supply plan'!B:B,MATCH(DATA!A54,'Supply plan'!A:A,0)) -> BB
A55: MEP001072 | B55: =INDEX('Supply plan'!B:B,MATCH(DATA!A55,'Supply plan'!A:A,0)) -> BC
A56: MEP000006 | B56: =INDEX('Supply plan'!B:B,MATCH(DATA!A56,'Supply plan'!A:A,0)) -> BD
A57: MEP001111 | B57: =INDEX('Supply plan'!B:B,MATCH(DATA!A57,'Supply plan'!A:A,0)) -> BE
A58: MEP000007 | B58: =INDEX('Supply plan'!B:B,MATCH(DATA!A58,'Supply plan'!A:A,0)) -> BF
A59: MEP001087 | B59: =INDEX('Supply plan'!B:B,MATCH(DATA!A59,'Supply plan'!A:A,0)) -> BG
A60: MEP001041 | B60: =INDEX('Supply plan'!B:B,MATCH(DATA!A60,'Supply plan'!A:A,0)) -> BH
A61: MEP001001 | B61: =INDEX('Supply plan'!B:B,MATCH(DATA!A61,'Supply plan'!A:A,0)) -> BI
A62: MEP001120 | B62: =INDEX('Supply plan'!B:B,MATCH(DATA!A62,'Supply plan'!A:A,0)) -> BJ
A63: MEP001065 | B63: =INDEX('Supply plan'!B:B,MATCH(DATA!A63,'Supply plan'!A:A,0)) -> BK
A64: MEP001039 | B64: =INDEX('Supply plan'!B:B,MATCH(DATA!A64,'Supply plan'!A:A,0)) -> BL
A65: MEP001040 | B65: =INDEX('Supply plan'!B:B,MATCH(DATA!A65,'Supply plan'!A:A,0)) -> BM
A66: MEP001112 | B66: =INDEX('Supply plan'!B:B,MATCH(DATA!A66,'Supply plan'!A:A,0)) -> BN
A67: MEP001044 | B67: =INDEX('Supply plan'!B:B,MATCH(DATA!A67,'Supply plan'!A:A,0)) -> BO

Sheet Recap
B1: Raccourci Ctrl + r pour lancer la macro Restera après à mettre en forme
A2: A | D2: B | G2: C | J2: D | M2: E | P2: F | S2: G | V2: H | Y2: I | AB2: J | AE2: K | AH2: L | AK2: M | AN2: N | AQ2: O | AT2: P | AW2: Q | AZ2: R | BC2: S | BF2: T | BI2: U | BL2: V | BO2: W | BR2: X | BU2: Y | BX2: Z | CA2: AA | CD2: AB | CG2: AC | CJ2: AD | CM2: AE | CP2: AF | CS2: AG | CV2: AH | CY2: AI | DB2: AJ | DE2: AK | DH2: AL | DK2: AM | DN2: AN | DQ2: AO | DT2: AP | DW2: AQ | DZ2: AR | EC2: AS | EF2: AT | EI2: AU | EL2: AV | EO2: AW | ER2: AX | EU2: AY | EX2: AZ | FA2: BA | FD2: BB | FG2: BC | FJ2: BD | FM2: BE | FP2: BF | FS2: BG | FV2: BH | FY2: BI | GB2: BJ | GE2: BK | GH2: BL | GK2: BM | GN2: BN | GQ2: BO
A3: CHP001035 | D3: CHP001036 | G3: CHP001043 | J3: COP001009 | M3: CHP000010 | P3: CHP000012 | S3: CHP001039 | V3: CHP001052 | Y3: CHP001031 | AB3: CHP001032 | AE3: CHP001033 | AH3: CHP001053 | AK3: CHP001034 | AN3: CHP000006 | AQ3: CHP001040 | AT3: CHP001028 | AW3: MEP001014 | AZ3: MEP001119 | BC3: CHP001001 | BF3: CHP001017 | BI3: MEP001011 | BL3: MEP001013 | BO3: MEP000019 | BR3: MEP001009 | BU3: MEP000022 | BX3: MEP001010 | CA3: MEP001126 | CD3: MEP001125 | CG3: MEP001124 | CJ3: MEP001123 | CM3: MEP001021 | CP3: MEP001020 | CS3: MEP001090 | CV3: MEP001089 | CY3: MEP001008 | DB3: MEP001005 | DE3: MEP001100 | DH3: MEP001101 | DK3: MEP001091 | DN3: MEP001092 | DQ3: MEP001099 | DT3: MEP001058 | DW3: MEP000013 | DZ3: MEP000012 | EC3: MEP001093 | EF3: MEP001094 | EI3: MEP001049 | EL3: MEP001050 | EO3: MEP001015 | ER3: MEP001000 | EU3: MEP001033 | EX3: MEP001034 | FA3: MEP001121 | FD3: MEP001003 | FG3: MEP001072 | FJ3: MEP000006 | FM3: MEP001111 | FP3: MEP000007 | FS3: MEP001087 | FV3: MEP001041 | FY3: MEP001001 | GB3: MEP001120 | GE3: MEP001065 | GH3: MEP001039 | GK3: MEP001040 | GN3: MEP001112 | GQ3: MEP001044
A4: Qté | B4: Délai | D4: Qté | E4: Délai | G4: Qté | H4: Délai | J4: Qté | K4: Délai | M4: Qté | N4: Délai | P4: Qté | Q4: Délai | S4: Qté | T4: Délai | V4: Qté | W4: Délai | Y4: Qté | Z4: Délai | AB4: Qté | AC4: Délai | AE4: Qté | AF4: Délai | AH4: Qté | AI4: Délai | AK4: Qté | AL4: Délai | AN4: Qté | AO4: Délai | AQ4: Qté | AR4: Délai | AT4: Qté | AU4: Délai | AW4: Qté | AX4: Délai | AZ4: Qté | BA4: Délai | BC4: Qté | BD4: Délai | BF4: Qté | BG4: Délai | BI4: Qté | BJ4: Délai | BL4: Qté | BM4: Délai | BO4: Qté | BP4: Délai | BR4: Qté | BS4: Délai | BU4: Qté | BV4: Délai | BX4: Qté | BY4: Délai | CA4: Qté | CB4: Délai | CD4: Qté | CE4: Délai | CG4: Qté | CH4: Délai | CJ4: Qté | CK4: Délai | CM4: Qté | CN4: Délai | CP4: Qté | CQ4: Délai | CS4: Qté | CT4: Délai | CV4: Qté | CW4: Délai | CY4: Qté | CZ4: Délai | DB4: Qté | DC4: Délai | DE4: Qté | DF4: Délai | DH4: Qté | DI4: Délai | DK4: Qté | DL4: Délai | DN4: Qté | DO4: Délai | DQ4: Qté | DR4: Délai | DT4: Qté | DU4: Délai | DW4: Qté | DX4: Délai | DZ4: Qté | EA4: Délai | EC4: Qté | ED4: Délai | EF4: Qté | EG4: Délai | EI4: Qté | EJ4: Délai | EL4: Qté | EM4: Délai | EO4: Qté | EP4: Délai | ER4: Qté | ES4: Délai | EU4: Qté | EV4: Délai | EX4: Qté | EY4: Délai | FA4: Qté | FB4: Délai | FD4: Qté | FE4: Délai | FG4: Qté | FH4: Délai | FJ4: Qté | FK4: Délai | FM4: Qté | FN4: Délai | FP4: Qté | FQ4: Délai | FS4: Qté | FT4: Délai | FV4: Qté | FW4: Délai | FY4: Qté | FZ4: Délai | GB4: Qté | GC4: Délai | GE4: Qté | GF4: Délai | GH4: Qté | GI4: Délai | GK4: Qté | GL4: Délai | GN4: Qté | GO4: Délai | GQ4: Qté | GR4: Délai
